Workbook

Sheet SolCotizacion
B1: IAD COVID-19
B3: Versión 14 | C3: 13/7/2021
B4: Información de la Entidad Compradora
B6: Nombre de la Entidad | D6: Universidad Distrital Francisco Jose de Caldas | H6: NIT | I6: 899.999.230-7
B8: Dirección de la Entidad | D8: Carrera 7 No. 40 B 53 | H8: Correo de contacto | I8: vicerrecadmin@udistrital.edu.co
B10: Ciudad | D10: Bogota D.C. | H10: Teléfono de contacto | I10: 323 93 00 Ext: 1804-1816
B12: Nombre funcionario comprador | D12: Eduard Arnulfo Pinilla Rivera
B16: Solicitud
B19: Cantidad de filas:
B20: 1
B22: Artículo | G22: Entrega | K22: Cantidad
B23: Item | C23: Código | D23: Categoría | E23: Producto | F23: Especificación Técnica | G23: Distribución | H23: Departamento | I23: Municipio | J23: Direccón de Entrega | K23: cantidad
B24: 1 | C24: PA-66 | D24: =VLOOKUP($C24,Catalogo!$D:$I,3,0) -> ELEMENTOS DE ASEO | E24: =VLOOKUP($C24,Catalogo!$D:$I,2,0) -> PA-66 - BASES PARA DISPENSADORES DE GEL DESINFECTANTE Y JABÓN LÍQUIDO PARA MANOS - UNIDAD | F24: =VLOOKUP($C24,Catalogo!$D:$I,4,0) -> BASE EN TUBOS DE PLÁSTICO O METÁLICA. EL SOPORTE PRESIONA EL DISPENSADOR DEL GEL DESINFECTANTE O DEL JABÓN LÍQUIDO PARA MANOS SIN NECESIDAD DE TOCARLO CON LA MANO. ACCIONA EL PEDAN CON EL PIE HACIA ABAJO. | G24: Si | H24: BOGOTÁ, D.C. | I24: BOGOTÁ, D.C. | J24: CALLE 13 No. 31-74 | K24: 100
B25: 1. Si requiere agregue o elimine filas
B28: Gravámenes adicionales*
B29: Si los hay, indique los gravámenes adicionales a los que está sujeta la Orden de Compra. Son gravámenes adicionales por ejemplo; estampillas y demás impuestos territoriales. Los impuestos como ICA y retención en la fuente NO son gravámenes adicionales.
B30: Gravámenes adicionales (estampillas)
B31: No | C31: Descripción | H31: Porcentaje
B32: 1 | C32: Estampilla Universidad Distrital Francisco Jose de Caldas 50 años | H32: 0.011
B33: 2 | C33: Estampilla Pro-cultura | H33: 0.005
B34: 3 | C34: Estampilla Adulto Mayor | H34: 0.02
F35: Total porcentaje: | H35: =SUM(H32:H34) -> 0.036
D36: Filas a agregar o eliminar Gravámenes:
D37: 1

Sheet ResumenCotizacion
B1: IAD COVID-19
B4: Información de la Entidad Compradora
B6: Nombre de la Entidad | D6: Universidad Distrital Francisco Jose de Caldas | H6: NIT | I6: 899.999.230-7
B8: Dirección de la Entidad | D8: Carrera 7 No. 40 B 53 | H8: Correo de contacto | I8: vicerrecadmin@udistrital.edu.co
B10: Ciudad | D10: Bogota D.C. | H10: Teléfono de contacto | I10: 323 93 00 Ext: 1804-1816
B12: Nombre funcionario comprador | D12: Eduard Arnulfo Pinilla Rivera
B16: Solicitud
B19: Cantidad de filas:
B20: 1
B22: Artículo | G22: Entrega | K22: Cantidad | L22: Valores | S22: Proveedor Ganador
B23: Item | C23: Código | D23: Categoría | E23: Producto | F23: Especificación Técnica | G23: Distribución | H23: Departamento | I23: Municipio | J23: Direccón de Entrega | K23: cantidad | L23: Cantidad Asumida | M23: Valor | N23: Valor Máximo Permitido | O23: Subtotal | P23: % IVA | Q23: Valor Iva | R23: Precio Total | S23: Proveedor
B24: 1 | C24: PA-66 | D24: =VLOOKUP($C24,Catalogo!$D:$I,3,0) -> ELEMENTOS DE ASEO | E24: =VLOOKUP($C24,Catalogo!$D:$I,2,0) -> PA-66 - BASES PARA DISPENSADORES DE GEL DESINFECTANTE Y JABÓN LÍQUIDO PARA MANOS - UNIDAD | F24: =VLOOKUP($C24,Catalogo!$D:$I,4,0) -> BASE EN TUBOS DE PLÁSTICO O METÁLICA. EL SOPORTE PRESIONA EL DISPENSADOR DEL GEL DESINFECTANTE O DEL JABÓN LÍQUIDO PARA MANOS SIN NECESIDAD DE TOCARLO CON LA MANO. ACCIONA EL PEDAN CON EL PIE HACIA ABAJO. | G24: Si | H24: BOGOTÁ, D.C. | I24: BOGOTÁ, D.C. | J24: CALLE 13 No. 31-74 | K24: 100 | L24: 100 | M24: =VLOOKUP($C24&$S24,Catalogo!$A:$S,14,0) -> 25766 | N24: =ROUND(M24/(1-VLOOKUP("Total porcentaje:",$F:$H,3,0)),2) -> 26728.22 | O24: =ROUND($N24*$L24,2) -> 2672822 | P24: =VLOOKUP($C24&$S24,Catalogo!$A:$S,19,0) -> 0.19 | Q24: =ROUND($O24*$P24,2) -> 507836.18 | R24: =$Q24+$O24 -> 3180658.18 | S24: INDUHOTEL SAS
B25: 2 | C25: DIS-1 | D25: DISTRIBUCION | E25: DIS-1 - DISTRIBUCION | K25: 1 | L25: 1 | M25: =SUM(Distribución!$H:$H)/2 -> 54800 | N25: =ROUND(M25/(1-VLOOKUP("Total porcentaje:",$F:$H,3,0)),2) -> 56846.47 | O25: =ROUND($N25*$L25,2) -> 56846.47 | P25: 0 | Q25: =ROUND($O25*$P25,2) -> 0 | R25: =$Q25+$O25 -> 56846.47 | S25: Distribución Total
B26: 1. Si requiere agregue o elimine filas | P26: Total | Q26: =SUM(Q$24:Q$25) -> 507836.18 | R26: =SUM(R$24:R$25) -> 3237504.65
B29: Gravámenes adicionales*
B30: Si los hay, indique los gravámenes adicionales a los que está sujeta la Orden de Compra. Son gravámenes adicionales por ejemplo; estampillas y demás impuestos territoriales. Los impuestos como ICA y retención en la fuente NO son gravámenes adicionales.
B31: Gravámenes adicionales (estampillas)
B32: No | C32: Descripción | H32: Porcentaje
B33: 1 | C33: Estampilla Universidad Distrital Francisco Jose de Caldas 50 años | H33: 0.011
B34: 2 | C34: Estampilla Pro-cultura | H34: 0.005
B35: 3 | C35: Estampilla Adulto Mayor | H35: 0.02
F36: Total porcentaje: | H36: =SUM(H33:H35) -> 0.036

Sheet Distribución
B2: VALORES DE DISTRIBUCIÓN
B5: Proveedor | D5: INDUHOTEL SAS | H5: =H8 -> 54800
B7: Item | C7: Producto | D7: Departamento | E7: Municipio | F7: Direccón de Entrega | G7: Cantidad Asumida | H7: Valor total de distribución
B8: 1 | C8: PA-66 - BASES PARA DISPENSADORES DE GEL DESINFECTANTE Y JABÓN LÍQUIDO PARA MANOS - UNIDAD | D8: BOGOTÁ, D.C. | E8: BOGOTÁ, D.C. | F8: CALLE 13 No. 31-74 | G8: 100 | H8: 54800

Sheet divipola (hidden)
A1: Departemento | B1: Municipio
A2: AMAZONAS | B2: LETICIA
A3: AMAZONAS | B3: PUERTO SANTANDER
A4: AMAZONAS | B4: EL ENCANTO
A5: AMAZONAS | B5: PUERTO ALEGRÍA
A6: AMAZONAS | B6: LA CHORRERA
A7: AMAZONAS | B7: LA PEDRERA
A8: AMAZONAS | B8: LA VICTORIA
A9: AMAZONAS | B9: MIRITÍ - PARANÁ
A10: AMAZONAS | B10: PUERTO ARICA
A11: AMAZONAS | B11: PUERTO NARIÑO
A12: AMAZONAS | B12: TARAPACÁ
A13: ANTIOQUIA | B13: SAN LUIS
A14: ANTIOQUIA | B14: BRICEÑO
A15: ANTIOQUIA | B15: CIUDAD BOLÍVAR
A16: ANTIOQUIA | B16: BURITICÁ
A17: ANTIOQUIA | B17: CAUCASIA
A18: ANTIOQUIA | B18: COCORNÁ
A19: ANTIOQUIA | B19: CAICEDO
A20: ANTIOQUIA | B20: CALDAS
A21: ANTIOQUIA | B21: CAÑASGORDAS
A22: ANTIOQUIA | B22: CAREPA
A23: ANTIOQUIA | B23: CARAMANTA
A24: ANTIOQUIA | B24: CARMEN DE VIBORAL
A25: ANTIOQUIA | B25: CHIGORODÓ
A26: ANTIOQUIA | B26: CISNEROS
A27: ANTIOQUIA | B27: CARACOLÍ
A28: ANTIOQUIA | B28: CAROLINA
A29: ANTIOQUIA | B29: CONCEPCIÓN
A30: ANTIOQUIA | B30: CONCORDIA
A31: ANTIOQUIA | B31: MUTATÁ
A32: ANTIOQUIA | B32: DABEIBA
A33: ANTIOQUIA | B33: COPACABANA
A34: ANTIOQUIA | B34: MEDELLÍN
A35: ANTIOQUIA | B35: ZARAGOZA
A36: ANTIOQUIA | B36: YOLOMBÓ
A37: ANTIOQUIA | B37: YARUMAL
A38: ANTIOQUIA | B38: YONDÓ (CASABE)
A39: ANTIOQUIA | B39: YALÍ
A40: ANTIOQUIA | B40: SAN PEDRO
A41: ANTIOQUIA | B41: SAN PEDRO DE URABÁ
A42: ANTIOQUIA | B42: TÁMESIS
A43: ANTIOQUIA | B43: TARAZÁ
A44: ANTIOQUIA | B44: SONSÓN
A45: ANTIOQUIA | B45: SABANALARGA
A46: ANTIOQUIA | B46: SAN ANDRÉS
A47: ANTIOQUIA | B47: SAN CARLOS
A48: ANTIOQUIA | B48: RETIRO
A49: ANTIOQUIA | B49: RIONEGRO
A50: ANTIOQUIA | B50: SABANETA
A51: ANTIOQUIA | B51: SALGAR
A52: ANTIOQUIA | B52: SAN RAFAEL
A53: ANTIOQUIA | B53: JERICÓ
A54: ANTIOQUIA | B54: SAN JERÓNIMO
A55: ANTIOQUIA | B55: SAN FRANCISCO
A56: ANTIOQUIA | B56: TOLEDO
A57: ANTIOQUIA | B57: SAN VICENTE
A58: ANTIOQUIA | B58: SANTA ROSA DE OSOS
A59: ANTIOQUIA | B59: SAN ROQUE
A60: ANTIOQUIA | B60: SOPETRÁN
A61: ANTIOQUIA | B61: SEGOVIA
A62: ANTIOQUIA | B62: SANTA BÁRBARA
A63: ANTIOQUIA | B63: TITIRIBÍ
A64: ANTIOQUIA | B64: TURBO
A65: ANTIOQUIA | B65: SANTO DOMINGO
A66: ANTIOQUIA | B66: SAN JUAN DE URABÁ
A67: ANTIOQUIA | B67: NARIÑO
A68: ANTIOQUIA | B68: LA CEJA
A69: ANTIOQUIA | B69: MURINDÓ
A70: ANTIOQUIA | B70: SAN JOSÉ DE LA MONTAÑA
A71: ANTIOQUIA | B71: NECOCLÍ
A72: ANTIOQUIA | B72: VALDIVIA
A73: ANTIOQUIA | B73: VEGACHÍ
A74: ANTIOQUIA | B74: FRONTINO
A75: ANTIOQUIA | B75: VIGIA DEL FUERTE
A76: ANTIOQUIA | B76: URAMITA
A77: ANTIOQUIA | B77: VENECIA
A78: ANTIOQUIA | B78: URRAO
A79: ANTIOQUIA | B79: GÓMEZ PLATA
A80: ANTIOQUIA | B80: GIRARDOTA
A81: ANTIOQUIA | B81: SANTUARIO
A82: ANTIOQUIA | B82: TARSO
A83: ANTIOQUIA | B83: ITUANGO
A84: ANTIOQUIA | B84: MONTEBELLO
A85: ANTIOQUIA | B85: GRANADA
A86: ANTIOQUIA | B86: HELICONIA
A87: ANTIOQUIA | B87: JARDÍN
A88: ANTIOQUIA | B88: GUADALUPE
A89: ANTIOQUIA | B89: GUARNE
A90: ANTIOQUIA | B90: HISPANIA
A91: ANTIOQUIA | B91: LA ESTRELLA
A92: ANTIOQUIA | B92: GUATAPÉ
A93: ANTIOQUIA | B93: ENTRERRIOS
A94: ANTIOQUIA | B94: GIRALDO
A95: ANTIOQUIA | B95: MACEO
A96: ANTIOQUIA | B96: DON MATÍAS
A97: ANTIOQUIA | B97: VALPARAISO
A98: ANTIOQUIA | B98: ITAGÜÍ
A99: ANTIOQUIA | B99: PEÑOL
A100: ANTIOQUIA | B100: EL BAGRE
A101: ANTIOQUIA | B101: PEQUE
A102: ANTIOQUIA | B102: PUERTO BERRÍO
A103: ANTIOQUIA | B103: PUEBLORRICO
A104: ANTIOQUIA | B104: FREDONIA
A105: ANTIOQUIA | B105: PUERTO NARE
A106: ANTIOQUIA | B106: PUERTO TRIUNFO
A107: ANTIOQUIA | B107: OLAYA
A108: ANTIOQUIA | B108: ENVIGADO
A109: ANTIOQUIA | B109: REMEDIOS
A110: ANTIOQUIA | B110: NECHÍ
A111: ANTIOQUIA | B111: LIBORINA
A112: ANTIOQUIA | B112: LA PINTADA
A113: ANTIOQUIA | B113: LA UNIÓN
A114: ANTIOQUIA | B114: MARINILLA
A115: ANTIOQUIA | B115: EBÉJICO
A116: ANTIOQUIA | B116: ALEJANDRÍA
A117: ANTIOQUIA | B117: AMAGÁ
A118: ANTIOQUIA | B118: AMALFI
A119: ANTIOQUIA | B119: ANDES
A120: ANTIOQUIA | B120: ABEJORRAL
A121: ANTIOQUIA | B121: ANORÍ
A122: ANTIOQUIA | B122: APARTADÓ
A123: ANTIOQUIA | B123: ARBOLETES
A124: ANTIOQUIA | B124: BETULIA
A125: ANTIOQUIA | B125: ANGELÓPOLIS
A126: ANTIOQUIA | B126: ANGOSTURA
A127: ANTIOQUIA | B127: ANZÁ
A128: ANTIOQUIA | B128: BETANIA
A129: ANTIOQUIA | B129: SANTA FE DE ANTIOQUIA
A130: ANTIOQUIA | B130: ARGELIA
A131: ANTIOQUIA | B131: ABRIAQUÍ
A132: ANTIOQUIA | B132: BELLO
A133: ANTIOQUIA | B133: BARBOSA
A134: ANTIOQUIA | B134: ARMENIA
A135: ANTIOQUIA | B135: BELMIRA
A136: ANTIOQUIA | B136: CAMPAMENTO
A137: ANTIOQUIA | B137: CÁCERES
A138: ARAUCA | B138: TAME
A139: ARAUCA | B139: SARAVENA
A140: ARAUCA | B140: FORTUL
A141: ARAUCA | B141: CRAVO NORTE
A142: ARAUCA | B142: ARAUQUITA
A143: ARAUCA | B143: PUERTO RONDÓN
A144: ARAUCA | B144: ARAUCA
A145: ATLÁNTICO | B145: SANTO TOMÁS
A146: ATLÁNTICO | B146: PIOJO
A147: ATLÁNTICO | B147: JUAN DE ACOSTA
A148: ATLÁNTICO | B148: SABANALARGA
A149: ATLÁNTICO | B149: PUERTO COLOMBIA
A150: ATLÁNTICO | B150: BARRANQUILLA
A151: ATLÁNTICO | B151: MALAMBO
A152: ATLÁNTICO | B152: SABANAGRANDE
A153: ATLÁNTICO | B153: GALAPA
A154: ATLÁNTICO | B154: POLONUEVO
A155: ATLÁNTICO | B155: BARANOA
A156: ATLÁNTICO | B156: PALMAR DE VARELA
A157: ATLÁNTICO | B157: PONEDERA
A158: ATLÁNTICO | B158: CANDELARIA
A159: ATLÁNTICO | B159: SOLEDAD
A160: ATLÁNTICO | B160: USIACURI
A161: ATLÁNTICO | B161: LURUACO
A162: ATLÁNTICO | B162: REPELON
A163: ATLÁNTICO | B163: CAMPO DE LA CRUZ
A164: ATLÁNTICO | B164: SUAN
A165: ATLÁNTICO | B165: SANTA LUCIA
A166: ATLÁNTICO | B166: MANATI
A167: ATLÁNTICO | B167: TUBARÁ
A168: BOGOTÁ, D.C. | B168: BOGOTÁ, D.C.
A169: BOLÍVAR | B169: TURBACO
A170: BOLÍVAR | B170: VILLANUEVA
A171: BOLÍVAR | B171: ARENAL
A172: BOLÍVAR | B172: MOMPÓS
A173: BOLÍVAR | B173: BOLÍVAR
A174: BOLÍVAR | B174: MAHATES
A175: BOLÍVAR | B175: SAN MARTIN DE LOBA
A176: BOLÍVAR | B176: SIMITÍ
A177: BOLÍVAR | B177: TALAIGUA NUEVO
A178: BOLÍVAR | B178: MORALES
A179: BOLÍVAR | B179: RIOVIEJO
A180: BOLÍVAR | B180: CARTAGENA DE INDIAS
A181: BOLÍVAR | B181: EL CARMEN DE BOLÍVAR
A182: BOLÍVAR | B182: SAN JACINTO
A183: BOLÍVAR | B183: SANTA ROSA DEL SUR
A184: BOLÍVAR | B184: SAN PABLO
A185: BOLÍVAR | B185: TIQUISIO
A186: BOLÍVAR | B186: SAN JACINTO DEL CAUCA
A187: BOLÍVAR | B187: ZAMBRANO
A188: BOLÍVAR | B188: SAN JUAN NEPOMUCENO
A189: BOLÍVAR | B189: SAN FERNANDO
A190: BOLÍVAR | B190: MARIA LA BAJA
A191: BOLÍVAR | B191: TURBANA
A192: BOLÍVAR | B192: MARGARITA
A193: BOLÍVAR | B193: MONTECRISTO
A194: BOLÍVAR | B194: MAGANGUE
A195: BOLÍVAR | B195: SAN ESTANISLAO
A196: BOLÍVAR | B196: SAN CRISTOBAL
A197: BOLÍVAR | B197: RIO VIEJO
A198: BOLÍVAR | B198: REGIDOR
A199: BOLÍVAR | B199: PINILLOS
A200: BOLÍVAR | B200: SOPLAVIENTO
... 929 more rows

Sheet ProveedorCSV (hidden)
A1: Proveedor
A2: INDUHOTEL SAS

Sheet csv (hidden)
A1: Solicitud | B1: Registrar identificador | C1: ¿Enviar para aprobación? | D1: Límite de recepción de la sol. | E1: Justificación | F1: Nombre del departamento | G1: Nota del comprador | H1: Solicitado por (correo electrónico) | I1: Solicitado por (inicio de sesión) | J1: Nombre de tarjeta de compras | K1: Enviar a nombre | L1: Enviar a id. | M1: Enviar a la atención | N1: Enviar a calle 1 | O1: Enviar a calle 2 | P1: Enviar a ciudad | Q1: Enviar a estado | R1: Enviar a código postal | S1: Enviar a código de país | T1: Enviar a nombre de paí­s | U1: Enviar a código de ubicación | V1: Ocultar precio | W1: Entidad Compradora 2 | X1: N.I.T. | Y1: Agregación | Z1: Necesidad del bien o servicio* | AA1: Modalidad de selección | AB1: Destinación del gasto* | AC1: Origen de los recursos* | AD1: Asociado al Acuerdo de Paz | AE1: Supervisor de la Orden de Compra* | AF1: Correo electrónico del supervisor* | AG1: Teléfono del supervisor* | AH1: Vencimiento de la Orden de Compra* | AI1: Especificaciones adicionales de entrega | AJ1: Gravámenes adicionales | AK1: Integración con SIIF | AL1: Código Unidad / Subunidad Ejecutora | AM1: Acepto términos y condiciones | AN1: codigoAMP | AO1: fechaAMP
A2: Línea de solicitudes | B2: Registrar identificador | C2: Número de línea | D2: Número de artí­culo del catálogo | E2: Nombre de artículo del catálogo | F2: Sin descripción de artí­culo del catálogo | G2: Número de parte del proveedor | H2: Cantidad | I2: Precio | J2: Lí­mite de recepción de la sol. | K2: Anulación del método de transmisión | L2: Correos electrónicos de transmisión | M2: Nombre del proveedor | N2: Número del proveedor | O2: Código de sitio del proveedor | P2: Código de unidad de medida | Q2: Nombre de mercancía | R2: Nombre del contrato | S2: Código de divisa | T2: Etiquetas de activos | U2: Nombre del Cuadro de cuentas | V2: Nombre de la cuenta | W2: Código de cuentas | X2: Segmento 1 de la cuenta | Y2: Segmento 2 de la cuenta | Z2: Segmento 3 de la cuenta | AA2: Segmento 4 de la cuenta | AB2: Segmento 5 de la cuenta | AC2: Segmento 6 de la cuenta | AD2: Segmento 7 de la cuenta | AE2: Segmento 8 de la cuenta | AF2: Segmento 9 de la cuenta | AG2: Segmento 10 de la cuenta | AH2: Segmento 11 de la cuenta | AI2: Segmento 12 de la cuenta | AJ2: Segmento 13 de la cuenta | AK2: Segmento 14 de la cuenta | AL2: Segmento 15 de la cuenta | AM2: Segmento 16 de la cuenta | AN2: Segmento 17 de la cuenta | AO2: Segmento 18 de la cuenta
A3: Asignación de cuentas | B3: Registrar identificador | C3: Número de línea | D3: Monto | E3: Porcentaje | F3: Nombre de perí­odo de presupuesto | G3: Nombre de la cuenta | H3: Código de cuentas | I3: Segmento 1 de la cuenta | J3: Segmento 2 de la cuenta | K3: Segmento 3 de la cuenta | L3: Segmento 4 de la cuenta | M3: Segmento 5 de la cuenta | N3: Segmento 6 de la cuenta | O3: Segmento 7 de la cuenta | P3: Segmento 8 de la cuenta | Q3: Segmento 9 de la cuenta | R3: Segmento 10 de la cuenta | S3: Segmento 11 de la cuenta | T3: Segmento 12 de la cuenta | U3: Segmento 13 de la cuenta | V3: Segmento 14 de la cuenta | W3: Segmento 15 de la cuenta | X3: Segmento 16 de la cuenta | Y3: Segmento 17 de la cuenta | Z3: Segmento 18 de la cuenta | AA3: Segmento 19 de la cuenta | AB3: Segmento 20 de la cuenta
A4: Solicitud | B4: 1 | C4: no | F4: Digite nombre de la entidad | H4: crear.entidad@colombiacompra.gov.co | I4: digite.usuario | K4: Direccion | L4: 4394 | Y4: Atención emergencia COVID-19 | Z4: Necesidad | AA4: Selección Abreviada AMP | AB4: Funcionamiento | AC4: Recursos propios | AD4: No | AE4: Digite supervisor | AF4: Digite correo | AG4: 1 | AH4: 2020-01-01 | AJ4: Gravámenes | AM4: Sí | AN4: cov19-pa | AO4: 2020-07-03T13:00:00
A5: Línea de solicitudes | B5: 1 | C5: 1 | E5: cov01-PA-78 - FRASCO ATOMIZADOR 2 - UNIDAD | H5: 100 | I5: 1400 | M5: SUQUIN SAS | P5: Und | Q5: Atención emergencia COVID-19 | S5: COP
A6: Línea de solicitudes | B6: 1 | C6: 2 | E6: cov01-IVA | H6: 1 | I6: 26600 | M6: SUQUIN SAS | P6: Und | Q6: Atención emergencia COVID-19 | S6: COP

Sheet Version (hidden)
A1: NombreAMP | B1: codigoAMP | C1: fechaAMP | D1: version
A2: covid19 productos de aseo | B2: cov19-pa | C2: 2020-07-03T13:00:00 | D2: 10

Sheet csvTemp (hidden)
A1: Item | B1: Código | C1: Categoría | D1: Producto | E1: Especificación Técnica | F1: Distribución | G1: Departamento | H1: Municipio | I1: Direccón de Entrega | J1: cantidad | K1: Cantidad Asumida | L1: Valor | M1: Valor Máximo Permitido | N1: Subtotal | O1: % IVA | P1: Valor Iva | Q1: Precio Total | R1: Proveedor
A2: 1 | B2: PA-66 | C2: ELEMENTOS DE ASEO | D2: PA-66 - BASES PARA DISPENSADORES DE GEL DESINFECTANTE Y JABÓN LÍQUIDO PARA MANOS - UNIDAD | E2: BASE EN TUBOS DE PLÁSTICO O METÁLICA. EL SOPORTE PRESIONA EL DISPENSADOR DEL GEL DESINFECTANTE O DEL JABÓN LÍQUIDO PARA MANOS SIN NECESIDAD DE TOCARLO CON LA MANO. ACCIONA EL PEDAN CON EL PIE HACIA ABAJO. | F2: Si | G2: BOGOTÁ, D.C. | H2: BOGOTÁ, D.C. | I2: CALLE 13 No. 31-74 | J2: 100 | K2: 100 | L2: 25766 | M2: 26728.22 | N2: 2672822 | O2: 0.19 | P2: 507836.18 | Q2: 3180658.18 | R2: INDUHOTEL SAS

Sheet TablaDinamicaMinimos (hidden)
C3: Etiquetas de fila | D3: stock | E3: Suma de Precio
C4: INDUHOTEL SAS | D4: 50000 | E4: 25766
C5: POLYMET SAS | D5: 150 | E5: 26100
C6: LOGISTICS & SERVICES SAS | D6: 10000 | E6: 27100
C7: SOLUCIONES ESTRUCTURALES AC-DC SAS | D7: 300 | E7: 31500
C8: ACEC CONSULTING GROUP SAS | D8: 500 | E8: 35500
C9: CARLOS FERNANDO TELLEZ ALVAREZ | D9: 5000 | E9: 36900
C10: AVANZA INTERNACIONAL GROUP | D10: 1500 | E10: 37650
C11: JM GRUPO EMPRESARIAL S.A.S | D11: 10000 | E11: 39999.99999
C12: INVERSIONES Y VALORES DEL CARIBE- INVALCA SAS | D12: 1000 | E12: 39999.99999
C13: Sumimas S.A.S. | D13: 3000 | E13: 44950
C14: AESTHETICS & MEDICAL SOLUTIONS SAS | D14: 200 | E14: 45000
C15: NACH SOLUCIONES AMBIENTALES E INDUSTRIALES SAS | D15: 50 | E15: 45000
C16: C I WARRIORS COMPANY S.A.S. | D16: 500 | E16: 58000
C17: COLCREATIVA SAS | D17: 300 | E17: 63000
C18: GRUPO EMPRESARIAL DE ASESORÍAS Y SERVICIOS DE COLOMBIA S.A.S | D18: 500 | E18: 65000
C19: PANORAMMA DISENO DE SOLUCIONES S.A.S. | D19: 100000 | E19: 74000
C20: XP Colombia S.A.S. | D20: 500 | E20: 91500
C21: SUMINISTROS PARA EL TRABAJO SEGURO DE COLOBIA S.A.S. - "STS DE COLOMBIA S.A.S." | D21: 500 | E21: 108500
C22: Total general | E22: 895466

Sheet CatalogoTemp (hidden)
A1: llave1 | B1: llave2 | C1: llave3 | D1: codigo unico | E1: nombre | F1: Categoría | G1: Especificación Técnica | H1: Unidad de medida | I1: Código de unidad de medida | J1: activo | K1: Mercancía | L1: proveedor | M1: Número de contrato | N1: Precio | O1: Divisa | P1: Empates | Q1: stock_inicial | R1: stock | S1: % IVA | T1: f
A2: PA-66COLCREATIVA SAS | D2: PA-66 | E2: PA-66 - BASES PARA DISPENSADORES DE GEL DESINFECTANTE Y JABÓN LÍQUIDO PARA MANOS - UNIDAD | F2: ELEMENTOS DE ASEO | G2: BASE EN TUBOS DE PLÁSTICO O METÁLICA. EL SOPORTE PRESIONA EL DISPENSADOR DEL GEL DESINFECTANTE O DEL JABÓN LÍQUIDO PARA MANOS SIN NECESIDAD DE TOCARLO CON LA MANO. ACCIONA EL PEDAN CON EL PIE HACIA ABAJO. | H2: Und | I2: Und | J2: Si | K2: Atención emergencia COVID-19 | L2: COLCREATIVA SAS | M2: AECovid19-53 | N2: 63000 | O2: COP | P2: 1 | Q2: 300 | R2: 300 | S2: 0.19 | T2: 135750
A3: PA-66AVANZA INTERNACIONAL GROUP | D3: PA-66 | E3: PA-66 - BASES PARA DISPENSADORES DE GEL DESINFECTANTE Y JABÓN LÍQUIDO PARA MANOS - UNIDAD | F3: ELEMENTOS DE ASEO | G3: BASE EN TUBOS DE PLÁSTICO O METÁLICA. EL SOPORTE PRESIONA EL DISPENSADOR DEL GEL DESINFECTANTE O DEL JABÓN LÍQUIDO PARA MANOS SIN NECESIDAD DE TOCARLO CON LA MANO. ACCIONA EL PEDAN CON EL PIE HACIA ABAJO. | H3: Und | I3: Und | J3: Si | K3: Atención emergencia COVID-19 | L3: AVANZA INTERNACIONAL GROUP | M3: AECovid19-8 | N3: 37650 | O3: COP | P3: 1 | Q3: 1500 | R3: 1500 | S3: 0.19 | T3: 135750
A4: PA-66CARLOS FERNANDO TELLEZ ALVAREZ | D4: PA-66 | E4: PA-66 - BASES PARA DISPENSADORES DE GEL DESINFECTANTE Y JABÓN LÍQUIDO PARA MANOS - UNIDAD | F4: ELEMENTOS DE ASEO | G4: BASE EN TUBOS DE PLÁSTICO O METÁLICA. EL SOPORTE PRESIONA EL DISPENSADOR DEL GEL DESINFECTANTE O DEL JABÓN LÍQUIDO PARA MANOS SIN NECESIDAD DE TOCARLO CON LA MANO. ACCIONA EL PEDAN CON EL PIE HACIA ABAJO. | H4: Und | I4: Und | J4: Si | K4: Atención emergencia COVID-19 | L4: CARLOS FERNANDO TELLEZ ALVAREZ | M4: AECovid19-72 | N4: 36900 | O4: COP | P4: 1 | Q4: 5000 | R4: 5000 | S4: 0.19 | T4: 135750
A5: PA-66C I WARRIORS COMPANY S.A.S. | D5: PA-66 | E5: PA-66 - BASES PARA DISPENSADORES DE GEL DESINFECTANTE Y JABÓN LÍQUIDO PARA MANOS - UNIDAD | F5: ELEMENTOS DE ASEO | G5: BASE EN TUBOS DE PLÁSTICO O METÁLICA. EL SOPORTE PRESIONA EL DISPENSADOR DEL GEL DESINFECTANTE O DEL JABÓN LÍQUIDO PARA MANOS SIN NECESIDAD DE TOCARLO CON LA MANO. ACCIONA EL PEDAN CON EL PIE HACIA ABAJO. | H5: Und | I5: Und | J5: Si | K5: Atención emergencia COVID-19 | L5: C I WARRIORS COMPANY S.A.S. | M5: AECovid19-101 | N5: 58000 | O5: COP | P5: 1 | Q5: 500 | R5: 500 | S5: 0.19 | T5: 135750
A6: PA-66SUMINISTROS PARA EL TRABAJO SEGURO DE COLOBIA S.A.S. - "STS DE COLOMBIA S.A.S." | D6: PA-66 | E6: PA-66 - BASES PARA DISPENSADORES DE GEL DESINFECTANTE Y JABÓN LÍQUIDO PARA MANOS - UNIDAD | F6: ELEMENTOS DE ASEO | G6: BASE EN TUBOS DE PLÁSTICO O METÁLICA. EL SOPORTE PRESIONA EL DISPENSADOR DEL GEL DESINFECTANTE O DEL JABÓN LÍQUIDO PARA MANOS SIN NECESIDAD DE TOCARLO CON LA MANO. ACCIONA EL PEDAN CON EL PIE HACIA ABAJO. | H6: Und | I6: Und | J6: Si | K6: Atención emergencia COVID-19 | L6: SUMINISTROS PARA EL TRABAJO SEGURO DE COLOBIA S.A.S. - "STS DE COLOMBIA S.A.S." | M6: AECovid19-128 | N6: 108500 | O6: COP | P6: 1 | Q6: 500 | R6: 500 | S6: 0.19 | T6: 135750
A7: PA-66SOLUCIONES ESTRUCTURALES AC-DC SAS | D7: PA-66 | E7: PA-66 - BASES PARA DISPENSADORES DE GEL DESINFECTANTE Y JABÓN LÍQUIDO PARA MANOS - UNIDAD | F7: ELEMENTOS DE ASEO | G7: BASE EN TUBOS DE PLÁSTICO O METÁLICA. EL SOPORTE PRESIONA EL DISPENSADOR DEL GEL DESINFECTANTE O DEL JABÓN LÍQUIDO PARA MANOS SIN NECESIDAD DE TOCARLO CON LA MANO. ACCIONA EL PEDAN CON EL PIE HACIA ABAJO. | H7: Und | I7: Und | J7: Si | K7: Atención emergencia COVID-19 | L7: SOLUCIONES ESTRUCTURALES AC-DC SAS | M7: AECovid19-109 | N7: 31500 | O7: COP | P7: 1 | Q7: 300 | R7: 300 | S7: 0.19 | T7: 135750
A8: PA-66AESTHETICS & MEDICAL SOLUTIONS SAS | D8: PA-66 | E8: PA-66 - BASES PARA DISPENSADORES DE GEL DESINFECTANTE Y JABÓN LÍQUIDO PARA MANOS - UNIDAD | F8: ELEMENTOS DE ASEO | G8: BASE EN TUBOS DE PLÁSTICO O METÁLICA. EL SOPORTE PRESIONA EL DISPENSADOR DEL GEL DESINFECTANTE O DEL JABÓN LÍQUIDO PARA MANOS SIN NECESIDAD DE TOCARLO CON LA MANO. ACCIONA EL PEDAN CON EL PIE HACIA ABAJO. | H8: Und | I8: Und | J8: Si | K8: Atención emergencia COVID-19 | L8: AESTHETICS & MEDICAL SOLUTIONS SAS | M8: AECovid19-18 | N8: 45000 | O8: COP | P8: 2 | Q8: 200 | R8: 200 | S8: 0.19 | T8: 135750
A9: PA-66INVERSIONES Y VALORES DEL CARIBE- INVALCA SAS | D9: PA-66 | E9: PA-66 - BASES PARA DISPENSADORES DE GEL DESINFECTANTE Y JABÓN LÍQUIDO PARA MANOS - UNIDAD | F9: ELEMENTOS DE ASEO | G9: BASE EN TUBOS DE PLÁSTICO O METÁLICA. EL SOPORTE PRESIONA EL DISPENSADOR DEL GEL DESINFECTANTE O DEL JABÓN LÍQUIDO PARA MANOS SIN NECESIDAD DE TOCARLO CON LA MANO. ACCIONA EL PEDAN CON EL PIE HACIA ABAJO. | H9: Und | I9: Und | J9: Si | K9: Atención emergencia COVID-19 | L9: INVERSIONES Y VALORES DEL CARIBE- INVALCA SAS | M9: AECovid19-87 | N9: 39999.99999 | O9: COP | P9: 2 | Q9: 1000 | R9: 1000 | S9: 0.19 | T9: 135750
A10: PA-66XP Colombia S.A.S. | D10: PA-66 | E10: PA-66 - BASES PARA DISPENSADORES DE GEL DESINFECTANTE Y JABÓN LÍQUIDO PARA MANOS - UNIDAD | F10: ELEMENTOS DE ASEO | G10: BASE EN TUBOS DE PLÁSTICO O METÁLICA. EL SOPORTE PRESIONA EL DISPENSADOR DEL GEL DESINFECTANTE O DEL JABÓN LÍQUIDO PARA MANOS SIN NECESIDAD DE TOCARLO CON LA MANO. ACCIONA EL PEDAN CON EL PIE HACIA ABAJO. | H10: Und | I10: Und | J10: Si | K10: Atención emergencia COVID-19 | L10: XP Colombia S.A.S. | M10: AECovid19-43 | N10: 91500 | O10: COP | P10: 1 | Q10: 500 | R10: 500 | S10: 0.19 | T10: 135750
A11: PA-66JM GRUPO EMPRESARIAL S.A.S | D11: PA-66 | E11: PA-66 - BASES PARA DISPENSADORES DE GEL DESINFECTANTE Y JABÓN LÍQUIDO PARA MANOS - UNIDAD | F11: ELEMENTOS DE ASEO | G11: BASE EN TUBOS DE PLÁSTICO O METÁLICA. EL SOPORTE PRESIONA EL DISPENSADOR DEL GEL DESINFECTANTE O DEL JABÓN LÍQUIDO PARA MANOS SIN NECESIDAD DE TOCARLO CON LA MANO. ACCIONA EL PEDAN CON EL PIE HACIA ABAJO. | H11: Und | I11: Und | J11: Si | K11: Atención emergencia COVID-19 | L11: JM GRUPO EMPRESARIAL S.A.S | M11: AECovid19-24 | N11: 39999.99999 | O11: COP | P11: 2 | Q11: 10000 | R11: 10000 | S11: 0.19 | T11: 135750
A12: PA-66GRUPO EMPRESARIAL DE ASESORÍAS Y SERVICIOS DE COLOMBIA S.A.S | D12: PA-66 | E12: PA-66 - BASES PARA DISPENSADORES DE GEL DESINFECTANTE Y JABÓN LÍQUIDO PARA MANOS - UNIDAD | F12: ELEMENTOS DE ASEO | G12: BASE EN TUBOS DE PLÁSTICO O METÁLICA. EL SOPORTE PRESIONA EL DISPENSADOR DEL GEL DESINFECTANTE O DEL JABÓN LÍQUIDO PARA MANOS SIN NECESIDAD DE TOCARLO CON LA MANO. ACCIONA EL PEDAN CON EL PIE HACIA ABAJO. | H12: Und | I12: Und | J12: Si | K12: Atención emergencia COVID-19 | L12: GRUPO EMPRESARIAL DE ASESORÍAS Y SERVICIOS DE COLOMBIA S.A.S | M12: AECovid19-12 | N12: 65000 | O12: COP | P12: 1 | Q12: 500 | R12: 500 | S12: 0.19 | T12: 135750
A13: PA-66LOGISTICS & SERVICES SAS | D13: PA-66 | E13: PA-66 - BASES PARA DISPENSADORES DE GEL DESINFECTANTE Y JABÓN LÍQUIDO PARA MANOS - UNIDAD | F13: ELEMENTOS DE ASEO | G13: BASE EN TUBOS DE PLÁSTICO O METÁLICA. EL SOPORTE PRESIONA EL DISPENSADOR DEL GEL DESINFECTANTE O DEL JABÓN LÍQUIDO PARA MANOS SIN NECESIDAD DE TOCARLO CON LA MANO. ACCIONA EL PEDAN CON EL PIE HACIA ABAJO. | H13: Und | I13: Und | J13: Si | K13: Atención emergencia COVID-19 | L13: LOGISTICS & SERVICES SAS | M13: AECovid19-116 | N13: 27100 | O13: COP | P13: 1 | Q13: 10000 | R13: 10000 | S13: 0.19 | T13: 135750
A14: PA-66Sumimas S.A.S. | D14: PA-66 | E14: PA-66 - BASES PARA DISPENSADORES DE GEL DESINFECTANTE Y JABÓN LÍQUIDO PARA MANOS - UNIDAD | F14: ELEMENTOS DE ASEO | G14: BASE EN TUBOS DE PLÁSTICO O METÁLICA. EL SOPORTE PRESIONA EL DISPENSADOR DEL GEL DESINFECTANTE O DEL JABÓN LÍQUIDO PARA MANOS SIN NECESIDAD DE TOCARLO CON LA MANO. ACCIONA EL PEDAN CON EL PIE HACIA ABAJO. | H14: Und | I14: Und | J14: Si | K14: Atención emergencia COVID-19 | L14: Sumimas S.A.S. | M14: AECovid19-36 | N14: 44950 | O14: COP | P14: 1 | Q14: 3000 | R14: 3000 | S14: 0.19 | T14: 135750
A15: PA-66ACEC CONSULTING GROUP SAS | D15: PA-66 | E15: PA-66 - BASES PARA DISPENSADORES DE GEL DESINFECTANTE Y JABÓN LÍQUIDO PARA MANOS - UNIDAD | F15: ELEMENTOS DE ASEO | G15: BASE EN TUBOS DE PLÁSTICO O METÁLICA. EL SOPORTE PRESIONA EL DISPENSADOR DEL GEL DESINFECTANTE O DEL JABÓN LÍQUIDO PARA MANOS SIN NECESIDAD DE TOCARLO CON LA MANO. ACCIONA EL PEDAN CON EL PIE HACIA ABAJO. | H15: Und | I15: Und | J15: Si | K15: Atención emergencia COVID-19 | L15: ACEC CONSULTING GROUP SAS | M15: AECovid19-130 | N15: 35500 | O15: COP | P15: 1 | Q15: 500 | R15: 500 | S15: 0
A16: PA-66INDUHOTEL SAS | D16: PA-66 | E16: PA-66 - BASES PARA DISPENSADORES DE GEL DESINFECTANTE Y JABÓN LÍQUIDO PARA MANOS - UNIDAD | F16: ELEMENTOS DE ASEO | G16: BASE EN TUBOS DE PLÁSTICO O METÁLICA. EL SOPORTE PRESIONA EL DISPENSADOR DEL GEL DESINFECTANTE O DEL JABÓN LÍQUIDO PARA MANOS SIN NECESIDAD DE TOCARLO CON LA MANO. ACCIONA EL PEDAN CON EL PIE HACIA ABAJO. | H16: Und | I16: Und | J16: Si | K16: Atención emergencia COVID-19 | L16: INDUHOTEL SAS | M16: AECovid19-33 | N16: 25766 | O16: COP | P16: 1 | Q16: 50000 | R16: 50000 | S16: 0.19
A17: PA-66NACH SOLUCIONES AMBIENTALES E INDUSTRIALES SAS | D17: PA-66 | E17: PA-66 - BASES PARA DISPENSADORES DE GEL DESINFECTANTE Y JABÓN LÍQUIDO PARA MANOS - UNIDAD | F17: ELEMENTOS DE ASEO | G17: BASE EN TUBOS DE PLÁSTICO O METÁLICA. EL SOPORTE PRESIONA EL DISPENSADOR DEL GEL DESINFECTANTE O DEL JABÓN LÍQUIDO PARA MANOS SIN NECESIDAD DE TOCARLO CON LA MANO. ACCIONA EL PEDAN CON EL PIE HACIA ABAJO. | H17: Und | I17: Und | J17: Si | K17: Atención emergencia COVID-19 | L17: NACH SOLUCIONES AMBIENTALES E INDUSTRIALES SAS | M17: AECovid19-82 | N17: 45000 | O17: COP | P17: 2 | Q17: 50 | R17: 50 | S17: 0.19
A18: PA-66PANORAMMA DISENO DE SOLUCIONES S.A.S. | D18: PA-66 | E18: PA-66 - BASES PARA DISPENSADORES DE GEL DESINFECTANTE Y JABÓN LÍQUIDO PARA MANOS - UNIDAD | F18: ELEMENTOS DE ASEO | G18: BASE EN TUBOS DE PLÁSTICO O METÁLICA. EL SOPORTE PRESIONA EL DISPENSADOR DEL GEL DESINFECTANTE O DEL JABÓN LÍQUIDO PARA MANOS SIN NECESIDAD DE TOCARLO CON LA MANO. ACCIONA EL PEDAN CON EL PIE HACIA ABAJO. | H18: Und | I18: Und | J18: Si | K18: Atención emergencia COVID-19 | L18: PANORAMMA DISENO DE SOLUCIONES S.A.S. | M18: AECovid19-75 | N18: 74000 | O18: COP | P18: 1 | Q18: 100000 | R18: 100000 | S18: 0.19
A19: PA-66POLYMET SAS | D19: PA-66 | E19: PA-66 - BASES PARA DISPENSADORES DE GEL DESINFECTANTE Y JABÓN LÍQUIDO PARA MANOS - UNIDAD | F19: ELEMENTOS DE ASEO | G19: BASE EN TUBOS DE PLÁSTICO O METÁLICA. EL SOPORTE PRESIONA EL DISPENSADOR DEL GEL DESINFECTANTE O DEL JABÓN LÍQUIDO PARA MANOS SIN NECESIDAD DE TOCARLO CON LA MANO. ACCIONA EL PEDAN CON EL PIE HACIA ABAJO. | H19: Und | I19: Und | J19: Si | K19: Atención emergencia COVID-19 | L19: POLYMET SAS | M19: AECovid19-123 | N19: 26100 | O19: COP | P19: 1 | Q19: 150 | R19: 150 | S19: 0.19

Sheet Catalogo (hidden)
A1: llave1 | B1: llave2 | C1: llave3 | D1: codigo unico | E1: nombre | F1: Categoría | G1: Especificación Técnica | H1: Unidad de medida | I1: Código de unidad de medida | J1: activo | K1: Mercancía | L1: proveedor | M1: Número de contrato | N1: Precio | O1: Divisa | P1: Empates | Q1: stock_inicial | R1: stock | S1: % IVA | T1: f
A2: =+D2&L2 -> PA-18SISTEMAS Y PROGRAMAS DE HIGIENE INDUSTRIAL GOVI LTDA | D2: PA-18 | E2: PA-18 - GEL ANTIBACTERIAL - FC X1LT | F2: ELEMENTOS DE ASEO | G2: ALCOHOL ISOPROPILICO 70% EN GEL PARA ANTISEPSIA DE MANOS ALCOHOL ISOPROPILICO EN GEL PARA ANTISEPSIA DE MANOS, 70ML+2G/100ML | H2: Und | I2: Und | J2: Si | K2: Atención emergencia COVID-19 | L2: SISTEMAS Y PROGRAMAS DE HIGIENE INDUSTRIAL GOVI LTDA | M2: AECovid19-38 | N2: 22200 | O2: COP | P2: =COUNTIFS(D:D,D2,N:N,N2) -> 1 | Q2: 500 | R2: =Q2-SUMIFS(ResumenCotizacion!L:L,ResumenCotizacion!S:S,Catalogo!L2,ResumenCotizacion!C:C,Catalogo!D2) -> 500 | S2: 0 | T2: =+VLOOKUP(D2,[1]CONSOLIDADO!$C$2:$F$93,4,0) -> 27000
A3: =+D3&L3 -> PA-30SISTEMAS Y PROGRAMAS DE HIGIENE INDUSTRIAL GOVI LTDA | D3: PA-30 | E3: PA-30 - JABÓN DISPENSADOR PARA MANOS 2 - LÍQUIDO, EN RECIPIENTE PLÁSTICO CON CAPACIDAD MÍNIMA DE 3.785 CC | F3: ELEMENTOS DE ASEO | G3: - CON AGENTE LIMPIADOR EN UNA CONCENTRACIÓN MÍNIMA DEL 6%. - CON AGENTE ANTIBACTERIAL EN UNA CONCENTRACIÓN MÍNIMA DEL 0,2% - CON AGENTE HUMECTANTE EN UNA CONCENTRACIÓN MÍNIMA DEL 3% - PH ENTRE 5,5 A 7 - DISPONIBLE EN MÍNIMO (2) DOS FRAGANCIAS | H3: Und | I3: Und | J3: Si | K3: Atención emergencia COVID-19 | L3: SISTEMAS Y PROGRAMAS DE HIGIENE INDUSTRIAL GOVI LTDA | M3: AECovid19-38 | N3: 25600 | O3: COP | P3: 1 | Q3: 500 | R3: =Q3-SUMIFS(ResumenCotizacion!L:L,ResumenCotizacion!S:S,Catalogo!L3,ResumenCotizacion!C:C,Catalogo!D3) -> 500 | S3: 0 | T3: =+VLOOKUP(D3,[1]CONSOLIDADO!$C$2:$F$93,4,0) -> 39288.75
A4: PA-30SERE GROUP SAS | D4: PA-30 | E4: PA-30 - JABÓN DISPENSADOR PARA MANOS 2 - LÍQUIDO, EN RECIPIENTE PLÁSTICO CON CAPACIDAD MÍNIMA DE 3.785 CC | F4: ELEMENTOS DE ASEO | G4: - CON AGENTE LIMPIADOR EN UNA CONCENTRACIÓN MÍNIMA DEL 6%. - CON AGENTE ANTIBACTERIAL EN UNA CONCENTRACIÓN MÍNIMA DEL 0,2% - CON AGENTE HUMECTANTE EN UNA CONCENTRACIÓN MÍNIMA DEL 3% - PH ENTRE 5,5 A 7 - DISPONIBLE EN MÍNIMO (2) DOS FRAGANCIAS | H4: Und | I4: Und | J4: Si | K4: Atención emergencia COVID-19 | L4: SERE GROUP SAS | M4: AECovid19-10 | N4: 23000 | O4: COP | P4: 1 | Q4: 1000 | R4: =Q4-SUMIFS(ResumenCotizacion!L:L,ResumenCotizacion!S:S,Catalogo!L4,ResumenCotizacion!C:C,Catalogo!D4) -> 1000 | S4: 0 | T4: =+VLOOKUP(D4,[1]CONSOLIDADO!$C$2:$F$93,4,0) -> 39288.75
A5: PA-52SERE GROUP SAS | D5: PA-52 | E5: PA-52 - PRODUCTOS DE HIGIENE DOMÉSTICA CON PROPIEDAD DESINFECTANTE DE SUPERFICIE A BASE DE CLORO (EN ESPECIAL, FORMULADOS CON HIPOCLORITO DE SODIO). - GALON | F5: ELEMENTOS DE ASEO | G5: HIPOCLORITO DE SODIO AL 5% (NAOCL), SOLUCIÓN ACUOSA LIGERAMENTE AMARILLA, LIBRE DE PARTÍCULAS, DE OLOR CARACTERÍSTICO PENETRANTE E IRRITANTE, FUERTEMENTE OXIDANTE, DE CONTROL BACTERIOLÓGICO Y MICROBIOLÓGICO. PRESENTACIÓN GALÓN | H5: Und | I5: Und | J5: Si | K5: Atención emergencia COVID-19 | L5: SERE GROUP SAS | M5: AECovid19-10 | N5: 12000 | O5: COP | P5: 2 | Q5: 2000 | R5: =Q5-SUMIFS(ResumenCotizacion!L:L,ResumenCotizacion!S:S,Catalogo!L5,ResumenCotizacion!C:C,Catalogo!D5) -> 2000 | S5: 0 | T5: =+VLOOKUP(D5,[1]CONSOLIDADO!$C$2:$F$93,4,0) -> 18891
A6: PA-18Inversiones Chahin & Cia S.C.A. en Reorganizacion | D6: PA-18 | E6: PA-18 - GEL ANTIBACTERIAL - FC X1LT | F6: ELEMENTOS DE ASEO | G6: ALCOHOL ISOPROPILICO 70% EN GEL PARA ANTISEPSIA DE MANOS ALCOHOL ISOPROPILICO EN GEL PARA ANTISEPSIA DE MANOS, 70ML+2G/100ML | H6: Und | I6: Und | J6: Si | K6: Atención emergencia COVID-19 | L6: Inversiones Chahin & Cia S.C.A. en Reorganizacion | M6: AECovid19-41 | N6: 17000 | O6: COP | P6: 1 | Q6: 5500 | R6: =Q6-SUMIFS(ResumenCotizacion!L:L,ResumenCotizacion!S:S,Catalogo!L6,ResumenCotizacion!C:C,Catalogo!D6) -> 5500 | S6: 0 | T6: =+VLOOKUP(D6,[1]CONSOLIDADO!$C$2:$F$93,4,0) -> 27000
A7: PA-18EDEX SAS | D7: PA-18 | E7: PA-18 - GEL ANTIBACTERIAL - FC X1LT | F7: ELEMENTOS DE ASEO | G7: ALCOHOL ISOPROPILICO 70% EN GEL PARA ANTISEPSIA DE MANOS ALCOHOL ISOPROPILICO EN GEL PARA ANTISEPSIA DE MANOS, 70ML+2G/100ML | H7: Und | I7: Und | J7: Si | K7: Atención emergencia COVID-19 | L7: EDEX SAS | M7: AECovid19-46 | N7: 17364 | O7: COP | P7: 1 | Q7: 648 | R7: =Q7-SUMIFS(ResumenCotizacion!L:L,ResumenCotizacion!S:S,Catalogo!L7,ResumenCotizacion!C:C,Catalogo!D7) -> 648 | S7: 0 | T7: =+VLOOKUP(D7,[1]CONSOLIDADO!$C$2:$F$93,4,0) -> 27000
A8: PA-45EDEX SAS | D8: PA-45 | E8: PA-45 - PAPEL HIGIÉNICO 1 - ROLLO | F8: ELEMENTOS DE ASEO | G8: - ROLLO CON LONGITUD MÍNIMA DE 30 METROS - DOBLE HOJA BLANCA - SIN FRAGANCIA | H8: Und | I8: Und | J8: Si | K8: Atención emergencia COVID-19 | L8: EDEX SAS | M8: AECovid19-46 | N8: 1038.666667 | O8: COP | P8: 1 | Q8: 4186 | R8: =Q8-SUMIFS(ResumenCotizacion!L:L,ResumenCotizacion!S:S,Catalogo!L8,ResumenCotizacion!C:C,Catalogo!D8) -> 4186 | S8: 0.19 | T8: =+VLOOKUP(D8,[1]CONSOLIDADO!$C$2:$F$93,4,0) -> 1804.637395
A9: PA-51EDEX SAS | D9: PA-51 | E9: PA-51 - PAPEL VINIPEL - ROLLO MÍNIMO DE 12.5 CM X 200M | F9: ELEMENTOS DE ASEO | G9: ROLLO DE PLÁSTICO STRECH CALIBRE 6 | H9: Und | I9: Und | J9: Si | K9: Atención emergencia COVID-19 | L9: EDEX SAS | M9: AECovid19-46 | N9: 10912 | O9: COP | P9: 1 | Q9: 25 | R9: =Q9-SUMIFS(ResumenCotizacion!L:L,ResumenCotizacion!S:S,Catalogo!L9,ResumenCotizacion!C:C,Catalogo!D9) -> 25 | S9: 0.19 | T9: =+VLOOKUP(D9,[1]CONSOLIDADO!$C$2:$F$93,4,0) -> 18515.19757
A10: PA-57EDEX SAS | D10: PA-57 | E10: PA-57 - TOALLAS PARA MANOS 1 - ROLLO | F10: ELEMENTOS DE ASEO | G10: - ROLLO CON LONGITUD MÍNIMA DE 100 METROS - DOBLE HOJA CON UN TAMAÑO MÍNIMO 15 CM DE ANCHO - DISPONIBLES EN COLOR BLANCO | H10: Und | I10: Und | J10: Si | K10: Atención emergencia COVID-19 | L10: EDEX SAS | M10: AECovid19-46 | N10: 21478.44444 | O10: COP | P10: 1 | Q10: 55 | R10: =Q10-SUMIFS(ResumenCotizacion!L:L,ResumenCotizacion!S:S,Catalogo!L10,ResumenCotizacion!C:C,Catalogo!D10) -> 55 | S10: 0.19 | T10: =+VLOOKUP(D10,[1]CONSOLIDADO!$C$2:$F$93,4,0) -> 23800.3125
A11: PA-58EDEX SAS | D11: PA-58 | E11: PA-58 - TOALLAS PARA MANOS 2 - ROLLO | F11: ELEMENTOS DE ASEO | G11: - ROLLO CON LONGITUD MÍNIMA DE 100 METROS - DOBLE HOJA CON UN TAMAÑO MÍNIMO 15 CM DE ANCHO - DISPONIBLES EN COLOR NATURAL | H11: Und | I11: Und | J11: Si | K11: Atención emergencia COVID-19 | L11: EDEX SAS | M11: AECovid19-46 | N11: 18243.33333 | O11: COP | P11: 1 | Q11: 51 | R11: =Q11-SUMIFS(ResumenCotizacion!L:L,ResumenCotizacion!S:S,Catalogo!L11,ResumenCotizacion!C:C,Catalogo!D11) -> 51 | S11: 0.19 | T11: =+VLOOKUP(D11,[1]CONSOLIDADO!$C$2:$F$93,4,0) -> 22000.5
A12: PA-60EDEX SAS | D12: PA-60 | E12: PA-60 - TOALLAS PARA MANOS 4 - UNIDAD | F12: ELEMENTOS DE ASEO | G12: - TOALLAS INTERDOBLADAS, PAQUETE CON MÍNIMO 150 UNIDADES - DOBLE HOJA CON UN TAMAÑO MÍNIMO DE 20 CM DE LARGO POR 15 CM DE ANCHO - HOJA COLOR BLANCO | H12: Und | I12: Und | J12: Si | K12: Atención emergencia COVID-19 | L12: EDEX SAS | M12: AECovid19-46 | N12: 7364 | O12: COP | P12: 1 | Q12: 1654 | R12: =Q12-SUMIFS(ResumenCotizacion!L:L,ResumenCotizacion!S:S,Catalogo!L12,ResumenCotizacion!C:C,Catalogo!D12) -> 1654 | S12: 0.19 | T12: =+VLOOKUP(D12,[1]CONSOLIDADO!$C$2:$F$93,4,0) -> 13650
A13: PA-1IVONNE GIOVANNA CUERVO | D13: PA-1 | E13: PA-1 - ALCOHOL - FRASCO | F13: ELEMENTOS DE ASEO | G13: ANTISEPTICO DE USO EXTERNO AL 70%, FRASCO PLASTICO, BOTELLA X 750 CC | H13: Und | I13: Und | J13: Si | K13: Atención emergencia COVID-19 | L13: IVONNE GIOVANNA CUERVO | M13: AECovid19-13 | N13: 11000 | O13: COP | P13: 2 | Q13: 1000 | R13: =Q13-SUMIFS(ResumenCotizacion!L:L,ResumenCotizacion!S:S,Catalogo!L13,ResumenCotizacion!C:C,Catalogo!D13) -> 1000 | S13: 0 | T13: =+VLOOKUP(D13,[1]CONSOLIDADO!$C$2:$F$93,4,0) -> 11598.2175
A14: PA-2IVONNE GIOVANNA CUERVO | D14: PA-2 | E14: PA-2 - ALCOHOL GALÓN X 3.750 ML - GALON | F14: ELEMENTOS DE ASEO | G14: ALCOHOL GALÓN X 3.750 ML CON INGREDIENTE ACTIVO ALCOHOL ETILICO IMPOTABILIZADO 96% | H14: Und | I14: Und | J14: Si | K14: Atención emergencia COVID-19 | L14: IVONNE GIOVANNA CUERVO | M14: AECovid19-13 | N14: 38000 | O14: COP | P14: 1 | Q14: 1000 | R14: =Q14-SUMIFS(ResumenCotizacion!L:L,ResumenCotizacion!S:S,Catalogo!L14,ResumenCotizacion!C:C,Catalogo!D14) -> 1000 | S14: 0 | T14: =+VLOOKUP(D14,[1]CONSOLIDADO!$C$2:$F$93,4,0) -> 52400.25
A15: PA-17IVONNE GIOVANNA CUERVO | D15: PA-17 | E15: PA-17 - GEL ANTIBACTERIAL - GALON | F15: ELEMENTOS DE ASEO | G15: ANTISÉPTICO GEL PARA MANOS QUE NO REQUIERE ENJUAGUE FORMULADO A BASE DE ALCOHOL ETÍLICO DE 60-80% W/W; ADICIONADO CON HUMECTANTES Y EMOLIENTES HIPO ALERGÉNICO. GEL ANTIBACTERIAL O ALCOHOL EN GEL PRESENTA LA MANERA MÁS PRÁCTICA DE MANTENER UNA HIGIENE A CUALQUIER HORA DEL DÍA Y EN CUALQUIER LUGAR. PRODUCTO ESPECIALMENTE FORMULADO PARA SATISFACER LAS NUEVAS NECESIDADES DE LIMPIEZA DE MANOS CON EL OBJETO ÚNICO DE CUIDAR LA SALUD. DEBE CONTAR CON REGISTRO INVIMA, PRESENTACIÓN GALÓN ASPECTO:GEL INCOLORO, TRANSPARENTE CONTENIDO ALCOHOL: AL 60-80% W/W, AGUA, HUMECTANTES Y EMOLIENTES, AROMATIZANTES Y ACEITES ESENCIALES. PH: 6.5 – 7.5 | H15: Und | I15: Und | J15: Si | K15: Atención emergencia COVID-19 | L15: IVONNE GIOVANNA CUERVO | M15: AECovid19-13 | N15: 49000 | O15: COP | P15: 1 | Q15: 100 | R15: =Q15-SUMIFS(ResumenCotizacion!L:L,ResumenCotizacion!S:S,Catalogo!L15,ResumenCotizacion!C:C,Catalogo!D15) -> 100 | S15: 0 | T15: =+VLOOKUP(D15,[1]CONSOLIDADO!$C$2:$F$93,4,0) -> 71250
A16: PA-18IVONNE GIOVANNA CUERVO | D16: PA-18 | E16: PA-18 - GEL ANTIBACTERIAL - FC X1LT | F16: ELEMENTOS DE ASEO | G16: ALCOHOL ISOPROPILICO 70% EN GEL PARA ANTISEPSIA DE MANOS ALCOHOL ISOPROPILICO EN GEL PARA ANTISEPSIA DE MANOS, 70ML+2G/100ML | H16: Und | I16: Und | J16: Si | K16: Atención emergencia COVID-19 | L16: IVONNE GIOVANNA CUERVO | M16: AECovid19-13 | N16: 14500 | O16: COP | P16: 1 | Q16: 600 | R16: =Q16-SUMIFS(ResumenCotizacion!L:L,ResumenCotizacion!S:S,Catalogo!L16,ResumenCotizacion!C:C,Catalogo!D16) -> 600 | S16: 0 | T16: =+VLOOKUP(D16,[1]CONSOLIDADO!$C$2:$F$93,4,0) -> 27000
A17: PA-30IVONNE GIOVANNA CUERVO | D17: PA-30 | E17: PA-30 - JABÓN DISPENSADOR PARA MANOS 2 - LÍQUIDO, EN RECIPIENTE PLÁSTICO CON CAPACIDAD MÍNIMA DE 3.785 CC | F17: ELEMENTOS DE ASEO | G17: - CON AGENTE LIMPIADOR EN UNA CONCENTRACIÓN MÍNIMA DEL 6%. - CON AGENTE ANTIBACTERIAL EN UNA CONCENTRACIÓN MÍNIMA DEL 0,2% - CON AGENTE HUMECTANTE EN UNA CONCENTRACIÓN MÍNIMA DEL 3% - PH ENTRE 5,5 A 7 - DISPONIBLE EN MÍNIMO (2) DOS FRAGANCIAS | H17: Und | I17: Und | J17: Si | K17: Atención emergencia COVID-19 | L17: IVONNE GIOVANNA CUERVO | M17: AECovid19-13 | N17: 28000 | O17: COP | P17: 1 | Q17: 1000 | R17: =Q17-SUMIFS(ResumenCotizacion!L:L,ResumenCotizacion!S:S,Catalogo!L17,ResumenCotizacion!C:C,Catalogo!D17) -> 1000 | S17: 0 | T17: =+VLOOKUP(D17,[1]CONSOLIDADO!$C$2:$F$93,4,0) -> 39288.75
A18: PA-31IVONNE GIOVANNA CUERVO | D18: PA-31 | E18: PA-31 - JABÓN EN BARRA - BARRA, UNIDAD CON PESO MÍNIMO DE 250 GR EN ENVOLTURA INDIVIDUAL | F18: ELEMENTOS DE ASEO | G18: -COMPOSICIÓN DE ÁCIDOS GRASOS DE MÍNIMO 50%. | H18: Und | I18: Und | J18: Si | K18: Atención emergencia COVID-19 | L18: IVONNE GIOVANNA CUERVO | M18: AECovid19-13 | N18: 1000 | O18: COP | P18: 2 | Q18: 5000 | R18: =Q18-SUMIFS(ResumenCotizacion!L:L,ResumenCotizacion!S:S,Catalogo!L18,ResumenCotizacion!C:C,Catalogo!D18) -> 5000 | S18: 0 | T18: =+VLOOKUP(D18,[1]CONSOLIDADO!$C$2:$F$93,4,0) -> 5136.866231
A19: PA-45IVONNE GIOVANNA CUERVO | D19: PA-45 | E19: PA-45 - PAPEL HIGIÉNICO 1 - ROLLO | F19: ELEMENTOS DE ASEO | G19: - ROLLO CON LONGITUD MÍNIMA DE 30 METROS - DOBLE HOJA BLANCA - SIN FRAGANCIA | H19: Und | I19: Und | J19: Si | K19: Atención emergencia COVID-19 | L19: IVONNE GIOVANNA CUERVO | M19: AECovid19-13 | N19: 1450 | O19: COP | P19: 1 | Q19: 50000 | R19: =Q19-SUMIFS(ResumenCotizacion!L:L,ResumenCotizacion!S:S,Catalogo!L19,ResumenCotizacion!C:C,Catalogo!D19) -> 50000 | S19: 0.19 | T19: =+VLOOKUP(D19,[1]CONSOLIDADO!$C$2:$F$93,4,0) -> 1804.637395
A20: PA-17JAIME BELTRAN URIBE - POLYFLEX | D20: PA-17 | E20: PA-17 - GEL ANTIBACTERIAL - GALON | F20: ELEMENTOS DE ASEO | G20: ANTISÉPTICO GEL PARA MANOS QUE NO REQUIERE ENJUAGUE FORMULADO A BASE DE ALCOHOL ETÍLICO DE 60-80% W/W; ADICIONADO CON HUMECTANTES Y EMOLIENTES HIPO ALERGÉNICO. GEL ANTIBACTERIAL O ALCOHOL EN GEL PRESENTA LA MANERA MÁS PRÁCTICA DE MANTENER UNA HIGIENE A CUALQUIER HORA DEL DÍA Y EN CUALQUIER LUGAR. PRODUCTO ESPECIALMENTE FORMULADO PARA SATISFACER LAS NUEVAS NECESIDADES DE LIMPIEZA DE MANOS CON EL OBJETO ÚNICO DE CUIDAR LA SALUD. DEBE CONTAR CON REGISTRO INVIMA, PRESENTACIÓN GALÓN ASPECTO:GEL INCOLORO, TRANSPARENTE CONTENIDO ALCOHOL: AL 60-80% W/W, AGUA, HUMECTANTES Y EMOLIENTES, AROMATIZANTES Y ACEITES ESENCIALES. PH: 6.5 – 7.5 | H20: Und | I20: Und | J20: Si | K20: Atención emergencia COVID-19 | L20: JAIME BELTRAN URIBE - POLYFLEX | M20: AECovid19-35 | N20: 36090 | O20: COP | P20: 1 | Q20: 10000 | R20: =Q20-SUMIFS(ResumenCotizacion!L:L,ResumenCotizacion!S:S,Catalogo!L20,ResumenCotizacion!C:C,Catalogo!D20) -> 10000 | S20: 0 | T20: =+VLOOKUP(D20,[1]CONSOLIDADO!$C$2:$F$93,4,0) -> 71250
A21: PA-45JAIME BELTRAN URIBE - POLYFLEX | D21: PA-45 | E21: PA-45 - PAPEL HIGIÉNICO 1 - ROLLO | F21: ELEMENTOS DE ASEO | G21: - ROLLO CON LONGITUD MÍNIMA DE 30 METROS - DOBLE HOJA BLANCA - SIN FRAGANCIA | H21: Und | I21: Und | J21: Si | K21: Atención emergencia COVID-19 | L21: JAIME BELTRAN URIBE - POLYFLEX | M21: AECovid19-35 | N21: 1009 | O21: COP | P21: 1 | Q21: 10000 | R21: =Q21-SUMIFS(ResumenCotizacion!L:L,ResumenCotizacion!S:S,Catalogo!L21,ResumenCotizacion!C:C,Catalogo!D21) -> 10000 | S21: 0.19 | T21: =+VLOOKUP(D21,[1]CONSOLIDADO!$C$2:$F$93,4,0) -> 1804.637395
A22: PA-52JAIME BELTRAN URIBE - POLYFLEX | D22: PA-52 | E22: PA-52 - PRODUCTOS DE HIGIENE DOMÉSTICA CON PROPIEDAD DESINFECTANTE DE SUPERFICIE A BASE DE CLORO (EN ESPECIAL, FORMULADOS CON HIPOCLORITO DE SODIO). - GALON | F22: ELEMENTOS DE ASEO | G22: HIPOCLORITO DE SODIO AL 5% (NAOCL), SOLUCIÓN ACUOSA LIGERAMENTE AMARILLA, LIBRE DE PARTÍCULAS, DE OLOR CARACTERÍSTICO PENETRANTE E IRRITANTE, FUERTEMENTE OXIDANTE, DE CONTROL BACTERIOLÓGICO Y MICROBIOLÓGICO. PRESENTACIÓN GALÓN | H22: Und | I22: Und | J22: Si | K22: Atención emergencia COVID-19 | L22: JAIME BELTRAN URIBE - POLYFLEX | M22: AECovid19-35 | N22: 8990 | O22: COP | P22: 1 | Q22: 200 | R22: =Q22-SUMIFS(ResumenCotizacion!L:L,ResumenCotizacion!S:S,Catalogo!L22,ResumenCotizacion!C:C,Catalogo!D22) -> 200 | S22: 0 | T22: =+VLOOKUP(D22,[1]CONSOLIDADO!$C$2:$F$93,4,0) -> 18891
A23: PA-60JAIME BELTRAN URIBE - POLYFLEX | D23: PA-60 | E23: PA-60 - TOALLAS PARA MANOS 4 - UNIDAD | F23: ELEMENTOS DE ASEO | G23: - TOALLAS INTERDOBLADAS, PAQUETE CON MÍNIMO 150 UNIDADES - DOBLE HOJA CON UN TAMAÑO MÍNIMO DE 20 CM DE LARGO POR 15 CM DE ANCHO - HOJA COLOR BLANCO | H23: Und | I23: Und | J23: Si | K23: Atención emergencia COVID-19 | L23: JAIME BELTRAN URIBE - POLYFLEX | M23: AECovid19-35 | N23: 4969 | O23: COP | P23: 1 | Q23: 5000 | R23: =Q23-SUMIFS(ResumenCotizacion!L:L,ResumenCotizacion!S:S,Catalogo!L23,ResumenCotizacion!C:C,Catalogo!D23) -> 5000 | S23: 0.19 | T23: =+VLOOKUP(D23,[1]CONSOLIDADO!$C$2:$F$93,4,0) -> 13650
A24: PA-1Suministros Importados Tecnicos | D24: PA-1 | E24: PA-1 - ALCOHOL - FRASCO | F24: ELEMENTOS DE ASEO | G24: ANTISEPTICO DE USO EXTERNO AL 70%, FRASCO PLASTICO, BOTELLA X 750 CC | H24: Und | I24: Und | J24: Si | K24: Atención emergencia COVID-19 | L24: Suministros Importados Tecnicos | M24: AECovid19-34 | N24: 7750 | O24: COP | P24: 1 | Q24: 1 | R24: =Q24-SUMIFS(ResumenCotizacion!L:L,ResumenCotizacion!S:S,Catalogo!L24,ResumenCotizacion!C:C,Catalogo!D24) -> 1 | S24: 0 | T24: =+VLOOKUP(D24,[1]CONSOLIDADO!$C$2:$F$93,4,0) -> 11598.2175
A25: PA-2Suministros Importados Tecnicos | D25: PA-2 | E25: PA-2 - ALCOHOL GALÓN X 3.750 ML - GALON | F25: ELEMENTOS DE ASEO | G25: ALCOHOL GALÓN X 3.750 ML CON INGREDIENTE ACTIVO ALCOHOL ETILICO IMPOTABILIZADO 96% | H25: Und | I25: Und | J25: Si | K25: Atención emergencia COVID-19 | L25: Suministros Importados Tecnicos | M25: AECovid19-34 | N25: 35000 | O25: COP | P25: 1 | Q25: 10000 | R25: =Q25-SUMIFS(ResumenCotizacion!L:L,ResumenCotizacion!S:S,Catalogo!L25,ResumenCotizacion!C:C,Catalogo!D25) -> 10000 | S25: 0 | T25: =+VLOOKUP(D25,[1]CONSOLIDADO!$C$2:$F$93,4,0) -> 52400.25
A26: PA-3Suministros Importados Tecnicos | D26: PA-3 | E26: PA-3 - ALCOHOL ISOPROPILICO 70% EN GEL PARA ANTISEPSIA DE MANOS - FC X 500ML | F26: ELEMENTOS DE ASEO | G26: ALCOHOL ISOPROPILICO EN GEL PARA ANTISEPSIA DE MANOS, 70ML+2G/100ML | H26: Und | I26: Und | J26: Si | K26: Atención emergencia COVID-19 | L26: Suministros Importados Tecnicos | M26: AECovid19-34 | N26: 10000 | O26: COP | P26: 1 | Q26: 2000 | R26: =Q26-SUMIFS(ResumenCotizacion!L:L,ResumenCotizacion!S:S,Catalogo!L26,ResumenCotizacion!C:C,Catalogo!D26) -> 2000 | S26: 0 | T26: =+VLOOKUP(D26,[1]CONSOLIDADO!$C$2:$F$93,4,0) -> 13500
A27: PA-4Suministros Importados Tecnicos | D27: PA-4 | E27: PA-4 - ALCOHOL ISOPROPILICO 70% EN GEL PARA ANTISEPSIA DE MANOS - FC X1LT | F27: ELEMENTOS DE ASEO | G27: ALCOHOL ISOPROPILICO EN GEL PARA ANTISEPSIA DE MANOS, 70ML+2G/100ML | H27: Und | I27: Und | J27: Si | K27: Atención emergencia COVID-19 | L27: Suministros Importados Tecnicos | M27: AECovid19-34 | N27: 17500 | O27: COP | P27: 1 | Q27: 2000 | R27: =Q27-SUMIFS(ResumenCotizacion!L:L,ResumenCotizacion!S:S,Catalogo!L27,ResumenCotizacion!C:C,Catalogo!D27) -> 2000 | S27: 0 | T27: =+VLOOKUP(D27,[1]CONSOLIDADO!$C$2:$F$93,4,0) -> 23444.5125
A28: PA-5Suministros Importados Tecnicos | D28: PA-5 | E28: PA-5 - ALCOHOL ISOPROPILICO 70% EN GEL PARA ANTISEPSIA DE MANOS - GALON | F28: ELEMENTOS DE ASEO | G28: ALCOHOL ISOPROPILICO EN GEL PARA ANTISEPSIA DE MANOS, 70ML+2G/100ML | H28: Und | I28: Und | J28: Si | K28: Atención emergencia COVID-19 | L28: Suministros Importados Tecnicos | M28: AECovid19-34 | N28: 52700 | O28: COP | P28: 1 | Q28: 1000 | R28: =Q28-SUMIFS(ResumenCotizacion!L:L,ResumenCotizacion!S:S,Catalogo!L28,ResumenCotizacion!C:C,Catalogo!D28) -> 1000 | S28: 0 | T28: =+VLOOKUP(D28,[1]CONSOLIDADO!$C$2:$F$93,4,0) -> 63450
A29: PA-17Suministros Importados Tecnicos | D29: PA-17 | E29: PA-17 - GEL ANTIBACTERIAL - GALON | F29: ELEMENTOS DE ASEO | G29: ANTISÉPTICO GEL PARA MANOS QUE NO REQUIERE ENJUAGUE FORMULADO A BASE DE ALCOHOL ETÍLICO DE 60-80% W/W; ADICIONADO CON HUMECTANTES Y EMOLIENTES HIPO ALERGÉNICO. GEL ANTIBACTERIAL O ALCOHOL EN GEL PRESENTA LA MANERA MÁS PRÁCTICA DE MANTENER UNA HIGIENE A CUALQUIER HORA DEL DÍA Y EN CUALQUIER LUGAR. PRODUCTO ESPECIALMENTE FORMULADO PARA SATISFACER LAS NUEVAS NECESIDADES DE LIMPIEZA DE MANOS CON EL OBJETO ÚNICO DE CUIDAR LA SALUD. DEBE CONTAR CON REGISTRO INVIMA, PRESENTACIÓN GALÓN ASPECTO:GEL INCOLORO, TRANSPARENTE CONTENIDO ALCOHOL: AL 60-80% W/W, AGUA, HUMECTANTES Y EMOLIENTES, AROMATIZANTES Y ACEITES ESENCIALES. PH: 6.5 – 7.5 | H29: Und | I29: Und | J29: Si | K29: Atención emergencia COVID-19 | L29: Suministros Importados Tecnicos | M29: AECovid19-34 | N29: 52700 | O29: COP | P29: 1 | Q29: 1000 | R29: =Q29-SUMIFS(ResumenCotizacion!L:L,ResumenCotizacion!S:S,Catalogo!L29,ResumenCotizacion!C:C,Catalogo!D29) -> 1000 | S29: 0 | T29: =+VLOOKUP(D29,[1]CONSOLIDADO!$C$2:$F$93,4,0) -> 71250
A30: PA-18Suministros Importados Tecnicos | D30: PA-18 | E30: PA-18 - GEL ANTIBACTERIAL - FC X1LT | F30: ELEMENTOS DE ASEO | G30: ALCOHOL ISOPROPILICO 70% EN GEL PARA ANTISEPSIA DE MANOS ALCOHOL ISOPROPILICO EN GEL PARA ANTISEPSIA DE MANOS, 70ML+2G/100ML | H30: Und | I30: Und | J30: Si | K30: Atención emergencia COVID-19 | L30: Suministros Importados Tecnicos | M30: AECovid19-34 | N30: 17500 | O30: COP | P30: 1 | Q30: 10000 | R30: =Q30-SUMIFS(ResumenCotizacion!L:L,ResumenCotizacion!S:S,Catalogo!L30,ResumenCotizacion!C:C,Catalogo!D30) -> 10000 | S30: 0 | T30: =+VLOOKUP(D30,[1]CONSOLIDADO!$C$2:$F$93,4,0) -> 27000
A31: PA-51Suministros Importados Tecnicos | D31: PA-51 | E31: PA-51 - PAPEL VINIPEL - ROLLO MÍNIMO DE 12.5 CM X 200M | F31: ELEMENTOS DE ASEO | G31: ROLLO DE PLÁSTICO STRECH CALIBRE 6 | H31: Und | I31: Und | J31: Si | K31: Atención emergencia COVID-19 | L31: Suministros Importados Tecnicos | M31: AECovid19-34 | N31: 9500 | O31: COP | P31: 1 | Q31: 100 | R31: =Q31-SUMIFS(ResumenCotizacion!L:L,ResumenCotizacion!S:S,Catalogo!L31,ResumenCotizacion!C:C,Catalogo!D31) -> 100 | S31: 0.19 | T31: =+VLOOKUP(D31,[1]CONSOLIDADO!$C$2:$F$93,4,0) -> 18515.19757
A32: PA-17VENTAS INSTITUCIONALES SAS | D32: PA-17 | E32: PA-17 - GEL ANTIBACTERIAL - GALON | F32: ELEMENTOS DE ASEO | G32: ANTISÉPTICO GEL PARA MANOS QUE NO REQUIERE ENJUAGUE FORMULADO A BASE DE ALCOHOL ETÍLICO DE 60-80% W/W; ADICIONADO CON HUMECTANTES Y EMOLIENTES HIPO ALERGÉNICO. GEL ANTIBACTERIAL O ALCOHOL EN GEL PRESENTA LA MANERA MÁS PRÁCTICA DE MANTENER UNA HIGIENE A CUALQUIER HORA DEL DÍA Y EN CUALQUIER LUGAR. PRODUCTO ESPECIALMENTE FORMULADO PARA SATISFACER LAS NUEVAS NECESIDADES DE LIMPIEZA DE MANOS CON EL OBJETO ÚNICO DE CUIDAR LA SALUD. DEBE CONTAR CON REGISTRO INVIMA, PRESENTACIÓN GALÓN ASPECTO:GEL INCOLORO, TRANSPARENTE CONTENIDO ALCOHOL: AL 60-80% W/W, AGUA, HUMECTANTES Y EMOLIENTES, AROMATIZANTES Y ACEITES ESENCIALES. PH: 6.5 – 7.5 | H32: Und | I32: Und | J32: Si | K32: Atención emergencia COVID-19 | L32: VENTAS INSTITUCIONALES SAS | M32: AECovid19-57 | N32: 50420 | O32: COP | P32: 1 | Q32: 1000 | R32: =Q32-SUMIFS(ResumenCotizacion!L:L,ResumenCotizacion!S:S,Catalogo!L32,ResumenCotizacion!C:C,Catalogo!D32) -> 1000 | S32: 0 | T32: =+VLOOKUP(D32,[1]CONSOLIDADO!$C$2:$F$93,4,0) -> 71250
A33: PA-20VENTAS INSTITUCIONALES SAS | D33: PA-20 | E33: PA-20 - GUANTES 2 - PAR | F33: ELEMENTOS DE ASEO | G33: - TIPO DOMÉSTICO - ELABORADOS EN LÁTEX - CALIBRE MÍNIMO DE 18 - TALLAS 7 A 9 - COLOR NEGRO | H33: Und | I33: Und | J33: Si | K33: Atención emergencia COVID-19 | L33: VENTAS INSTITUCIONALES SAS | M33: AECovid19-57 | N33: 2933 | O33: COP | P33: 1 | Q33: 1000 | R33: =Q33-SUMIFS(ResumenCotizacion!L:L,ResumenCotizacion!S:S,Catalogo!L33,ResumenCotizacion!C:C,Catalogo!D33) -> 1000 | S33: 0 | T33: =+VLOOKUP(D33,[1]CONSOLIDADO!$C$2:$F$93,4,0) -> 4320
A34: PA-21VENTAS INSTITUCIONALES SAS | D34: PA-21 | E34: PA-21 - GUANTES 3 - PAR | F34: ELEMENTOS DE ASEO | G34: - TIPO DOMÉSTICO - ELABORADOS EN LÁTEX - CALIBRE MÍNIMO DE 25 - TALLAS 7 A 9 - COLOR NEGRO | H34: Und | I34: Und | J34: Si | K34: Atención emergencia COVID-19 | L34: VENTAS INSTITUCIONALES SAS | M34: AECovid19-57 | N34: 3087 | O34: COP | P34: 1 | Q34: 1000 | R34: =Q34-SUMIFS(ResumenCotizacion!L:L,ResumenCotizacion!S:S,Catalogo!L34,ResumenCotizacion!C:C,Catalogo!D34) -> 1000 | S34: 0 | T34: =+VLOOKUP(D34,[1]CONSOLIDADO!$C$2:$F$93,4,0) -> 7500
A35: PA-22VENTAS INSTITUCIONALES SAS | D35: PA-22 | E35: PA-22 - GUANTES 4 - PAR | F35: ELEMENTOS DE ASEO | G35: - TIPO DOMÉSTICO - ELABORADOS EN LÁTEX - CALIBRE MÍNIMO DE 25 - TALLAS 7 A 9 - COLOR ROJO | H35: Und | I35: Und | J35: Si | K35: Atención emergencia COVID-19 | L35: VENTAS INSTITUCIONALES SAS | M35: AECovid19-57 | N35: 3491 | O35: COP | P35: 1 | Q35: 1000 | R35: =Q35-SUMIFS(ResumenCotizacion!L:L,ResumenCotizacion!S:S,Catalogo!L35,ResumenCotizacion!C:C,Catalogo!D35) -> 1000 | S35: 0 | T35: =+VLOOKUP(D35,[1]CONSOLIDADO!$C$2:$F$93,4,0) -> 4050
A36: PA-23VENTAS INSTITUCIONALES SAS | D36: PA-23 | E36: PA-23 - GUANTES 5 - PAR | F36: ELEMENTOS DE ASEO | G36: - TIPO INDUSTRIAL - ELABORADOS EN LÁTEX - CALIBRE MÍNIMO DE 35 - TALLAS 7 A 9 - COLOR NEGRO | H36: Und | I36: Und | J36: Si | K36: Atención emergencia COVID-19 | L36: VENTAS INSTITUCIONALES SAS | M36: AECovid19-57 | N36: 3869 | O36: COP | P36: 1 | Q36: 1000 | R36: =Q36-SUMIFS(ResumenCotizacion!L:L,ResumenCotizacion!S:S,Catalogo!L36,ResumenCotizacion!C:C,Catalogo!D36) -> 1000 | S36: 0 | T36: =+VLOOKUP(D36,[1]CONSOLIDADO!$C$2:$F$93,4,0) -> 7350
A37: PA-45VENTAS INSTITUCIONALES SAS | D37: PA-45 | E37: PA-45 - PAPEL HIGIÉNICO 1 - ROLLO | F37: ELEMENTOS DE ASEO | G37: - ROLLO CON LONGITUD MÍNIMA DE 30 METROS - DOBLE HOJA BLANCA - SIN FRAGANCIA | H37: Und | I37: Und | J37: Si | K37: Atención emergencia COVID-19 | L37: VENTAS INSTITUCIONALES SAS | M37: AECovid19-57 | N37: 1409 | O37: COP | P37: 1 | Q37: 30000 | R37: =Q37-SUMIFS(ResumenCotizacion!L:L,ResumenCotizacion!S:S,Catalogo!L37,ResumenCotizacion!C:C,Catalogo!D37) -> 30000 | S37: 0.19 | T37: =+VLOOKUP(D37,[1]CONSOLIDADO!$C$2:$F$93,4,0) -> 1804.637395
A38: PA-46VENTAS INSTITUCIONALES SAS | D38: PA-46 | E38: PA-46 - PAPEL HIGIÉNICO 2 - ROLLO | F38: ELEMENTOS DE ASEO | G38: - ROLLO CON LONGITUD MÍNIMA DE 250 METROS - DOBLE HOJA DE COLOR NATURAL - SIN FRAGANCIA | H38: Und | I38: Und | J38: Si | K38: Atención emergencia COVID-19 | L38: VENTAS INSTITUCIONALES SAS | M38: AECovid19-57 | N38: 9897.25 | O38: COP | P38: 1 | Q38: 500 | R38: =Q38-SUMIFS(ResumenCotizacion!L:L,ResumenCotizacion!S:S,Catalogo!L38,ResumenCotizacion!C:C,Catalogo!D38) -> 500 | S38: 0.19 | T38: =+VLOOKUP(D38,[1]CONSOLIDADO!$C$2:$F$93,4,0) -> 16458.65817
A39: PA-47VENTAS INSTITUCIONALES SAS | D39: PA-47 | E39: PA-47 - PAPEL HIGIÉNICO 3 - ROLLO | F39: ELEMENTOS DE ASEO | G39: - ROLLO CON LONGITUD MÍNIMA DE 250 METROS - DOBLE HOJA BLANCA - SIN FRAGANCIA | H39: Und | I39: Und | J39: Si | K39: Atención emergencia COVID-19 | L39: VENTAS INSTITUCIONALES SAS | M39: AECovid19-57 | N39: 6566 | O39: COP | P39: 1 | Q39: 10000 | R39: =Q39-SUMIFS(ResumenCotizacion!L:L,ResumenCotizacion!S:S,Catalogo!L39,ResumenCotizacion!C:C,Catalogo!D39) -> 10000 | S39: 0.19 | T39: =+VLOOKUP(D39,[1]CONSOLIDADO!$C$2:$F$93,4,0) -> 8450
A40: PA-48VENTAS INSTITUCIONALES SAS | D40: PA-48 | E40: PA-48 - PAPEL HIGIÉNICO 4 - ROLLO | F40: ELEMENTOS DE ASEO | G40: - ROLLO CON LONGITUD MÍNIMA DE 400 METROS - HOJA SENCILLA DE COLOR NATURAL - SINFRAGANCIA | H40: Und | I40: Und | J40: Si | K40: Atención emergencia COVID-19 | L40: VENTAS INSTITUCIONALES SAS | M40: AECovid19-57 | N40: 13241 | O40: COP | P40: 1 | Q40: 1000 | R40: =Q40-SUMIFS(ResumenCotizacion!L:L,ResumenCotizacion!S:S,Catalogo!L40,ResumenCotizacion!C:C,Catalogo!D40) -> 1000 | S40: 0.19 | T40: =+VLOOKUP(D40,[1]CONSOLIDADO!$C$2:$F$93,4,0) -> 25932
A41: PA-49VENTAS INSTITUCIONALES SAS | D41: PA-49 | E41: PA-49 - PAPEL HIGIÉNICO 5 - ROLLO | F41: ELEMENTOS DE ASEO | G41: - ROLLO CON LONGITUD MÍNIMA DE 400 METROS - HOJA SENCILLA DE COLOR BLANCO - SIN FRAGANCIA | H41: Und | I41: Und | J41: Si | K41: Atención emergencia COVID-19 | L41: VENTAS INSTITUCIONALES SAS | M41: AECovid19-57 | N41: 10600 | O41: COP | P41: 1 | Q41: 1000 | R41: =Q41-SUMIFS(ResumenCotizacion!L:L,ResumenCotizacion!S:S,Catalogo!L41,ResumenCotizacion!C:C,Catalogo!D41) -> 1000 | S41: 0.19 | T41: =+VLOOKUP(D41,[1]CONSOLIDADO!$C$2:$F$93,4,0) -> 11500
A42: PA-55VENTAS INSTITUCIONALES SAS | D42: PA-55 | E42: PA-55 - SERVILLETA PARA SECAR LAS MANOS - PAQUETE DE MÍNIMO 100 UNIDADES | F42: ELEMENTOS DE ASEO | G42: - TIPO CAFETERÍA - DOBE HOJA - COLOR BLANCO - DIMENSIONES MÍNIMAS DE 25 CM DE LARGO Y 15 CM DE ANCHO | H42: Und | I42: Und | J42: Si | K42: Atención emergencia COVID-19 | L42: VENTAS INSTITUCIONALES SAS | M42: AECovid19-57 | N42: 1987 | O42: COP | P42: 1 | Q42: 6000 | R42: =Q42-SUMIFS(ResumenCotizacion!L:L,ResumenCotizacion!S:S,Catalogo!L42,ResumenCotizacion!C:C,Catalogo!D42) -> 6000 | S42: 0.19 | T42: =+VLOOKUP(D42,[1]CONSOLIDADO!$C$2:$F$93,4,0) -> 7565
A43: PA-58VENTAS INSTITUCIONALES SAS | D43: PA-58 | E43: PA-58 - TOALLAS PARA MANOS 2 - ROLLO | F43: ELEMENTOS DE ASEO | G43: - ROLLO CON LONGITUD MÍNIMA DE 100 METROS - DOBLE HOJA CON UN TAMAÑO MÍNIMO 15 CM DE ANCHO - DISPONIBLES EN COLOR NATURAL | H43: Und | I43: Und | J43: Si | K43: Atención emergencia COVID-19 | L43: VENTAS INSTITUCIONALES SAS | M43: AECovid19-57 | N43: 16256 | O43: COP | P43: 1 | Q43: 200 | R43: =Q43-SUMIFS(ResumenCotizacion!L:L,ResumenCotizacion!S:S,Catalogo!L43,ResumenCotizacion!C:C,Catalogo!D43) -> 200 | S43: 0.19 | T43: =+VLOOKUP(D43,[1]CONSOLIDADO!$C$2:$F$93,4,0) -> 22000.5
A44: PA-60VENTAS INSTITUCIONALES SAS | D44: PA-60 | E44: PA-60 - TOALLAS PARA MANOS 4 - UNIDAD | F44: ELEMENTOS DE ASEO | G44: - TOALLAS INTERDOBLADAS, PAQUETE CON MÍNIMO 150 UNIDADES - DOBLE HOJA CON UN TAMAÑO MÍNIMO DE 20 CM DE LARGO POR 15 CM DE ANCHO - HOJA COLOR BLANCO | H44: Und | I44: Und | J44: Si | K44: Atención emergencia COVID-19 | L44: VENTAS INSTITUCIONALES SAS | M44: AECovid19-57 | N44: 5067 | O44: COP | P44: 1 | Q44: 500 | R44: =Q44-SUMIFS(ResumenCotizacion!L:L,ResumenCotizacion!S:S,Catalogo!L44,ResumenCotizacion!C:C,Catalogo!D44) -> 500 | S44: 0.19 | T44: =+VLOOKUP(D44,[1]CONSOLIDADO!$C$2:$F$93,4,0) -> 13650
A45: PA-45Sedhank SAS | D45: PA-45 | E45: PA-45 - PAPEL HIGIÉNICO 1 - ROLLO | F45: ELEMENTOS DE ASEO | G45: - ROLLO CON LONGITUD MÍNIMA DE 30 METROS - DOBLE HOJA BLANCA - SIN FRAGANCIA | H45: Und | I45: Und | J45: Si | K45: Atención emergencia COVID-19 | L45: Sedhank SAS | M45: AECovid19-59 | N45: 1200 | O45: COP | P45: 1 | Q45: 2000 | R45: =Q45-SUMIFS(ResumenCotizacion!L:L,ResumenCotizacion!S:S,Catalogo!L45,ResumenCotizacion!C:C,Catalogo!D45) -> 2000 | S45: 0.19 | T45: =+VLOOKUP(D45,[1]CONSOLIDADO!$C$2:$F$93,4,0) -> 1804.637395
A46: PA-46Sedhank SAS | D46: PA-46 | E46: PA-46 - PAPEL HIGIÉNICO 2 - ROLLO | F46: ELEMENTOS DE ASEO | G46: - ROLLO CON LONGITUD MÍNIMA DE 250 METROS - DOBLE HOJA DE COLOR NATURAL - SIN FRAGANCIA | H46: Und | I46: Und | J46: Si | K46: Atención emergencia COVID-19 | L46: Sedhank SAS | M46: AECovid19-59 | N46: 13900 | O46: COP | P46: 1 | Q46: 2000 | R46: =Q46-SUMIFS(ResumenCotizacion!L:L,ResumenCotizacion!S:S,Catalogo!L46,ResumenCotizacion!C:C,Catalogo!D46) -> 2000 | S46: 0.19 | T46: =+VLOOKUP(D46,[1]CONSOLIDADO!$C$2:$F$93,4,0) -> 16458.65817
A47: PA-48Sedhank SAS | D47: PA-48 | E47: PA-48 - PAPEL HIGIÉNICO 4 - ROLLO | F47: ELEMENTOS DE ASEO | G47: - ROLLO CON LONGITUD MÍNIMA DE 400 METROS - HOJA SENCILLA DE COLOR NATURAL - SINFRAGANCIA | H47: Und | I47: Und | J47: Si | K47: Atención emergencia COVID-19 | L47: Sedhank SAS | M47: AECovid19-59 | N47: 15200 | O47: COP | P47: 1 | Q47: 2000 | R47: =Q47-SUMIFS(ResumenCotizacion!L:L,ResumenCotizacion!S:S,Catalogo!L47,ResumenCotizacion!C:C,Catalogo!D47) -> 2000 | S47: 0.19 | T47: =+VLOOKUP(D47,[1]CONSOLIDADO!$C$2:$F$93,4,0) -> 25932
A48: PA-59Sedhank SAS | D48: PA-59 | E48: PA-59 - TOALLAS PARA MANOS 3 - UNIDAD | F48: ELEMENTOS DE ASEO | G48: - TOALLAS INTERDOBLADAS, PAQUETE CON MÍNIMO 150 UNIDADES - DOBLE HOJA CON UN TAMAÑO MÍNIMO DE 20 CM DE LARGO POR 15 CM DE ANCHO - HOJA COLOR NATURAL | H48: Und | I48: Und | J48: Si | K48: Atención emergencia COVID-19 | L48: Sedhank SAS | M48: AECovid19-59 | N48: 6314 | O48: COP | P48: 1 | Q48: 960 | R48: =Q48-SUMIFS(ResumenCotizacion!L:L,ResumenCotizacion!S:S,Catalogo!L48,ResumenCotizacion!C:C,Catalogo!D48) -> 960 | S48: 0.19 | T48: =+VLOOKUP(D48,[1]CONSOLIDADO!$C$2:$F$93,4,0) -> 10500
A49: PA-60Sedhank SAS | D49: PA-60 | E49: PA-60 - TOALLAS PARA MANOS 4 - UNIDAD | F49: ELEMENTOS DE ASEO | G49: - TOALLAS INTERDOBLADAS, PAQUETE CON MÍNIMO 150 UNIDADES - DOBLE HOJA CON UN TAMAÑO MÍNIMO DE 20 CM DE LARGO POR 15 CM DE ANCHO - HOJA COLOR BLANCO | H49: Und | I49: Und | J49: Si | K49: Atención emergencia COVID-19 | L49: Sedhank SAS | M49: AECovid19-59 | N49: 5573 | O49: COP | P49: 1 | Q49: 960 | R49: =Q49-SUMIFS(ResumenCotizacion!L:L,ResumenCotizacion!S:S,Catalogo!L49,ResumenCotizacion!C:C,Catalogo!D49) -> 960 | S49: 0.19 | T49: =+VLOOKUP(D49,[1]CONSOLIDADO!$C$2:$F$93,4,0) -> 13650
A50: PA-17NOVAWAY SAS | D50: PA-17 | E50: PA-17 - GEL ANTIBACTERIAL - GALON | F50: ELEMENTOS DE ASEO | G50: ANTISÉPTICO GEL PARA MANOS QUE NO REQUIERE ENJUAGUE FORMULADO A BASE DE ALCOHOL ETÍLICO DE 60-80% W/W; ADICIONADO CON HUMECTANTES Y EMOLIENTES HIPO ALERGÉNICO. GEL ANTIBACTERIAL O ALCOHOL EN GEL PRESENTA LA MANERA MÁS PRÁCTICA DE MANTENER UNA HIGIENE A CUALQUIER HORA DEL DÍA Y EN CUALQUIER LUGAR. PRODUCTO ESPECIALMENTE FORMULADO PARA SATISFACER LAS NUEVAS NECESIDADES DE LIMPIEZA DE MANOS CON EL OBJETO ÚNICO DE CUIDAR LA SALUD. DEBE CONTAR CON REGISTRO INVIMA, PRESENTACIÓN GALÓN ASPECTO:GEL INCOLORO, TRANSPARENTE CONTENIDO ALCOHOL: AL 60-80% W/W, AGUA, HUMECTANTES Y EMOLIENTES, AROMATIZANTES Y ACEITES ESENCIALES. PH: 6.5 – 7.5 | H50: Und | I50: Und | J50: Si | K50: Atención emergencia COVID-19 | L50: NOVAWAY SAS | M50: AECovid19-9 | N50: 40000 | O50: COP | P50: 2 | Q50: 1700 | R50: =Q50-SUMIFS(ResumenCotizacion!L:L,ResumenCotizacion!S:S,Catalogo!L50,ResumenCotizacion!C:C,Catalogo!D50) -> 1700 | S50: 0 | T50: =+VLOOKUP(D50,[1]CONSOLIDADO!$C$2:$F$93,4,0) -> 71250
A51: PA-18NOVAWAY SAS | D51: PA-18 | E51: PA-18 - GEL ANTIBACTERIAL - FC X1LT | F51: ELEMENTOS DE ASEO | G51: ALCOHOL ISOPROPILICO 70% EN GEL PARA ANTISEPSIA DE MANOS ALCOHOL ISOPROPILICO EN GEL PARA ANTISEPSIA DE MANOS, 70ML+2G/100ML | H51: Und | I51: Und | J51: Si | K51: Atención emergencia COVID-19 | L51: NOVAWAY SAS | M51: AECovid19-9 | N51: 12400 | O51: COP | P51: 1 | Q51: 10000 | R51: =Q51-SUMIFS(ResumenCotizacion!L:L,ResumenCotizacion!S:S,Catalogo!L51,ResumenCotizacion!C:C,Catalogo!D51) -> 10000 | S51: 0 | T51: =+VLOOKUP(D51,[1]CONSOLIDADO!$C$2:$F$93,4,0) -> 27000
A52: PA-17BIOKEMICAL S.A.S. | D52: PA-17 | E52: PA-17 - GEL ANTIBACTERIAL - GALON | F52: ELEMENTOS DE ASEO | G52: ANTISÉPTICO GEL PARA MANOS QUE NO REQUIERE ENJUAGUE FORMULADO A BASE DE ALCOHOL ETÍLICO DE 60-80% W/W; ADICIONADO CON HUMECTANTES Y EMOLIENTES HIPO ALERGÉNICO. GEL ANTIBACTERIAL O ALCOHOL EN GEL PRESENTA LA MANERA MÁS PRÁCTICA DE MANTENER UNA HIGIENE A CUALQUIER HORA DEL DÍA Y EN CUALQUIER LUGAR. PRODUCTO ESPECIALMENTE FORMULADO PARA SATISFACER LAS NUEVAS NECESIDADES DE LIMPIEZA DE MANOS CON EL OBJETO ÚNICO DE CUIDAR LA SALUD. DEBE CONTAR CON REGISTRO INVIMA, PRESENTACIÓN GALÓN ASPECTO:GEL INCOLORO, TRANSPARENTE CONTENIDO ALCOHOL: AL 60-80% W/W, AGUA, HUMECTANTES Y EMOLIENTES, AROMATIZANTES Y ACEITES ESENCIALES. PH: 6.5 – 7.5 | H52: Und | I52: Und | J52: Si | K52: Atención emergencia COVID-19 | L52: BIOKEMICAL S.A.S. | M52: AECovid19-61 | N52: 50480 | O52: COP | P52: 1 | Q52: 1000 | R52: =Q52-SUMIFS(ResumenCotizacion!L:L,ResumenCotizacion!S:S,Catalogo!L52,ResumenCotizacion!C:C,Catalogo!D52) -> 1000 | S52: 0 | T52: =+VLOOKUP(D52,[1]CONSOLIDADO!$C$2:$F$93,4,0) -> 71250
A53: PA-18BIOKEMICAL S.A.S. | D53: PA-18 | E53: PA-18 - GEL ANTIBACTERIAL - FC X1LT | F53: ELEMENTOS DE ASEO | G53: ALCOHOL ISOPROPILICO 70% EN GEL PARA ANTISEPSIA DE MANOS ALCOHOL ISOPROPILICO EN GEL PARA ANTISEPSIA DE MANOS, 70ML+2G/100ML | H53: Und | I53: Und | J53: Si | K53: Atención emergencia COVID-19 | L53: BIOKEMICAL S.A.S. | M53: AECovid19-61 | N53: 14980 | O53: COP | P53: 1 | Q53: 10000 | R53: =Q53-SUMIFS(ResumenCotizacion!L:L,ResumenCotizacion!S:S,Catalogo!L53,ResumenCotizacion!C:C,Catalogo!D53) -> 10000 | S53: 0 | T53: =+VLOOKUP(D53,[1]CONSOLIDADO!$C$2:$F$93,4,0) -> 27000
A54: PA-3Fabian Perez | D54: PA-3 | E54: PA-3 - ALCOHOL ISOPROPILICO 70% EN GEL PARA ANTISEPSIA DE MANOS - FC X 500ML | F54: ELEMENTOS DE ASEO | G54: ALCOHOL ISOPROPILICO EN GEL PARA ANTISEPSIA DE MANOS, 70ML+2G/100ML | H54: Und | I54: Und | J54: Si | K54: Atención emergencia COVID-19 | L54: Fabian Perez | M54: AECovid19-1 | N54: 6240 | O54: COP | P54: 1 | Q54: 2000 | R54: =Q54-SUMIFS(ResumenCotizacion!L:L,ResumenCotizacion!S:S,Catalogo!L54,ResumenCotizacion!C:C,Catalogo!D54) -> 2000 | S54: 0 | T54: =+VLOOKUP(D54,[1]CONSOLIDADO!$C$2:$F$93,4,0) -> 13500
A55: PA-4Fabian Perez | D55: PA-4 | E55: PA-4 - ALCOHOL ISOPROPILICO 70% EN GEL PARA ANTISEPSIA DE MANOS - FC X1LT | F55: ELEMENTOS DE ASEO | G55: ALCOHOL ISOPROPILICO EN GEL PARA ANTISEPSIA DE MANOS, 70ML+2G/100ML | H55: Und | I55: Und | J55: Si | K55: Atención emergencia COVID-19 | L55: Fabian Perez | M55: AECovid19-1 | N55: 10873 | O55: COP | P55: 1 | Q55: 2000 | R55: =Q55-SUMIFS(ResumenCotizacion!L:L,ResumenCotizacion!S:S,Catalogo!L55,ResumenCotizacion!C:C,Catalogo!D55) -> 2000 | S55: 0 | T55: =+VLOOKUP(D55,[1]CONSOLIDADO!$C$2:$F$93,4,0) -> 23444.5125
A56: PA-18Fabian Perez | D56: PA-18 | E56: PA-18 - GEL ANTIBACTERIAL - FC X1LT | F56: ELEMENTOS DE ASEO | G56: ALCOHOL ISOPROPILICO 70% EN GEL PARA ANTISEPSIA DE MANOS ALCOHOL ISOPROPILICO EN GEL PARA ANTISEPSIA DE MANOS, 70ML+2G/100ML | H56: Und | I56: Und | J56: Si | K56: Atención emergencia COVID-19 | L56: Fabian Perez | M56: AECovid19-1 | N56: 11500 | O56: COP | P56: 1 | Q56: 1000 | R56: =Q56-SUMIFS(ResumenCotizacion!L:L,ResumenCotizacion!S:S,Catalogo!L56,ResumenCotizacion!C:C,Catalogo!D56) -> 1000 | S56: 0 | T56: =+VLOOKUP(D56,[1]CONSOLIDADO!$C$2:$F$93,4,0) -> 27000
A57: PA-28Fabian Perez | D57: PA-28 | E57: PA-28 - JABÓN DISPENSADOR PARA MANOS 1 - LÍQUIDO, EN RECIPIENTE PLÁSTICO CON DISPENSADOR Y CAPACIDAD MÍNIMA DE 500 ML. | F57: ELEMENTOS DE ASEO | G57: - CON AGENTE LIMPIADOR EN UNA CONCENTRACIÓN MÍNIMA DEL 6% - CON AGENTE HUMECTANTE EN UNA CONCENTRACIÓN MÍNIMA DEL 3% - PH ENTRE 5,5 A 7 - DISPONIBLE EN MÍNIMO (2) DOS FRAGANCIAS | H57: Und | I57: Und | J57: Si | K57: Atención emergencia COVID-19 | L57: Fabian Perez | M57: AECovid19-1 | N57: 5500 | O57: COP | P57: 2 | Q57: 2000 | R57: =Q57-SUMIFS(ResumenCotizacion!L:L,ResumenCotizacion!S:S,Catalogo!L57,ResumenCotizacion!C:C,Catalogo!D57) -> 2000 | S57: 0 | T57: =+VLOOKUP(D57,[1]CONSOLIDADO!$C$2:$F$93,4,0) -> 10500
A58: PA-17DENSALUD GRUPO EMPRESARIAL SAS | D58: PA-17 | E58: PA-17 - GEL ANTIBACTERIAL - GALON | F58: ELEMENTOS DE ASEO | G58: ANTISÉPTICO GEL PARA MANOS QUE NO REQUIERE ENJUAGUE FORMULADO A BASE DE ALCOHOL ETÍLICO DE 60-80% W/W; ADICIONADO CON HUMECTANTES Y EMOLIENTES HIPO ALERGÉNICO. GEL ANTIBACTERIAL O ALCOHOL EN GEL PRESENTA LA MANERA MÁS PRÁCTICA DE MANTENER UNA HIGIENE A CUALQUIER HORA DEL DÍA Y EN CUALQUIER LUGAR. PRODUCTO ESPECIALMENTE FORMULADO PARA SATISFACER LAS NUEVAS NECESIDADES DE LIMPIEZA DE MANOS CON EL OBJETO ÚNICO DE CUIDAR LA SALUD. DEBE CONTAR CON REGISTRO INVIMA, PRESENTACIÓN GALÓN ASPECTO:GEL INCOLORO, TRANSPARENTE CONTENIDO ALCOHOL: AL 60-80% W/W, AGUA, HUMECTANTES Y EMOLIENTES, AROMATIZANTES Y ACEITES ESENCIALES. PH: 6.5 – 7.5 | H58: Und | I58: Und | J58: Si | K58: Atención emergencia COVID-19 | L58: DENSALUD GRUPO EMPRESARIAL SAS | M58: AECovid19-66 | N58: 47000 | O58: COP | P58: 1 | Q58: 1000 | R58: =Q58-SUMIFS(ResumenCotizacion!L:L,ResumenCotizacion!S:S,Catalogo!L58,ResumenCotizacion!C:C,Catalogo!D58) -> 1000 | S58: 0 | T58: =+VLOOKUP(D58,[1]CONSOLIDADO!$C$2:$F$93,4,0) -> 71250
A59: PA-1Eventos Medicos Salud SAS | D59: PA-1 | E59: PA-1 - ALCOHOL - FRASCO | F59: ELEMENTOS DE ASEO | G59: ANTISEPTICO DE USO EXTERNO AL 70%, FRASCO PLASTICO, BOTELLA X 750 CC | H59: Und | I59: Und | J59: Si | K59: Atención emergencia COVID-19 | L59: Eventos Medicos Salud SAS | M59: AECovid19-68 | N59: 5930 | O59: COP | P59: 1 | Q59: 3000 | R59: =Q59-SUMIFS(ResumenCotizacion!L:L,ResumenCotizacion!S:S,Catalogo!L59,ResumenCotizacion!C:C,Catalogo!D59) -> 3000 | S59: 0 | T59: =+VLOOKUP(D59,[1]CONSOLIDADO!$C$2:$F$93,4,0) -> 11598.2175
A60: PA-2Eventos Medicos Salud SAS | D60: PA-2 | E60: PA-2 - ALCOHOL GALÓN X 3.750 ML - GALON | F60: ELEMENTOS DE ASEO | G60: ALCOHOL GALÓN X 3.750 ML CON INGREDIENTE ACTIVO ALCOHOL ETILICO IMPOTABILIZADO 96% | H60: Und | I60: Und | J60: Si | K60: Atención emergencia COVID-19 | L60: Eventos Medicos Salud SAS | M60: AECovid19-68 | N60: 22500 | O60: COP | P60: 1 | Q60: 2000 | R60: =Q60-SUMIFS(ResumenCotizacion!L:L,ResumenCotizacion!S:S,Catalogo!L60,ResumenCotizacion!C:C,Catalogo!D60) -> 2000 | S60: 0 | T60: =+VLOOKUP(D60,[1]CONSOLIDADO!$C$2:$F$93,4,0) -> 52400.25
A61: PA-17Eventos Medicos Salud SAS | D61: PA-17 | E61: PA-17 - GEL ANTIBACTERIAL - GALON | F61: ELEMENTOS DE ASEO | G61: ANTISÉPTICO GEL PARA MANOS QUE NO REQUIERE ENJUAGUE FORMULADO A BASE DE ALCOHOL ETÍLICO DE 60-80% W/W; ADICIONADO CON HUMECTANTES Y EMOLIENTES HIPO ALERGÉNICO. GEL ANTIBACTERIAL O ALCOHOL EN GEL PRESENTA LA MANERA MÁS PRÁCTICA DE MANTENER UNA HIGIENE A CUALQUIER HORA DEL DÍA Y EN CUALQUIER LUGAR. PRODUCTO ESPECIALMENTE FORMULADO PARA SATISFACER LAS NUEVAS NECESIDADES DE LIMPIEZA DE MANOS CON EL OBJETO ÚNICO DE CUIDAR LA SALUD. DEBE CONTAR CON REGISTRO INVIMA, PRESENTACIÓN GALÓN ASPECTO:GEL INCOLORO, TRANSPARENTE CONTENIDO ALCOHOL: AL 60-80% W/W, AGUA, HUMECTANTES Y EMOLIENTES, AROMATIZANTES Y ACEITES ESENCIALES. PH: 6.5 – 7.5 | H61: Und | I61: Und | J61: Si | K61: Atención emergencia COVID-19 | L61: Eventos Medicos Salud SAS | M61: AECovid19-68 | N61: 32100 | O61: COP | P61: 1 | Q61: 15000 | R61: =Q61-SUMIFS(ResumenCotizacion!L:L,ResumenCotizacion!S:S,Catalogo!L61,ResumenCotizacion!C:C,Catalogo!D61) -> 15000 | S61: 0 | T61: =+VLOOKUP(D61,[1]CONSOLIDADO!$C$2:$F$93,4,0) -> 71250
A62: PA-28Eventos Medicos Salud SAS | D62: PA-28 | E62: PA-28 - JABÓN DISPENSADOR PARA MANOS 1 - LÍQUIDO, EN RECIPIENTE PLÁSTICO CON DISPENSADOR Y CAPACIDAD MÍNIMA DE 500 ML. | F62: ELEMENTOS DE ASEO | G62: - CON AGENTE LIMPIADOR EN UNA CONCENTRACIÓN MÍNIMA DEL 6% - CON AGENTE HUMECTANTE EN UNA CONCENTRACIÓN MÍNIMA DEL 3% - PH ENTRE 5,5 A 7 - DISPONIBLE EN MÍNIMO (2) DOS FRAGANCIAS | H62: Und | I62: Und | J62: Si | K62: Atención emergencia COVID-19 | L62: Eventos Medicos Salud SAS | M62: AECovid19-68 | N62: 6500 | O62: COP | P62: 1 | Q62: 5000 | R62: =Q62-SUMIFS(ResumenCotizacion!L:L,ResumenCotizacion!S:S,Catalogo!L62,ResumenCotizacion!C:C,Catalogo!D62) -> 5000 | S62: 0 | T62: =+VLOOKUP(D62,[1]CONSOLIDADO!$C$2:$F$93,4,0) -> 10500
A63: PA-30Eventos Medicos Salud SAS | D63: PA-30 | E63: PA-30 - JABÓN DISPENSADOR PARA MANOS 2 - LÍQUIDO, EN RECIPIENTE PLÁSTICO CON CAPACIDAD MÍNIMA DE 3.785 CC | F63: ELEMENTOS DE ASEO | G63: - CON AGENTE LIMPIADOR EN UNA CONCENTRACIÓN MÍNIMA DEL 6%. - CON AGENTE ANTIBACTERIAL EN UNA CONCENTRACIÓN MÍNIMA DEL 0,2% - CON AGENTE HUMECTANTE EN UNA CONCENTRACIÓN MÍNIMA DEL 3% - PH ENTRE 5,5 A 7 - DISPONIBLE EN MÍNIMO (2) DOS FRAGANCIAS | H63: Und | I63: Und | J63: Si | K63: Atención emergencia COVID-19 | L63: Eventos Medicos Salud SAS | M63: AECovid19-68 | N63: 23500 | O63: COP | P63: 1 | Q63: 5000 | R63: =Q63-SUMIFS(ResumenCotizacion!L:L,ResumenCotizacion!S:S,Catalogo!L63,ResumenCotizacion!C:C,Catalogo!D63) -> 5000 | S63: 0 | T63: =+VLOOKUP(D63,[1]CONSOLIDADO!$C$2:$F$93,4,0) -> 39288.75
A64: PA-33CI MULTISERVICIOS DE INGENIERIA 1 A SA | D64: PA-33 | E64: PA-33 - JABÓN LAVAVAJILLAS O LAVALOZAS 2 - LÍQUIDO, EN RECIPIENTE PLÁSTICO DE MÍNIMO 500 CC | F64: ELEMENTOS DE ASEO | G64: - CON AGENTE(S) C35TENSOACTIVO(S) PRINCIPAL(ES) CON EFECTO LIMPIADOR Y DESENGRASANTE EN UNA CONCENTRACIÓN MÍNIMA DEL 8%. - DISPONIBLE EN MÍNIMO (2) DOS FRAGANCIAS - EL ENVASE DEL PRODUCTO DEBERÁ ESTAR CORRECTAMENTE ETIQUETADO BAJO LOS PARÁMETROS ESTABLECIDOS EN EL SISTEMA GLOBALMENTE ARMONIZADO, INDICANDO: NOMBRE COMERCIAL DEL PRODUCTO, PICTOGRAMAS DE LOS COMPUESTOS PELIGROSOS E INSTRUCCIONES DE USO | H64: Und | I64: Und | J64: Si | K64: Atención emergencia COVID-19 | L64: CI MULTISERVICIOS DE INGENIERIA 1 A SA | M64: AECovid19-71 | N64: 4200 | O64: COP | P64: 2 | Q64: 50000 | R64: =Q64-SUMIFS(ResumenCotizacion!L:L,ResumenCotizacion!S:S,Catalogo!L64,ResumenCotizacion!C:C,Catalogo!D64) -> 50000 | S64: 0 | T64: =+VLOOKUP(D64,[1]CONSOLIDADO!$C$2:$F$93,4,0) -> 9610
A65: PA-70NUEVOS RECURSOS SAS | D65: PA-70 | E65: PA-70 - LAVAMANOS PORTÁTIL AUTÓNOMO CON DISPENSADORES INCLUIDOS - UNIDAD | F65: ELEMENTOS DE ASEO | G65: Lavamanos portátil de uso autónomo, tanques de agua limpia y residual 30 lt c/u, todo el lavamanos debe ser elaborado en acero inoxidable (Material de fácil lavado y desinfección, resistente a la abrasión y corrosión). Lavamanos con salpicadero incluido y pedal para dispensar el agua. Nota no requiere conexión al sistema de aguas. El lavamanos debe incluir: 1. DISPENSADOR TOALLA DE MANOS EN ROLLO PRECORTADO ASÍ: - Elaborado en plástico ABS - Para toallas de papel en rollo de 100 a 250 metros - Para halar con la mano. - Con cerradura y llave - Debe estár adherido al lavamanos 2. DISPENSADOR PARA JABÓN LÍQUIDO DE MANOS ASÍ: - Con pedal para suministro de jabón, que no implique tocar el dispensador - Uso habilitado para cualquier jabón líquido - Debe estár adherido al lavamanos | H65: Und | I65: Und | J65: Si | K65: Atención emergencia COVID-19 | L65: NUEVOS RECURSOS SAS | M65: AECovid19-73 | N65: 1160000 | O65: COP | P65: 1 | Q65: 600 | R65: =Q65-SUMIFS(ResumenCotizacion!L:L,ResumenCotizacion!S:S,Catalogo!L65,ResumenCotizacion!C:C,Catalogo!D65) -> 600 | S65: 0.19 | T65: =+VLOOKUP(D65,[1]CONSOLIDADO!$C$2:$F$93,4,0) -> 2764995.219
A66: PA-1DYD SAS | D66: PA-1 | E66: PA-1 - ALCOHOL - FRASCO | F66: ELEMENTOS DE ASEO | G66: ANTISEPTICO DE USO EXTERNO AL 70%, FRASCO PLASTICO, BOTELLA X 750 CC | H66: Und | I66: Und | J66: Si | K66: Atención emergencia COVID-19 | L66: DYD SAS | M66: AECovid19-14 | N66: 4600 | O66: COP | P66: =COUNTIFS(D:D,D66,N:N,N66) -> 1 | Q66: 15000 | R66: =Q66-SUMIFS(ResumenCotizacion!L:L,ResumenCotizacion!S:S,Catalogo!L66,ResumenCotizacion!C:C,Catalogo!D66) -> 15000 | S66: 0 | T66: =+VLOOKUP(D66,[1]CONSOLIDADO!$C$2:$F$93,4,0) -> 11598.2175
A67: =+D67&L67 -> PA-2DYD SAS | D67: PA-2 | E67: PA-2 - ALCOHOL GALÓN X 3.750 ML - GALON | F67: ELEMENTOS DE ASEO | G67: ALCOHOL GALÓN X 3.750 ML CON INGREDIENTE ACTIVO ALCOHOL ETILICO IMPOTABILIZADO 96% | H67: Und | I67: Und | J67: Si | K67: Atención emergencia COVID-19 | L67: DYD SAS | M67: AECovid19-14 | N67: 17300 | O67: COP | P67: 1 | Q67: 15000 | R67: =Q67-SUMIFS(ResumenCotizacion!L:L,ResumenCotizacion!S:S,Catalogo!L67,ResumenCotizacion!C:C,Catalogo!D67) -> 15000 | S67: 0 | T67: =+VLOOKUP(D67,[1]CONSOLIDADO!$C$2:$F$93,4,0) -> 52400.25
A68: PA-17DYD SAS | D68: PA-17 | E68: PA-17 - GEL ANTIBACTERIAL - GALON | F68: ELEMENTOS DE ASEO | G68: ANTISÉPTICO GEL PARA MANOS QUE NO REQUIERE ENJUAGUE FORMULADO A BASE DE ALCOHOL ETÍLICO DE 60-80% W/W; ADICIONADO CON HUMECTANTES Y EMOLIENTES HIPO ALERGÉNICO. GEL ANTIBACTERIAL O ALCOHOL EN GEL PRESENTA LA MANERA MÁS PRÁCTICA DE MANTENER UNA HIGIENE A CUALQUIER HORA DEL DÍA Y EN CUALQUIER LUGAR. PRODUCTO ESPECIALMENTE FORMULADO PARA SATISFACER LAS NUEVAS NECESIDADES DE LIMPIEZA DE MANOS CON EL OBJETO ÚNICO DE CUIDAR LA SALUD. DEBE CONTAR CON REGISTRO INVIMA, PRESENTACIÓN GALÓN ASPECTO:GEL INCOLORO, TRANSPARENTE CONTENIDO ALCOHOL: AL 60-80% W/W, AGUA, HUMECTANTES Y EMOLIENTES, AROMATIZANTES Y ACEITES ESENCIALES. PH: 6.5 – 7.5 | H68: Und | I68: Und | J68: Si | K68: Atención emergencia COVID-19 | L68: DYD SAS | M68: AECovid19-14 | N68: 23500 | O68: COP | P68: 1 | Q68: 5000 | R68: =Q68-SUMIFS(ResumenCotizacion!L:L,ResumenCotizacion!S:S,Catalogo!L68,ResumenCotizacion!C:C,Catalogo!D68) -> 5000 | S68: 0 | T68: =+VLOOKUP(D68,[1]CONSOLIDADO!$C$2:$F$93,4,0) -> 71250
A69: PA-30DYD SAS | D69: PA-30 | E69: PA-30 - JABÓN DISPENSADOR PARA MANOS 2 - LÍQUIDO, EN RECIPIENTE PLÁSTICO CON CAPACIDAD MÍNIMA DE 3.785 CC | F69: ELEMENTOS DE ASEO | G69: - CON AGENTE LIMPIADOR EN UNA CONCENTRACIÓN MÍNIMA DEL 6%. - CON AGENTE ANTIBACTERIAL EN UNA CONCENTRACIÓN MÍNIMA DEL 0,2% - CON AGENTE HUMECTANTE EN UNA CONCENTRACIÓN MÍNIMA DEL 3% - PH ENTRE 5,5 A 7 - DISPONIBLE EN MÍNIMO (2) DOS FRAGANCIAS | H69: Und | I69: Und | J69: Si | K69: Atención emergencia COVID-19 | L69: DYD SAS | M69: AECovid19-14 | N69: 17400 | O69: COP | P69: 1 | Q69: 5000 | R69: =Q69-SUMIFS(ResumenCotizacion!L:L,ResumenCotizacion!S:S,Catalogo!L69,ResumenCotizacion!C:C,Catalogo!D69) -> 5000 | S69: 0 | T69: =+VLOOKUP(D69,[1]CONSOLIDADO!$C$2:$F$93,4,0) -> 39288.75
A70: PA-25FERRESOL SAS | D70: PA-25 | E70: PA-25 - GUANTES 7 - PAR | F70: ELEMENTOS DE ASEO | G70: - ELABORADOS EN HILAZA - TALLAS 7 A 9 | H70: Und | I70: Und | J70: Si | K70: Atención emergencia COVID-19 | L70: FERRESOL SAS | M70: AECovid19-69 | N70: 5600 | O70: COP | P70: 1 | Q70: 500 | R70: =Q70-SUMIFS(ResumenCotizacion!L:L,ResumenCotizacion!S:S,Catalogo!L70,ResumenCotizacion!C:C,Catalogo!D70) -> 500 | S70: 0.19 | T70: =+VLOOKUP(D70,[1]CONSOLIDADO!$C$2:$F$93,4,0) -> 8150
A71: PA-26FERRESOL SAS | D71: PA-26 | E71: PA-26 - GUANTES DE LIMPIEZA. - PAR | F71: ELEMENTOS DE ASEO | G71: GUANTE EXTERIOR DE BRAZO LARGOS, LLEGANDO POR ENCIMA DE LA MUÑECA, IDEALMENTE LA LONGITUD DEBE ALCANZAR LA MITAD DEL ANTEBRAZO (POR EJEMPLO, UNA LONGITUD TOTAL MÍNIMA DE 280 MM. TALLAS, S, M, L). REUTILIZABLE. | H71: Und | I71: Und | J71: Si | K71: Atención emergencia COVID-19 | L71: FERRESOL SAS | M71: AECovid19-69 | N71: 2000 | O71: COP | P71: 2 | Q71: 8000 | R71: =Q71-SUMIFS(ResumenCotizacion!L:L,ResumenCotizacion!S:S,Catalogo!L71,ResumenCotizacion!C:C,Catalogo!D71) -> 8000 | S71: 0.19 | T71: =+VLOOKUP(D71,[1]CONSOLIDADO!$C$2:$F$93,4,0) -> 9000
A72: PA-70HB INTERNATIONAL CORP SOCIEDAD POR ACCIONES SIMPLIFICADA SAS | D72: PA-70 | E72: PA-70 - LAVAMANOS PORTÁTIL AUTÓNOMO CON DISPENSADORES INCLUIDOS - UNIDAD | F72: ELEMENTOS DE ASEO | G72: Lavamanos portátil de uso autónomo, tanques de agua limpia y residual 30 lt c/u, todo el lavamanos debe ser elaborado en acero inoxidable (Material de fácil lavado y desinfección, resistente a la abrasión y corrosión). Lavamanos con salpicadero incluido y pedal para dispensar el agua. Nota no requiere conexión al sistema de aguas. El lavamanos debe incluir: 1. DISPENSADOR TOALLA DE MANOS EN ROLLO PRECORTADO ASÍ: - Elaborado en plástico ABS - Para toallas de papel en rollo de 100 a 250 metros - Para halar con la mano. - Con cerradura y llave - Debe estár adherido al lavamanos 2. DISPENSADOR PARA JABÓN LÍQUIDO DE MANOS ASÍ: - Con pedal para suministro de jabón, que no implique tocar el dispensador - Uso habilitado para cualquier jabón líquido - Debe estár adherido al lavamanos | H72: Und | I72: Und | J72: Si | K72: Atención emergencia COVID-19 | L72: HB INTERNATIONAL CORP SOCIEDAD POR ACCIONES SIMPLIFICADA SAS | M72: AECovid19-50 | N72: 1149000 | O72: COP | P72: 1 | Q72: 1300 | R72: =Q72-SUMIFS(ResumenCotizacion!L:L,ResumenCotizacion!S:S,Catalogo!L72,ResumenCotizacion!C:C,Catalogo!D72) -> 1300 | S72: 0.19 | T72: =+VLOOKUP(D72,[1]CONSOLIDADO!$C$2:$F$93,4,0) -> 2764995.219
A73: PA-14Ofibest S.A.S | D73: PA-14 | E73: PA-14 - DETERGENTE DESINFECTANTE DESODORANTE FRASCO PARA LA LIMPIEZA Y LA DESINFECCIÓN DE TODA SUPERFICIE LAVABLE - FRASCO X 1LT CON DOSIFICADOR INTEGRADO | F73: ELEMENTOS DE ASEO | G73: FABRICADO A BASE DE AMONIO CUATERNARIO DE ÚLTIMA GENERACIÓN, MÁS ALCOHOL, BACTERICIDA, FUNGICIDA Y VIRUSIDA MAS PERFUME, ACCIÓN EN 15 MINUTOS, NO REQUIERE ENJUAGUE. SU DISEÑO ÚNICO Y NOVEDOSO HA SIDO CIENTÍFICAMENTE DESARROLLADO PARA LA LIMPIEZA Y LA DESINFECCIÓN DE SUPERFICIES (PISOS, PAREDES Y TECHOS). | H73: Und | I73: Und | J73: Si | K73: Atención emergencia COVID-19 | L73: Ofibest S.A.S | M73: AECovid19-44 | N73: 4700 | O73: COP | P73: 1 | Q73: 20000 | R73: =Q73-SUMIFS(ResumenCotizacion!L:L,ResumenCotizacion!S:S,Catalogo!L73,ResumenCotizacion!C:C,Catalogo!D73) -> 20000 | S73: 0 | T73: =+VLOOKUP(D73,[1]CONSOLIDADO!$C$2:$F$93,4,0) -> 16125
A74: PA-30Ofibest S.A.S | D74: PA-30 | E74: PA-30 - JABÓN DISPENSADOR PARA MANOS 2 - LÍQUIDO, EN RECIPIENTE PLÁSTICO CON CAPACIDAD MÍNIMA DE 3.785 CC | F74: ELEMENTOS DE ASEO | G74: - CON AGENTE LIMPIADOR EN UNA CONCENTRACIÓN MÍNIMA DEL 6%. - CON AGENTE ANTIBACTERIAL EN UNA CONCENTRACIÓN MÍNIMA DEL 0,2% - CON AGENTE HUMECTANTE EN UNA CONCENTRACIÓN MÍNIMA DEL 3% - PH ENTRE 5,5 A 7 - DISPONIBLE EN MÍNIMO (2) DOS FRAGANCIAS | H74: Und | I74: Und | J74: Si | K74: Atención emergencia COVID-19 | L74: Ofibest S.A.S | M74: AECovid19-44 | N74: 7800 | O74: COP | P74: 1 | Q74: 10000 | R74: =Q74-SUMIFS(ResumenCotizacion!L:L,ResumenCotizacion!S:S,Catalogo!L74,ResumenCotizacion!C:C,Catalogo!D74) -> 10000 | S74: 0 | T74: =+VLOOKUP(D74,[1]CONSOLIDADO!$C$2:$F$93,4,0) -> 39288.75
A75: PA-4G&G LOGISTIC GROUP SAS | D75: PA-4 | E75: PA-4 - ALCOHOL ISOPROPILICO 70% EN GEL PARA ANTISEPSIA DE MANOS - FC X1LT | F75: ELEMENTOS DE ASEO | G75: ALCOHOL ISOPROPILICO EN GEL PARA ANTISEPSIA DE MANOS, 70ML+2G/100ML | H75: Und | I75: Und | J75: Si | K75: Atención emergencia COVID-19 | L75: G&G LOGISTIC GROUP SAS | M75: AECovid19-76 | N75: 18000 | O75: COP | P75: 1 | Q75: 4000 | R75: =Q75-SUMIFS(ResumenCotizacion!L:L,ResumenCotizacion!S:S,Catalogo!L75,ResumenCotizacion!C:C,Catalogo!D75) -> 4000 | S75: 0 | T75: =+VLOOKUP(D75,[1]CONSOLIDADO!$C$2:$F$93,4,0) -> 23444.5125
A76: PA-17M.A.S EMPRESARIAL SM S.A.S | D76: PA-17 | E76: PA-17 - GEL ANTIBACTERIAL - GALON | F76: ELEMENTOS DE ASEO | G76: ANTISÉPTICO GEL PARA MANOS QUE NO REQUIERE ENJUAGUE FORMULADO A BASE DE ALCOHOL ETÍLICO DE 60-80% W/W; ADICIONADO CON HUMECTANTES Y EMOLIENTES HIPO ALERGÉNICO. GEL ANTIBACTERIAL O ALCOHOL EN GEL PRESENTA LA MANERA MÁS PRÁCTICA DE MANTENER UNA HIGIENE A CUALQUIER HORA DEL DÍA Y EN CUALQUIER LUGAR. PRODUCTO ESPECIALMENTE FORMULADO PARA SATISFACER LAS NUEVAS NECESIDADES DE LIMPIEZA DE MANOS CON EL OBJETO ÚNICO DE CUIDAR LA SALUD. DEBE CONTAR CON REGISTRO INVIMA, PRESENTACIÓN GALÓN ASPECTO:GEL INCOLORO, TRANSPARENTE CONTENIDO ALCOHOL: AL 60-80% W/W, AGUA, HUMECTANTES Y EMOLIENTES, AROMATIZANTES Y ACEITES ESENCIALES. PH: 6.5 – 7.5 | H76: Und | I76: Und | J76: Si | K76: Atención emergencia COVID-19 | L76: M.A.S EMPRESARIAL SM S.A.S | M76: AECovid19-39 | N76: 14200 | O76: COP | P76: 1 | Q76: 90 | R76: =Q76-SUMIFS(ResumenCotizacion!L:L,ResumenCotizacion!S:S,Catalogo!L76,ResumenCotizacion!C:C,Catalogo!D76) -> 90 | S76: 0 | T76: =+VLOOKUP(D76,[1]CONSOLIDADO!$C$2:$F$93,4,0) -> 71250
A77: PA-1GOOD PARTNERS GLOBAL S.A.S | D77: PA-1 | E77: PA-1 - ALCOHOL - FRASCO | F77: ELEMENTOS DE ASEO | G77: ANTISEPTICO DE USO EXTERNO AL 70%, FRASCO PLASTICO, BOTELLA X 750 CC | H77: Und | I77: Und | J77: Si | K77: Atención emergencia COVID-19 | L77: GOOD PARTNERS GLOBAL S.A.S | M77: AECovid19-60 | N77: 4490 | O77: COP | P77: 1 | Q77: 20000 | R77: =Q77-SUMIFS(ResumenCotizacion!L:L,ResumenCotizacion!S:S,Catalogo!L77,ResumenCotizacion!C:C,Catalogo!D77) -> 20000 | S77: 0 | T77: =+VLOOKUP(D77,[1]CONSOLIDADO!$C$2:$F$93,4,0) -> 11598.2175
A78: PA-2GOOD PARTNERS GLOBAL S.A.S | D78: PA-2 | E78: PA-2 - ALCOHOL GALÓN X 3.750 ML - GALON | F78: ELEMENTOS DE ASEO | G78: ALCOHOL GALÓN X 3.750 ML CON INGREDIENTE ACTIVO ALCOHOL ETILICO IMPOTABILIZADO 96% | H78: Und | I78: Und | J78: Si | K78: Atención emergencia COVID-19 | L78: GOOD PARTNERS GLOBAL S.A.S | M78: AECovid19-60 | N78: 13590 | O78: COP | P78: 1 | Q78: 8000 | R78: =Q78-SUMIFS(ResumenCotizacion!L:L,ResumenCotizacion!S:S,Catalogo!L78,ResumenCotizacion!C:C,Catalogo!D78) -> 8000 | S78: 0 | T78: =+VLOOKUP(D78,[1]CONSOLIDADO!$C$2:$F$93,4,0) -> 52400.25
A79: PA-17GOOD PARTNERS GLOBAL S.A.S | D79: PA-17 | E79: PA-17 - GEL ANTIBACTERIAL - GALON | F79: ELEMENTOS DE ASEO | G79: ANTISÉPTICO GEL PARA MANOS QUE NO REQUIERE ENJUAGUE FORMULADO A BASE DE ALCOHOL ETÍLICO DE 60-80% W/W; ADICIONADO CON HUMECTANTES Y EMOLIENTES HIPO ALERGÉNICO. GEL ANTIBACTERIAL O ALCOHOL EN GEL PRESENTA LA MANERA MÁS PRÁCTICA DE MANTENER UNA HIGIENE A CUALQUIER HORA DEL DÍA Y EN CUALQUIER LUGAR. PRODUCTO ESPECIALMENTE FORMULADO PARA SATISFACER LAS NUEVAS NECESIDADES DE LIMPIEZA DE MANOS CON EL OBJETO ÚNICO DE CUIDAR LA SALUD. DEBE CONTAR CON REGISTRO INVIMA, PRESENTACIÓN GALÓN ASPECTO:GEL INCOLORO, TRANSPARENTE CONTENIDO ALCOHOL: AL 60-80% W/W, AGUA, HUMECTANTES Y EMOLIENTES, AROMATIZANTES Y ACEITES ESENCIALES. PH: 6.5 – 7.5 | H79: Und | I79: Und | J79: Si | K79: Atención emergencia COVID-19 | L79: GOOD PARTNERS GLOBAL S.A.S | M79: AECovid19-60 | N79: 18450 | O79: COP | P79: 1 | Q79: 10000 | R79: =Q79-SUMIFS(ResumenCotizacion!L:L,ResumenCotizacion!S:S,Catalogo!L79,ResumenCotizacion!C:C,Catalogo!D79) -> 10000 | S79: 0 | T79: =+VLOOKUP(D79,[1]CONSOLIDADO!$C$2:$F$93,4,0) -> 71250
A80: PA-2GLOBAL ONLINE TRADING SAS | D80: PA-2 | E80: PA-2 - ALCOHOL GALÓN X 3.750 ML - GALON | F80: ELEMENTOS DE ASEO | G80: ALCOHOL GALÓN X 3.750 ML CON INGREDIENTE ACTIVO ALCOHOL ETILICO IMPOTABILIZADO 96% | H80: Und | I80: Und | J80: Si | K80: Atención emergencia COVID-19 | L80: GLOBAL ONLINE TRADING SAS | M80: AECovid19-81 | N80: 45000 | O80: COP | P80: 1 | Q80: 5000 | R80: =Q80-SUMIFS(ResumenCotizacion!L:L,ResumenCotizacion!S:S,Catalogo!L80,ResumenCotizacion!C:C,Catalogo!D80) -> 5000 | S80: 0 | T80: =+VLOOKUP(D80,[1]CONSOLIDADO!$C$2:$F$93,4,0) -> 52400.25
A81: PA-17GLOBAL ONLINE TRADING SAS | D81: PA-17 | E81: PA-17 - GEL ANTIBACTERIAL - GALON | F81: ELEMENTOS DE ASEO | G81: ANTISÉPTICO GEL PARA MANOS QUE NO REQUIERE ENJUAGUE FORMULADO A BASE DE ALCOHOL ETÍLICO DE 60-80% W/W; ADICIONADO CON HUMECTANTES Y EMOLIENTES HIPO ALERGÉNICO. GEL ANTIBACTERIAL O ALCOHOL EN GEL PRESENTA LA MANERA MÁS PRÁCTICA DE MANTENER UNA HIGIENE A CUALQUIER HORA DEL DÍA Y EN CUALQUIER LUGAR. PRODUCTO ESPECIALMENTE FORMULADO PARA SATISFACER LAS NUEVAS NECESIDADES DE LIMPIEZA DE MANOS CON EL OBJETO ÚNICO DE CUIDAR LA SALUD. DEBE CONTAR CON REGISTRO INVIMA, PRESENTACIÓN GALÓN ASPECTO:GEL INCOLORO, TRANSPARENTE CONTENIDO ALCOHOL: AL 60-80% W/W, AGUA, HUMECTANTES Y EMOLIENTES, AROMATIZANTES Y ACEITES ESENCIALES. PH: 6.5 – 7.5 | H81: Und | I81: Und | J81: Si | K81: Atención emergencia COVID-19 | L81: GLOBAL ONLINE TRADING SAS | M81: AECovid19-81 | N81: 60000 | O81: COP | P81: 1 | Q81: 5000 | R81: =Q81-SUMIFS(ResumenCotizacion!L:L,ResumenCotizacion!S:S,Catalogo!L81,ResumenCotizacion!C:C,Catalogo!D81) -> 5000 | S81: 0 | T81: =+VLOOKUP(D81,[1]CONSOLIDADO!$C$2:$F$93,4,0) -> 71250
A82: PA-1PMI PROYECTOS MONTAJES E INGENIERIA | D82: PA-1 | E82: PA-1 - ALCOHOL - FRASCO | F82: ELEMENTOS DE ASEO | G82: ANTISEPTICO DE USO EXTERNO AL 70%, FRASCO PLASTICO, BOTELLA X 750 CC | H82: Und | I82: Und | J82: Si | K82: Atención emergencia COVID-19 | L82: PMI PROYECTOS MONTAJES E INGENIERIA | M82: AECovid19-2 | N82: 7410 | O82: COP | P82: 1 | Q82: 100000 | R82: =Q82-SUMIFS(ResumenCotizacion!L:L,ResumenCotizacion!S:S,Catalogo!L82,ResumenCotizacion!C:C,Catalogo!D82) -> 100000 | S82: 0 | T82: =+VLOOKUP(D82,[1]CONSOLIDADO!$C$2:$F$93,4,0) -> 11598.2175
A83: PA-2PMI PROYECTOS MONTAJES E INGENIERIA | D83: PA-2 | E83: PA-2 - ALCOHOL GALÓN X 3.750 ML - GALON | F83: ELEMENTOS DE ASEO | G83: ALCOHOL GALÓN X 3.750 ML CON INGREDIENTE ACTIVO ALCOHOL ETILICO IMPOTABILIZADO 96% | H83: Und | I83: Und | J83: Si | K83: Atención emergencia COVID-19 | L83: PMI PROYECTOS MONTAJES E INGENIERIA | M83: AECovid19-2 | N83: 33800 | O83: COP | P83: 1 | Q83: 100000 | R83: =Q83-SUMIFS(ResumenCotizacion!L:L,ResumenCotizacion!S:S,Catalogo!L83,ResumenCotizacion!C:C,Catalogo!D83) -> 100000 | S83: 0 | T83: =+VLOOKUP(D83,[1]CONSOLIDADO!$C$2:$F$93,4,0) -> 52400.25
A84: PA-3PMI PROYECTOS MONTAJES E INGENIERIA | D84: PA-3 | E84: PA-3 - ALCOHOL ISOPROPILICO 70% EN GEL PARA ANTISEPSIA DE MANOS - FC X 500ML | F84: ELEMENTOS DE ASEO | G84: ALCOHOL ISOPROPILICO EN GEL PARA ANTISEPSIA DE MANOS, 70ML+2G/100ML | H84: Und | I84: Und | J84: Si | K84: Atención emergencia COVID-19 | L84: PMI PROYECTOS MONTAJES E INGENIERIA | M84: AECovid19-2 | N84: 5400 | O84: COP | P84: 1 | Q84: 100000 | R84: =Q84-SUMIFS(ResumenCotizacion!L:L,ResumenCotizacion!S:S,Catalogo!L84,ResumenCotizacion!C:C,Catalogo!D84) -> 100000 | S84: 0 | T84: =+VLOOKUP(D84,[1]CONSOLIDADO!$C$2:$F$93,4,0) -> 13500
A85: PA-4PMI PROYECTOS MONTAJES E INGENIERIA | D85: PA-4 | E85: PA-4 - ALCOHOL ISOPROPILICO 70% EN GEL PARA ANTISEPSIA DE MANOS - FC X1LT | F85: ELEMENTOS DE ASEO | G85: ALCOHOL ISOPROPILICO EN GEL PARA ANTISEPSIA DE MANOS, 70ML+2G/100ML | H85: Und | I85: Und | J85: Si | K85: Atención emergencia COVID-19 | L85: PMI PROYECTOS MONTAJES E INGENIERIA | M85: AECovid19-2 | N85: 8700 | O85: COP | P85: 1 | Q85: 100000 | R85: =Q85-SUMIFS(ResumenCotizacion!L:L,ResumenCotizacion!S:S,Catalogo!L85,ResumenCotizacion!C:C,Catalogo!D85) -> 100000 | S85: 0 | T85: =+VLOOKUP(D85,[1]CONSOLIDADO!$C$2:$F$93,4,0) -> 23444.5125
A86: PA-5PMI PROYECTOS MONTAJES E INGENIERIA | D86: PA-5 | E86: PA-5 - ALCOHOL ISOPROPILICO 70% EN GEL PARA ANTISEPSIA DE MANOS - GALON | F86: ELEMENTOS DE ASEO | G86: ALCOHOL ISOPROPILICO EN GEL PARA ANTISEPSIA DE MANOS, 70ML+2G/100ML | H86: Und | I86: Und | J86: Si | K86: Atención emergencia COVID-19 | L86: PMI PROYECTOS MONTAJES E INGENIERIA | M86: AECovid19-2 | N86: 28900 | O86: COP | P86: 1 | Q86: 100000 | R86: =Q86-SUMIFS(ResumenCotizacion!L:L,ResumenCotizacion!S:S,Catalogo!L86,ResumenCotizacion!C:C,Catalogo!D86) -> 100000 | S86: 0 | T86: =+VLOOKUP(D86,[1]CONSOLIDADO!$C$2:$F$93,4,0) -> 63450
A87: PA-6PMI PROYECTOS MONTAJES E INGENIERIA | D87: PA-6 | E87: PA-6 - ALGODÓN PURIFICADO - BOLSA DE 100 G | F87: ELEMENTOS DE ASEO | G87: POLIETILENO ZIG-ZAG | H87: Und | I87: Und | J87: Si | K87: Atención emergencia COVID-19 | L87: PMI PROYECTOS MONTAJES E INGENIERIA | M87: AECovid19-2 | N87: 4338 | O87: COP | P87: 1 | Q87: 100000 | R87: =Q87-SUMIFS(ResumenCotizacion!L:L,ResumenCotizacion!S:S,Catalogo!L87,ResumenCotizacion!C:C,Catalogo!D87) -> 100000 | S87: 0 | T87: =+VLOOKUP(D87,[1]CONSOLIDADO!$C$2:$F$93,4,0) -> 10202
A88: PA-14PMI PROYECTOS MONTAJES E INGENIERIA | D88: PA-14 | E88: PA-14 - DETERGENTE DESINFECTANTE DESODORANTE FRASCO PARA LA LIMPIEZA Y LA DESINFECCIÓN DE TODA SUPERFICIE LAVABLE - FRASCO X 1LT CON DOSIFICADOR INTEGRADO | F88: ELEMENTOS DE ASEO | G88: FABRICADO A BASE DE AMONIO CUATERNARIO DE ÚLTIMA GENERACIÓN, MÁS ALCOHOL, BACTERICIDA, FUNGICIDA Y VIRUSIDA MAS PERFUME, ACCIÓN EN 15 MINUTOS, NO REQUIERE ENJUAGUE. SU DISEÑO ÚNICO Y NOVEDOSO HA SIDO CIENTÍFICAMENTE DESARROLLADO PARA LA LIMPIEZA Y LA DESINFECCIÓN DE SUPERFICIES (PISOS, PAREDES Y TECHOS). | H88: Und | I88: Und | J88: Si | K88: Atención emergencia COVID-19 | L88: PMI PROYECTOS MONTAJES E INGENIERIA | M88: AECovid19-2 | N88: 5750 | O88: COP | P88: 1 | Q88: 100000 | R88: =Q88-SUMIFS(ResumenCotizacion!L:L,ResumenCotizacion!S:S,Catalogo!L88,ResumenCotizacion!C:C,Catalogo!D88) -> 100000 | S88: 0 | T88: =+VLOOKUP(D88,[1]CONSOLIDADO!$C$2:$F$93,4,0) -> 16125
A89: PA-16PMI PROYECTOS MONTAJES E INGENIERIA | D89: PA-16 | E89: PA-16 - DETERGENTE DESINFECTANTE LIQUIDO A BASE DE AMONIOS CUATERNARIOS DE V GENERACIÓN - FRASCO X 750ML | F89: ELEMENTOS DE ASEO | G89: DETERGENTE DESINFECTANTE DE DISPOSITIVOS MÉDICOS QUE COMBINA LIMPIEZA Y DESINFECCIÓN DE DISPOSITIVOS MÉDICOS, SUPERFICIES DE ÁREAS DE ALTO RIESGO, FORMULA SIN ALDEHIDO NI CLORURO AMPLIO, AMPLIO ESPECTRO ANTIMICROBIANO EN 5 MINUTOS DE CONTACTO FRASCO DE 750 ML CON CARÁCTER ANTICORROSIVO RESPECTO DEL ACERO INOXIDABLE, PULVERIZADOR ESPUMOSO COMPUESTO DE PROPIONATO DE AMONIO CUATERNARIO, ACETATO DE DUARDINIO, NPROPANOL, TENSIOACTIVO NO IÓNICO, PERFUME Y EXCIPIENTES EN 5 MINUTOS DE CONTACTO | H89: Und | I89: Und | J89: Si | K89: Atención emergencia COVID-19 | L89: PMI PROYECTOS MONTAJES E INGENIERIA | M89: AECovid19-2 | N89: 5750 | O89: COP | P89: 1 | Q89: 100000 | R89: =Q89-SUMIFS(ResumenCotizacion!L:L,ResumenCotizacion!S:S,Catalogo!L89,ResumenCotizacion!C:C,Catalogo!D89) -> 100000 | S89: 0 | T89: =+VLOOKUP(D89,[1]CONSOLIDADO!$C$2:$F$93,4,0) -> 13500
A90: PA-17PMI PROYECTOS MONTAJES E INGENIERIA | D90: PA-17 | E90: PA-17 - GEL ANTIBACTERIAL - GALON | F90: ELEMENTOS DE ASEO | G90: ANTISÉPTICO GEL PARA MANOS QUE NO REQUIERE ENJUAGUE FORMULADO A BASE DE ALCOHOL ETÍLICO DE 60-80% W/W; ADICIONADO CON HUMECTANTES Y EMOLIENTES HIPO ALERGÉNICO. GEL ANTIBACTERIAL O ALCOHOL EN GEL PRESENTA LA MANERA MÁS PRÁCTICA DE MANTENER UNA HIGIENE A CUALQUIER HORA DEL DÍA Y EN CUALQUIER LUGAR. PRODUCTO ESPECIALMENTE FORMULADO PARA SATISFACER LAS NUEVAS NECESIDADES DE LIMPIEZA DE MANOS CON EL OBJETO ÚNICO DE CUIDAR LA SALUD. DEBE CONTAR CON REGISTRO INVIMA, PRESENTACIÓN GALÓN ASPECTO:GEL INCOLORO, TRANSPARENTE CONTENIDO ALCOHOL: AL 60-80% W/W, AGUA, HUMECTANTES Y EMOLIENTES, AROMATIZANTES Y ACEITES ESENCIALES. PH: 6.5 – 7.5 | H90: Und | I90: Und | J90: Si | K90: Atención emergencia COVID-19 | L90: PMI PROYECTOS MONTAJES E INGENIERIA | M90: AECovid19-2 | N90: 28900 | O90: COP | P90: 1 | Q90: 100000 | R90: =Q90-SUMIFS(ResumenCotizacion!L:L,ResumenCotizacion!S:S,Catalogo!L90,ResumenCotizacion!C:C,Catalogo!D90) -> 100000 | S90: 0 | T90: =+VLOOKUP(D90,[1]CONSOLIDADO!$C$2:$F$93,4,0) -> 71250
A91: PA-18PMI PROYECTOS MONTAJES E INGENIERIA | D91: PA-18 | E91: PA-18 - GEL ANTIBACTERIAL - FC X1LT | F91: ELEMENTOS DE ASEO | G91: ALCOHOL ISOPROPILICO 70% EN GEL PARA ANTISEPSIA DE MANOS ALCOHOL ISOPROPILICO EN GEL PARA ANTISEPSIA DE MANOS, 70ML+2G/100ML | H91: Und | I91: Und | J91: Si | K91: Atención emergencia COVID-19 | L91: PMI PROYECTOS MONTAJES E INGENIERIA | M91: AECovid19-2 | N91: 8700 | O91: COP | P91: 1 | Q91: 100000 | R91: =Q91-SUMIFS(ResumenCotizacion!L:L,ResumenCotizacion!S:S,Catalogo!L91,ResumenCotizacion!C:C,Catalogo!D91) -> 100000 | S91: 0 | T91: =+VLOOKUP(D91,[1]CONSOLIDADO!$C$2:$F$93,4,0) -> 27000
A92: PA-21PMI PROYECTOS MONTAJES E INGENIERIA | D92: PA-21 | E92: PA-21 - GUANTES 3 - PAR | F92: ELEMENTOS DE ASEO | G92: - TIPO DOMÉSTICO - ELABORADOS EN LÁTEX - CALIBRE MÍNIMO DE 25 - TALLAS 7 A 9 - COLOR NEGRO | H92: Und | I92: Und | J92: Si | K92: Atención emergencia COVID-19 | L92: PMI PROYECTOS MONTAJES E INGENIERIA | M92: AECovid19-2 | N92: 4220 | O92: COP | P92: 1 | Q92: 100000 | R92: =Q92-SUMIFS(ResumenCotizacion!L:L,ResumenCotizacion!S:S,Catalogo!L92,ResumenCotizacion!C:C,Catalogo!D92) -> 100000 | S92: 0 | T92: =+VLOOKUP(D92,[1]CONSOLIDADO!$C$2:$F$93,4,0) -> 7500
A93: PA-23PMI PROYECTOS MONTAJES E INGENIERIA | D93: PA-23 | E93: PA-23 - GUANTES 5 - PAR | F93: ELEMENTOS DE ASEO | G93: - TIPO INDUSTRIAL - ELABORADOS EN LÁTEX - CALIBRE MÍNIMO DE 35 - TALLAS 7 A 9 - COLOR NEGRO | H93: Und | I93: Und | J93: Si | K93: Atención emergencia COVID-19 | L93: PMI PROYECTOS MONTAJES E INGENIERIA | M93: AECovid19-2 | N93: 5050 | O93: COP | P93: 1 | Q93: 100000 | R93: =Q93-SUMIFS(ResumenCotizacion!L:L,ResumenCotizacion!S:S,Catalogo!L93,ResumenCotizacion!C:C,Catalogo!D93) -> 100000 | S93: 0 | T93: =+VLOOKUP(D93,[1]CONSOLIDADO!$C$2:$F$93,4,0) -> 7350
A94: PA-25PMI PROYECTOS MONTAJES E INGENIERIA | D94: PA-25 | E94: PA-25 - GUANTES 7 - PAR | F94: ELEMENTOS DE ASEO | G94: - ELABORADOS EN HILAZA - TALLAS 7 A 9 | H94: Und | I94: Und | J94: Si | K94: Atención emergencia COVID-19 | L94: PMI PROYECTOS MONTAJES E INGENIERIA | M94: AECovid19-2 | N94: 7420 | O94: COP | P94: 1 | Q94: 100000 | R94: =Q94-SUMIFS(ResumenCotizacion!L:L,ResumenCotizacion!S:S,Catalogo!L94,ResumenCotizacion!C:C,Catalogo!D94) -> 100000 | S94: 0.19 | T94: =+VLOOKUP(D94,[1]CONSOLIDADO!$C$2:$F$93,4,0) -> 8150
A95: PA-28PMI PROYECTOS MONTAJES E INGENIERIA | D95: PA-28 | E95: PA-28 - JABÓN DISPENSADOR PARA MANOS 1 - LÍQUIDO, EN RECIPIENTE PLÁSTICO CON DISPENSADOR Y CAPACIDAD MÍNIMA DE 500 ML. | F95: ELEMENTOS DE ASEO | G95: - CON AGENTE LIMPIADOR EN UNA CONCENTRACIÓN MÍNIMA DEL 6% - CON AGENTE HUMECTANTE EN UNA CONCENTRACIÓN MÍNIMA DEL 3% - PH ENTRE 5,5 A 7 - DISPONIBLE EN MÍNIMO (2) DOS FRAGANCIAS | H95: Und | I95: Und | J95: Si | K95: Atención emergencia COVID-19 | L95: PMI PROYECTOS MONTAJES E INGENIERIA | M95: AECovid19-2 | N95: 2590 | O95: COP | P95: 1 | Q95: 100000 | R95: =Q95-SUMIFS(ResumenCotizacion!L:L,ResumenCotizacion!S:S,Catalogo!L95,ResumenCotizacion!C:C,Catalogo!D95) -> 100000 | S95: 0 | T95: =+VLOOKUP(D95,[1]CONSOLIDADO!$C$2:$F$93,4,0) -> 10500
A96: PA-30PMI PROYECTOS MONTAJES E INGENIERIA | D96: PA-30 | E96: PA-30 - JABÓN DISPENSADOR PARA MANOS 2 - LÍQUIDO, EN RECIPIENTE PLÁSTICO CON CAPACIDAD MÍNIMA DE 3.785 CC | F96: ELEMENTOS DE ASEO | G96: - CON AGENTE LIMPIADOR EN UNA CONCENTRACIÓN MÍNIMA DEL 6%. - CON AGENTE ANTIBACTERIAL EN UNA CONCENTRACIÓN MÍNIMA DEL 0,2% - CON AGENTE HUMECTANTE EN UNA CONCENTRACIÓN MÍNIMA DEL 3% - PH ENTRE 5,5 A 7 - DISPONIBLE EN MÍNIMO (2) DOS FRAGANCIAS | H96: Und | I96: Und | J96: Si | K96: Atención emergencia COVID-19 | L96: PMI PROYECTOS MONTAJES E INGENIERIA | M96: AECovid19-2 | N96: 8400 | O96: COP | P96: 1 | Q96: 100000 | R96: =Q96-SUMIFS(ResumenCotizacion!L:L,ResumenCotizacion!S:S,Catalogo!L96,ResumenCotizacion!C:C,Catalogo!D96) -> 100000 | S96: 0 | T96: =+VLOOKUP(D96,[1]CONSOLIDADO!$C$2:$F$93,4,0) -> 39288.75
A97: PA-33PMI PROYECTOS MONTAJES E INGENIERIA | D97: PA-33 | E97: PA-33 - JABÓN LAVAVAJILLAS O LAVALOZAS 2 - LÍQUIDO, EN RECIPIENTE PLÁSTICO DE MÍNIMO 500 CC | F97: ELEMENTOS DE ASEO | G97: - CON AGENTE(S) C35TENSOACTIVO(S) PRINCIPAL(ES) CON EFECTO LIMPIADOR Y DESENGRASANTE EN UNA CONCENTRACIÓN MÍNIMA DEL 8%. - DISPONIBLE EN MÍNIMO (2) DOS FRAGANCIAS - EL ENVASE DEL PRODUCTO DEBERÁ ESTAR CORRECTAMENTE ETIQUETADO BAJO LOS PARÁMETROS ESTABLECIDOS EN EL SISTEMA GLOBALMENTE ARMONIZADO, INDICANDO: NOMBRE COMERCIAL DEL PRODUCTO, PICTOGRAMAS DE LOS COMPUESTOS PELIGROSOS E INSTRUCCIONES DE USO | H97: Und | I97: Und | J97: Si | K97: Atención emergencia COVID-19 | L97: PMI PROYECTOS MONTAJES E INGENIERIA | M97: AECovid19-2 | N97: 3500 | O97: COP | P97: 1 | Q97: 100000 | R97: =Q97-SUMIFS(ResumenCotizacion!L:L,ResumenCotizacion!S:S,Catalogo!L97,ResumenCotizacion!C:C,Catalogo!D97) -> 100000 | S97: 0 | T97: =+VLOOKUP(D97,[1]CONSOLIDADO!$C$2:$F$93,4,0) -> 9610
A98: PA-38PMI PROYECTOS MONTAJES E INGENIERIA | D98: PA-38 | E98: PA-38 - LIMPIADOR MULTIUSOS 1 - LÍQUIDO, EN RECIPIENTE PLÁSTICO CON CAPACIDAD MÍNIMA DE 3.785 CC | F98: ELEMENTOS DE ASEO | G98: - CON AGENTE(S) TENSOACTIVO(S) PRINCIPAL(ES) CON EFECTO LIMPIADOR EN UNA CONCENTRACIÓN MÍNIMA DEL 8% - DISPONIBLE EN MÍNIMO (2) DOS FRAGANCIAS - EL ENVASE DEBE ESTAR CORRECTAMENTE ETIQUETADOS BAJO LOS PARÁMETROS ESTABLECIDOS EN EL SISTEMA GLOBALMENTE ARMONIZADO INDICANDO: NOMBRE COMERCIAL DEL PRODUCTO, PICTOGRAMAS DE LOS COMPUESTOS PELIGROSOS E INSTRUCCIONES DE USO | H98: Und | I98: Und | J98: Si | K98: Atención emergencia COVID-19 | L98: PMI PROYECTOS MONTAJES E INGENIERIA | M98: AECovid19-2 | N98: 7200 | O98: COP | P98: 1 | Q98: 100000 | R98: =Q98-SUMIFS(ResumenCotizacion!L:L,ResumenCotizacion!S:S,Catalogo!L98,ResumenCotizacion!C:C,Catalogo!D98) -> 100000 | S98: 0 | T98: =+VLOOKUP(D98,[1]CONSOLIDADO!$C$2:$F$93,4,0) -> 10000
A99: PA-45PMI PROYECTOS MONTAJES E INGENIERIA | D99: PA-45 | E99: PA-45 - PAPEL HIGIÉNICO 1 - ROLLO | F99: ELEMENTOS DE ASEO | G99: - ROLLO CON LONGITUD MÍNIMA DE 30 METROS - DOBLE HOJA BLANCA - SIN FRAGANCIA | H99: Und | I99: Und | J99: Si | K99: Atención emergencia COVID-19 | L99: PMI PROYECTOS MONTAJES E INGENIERIA | M99: AECovid19-2 | N99: 925 | O99: COP | P99: 1 | Q99: 100000 | R99: =Q99-SUMIFS(ResumenCotizacion!L:L,ResumenCotizacion!S:S,Catalogo!L99,ResumenCotizacion!C:C,Catalogo!D99) -> 100000 | S99: 0.19 | T99: =+VLOOKUP(D99,[1]CONSOLIDADO!$C$2:$F$93,4,0) -> 1804.637395
A100: PA-52PMI PROYECTOS MONTAJES E INGENIERIA | D100: PA-52 | E100: PA-52 - PRODUCTOS DE HIGIENE DOMÉSTICA CON PROPIEDAD DESINFECTANTE DE SUPERFICIE A BASE DE CLORO (EN ESPECIAL, FORMULADOS CON HIPOCLORITO DE SODIO). - GALON | F100: ELEMENTOS DE ASEO | G100: HIPOCLORITO DE SODIO AL 5% (NAOCL), SOLUCIÓN ACUOSA LIGERAMENTE AMARILLA, LIBRE DE PARTÍCULAS, DE OLOR CARACTERÍSTICO PENETRANTE E IRRITANTE, FUERTEMENTE OXIDANTE, DE CONTROL BACTERIOLÓGICO Y MICROBIOLÓGICO. PRESENTACIÓN GALÓN | H100: Und | I100: Und | J100: Si | K100: Atención emergencia COVID-19 | L100: PMI PROYECTOS MONTAJES E INGENIERIA | M100: AECovid19-2 | N100: 4900 | O100: COP | P100: 1 | Q100: 100000 | R100: =Q100-SUMIFS(ResumenCotizacion!L:L,ResumenCotizacion!S:S,Catalogo!L100,ResumenCotizacion!C:C,Catalogo!D100) -> 100000 | S100: 0 | T100: =+VLOOKUP(D100,[1]CONSOLIDADO!$C$2:$F$93,4,0) -> 18891
A101: PA-55PMI PROYECTOS MONTAJES E INGENIERIA | D101: PA-55 | E101: PA-55 - SERVILLETA PARA SECAR LAS MANOS - PAQUETE DE MÍNIMO 100 UNIDADES | F101: ELEMENTOS DE ASEO | G101: - TIPO CAFETERÍA - DOBE HOJA - COLOR BLANCO - DIMENSIONES MÍNIMAS DE 25 CM DE LARGO Y 15 CM DE ANCHO | H101: Und | I101: Und | J101: Si | K101: Atención emergencia COVID-19 | L101: PMI PROYECTOS MONTAJES E INGENIERIA | M101: AECovid19-2 | N101: 7100 | O101: COP | P101: 1 | Q101: 100000 | R101: =Q101-SUMIFS(ResumenCotizacion!L:L,ResumenCotizacion!S:S,Catalogo!L101,ResumenCotizacion!C:C,Catalogo!D101) -> 100000 | S101: 0.19 | T101: =+VLOOKUP(D101,[1]CONSOLIDADO!$C$2:$F$93,4,0) -> 7565
A102: PA-57PMI PROYECTOS MONTAJES E INGENIERIA | D102: PA-57 | E102: PA-57 - TOALLAS PARA MANOS 1 - ROLLO | F102: ELEMENTOS DE ASEO | G102: - ROLLO CON LONGITUD MÍNIMA DE 100 METROS - DOBLE HOJA CON UN TAMAÑO MÍNIMO 15 CM DE ANCHO - DISPONIBLES EN COLOR BLANCO | H102: Und | I102: Und | J102: Si | K102: Atención emergencia COVID-19 | L102: PMI PROYECTOS MONTAJES E INGENIERIA | M102: AECovid19-2 | N102: 15883 | O102: COP | P102: 1 | Q102: 100000 | R102: =Q102-SUMIFS(ResumenCotizacion!L:L,ResumenCotizacion!S:S,Catalogo!L102,ResumenCotizacion!C:C,Catalogo!D102) -> 100000 | S102: 0.19 | T102: =+VLOOKUP(D102,[1]CONSOLIDADO!$C$2:$F$93,4,0) -> 23800.3125
A103: PA-58PMI PROYECTOS MONTAJES E INGENIERIA | D103: PA-58 | E103: PA-58 - TOALLAS PARA MANOS 2 - ROLLO | F103: ELEMENTOS DE ASEO | G103: - ROLLO CON LONGITUD MÍNIMA DE 100 METROS - DOBLE HOJA CON UN TAMAÑO MÍNIMO 15 CM DE ANCHO - DISPONIBLES EN COLOR NATURAL | H103: Und | I103: Und | J103: Si | K103: Atención emergencia COVID-19 | L103: PMI PROYECTOS MONTAJES E INGENIERIA | M103: AECovid19-2 | N103: 13326 | O103: COP | P103: 1 | Q103: 100000 | R103: =Q103-SUMIFS(ResumenCotizacion!L:L,ResumenCotizacion!S:S,Catalogo!L103,ResumenCotizacion!C:C,Catalogo!D103) -> 100000 | S103: 0.19 | T103: =+VLOOKUP(D103,[1]CONSOLIDADO!$C$2:$F$93,4,0) -> 22000.5
A104: PA-59PMI PROYECTOS MONTAJES E INGENIERIA | D104: PA-59 | E104: PA-59 - TOALLAS PARA MANOS 3 - UNIDAD | F104: ELEMENTOS DE ASEO | G104: - TOALLAS INTERDOBLADAS, PAQUETE CON MÍNIMO 150 UNIDADES - DOBLE HOJA CON UN TAMAÑO MÍNIMO DE 20 CM DE LARGO POR 15 CM DE ANCHO - HOJA COLOR NATURAL | H104: Und | I104: Und | J104: Si | K104: Atención emergencia COVID-19 | L104: PMI PROYECTOS MONTAJES E INGENIERIA | M104: AECovid19-2 | N104: 5200 | O104: COP | P104: 1 | Q104: 100000 | R104: =Q104-SUMIFS(ResumenCotizacion!L:L,ResumenCotizacion!S:S,Catalogo!L104,ResumenCotizacion!C:C,Catalogo!D104) -> 100000 | S104: 0.19 | T104: =+VLOOKUP(D104,[1]CONSOLIDADO!$C$2:$F$93,4,0) -> 10500
A105: PA-60PMI PROYECTOS MONTAJES E INGENIERIA | D105: PA-60 | E105: PA-60 - TOALLAS PARA MANOS 4 - UNIDAD | F105: ELEMENTOS DE ASEO | G105: - TOALLAS INTERDOBLADAS, PAQUETE CON MÍNIMO 150 UNIDADES - DOBLE HOJA CON UN TAMAÑO MÍNIMO DE 20 CM DE LARGO POR 15 CM DE ANCHO - HOJA COLOR BLANCO | H105: Und | I105: Und | J105: Si | K105: Atención emergencia COVID-19 | L105: PMI PROYECTOS MONTAJES E INGENIERIA | M105: AECovid19-2 | N105: 4924 | O105: COP | P105: 1 | Q105: 100000 | R105: =Q105-SUMIFS(ResumenCotizacion!L:L,ResumenCotizacion!S:S,Catalogo!L105,ResumenCotizacion!C:C,Catalogo!D105) -> 100000 | S105: 0.19 | T105: =+VLOOKUP(D105,[1]CONSOLIDADO!$C$2:$F$93,4,0) -> 13650
A106: PA-1EMPRESA DE LICORES DE CUNDINMARCA | D106: PA-1 | E106: PA-1 - ALCOHOL - FRASCO | F106: ELEMENTOS DE ASEO | G106: ANTISEPTICO DE USO EXTERNO AL 70%, FRASCO PLASTICO, BOTELLA X 750 CC | H106: Und | I106: Und | J106: Si | K106: Atención emergencia COVID-19 | L106: EMPRESA DE LICORES DE CUNDINMARCA | M106: AECovid19-83 | N106: 7000 | O106: COP | P106: 1 | Q106: 40000 | R106: =Q106-SUMIFS(ResumenCotizacion!L:L,ResumenCotizacion!S:S,Catalogo!L106,ResumenCotizacion!C:C,Catalogo!D106) -> 40000 | S106: 0 | T106: =+VLOOKUP(D106,[1]CONSOLIDADO!$C$2:$F$93,4,0) -> 11598.2175
A107: PA-17AMBT SAS | D107: PA-17 | E107: PA-17 - GEL ANTIBACTERIAL - GALON | F107: ELEMENTOS DE ASEO | G107: ANTISÉPTICO GEL PARA MANOS QUE NO REQUIERE ENJUAGUE FORMULADO A BASE DE ALCOHOL ETÍLICO DE 60-80% W/W; ADICIONADO CON HUMECTANTES Y EMOLIENTES HIPO ALERGÉNICO. GEL ANTIBACTERIAL O ALCOHOL EN GEL PRESENTA LA MANERA MÁS PRÁCTICA DE MANTENER UNA HIGIENE A CUALQUIER HORA DEL DÍA Y EN CUALQUIER LUGAR. PRODUCTO ESPECIALMENTE FORMULADO PARA SATISFACER LAS NUEVAS NECESIDADES DE LIMPIEZA DE MANOS CON EL OBJETO ÚNICO DE CUIDAR LA SALUD. DEBE CONTAR CON REGISTRO INVIMA, PRESENTACIÓN GALÓN ASPECTO:GEL INCOLORO, TRANSPARENTE CONTENIDO ALCOHOL: AL 60-80% W/W, AGUA, HUMECTANTES Y EMOLIENTES, AROMATIZANTES Y ACEITES ESENCIALES. PH: 6.5 – 7.5 | H107: Und | I107: Und | J107: Si | K107: Atención emergencia COVID-19 | L107: AMBT SAS | M107: AECovid19-67 | N107: 48000 | O107: COP | P107: 2 | Q107: 176 | R107: =Q107-SUMIFS(ResumenCotizacion!L:L,ResumenCotizacion!S:S,Catalogo!L107,ResumenCotizacion!C:C,Catalogo!D107) -> 176 | S107: 0 | T107: =+VLOOKUP(D107,[1]CONSOLIDADO!$C$2:$F$93,4,0) -> 71250
A108: PA-18AMBT SAS | D108: PA-18 | E108: PA-18 - GEL ANTIBACTERIAL - FC X1LT | F108: ELEMENTOS DE ASEO | G108: ALCOHOL ISOPROPILICO 70% EN GEL PARA ANTISEPSIA DE MANOS ALCOHOL ISOPROPILICO EN GEL PARA ANTISEPSIA DE MANOS, 70ML+2G/100ML | H108: Und | I108: Und | J108: Si | K108: Atención emergencia COVID-19 | L108: AMBT SAS | M108: AECovid19-67 | N108: 15000 | O108: COP | P108: 1 | Q108: 1400 | R108: =Q108-SUMIFS(ResumenCotizacion!L:L,ResumenCotizacion!S:S,Catalogo!L108,ResumenCotizacion!C:C,Catalogo!D108) -> 1400 | S108: 0 | T108: =+VLOOKUP(D108,[1]CONSOLIDADO!$C$2:$F$93,4,0) -> 27000
A109: PA-59AMBT SAS | D109: PA-59 | E109: PA-59 - TOALLAS PARA MANOS 3 - UNIDAD | F109: ELEMENTOS DE ASEO | G109: - TOALLAS INTERDOBLADAS, PAQUETE CON MÍNIMO 150 UNIDADES - DOBLE HOJA CON UN TAMAÑO MÍNIMO DE 20 CM DE LARGO POR 15 CM DE ANCHO - HOJA COLOR NATURAL | H109: Und | I109: Und | J109: Si | K109: Atención emergencia COVID-19 | L109: AMBT SAS | M109: AECovid19-67 | N109: 5300 | O109: COP | P109: 1 | Q109: 600 | R109: =Q109-SUMIFS(ResumenCotizacion!L:L,ResumenCotizacion!S:S,Catalogo!L109,ResumenCotizacion!C:C,Catalogo!D109) -> 600 | S109: 0.19 | T109: =+VLOOKUP(D109,[1]CONSOLIDADO!$C$2:$F$93,4,0) -> 10500
A110: PA-60AMBT SAS | D110: PA-60 | E110: PA-60 - TOALLAS PARA MANOS 4 - UNIDAD | F110: ELEMENTOS DE ASEO | G110: - TOALLAS INTERDOBLADAS, PAQUETE CON MÍNIMO 150 UNIDADES - DOBLE HOJA CON UN TAMAÑO MÍNIMO DE 20 CM DE LARGO POR 15 CM DE ANCHO - HOJA COLOR BLANCO | H110: Und | I110: Und | J110: Si | K110: Atención emergencia COVID-19 | L110: AMBT SAS | M110: AECovid19-67 | N110: 5500 | O110: COP | P110: 1 | Q110: 600 | R110: =Q110-SUMIFS(ResumenCotizacion!L:L,ResumenCotizacion!S:S,Catalogo!L110,ResumenCotizacion!C:C,Catalogo!D110) -> 600 | S110: 0.19 | T110: =+VLOOKUP(D110,[1]CONSOLIDADO!$C$2:$F$93,4,0) -> 13650
A111: PA-1RADIOLOGICAL PROTECTION SERVICES SAS | D111: PA-1 | E111: PA-1 - ALCOHOL - FRASCO | F111: ELEMENTOS DE ASEO | G111: ANTISEPTICO DE USO EXTERNO AL 70%, FRASCO PLASTICO, BOTELLA X 750 CC | H111: Und | I111: Und | J111: Si | K111: Atención emergencia COVID-19 | L111: RADIOLOGICAL PROTECTION SERVICES SAS | M111: AECovid19-7 | N111: 5000 | O111: COP | P111: 2 | Q111: 20000 | R111: =Q111-SUMIFS(ResumenCotizacion!L:L,ResumenCotizacion!S:S,Catalogo!L111,ResumenCotizacion!C:C,Catalogo!D111) -> 20000 | S111: 0 | T111: =+VLOOKUP(D111,[1]CONSOLIDADO!$C$2:$F$93,4,0) -> 11598.2175
A112: PA-2RADIOLOGICAL PROTECTION SERVICES SAS | D112: PA-2 | E112: PA-2 - ALCOHOL GALÓN X 3.750 ML - GALON | F112: ELEMENTOS DE ASEO | G112: ALCOHOL GALÓN X 3.750 ML CON INGREDIENTE ACTIVO ALCOHOL ETILICO IMPOTABILIZADO 96% | H112: Und | I112: Und | J112: Si | K112: Atención emergencia COVID-19 | L112: RADIOLOGICAL PROTECTION SERVICES SAS | M112: AECovid19-7 | N112: 32000 | O112: COP | P112: 1 | Q112: 20000 | R112: =Q112-SUMIFS(ResumenCotizacion!L:L,ResumenCotizacion!S:S,Catalogo!L112,ResumenCotizacion!C:C,Catalogo!D112) -> 20000 | S112: 0 | T112: =+VLOOKUP(D112,[1]CONSOLIDADO!$C$2:$F$93,4,0) -> 52400.25
A113: PA-17RADIOLOGICAL PROTECTION SERVICES SAS | D113: PA-17 | E113: PA-17 - GEL ANTIBACTERIAL - GALON | F113: ELEMENTOS DE ASEO | G113: ANTISÉPTICO GEL PARA MANOS QUE NO REQUIERE ENJUAGUE FORMULADO A BASE DE ALCOHOL ETÍLICO DE 60-80% W/W; ADICIONADO CON HUMECTANTES Y EMOLIENTES HIPO ALERGÉNICO. GEL ANTIBACTERIAL O ALCOHOL EN GEL PRESENTA LA MANERA MÁS PRÁCTICA DE MANTENER UNA HIGIENE A CUALQUIER HORA DEL DÍA Y EN CUALQUIER LUGAR. PRODUCTO ESPECIALMENTE FORMULADO PARA SATISFACER LAS NUEVAS NECESIDADES DE LIMPIEZA DE MANOS CON EL OBJETO ÚNICO DE CUIDAR LA SALUD. DEBE CONTAR CON REGISTRO INVIMA, PRESENTACIÓN GALÓN ASPECTO:GEL INCOLORO, TRANSPARENTE CONTENIDO ALCOHOL: AL 60-80% W/W, AGUA, HUMECTANTES Y EMOLIENTES, AROMATIZANTES Y ACEITES ESENCIALES. PH: 6.5 – 7.5 | H113: Und | I113: Und | J113: Si | K113: Atención emergencia COVID-19 | L113: RADIOLOGICAL PROTECTION SERVICES SAS | M113: AECovid19-7 | N113: 38500 | O113: COP | P113: 1 | Q113: 5000 | R113: =Q113-SUMIFS(ResumenCotizacion!L:L,ResumenCotizacion!S:S,Catalogo!L113,ResumenCotizacion!C:C,Catalogo!D113) -> 5000 | S113: 0 | T113: =+VLOOKUP(D113,[1]CONSOLIDADO!$C$2:$F$93,4,0) -> 71250
A114: PA-18RADIOLOGICAL PROTECTION SERVICES SAS | D114: PA-18 | E114: PA-18 - GEL ANTIBACTERIAL - FC X1LT | F114: ELEMENTOS DE ASEO | G114: ALCOHOL ISOPROPILICO 70% EN GEL PARA ANTISEPSIA DE MANOS ALCOHOL ISOPROPILICO EN GEL PARA ANTISEPSIA DE MANOS, 70ML+2G/100ML | H114: Und | I114: Und | J114: Si | K114: Atención emergencia COVID-19 | L114: RADIOLOGICAL PROTECTION SERVICES SAS | M114: AECovid19-7 | N114: 19000 | O114: COP | P114: 1 | Q114: 5000 | R114: =Q114-SUMIFS(ResumenCotizacion!L:L,ResumenCotizacion!S:S,Catalogo!L114,ResumenCotizacion!C:C,Catalogo!D114) -> 5000 | S114: 0 | T114: =+VLOOKUP(D114,[1]CONSOLIDADO!$C$2:$F$93,4,0) -> 27000
A115: PA-20RADIOLOGICAL PROTECTION SERVICES SAS | D115: PA-20 | E115: PA-20 - GUANTES 2 - PAR | F115: ELEMENTOS DE ASEO | G115: - TIPO DOMÉSTICO - ELABORADOS EN LÁTEX - CALIBRE MÍNIMO DE 18 - TALLAS 7 A 9 - COLOR NEGRO | H115: Und | I115: Und | J115: Si | K115: Atención emergencia COVID-19 | L115: RADIOLOGICAL PROTECTION SERVICES SAS | M115: AECovid19-7 | N115: 3000 | O115: COP | P115: 1 | Q115: 10000 | R115: =Q115-SUMIFS(ResumenCotizacion!L:L,ResumenCotizacion!S:S,Catalogo!L115,ResumenCotizacion!C:C,Catalogo!D115) -> 10000 | S115: 0 | T115: =+VLOOKUP(D115,[1]CONSOLIDADO!$C$2:$F$93,4,0) -> 4320
A116: PA-21RADIOLOGICAL PROTECTION SERVICES SAS | D116: PA-21 | E116: PA-21 - GUANTES 3 - PAR | F116: ELEMENTOS DE ASEO | G116: - TIPO DOMÉSTICO - ELABORADOS EN LÁTEX - CALIBRE MÍNIMO DE 25 - TALLAS 7 A 9 - COLOR NEGRO | H116: Und | I116: Und | J116: Si | K116: Atención emergencia COVID-19 | L116: RADIOLOGICAL PROTECTION SERVICES SAS | M116: AECovid19-7 | N116: 3000 | O116: COP | P116: 1 | Q116: 10000 | R116: =Q116-SUMIFS(ResumenCotizacion!L:L,ResumenCotizacion!S:S,Catalogo!L116,ResumenCotizacion!C:C,Catalogo!D116) -> 10000 | S116: 0 | T116: =+VLOOKUP(D116,[1]CONSOLIDADO!$C$2:$F$93,4,0) -> 7500
A117: PA-23RADIOLOGICAL PROTECTION SERVICES SAS | D117: PA-23 | E117: PA-23 - GUANTES 5 - PAR | F117: ELEMENTOS DE ASEO | G117: - TIPO INDUSTRIAL - ELABORADOS EN LÁTEX - CALIBRE MÍNIMO DE 35 - TALLAS 7 A 9 - COLOR NEGRO | H117: Und | I117: Und | J117: Si | K117: Atención emergencia COVID-19 | L117: RADIOLOGICAL PROTECTION SERVICES SAS | M117: AECovid19-7 | N117: 3000 | O117: COP | P117: 1 | Q117: 10000 | R117: =Q117-SUMIFS(ResumenCotizacion!L:L,ResumenCotizacion!S:S,Catalogo!L117,ResumenCotizacion!C:C,Catalogo!D117) -> 10000 | S117: 0 | T117: =+VLOOKUP(D117,[1]CONSOLIDADO!$C$2:$F$93,4,0) -> 7350
A118: PA-28RADIOLOGICAL PROTECTION SERVICES SAS | D118: PA-28 | E118: PA-28 - JABÓN DISPENSADOR PARA MANOS 1 - LÍQUIDO, EN RECIPIENTE PLÁSTICO CON DISPENSADOR Y CAPACIDAD MÍNIMA DE 500 ML. | F118: ELEMENTOS DE ASEO | G118: - CON AGENTE LIMPIADOR EN UNA CONCENTRACIÓN MÍNIMA DEL 6% - CON AGENTE HUMECTANTE EN UNA CONCENTRACIÓN MÍNIMA DEL 3% - PH ENTRE 5,5 A 7 - DISPONIBLE EN MÍNIMO (2) DOS FRAGANCIAS | H118: Und | I118: Und | J118: Si | K118: Atención emergencia COVID-19 | L118: RADIOLOGICAL PROTECTION SERVICES SAS | M118: AECovid19-7 | N118: 6000 | O118: COP | P118: 1 | Q118: 10000 | R118: =Q118-SUMIFS(ResumenCotizacion!L:L,ResumenCotizacion!S:S,Catalogo!L118,ResumenCotizacion!C:C,Catalogo!D118) -> 10000 | S118: 0 | T118: =+VLOOKUP(D118,[1]CONSOLIDADO!$C$2:$F$93,4,0) -> 10500
A119: PA-59RADIOLOGICAL PROTECTION SERVICES SAS | D119: PA-59 | E119: PA-59 - TOALLAS PARA MANOS 3 - UNIDAD | F119: ELEMENTOS DE ASEO | G119: - TOALLAS INTERDOBLADAS, PAQUETE CON MÍNIMO 150 UNIDADES - DOBLE HOJA CON UN TAMAÑO MÍNIMO DE 20 CM DE LARGO POR 15 CM DE ANCHO - HOJA COLOR NATURAL | H119: Und | I119: Und | J119: Si | K119: Atención emergencia COVID-19 | L119: RADIOLOGICAL PROTECTION SERVICES SAS | M119: AECovid19-7 | N119: 5700 | O119: COP | P119: 1 | Q119: 100 | R119: =Q119-SUMIFS(ResumenCotizacion!L:L,ResumenCotizacion!S:S,Catalogo!L119,ResumenCotizacion!C:C,Catalogo!D119) -> 100 | S119: 0.19 | T119: =+VLOOKUP(D119,[1]CONSOLIDADO!$C$2:$F$93,4,0) -> 10500
A120: PA-60RADIOLOGICAL PROTECTION SERVICES SAS | D120: PA-60 | E120: PA-60 - TOALLAS PARA MANOS 4 - UNIDAD | F120: ELEMENTOS DE ASEO | G120: - TOALLAS INTERDOBLADAS, PAQUETE CON MÍNIMO 150 UNIDADES - DOBLE HOJA CON UN TAMAÑO MÍNIMO DE 20 CM DE LARGO POR 15 CM DE ANCHO - HOJA COLOR BLANCO | H120: Und | I120: Und | J120: Si | K120: Atención emergencia COVID-19 | L120: RADIOLOGICAL PROTECTION SERVICES SAS | M120: AECovid19-7 | N120: 6700 | O120: COP | P120: 1 | Q120: 100 | R120: =Q120-SUMIFS(ResumenCotizacion!L:L,ResumenCotizacion!S:S,Catalogo!L120,ResumenCotizacion!C:C,Catalogo!D120) -> 100 | S120: 0.19 | T120: =+VLOOKUP(D120,[1]CONSOLIDADO!$C$2:$F$93,4,0) -> 13650
A121: PA-1ECF ROSSI Y COMPAÑIA SAS - ALOE DEL RIO | D121: PA-1 | E121: PA-1 - ALCOHOL - FRASCO | F121: ELEMENTOS DE ASEO | G121: ANTISEPTICO DE USO EXTERNO AL 70%, FRASCO PLASTICO, BOTELLA X 750 CC | H121: Und | I121: Und | J121: Si | K121: Atención emergencia COVID-19 | L121: ECF ROSSI Y COMPAÑIA SAS - ALOE DEL RIO | M121: AECovid19-65 | N121: 4500 | O121: COP | P121: 1 | Q121: 100000 | R121: =Q121-SUMIFS(ResumenCotizacion!L:L,ResumenCotizacion!S:S,Catalogo!L121,ResumenCotizacion!C:C,Catalogo!D121) -> 100000 | S121: 0 | T121: =+VLOOKUP(D121,[1]CONSOLIDADO!$C$2:$F$93,4,0) -> 11598.2175
A122: PA-2ECF ROSSI Y COMPAÑIA SAS - ALOE DEL RIO | D122: PA-2 | E122: PA-2 - ALCOHOL GALÓN X 3.750 ML - GALON | F122: ELEMENTOS DE ASEO | G122: ALCOHOL GALÓN X 3.750 ML CON INGREDIENTE ACTIVO ALCOHOL ETILICO IMPOTABILIZADO 96% | H122: Und | I122: Und | J122: Si | K122: Atención emergencia COVID-19 | L122: ECF ROSSI Y COMPAÑIA SAS - ALOE DEL RIO | M122: AECovid19-65 | N122: 13000 | O122: COP | P122: 1 | Q122: 15000 | R122: =Q122-SUMIFS(ResumenCotizacion!L:L,ResumenCotizacion!S:S,Catalogo!L122,ResumenCotizacion!C:C,Catalogo!D122) -> 15000 | S122: 0 | T122: =+VLOOKUP(D122,[1]CONSOLIDADO!$C$2:$F$93,4,0) -> 52400.25
A123: PA-3ECF ROSSI Y COMPAÑIA SAS - ALOE DEL RIO | D123: PA-3 | E123: PA-3 - ALCOHOL ISOPROPILICO 70% EN GEL PARA ANTISEPSIA DE MANOS - FC X 500ML | F123: ELEMENTOS DE ASEO | G123: ALCOHOL ISOPROPILICO EN GEL PARA ANTISEPSIA DE MANOS, 70ML+2G/100ML | H123: Und | I123: Und | J123: Si | K123: Atención emergencia COVID-19 | L123: ECF ROSSI Y COMPAÑIA SAS - ALOE DEL RIO | M123: AECovid19-65 | N123: 4400 | O123: COP | P123: 1 | Q123: 100000 | R123: =Q123-SUMIFS(ResumenCotizacion!L:L,ResumenCotizacion!S:S,Catalogo!L123,ResumenCotizacion!C:C,Catalogo!D123) -> 100000 | S123: 0 | T123: =+VLOOKUP(D123,[1]CONSOLIDADO!$C$2:$F$93,4,0) -> 13500
A124: PA-4ECF ROSSI Y COMPAÑIA SAS - ALOE DEL RIO | D124: PA-4 | E124: PA-4 - ALCOHOL ISOPROPILICO 70% EN GEL PARA ANTISEPSIA DE MANOS - FC X1LT | F124: ELEMENTOS DE ASEO | G124: ALCOHOL ISOPROPILICO EN GEL PARA ANTISEPSIA DE MANOS, 70ML+2G/100ML | H124: Und | I124: Und | J124: Si | K124: Atención emergencia COVID-19 | L124: ECF ROSSI Y COMPAÑIA SAS - ALOE DEL RIO | M124: AECovid19-65 | N124: 8500 | O124: COP | P124: 1 | Q124: 100000 | R124: =Q124-SUMIFS(ResumenCotizacion!L:L,ResumenCotizacion!S:S,Catalogo!L124,ResumenCotizacion!C:C,Catalogo!D124) -> 100000 | S124: 0 | T124: =+VLOOKUP(D124,[1]CONSOLIDADO!$C$2:$F$93,4,0) -> 23444.5125
A125: PA-5ECF ROSSI Y COMPAÑIA SAS - ALOE DEL RIO | D125: PA-5 | E125: PA-5 - ALCOHOL ISOPROPILICO 70% EN GEL PARA ANTISEPSIA DE MANOS - GALON | F125: ELEMENTOS DE ASEO | G125: ALCOHOL ISOPROPILICO EN GEL PARA ANTISEPSIA DE MANOS, 70ML+2G/100ML | H125: Und | I125: Und | J125: Si | K125: Atención emergencia COVID-19 | L125: ECF ROSSI Y COMPAÑIA SAS - ALOE DEL RIO | M125: AECovid19-65 | N125: 30000 | O125: COP | P125: 1 | Q125: 100000 | R125: =Q125-SUMIFS(ResumenCotizacion!L:L,ResumenCotizacion!S:S,Catalogo!L125,ResumenCotizacion!C:C,Catalogo!D125) -> 100000 | S125: 0 | T125: =+VLOOKUP(D125,[1]CONSOLIDADO!$C$2:$F$93,4,0) -> 63450
A126: PA-17ECF ROSSI Y COMPAÑIA SAS - ALOE DEL RIO | D126: PA-17 | E126: PA-17 - GEL ANTIBACTERIAL - GALON | F126: ELEMENTOS DE ASEO | G126: ANTISÉPTICO GEL PARA MANOS QUE NO REQUIERE ENJUAGUE FORMULADO A BASE DE ALCOHOL ETÍLICO DE 60-80% W/W; ADICIONADO CON HUMECTANTES Y EMOLIENTES HIPO ALERGÉNICO. GEL ANTIBACTERIAL O ALCOHOL EN GEL PRESENTA LA MANERA MÁS PRÁCTICA DE MANTENER UNA HIGIENE A CUALQUIER HORA DEL DÍA Y EN CUALQUIER LUGAR. PRODUCTO ESPECIALMENTE FORMULADO PARA SATISFACER LAS NUEVAS NECESIDADES DE LIMPIEZA DE MANOS CON EL OBJETO ÚNICO DE CUIDAR LA SALUD. DEBE CONTAR CON REGISTRO INVIMA, PRESENTACIÓN GALÓN ASPECTO:GEL INCOLORO, TRANSPARENTE CONTENIDO ALCOHOL: AL 60-80% W/W, AGUA, HUMECTANTES Y EMOLIENTES, AROMATIZANTES Y ACEITES ESENCIALES. PH: 6.5 – 7.5 | H126: Und | I126: Und | J126: Si | K126: Atención emergencia COVID-19 | L126: ECF ROSSI Y COMPAÑIA SAS - ALOE DEL RIO | M126: AECovid19-65 | N126: 40000 | O126: COP | P126: 2 | Q126: 50000 | R126: =Q126-SUMIFS(ResumenCotizacion!L:L,ResumenCotizacion!S:S,Catalogo!L126,ResumenCotizacion!C:C,Catalogo!D126) -> 50000 | S126: 0 | T126: =+VLOOKUP(D126,[1]CONSOLIDADO!$C$2:$F$93,4,0) -> 71250
A127: PA-18ECF ROSSI Y COMPAÑIA SAS - ALOE DEL RIO | D127: PA-18 | E127: PA-18 - GEL ANTIBACTERIAL - FC X1LT | F127: ELEMENTOS DE ASEO | G127: ALCOHOL ISOPROPILICO 70% EN GEL PARA ANTISEPSIA DE MANOS ALCOHOL ISOPROPILICO EN GEL PARA ANTISEPSIA DE MANOS, 70ML+2G/100ML | H127: Und | I127: Und | J127: Si | K127: Atención emergencia COVID-19 | L127: ECF ROSSI Y COMPAÑIA SAS - ALOE DEL RIO | M127: AECovid19-65 | N127: 8500 | O127: COP | P127: 1 | Q127: 100000 | R127: =Q127-SUMIFS(ResumenCotizacion!L:L,ResumenCotizacion!S:S,Catalogo!L127,ResumenCotizacion!C:C,Catalogo!D127) -> 100000 | S127: 0 | T127: =+VLOOKUP(D127,[1]CONSOLIDADO!$C$2:$F$93,4,0) -> 27000
A128: PA-28ECF ROSSI Y COMPAÑIA SAS - ALOE DEL RIO | D128: PA-28 | E128: PA-28 - JABÓN DISPENSADOR PARA MANOS 1 - LÍQUIDO, EN RECIPIENTE PLÁSTICO CON DISPENSADOR Y CAPACIDAD MÍNIMA DE 500 ML. | F128: ELEMENTOS DE ASEO | G128: - CON AGENTE LIMPIADOR EN UNA CONCENTRACIÓN MÍNIMA DEL 6% - CON AGENTE HUMECTANTE EN UNA CONCENTRACIÓN MÍNIMA DEL 3% - PH ENTRE 5,5 A 7 - DISPONIBLE EN MÍNIMO (2) DOS FRAGANCIAS | H128: Und | I128: Und | J128: Si | K128: Atención emergencia COVID-19 | L128: ECF ROSSI Y COMPAÑIA SAS - ALOE DEL RIO | M128: AECovid19-65 | N128: 3000 | O128: COP | P128: 1 | Q128: 100000 | R128: =Q128-SUMIFS(ResumenCotizacion!L:L,ResumenCotizacion!S:S,Catalogo!L128,ResumenCotizacion!C:C,Catalogo!D128) -> 100000 | S128: 0 | T128: =+VLOOKUP(D128,[1]CONSOLIDADO!$C$2:$F$93,4,0) -> 10500
A129: PA-30ECF ROSSI Y COMPAÑIA SAS - ALOE DEL RIO | D129: PA-30 | E129: PA-30 - JABÓN DISPENSADOR PARA MANOS 2 - LÍQUIDO, EN RECIPIENTE PLÁSTICO CON CAPACIDAD MÍNIMA DE 3.785 CC | F129: ELEMENTOS DE ASEO | G129: - CON AGENTE LIMPIADOR EN UNA CONCENTRACIÓN MÍNIMA DEL 6%. - CON AGENTE ANTIBACTERIAL EN UNA CONCENTRACIÓN MÍNIMA DEL 0,2% - CON AGENTE HUMECTANTE EN UNA CONCENTRACIÓN MÍNIMA DEL 3% - PH ENTRE 5,5 A 7 - DISPONIBLE EN MÍNIMO (2) DOS FRAGANCIAS | H129: Und | I129: Und | J129: Si | K129: Atención emergencia COVID-19 | L129: ECF ROSSI Y COMPAÑIA SAS - ALOE DEL RIO | M129: AECovid19-65 | N129: 17000 | O129: COP | P129: 1 | Q129: 100000 | R129: =Q129-SUMIFS(ResumenCotizacion!L:L,ResumenCotizacion!S:S,Catalogo!L129,ResumenCotizacion!C:C,Catalogo!D129) -> 100000 | S129: 0 | T129: =+VLOOKUP(D129,[1]CONSOLIDADO!$C$2:$F$93,4,0) -> 39288.75
A130: PA-1PAULO CESAR CARVAJAL & PRODUCTOS INSTITUCIONALES | D130: PA-1 | E130: PA-1 - ALCOHOL - FRASCO | F130: ELEMENTOS DE ASEO | G130: ANTISEPTICO DE USO EXTERNO AL 70%, FRASCO PLASTICO, BOTELLA X 750 CC | H130: Und | I130: Und | J130: Si | K130: Atención emergencia COVID-19 | L130: PAULO CESAR CARVAJAL & PRODUCTOS INSTITUCIONALES | M130: AECovid19-37 | N130: 7500 | O130: COP | P130: =COUNTIFS(D:D,D130,N:N,N130) -> 1 | Q130: 5000 | R130: =Q130-SUMIFS(ResumenCotizacion!L:L,ResumenCotizacion!S:S,Catalogo!L130,ResumenCotizacion!C:C,Catalogo!D130) -> 5000 | S130: 0 | T130: =+VLOOKUP(D130,[1]CONSOLIDADO!$C$2:$F$93,4,0) -> 11598.2175
A131: =+D131&L131 -> PA-3PAULO CESAR CARVAJAL & PRODUCTOS INSTITUCIONALES | D131: PA-3 | E131: PA-3 - ALCOHOL ISOPROPILICO 70% EN GEL PARA ANTISEPSIA DE MANOS - FC X 500ML | F131: ELEMENTOS DE ASEO | G131: ALCOHOL ISOPROPILICO EN GEL PARA ANTISEPSIA DE MANOS, 70ML+2G/100ML | H131: Und | I131: Und | J131: Si | K131: Atención emergencia COVID-19 | L131: PAULO CESAR CARVAJAL & PRODUCTOS INSTITUCIONALES | M131: AECovid19-37 | N131: 8000 | O131: COP | P131: 1 | Q131: 5000 | R131: =Q131-SUMIFS(ResumenCotizacion!L:L,ResumenCotizacion!S:S,Catalogo!L131,ResumenCotizacion!C:C,Catalogo!D131) -> 5000 | S131: 0 | T131: =+VLOOKUP(D131,[1]CONSOLIDADO!$C$2:$F$93,4,0) -> 13500
A132: PA-4PAULO CESAR CARVAJAL & PRODUCTOS INSTITUCIONALES | D132: PA-4 | E132: PA-4 - ALCOHOL ISOPROPILICO 70% EN GEL PARA ANTISEPSIA DE MANOS - FC X1LT | F132: ELEMENTOS DE ASEO | G132: ALCOHOL ISOPROPILICO EN GEL PARA ANTISEPSIA DE MANOS, 70ML+2G/100ML | H132: Und | I132: Und | J132: Si | K132: Atención emergencia COVID-19 | L132: PAULO CESAR CARVAJAL & PRODUCTOS INSTITUCIONALES | M132: AECovid19-37 | N132: 12000 | O132: COP | P132: 1 | Q132: 5000 | R132: =Q132-SUMIFS(ResumenCotizacion!L:L,ResumenCotizacion!S:S,Catalogo!L132,ResumenCotizacion!C:C,Catalogo!D132) -> 5000 | S132: 0 | T132: =+VLOOKUP(D132,[1]CONSOLIDADO!$C$2:$F$93,4,0) -> 23444.5125
A133: PA-5PAULO CESAR CARVAJAL & PRODUCTOS INSTITUCIONALES | D133: PA-5 | E133: PA-5 - ALCOHOL ISOPROPILICO 70% EN GEL PARA ANTISEPSIA DE MANOS - GALON | F133: ELEMENTOS DE ASEO | G133: ALCOHOL ISOPROPILICO EN GEL PARA ANTISEPSIA DE MANOS, 70ML+2G/100ML | H133: Und | I133: Und | J133: Si | K133: Atención emergencia COVID-19 | L133: PAULO CESAR CARVAJAL & PRODUCTOS INSTITUCIONALES | M133: AECovid19-37 | N133: 37500 | O133: COP | P133: 1 | Q133: 2000 | R133: =Q133-SUMIFS(ResumenCotizacion!L:L,ResumenCotizacion!S:S,Catalogo!L133,ResumenCotizacion!C:C,Catalogo!D133) -> 2000 | S133: 0 | T133: =+VLOOKUP(D133,[1]CONSOLIDADO!$C$2:$F$93,4,0) -> 63450
A134: PA-10PAULO CESAR CARVAJAL & PRODUCTOS INSTITUCIONALES | D134: PA-10 | E134: PA-10 - BOLSA BIO-PELIGROSA - CAJA POR 50 UNIDADES | F134: ELEMENTOS DE ASEO | G134: BOLSA DE ELIMINACIÓN PARA RESIDUOS BIO-PELIGROSOS, 30X50CM, CON IMPRESIÓN "BIO HAZARD", POLIPROPILENO AUTOCLAVABLE. 50 O 70 MICRAS DE ESPESOR | H134: Und | I134: Und | J134: Si | K134: Atención emergencia COVID-19 | L134: PAULO CESAR CARVAJAL & PRODUCTOS INSTITUCIONALES | M134: AECovid19-37 | N134: 5950 | O134: COP | P134: 1 | Q134: 5000 | R134: =Q134-SUMIFS(ResumenCotizacion!L:L,ResumenCotizacion!S:S,Catalogo!L134,ResumenCotizacion!C:C,Catalogo!D134) -> 5000 | S134: 0.19 | T134: =+VLOOKUP(D134,[1]CONSOLIDADO!$C$2:$F$93,4,0) -> 21000
A135: PA-13PAULO CESAR CARVAJAL & PRODUCTOS INSTITUCIONALES | D135: PA-13 | E135: PA-13 - CEPILLO DE DIENTES - UNIDAD | F135: ELEMENTOS DE ASEO | G135: LIMPIADOR DE LENGUAS Y MEJILLAS EN GOMA. MANGO ERGONÓMICO. CERDAS FIRMES, PLANAS Y TUPIDAS | H135: Und | I135: Und | J135: Si | K135: Atención emergencia COVID-19 | L135: PAULO CESAR CARVAJAL & PRODUCTOS INSTITUCIONALES | M135: AECovid19-37 | N135: 2300 | O135: COP | P135: 1 | Q135: 2000 | R135: =Q135-SUMIFS(ResumenCotizacion!L:L,ResumenCotizacion!S:S,Catalogo!L135,ResumenCotizacion!C:C,Catalogo!D135) -> 2000 | S135: 0.19 | T135: =+VLOOKUP(D135,[1]CONSOLIDADO!$C$2:$F$93,4,0) -> 4408
A136: PA-14PAULO CESAR CARVAJAL & PRODUCTOS INSTITUCIONALES | D136: PA-14 | E136: PA-14 - DETERGENTE DESINFECTANTE DESODORANTE FRASCO PARA LA LIMPIEZA Y LA DESINFECCIÓN DE TODA SUPERFICIE LAVABLE - FRASCO X 1LT CON DOSIFICADOR INTEGRADO | F136: ELEMENTOS DE ASEO | G136: FABRICADO A BASE DE AMONIO CUATERNARIO DE ÚLTIMA GENERACIÓN, MÁS ALCOHOL, BACTERICIDA, FUNGICIDA Y VIRUSIDA MAS PERFUME, ACCIÓN EN 15 MINUTOS, NO REQUIERE ENJUAGUE. SU DISEÑO ÚNICO Y NOVEDOSO HA SIDO CIENTÍFICAMENTE DESARROLLADO PARA LA LIMPIEZA Y LA DESINFECCIÓN DE SUPERFICIES (PISOS, PAREDES Y TECHOS). | H136: Und | I136: Und | J136: Si | K136: Atención emergencia COVID-19 | L136: PAULO CESAR CARVAJAL & PRODUCTOS INSTITUCIONALES | M136: AECovid19-37 | N136: 4000 | O136: COP | P136: 1 | Q136: 2000 | R136: =Q136-SUMIFS(ResumenCotizacion!L:L,ResumenCotizacion!S:S,Catalogo!L136,ResumenCotizacion!C:C,Catalogo!D136) -> 2000 | S136: 0 | T136: =+VLOOKUP(D136,[1]CONSOLIDADO!$C$2:$F$93,4,0) -> 16125
A137: PA-16PAULO CESAR CARVAJAL & PRODUCTOS INSTITUCIONALES | D137: PA-16 | E137: PA-16 - DETERGENTE DESINFECTANTE LIQUIDO A BASE DE AMONIOS CUATERNARIOS DE V GENERACIÓN - FRASCO X 750ML | F137: ELEMENTOS DE ASEO | G137: DETERGENTE DESINFECTANTE DE DISPOSITIVOS MÉDICOS QUE COMBINA LIMPIEZA Y DESINFECCIÓN DE DISPOSITIVOS MÉDICOS, SUPERFICIES DE ÁREAS DE ALTO RIESGO, FORMULA SIN ALDEHIDO NI CLORURO AMPLIO, AMPLIO ESPECTRO ANTIMICROBIANO EN 5 MINUTOS DE CONTACTO FRASCO DE 750 ML CON CARÁCTER ANTICORROSIVO RESPECTO DEL ACERO INOXIDABLE, PULVERIZADOR ESPUMOSO COMPUESTO DE PROPIONATO DE AMONIO CUATERNARIO, ACETATO DE DUARDINIO, NPROPANOL, TENSIOACTIVO NO IÓNICO, PERFUME Y EXCIPIENTES EN 5 MINUTOS DE CONTACTO | H137: Und | I137: Und | J137: Si | K137: Atención emergencia COVID-19 | L137: PAULO CESAR CARVAJAL & PRODUCTOS INSTITUCIONALES | M137: AECovid19-37 | N137: 4700 | O137: COP | P137: 1 | Q137: 3000 | R137: =Q137-SUMIFS(ResumenCotizacion!L:L,ResumenCotizacion!S:S,Catalogo!L137,ResumenCotizacion!C:C,Catalogo!D137) -> 3000 | S137: 0 | T137: =+VLOOKUP(D137,[1]CONSOLIDADO!$C$2:$F$93,4,0) -> 13500
A138: PA-17PAULO CESAR CARVAJAL & PRODUCTOS INSTITUCIONALES | D138: PA-17 | E138: PA-17 - GEL ANTIBACTERIAL - GALON | F138: ELEMENTOS DE ASEO | G138: ANTISÉPTICO GEL PARA MANOS QUE NO REQUIERE ENJUAGUE FORMULADO A BASE DE ALCOHOL ETÍLICO DE 60-80% W/W; ADICIONADO CON HUMECTANTES Y EMOLIENTES HIPO ALERGÉNICO. GEL ANTIBACTERIAL O ALCOHOL EN GEL PRESENTA LA MANERA MÁS PRÁCTICA DE MANTENER UNA HIGIENE A CUALQUIER HORA DEL DÍA Y EN CUALQUIER LUGAR. PRODUCTO ESPECIALMENTE FORMULADO PARA SATISFACER LAS NUEVAS NECESIDADES DE LIMPIEZA DE MANOS CON EL OBJETO ÚNICO DE CUIDAR LA SALUD. DEBE CONTAR CON REGISTRO INVIMA, PRESENTACIÓN GALÓN ASPECTO:GEL INCOLORO, TRANSPARENTE CONTENIDO ALCOHOL: AL 60-80% W/W, AGUA, HUMECTANTES Y EMOLIENTES, AROMATIZANTES Y ACEITES ESENCIALES. PH: 6.5 – 7.5 | H138: Und | I138: Und | J138: Si | K138: Atención emergencia COVID-19 | L138: PAULO CESAR CARVAJAL & PRODUCTOS INSTITUCIONALES | M138: AECovid19-37 | N138: 45000 | O138: COP | P138: 1 | Q138: 600 | R138: =Q138-SUMIFS(ResumenCotizacion!L:L,ResumenCotizacion!S:S,Catalogo!L138,ResumenCotizacion!C:C,Catalogo!D138) -> 600 | S138: 0 | T138: =+VLOOKUP(D138,[1]CONSOLIDADO!$C$2:$F$93,4,0) -> 71250
A139: PA-18PAULO CESAR CARVAJAL & PRODUCTOS INSTITUCIONALES | D139: PA-18 | E139: PA-18 - GEL ANTIBACTERIAL - FC X1LT | F139: ELEMENTOS DE ASEO | G139: ALCOHOL ISOPROPILICO 70% EN GEL PARA ANTISEPSIA DE MANOS ALCOHOL ISOPROPILICO EN GEL PARA ANTISEPSIA DE MANOS, 70ML+2G/100ML | H139: Und | I139: Und | J139: Si | K139: Atención emergencia COVID-19 | L139: PAULO CESAR CARVAJAL & PRODUCTOS INSTITUCIONALES | M139: AECovid19-37 | N139: 13000 | O139: COP | P139: 2 | Q139: 5000 | R139: =Q139-SUMIFS(ResumenCotizacion!L:L,ResumenCotizacion!S:S,Catalogo!L139,ResumenCotizacion!C:C,Catalogo!D139) -> 5000 | S139: 0 | T139: =+VLOOKUP(D139,[1]CONSOLIDADO!$C$2:$F$93,4,0) -> 27000
A140: PA-20PAULO CESAR CARVAJAL & PRODUCTOS INSTITUCIONALES | D140: PA-20 | E140: PA-20 - GUANTES 2 - PAR | F140: ELEMENTOS DE ASEO | G140: - TIPO DOMÉSTICO - ELABORADOS EN LÁTEX - CALIBRE MÍNIMO DE 18 - TALLAS 7 A 9 - COLOR NEGRO | H140: Und | I140: Und | J140: Si | K140: Atención emergencia COVID-19 | L140: PAULO CESAR CARVAJAL & PRODUCTOS INSTITUCIONALES | M140: AECovid19-37 | N140: 2350 | O140: COP | P140: 1 | Q140: 1200 | R140: =Q140-SUMIFS(ResumenCotizacion!L:L,ResumenCotizacion!S:S,Catalogo!L140,ResumenCotizacion!C:C,Catalogo!D140) -> 1200 | S140: 0 | T140: =+VLOOKUP(D140,[1]CONSOLIDADO!$C$2:$F$93,4,0) -> 4320
A141: PA-21PAULO CESAR CARVAJAL & PRODUCTOS INSTITUCIONALES | D141: PA-21 | E141: PA-21 - GUANTES 3 - PAR | F141: ELEMENTOS DE ASEO | G141: - TIPO DOMÉSTICO - ELABORADOS EN LÁTEX - CALIBRE MÍNIMO DE 25 - TALLAS 7 A 9 - COLOR NEGRO | H141: Und | I141: Und | J141: Si | K141: Atención emergencia COVID-19 | L141: PAULO CESAR CARVAJAL & PRODUCTOS INSTITUCIONALES | M141: AECovid19-37 | N141: 3750 | O141: COP | P141: 1 | Q141: 1200 | R141: =Q141-SUMIFS(ResumenCotizacion!L:L,ResumenCotizacion!S:S,Catalogo!L141,ResumenCotizacion!C:C,Catalogo!D141) -> 1200 | S141: 0 | T141: =+VLOOKUP(D141,[1]CONSOLIDADO!$C$2:$F$93,4,0) -> 7500
A142: PA-22PAULO CESAR CARVAJAL & PRODUCTOS INSTITUCIONALES | D142: PA-22 | E142: PA-22 - GUANTES 4 - PAR | F142: ELEMENTOS DE ASEO | G142: - TIPO DOMÉSTICO - ELABORADOS EN LÁTEX - CALIBRE MÍNIMO DE 25 - TALLAS 7 A 9 - COLOR ROJO | H142: Und | I142: Und | J142: Si | K142: Atención emergencia COVID-19 | L142: PAULO CESAR CARVAJAL & PRODUCTOS INSTITUCIONALES | M142: AECovid19-37 | N142: 3740 | O142: COP | P142: 1 | Q142: 1200 | R142: =Q142-SUMIFS(ResumenCotizacion!L:L,ResumenCotizacion!S:S,Catalogo!L142,ResumenCotizacion!C:C,Catalogo!D142) -> 1200 | S142: 0 | T142: =+VLOOKUP(D142,[1]CONSOLIDADO!$C$2:$F$93,4,0) -> 4050
A143: PA-23PAULO CESAR CARVAJAL & PRODUCTOS INSTITUCIONALES | D143: PA-23 | E143: PA-23 - GUANTES 5 - PAR | F143: ELEMENTOS DE ASEO | G143: - TIPO INDUSTRIAL - ELABORADOS EN LÁTEX - CALIBRE MÍNIMO DE 35 - TALLAS 7 A 9 - COLOR NEGRO | H143: Und | I143: Und | J143: Si | K143: Atención emergencia COVID-19 | L143: PAULO CESAR CARVAJAL & PRODUCTOS INSTITUCIONALES | M143: AECovid19-37 | N143: 3500 | O143: COP | P143: 2 | Q143: 1200 | R143: =Q143-SUMIFS(ResumenCotizacion!L:L,ResumenCotizacion!S:S,Catalogo!L143,ResumenCotizacion!C:C,Catalogo!D143) -> 1200 | S143: 0 | T143: =+VLOOKUP(D143,[1]CONSOLIDADO!$C$2:$F$93,4,0) -> 7350
A144: PA-24PAULO CESAR CARVAJAL & PRODUCTOS INSTITUCIONALES | D144: PA-24 | E144: PA-24 - GUANTES 6 - CAJA DE MÍNIMO 100 UNIDADES | F144: ELEMENTOS DE ASEO | G144: - ELABORADOS EN LÁTEX DESECHABLE (TIPO CIRUGÍA) - EMPOVALDOS - TALLAS XS-XXL | H144: Und | I144: Und | J144: Si | K144: Atención emergencia COVID-19 | L144: PAULO CESAR CARVAJAL & PRODUCTOS INSTITUCIONALES | M144: AECovid19-37 | N144: 39000 | O144: COP | P144: 1 | Q144: 1000 | R144: =Q144-SUMIFS(ResumenCotizacion!L:L,ResumenCotizacion!S:S,Catalogo!L144,ResumenCotizacion!C:C,Catalogo!D144) -> 1000 | S144: 0 | T144: =+VLOOKUP(D144,[1]CONSOLIDADO!$C$2:$F$93,4,0) -> 75000
A145: PA-28PAULO CESAR CARVAJAL & PRODUCTOS INSTITUCIONALES | D145: PA-28 | E145: PA-28 - JABÓN DISPENSADOR PARA MANOS 1 - LÍQUIDO, EN RECIPIENTE PLÁSTICO CON DISPENSADOR Y CAPACIDAD MÍNIMA DE 500 ML. | F145: ELEMENTOS DE ASEO | G145: - CON AGENTE LIMPIADOR EN UNA CONCENTRACIÓN MÍNIMA DEL 6% - CON AGENTE HUMECTANTE EN UNA CONCENTRACIÓN MÍNIMA DEL 3% - PH ENTRE 5,5 A 7 - DISPONIBLE EN MÍNIMO (2) DOS FRAGANCIAS | H145: Und | I145: Und | J145: Si | K145: Atención emergencia COVID-19 | L145: PAULO CESAR CARVAJAL & PRODUCTOS INSTITUCIONALES | M145: AECovid19-37 | N145: 2030 | O145: COP | P145: 1 | Q145: 4000 | R145: =Q145-SUMIFS(ResumenCotizacion!L:L,ResumenCotizacion!S:S,Catalogo!L145,ResumenCotizacion!C:C,Catalogo!D145) -> 4000 | S145: 0 | T145: =+VLOOKUP(D145,[1]CONSOLIDADO!$C$2:$F$93,4,0) -> 10500
A146: PA-30PAULO CESAR CARVAJAL & PRODUCTOS INSTITUCIONALES | D146: PA-30 | E146: PA-30 - JABÓN DISPENSADOR PARA MANOS 2 - LÍQUIDO, EN RECIPIENTE PLÁSTICO CON CAPACIDAD MÍNIMA DE 3.785 CC | F146: ELEMENTOS DE ASEO | G146: - CON AGENTE LIMPIADOR EN UNA CONCENTRACIÓN MÍNIMA DEL 6%. - CON AGENTE ANTIBACTERIAL EN UNA CONCENTRACIÓN MÍNIMA DEL 0,2% - CON AGENTE HUMECTANTE EN UNA CONCENTRACIÓN MÍNIMA DEL 3% - PH ENTRE 5,5 A 7 - DISPONIBLE EN MÍNIMO (2) DOS FRAGANCIAS | H146: Und | I146: Und | J146: Si | K146: Atención emergencia COVID-19 | L146: PAULO CESAR CARVAJAL & PRODUCTOS INSTITUCIONALES | M146: AECovid19-37 | N146: 5750 | O146: COP | P146: 1 | Q146: 10000 | R146: =Q146-SUMIFS(ResumenCotizacion!L:L,ResumenCotizacion!S:S,Catalogo!L146,ResumenCotizacion!C:C,Catalogo!D146) -> 10000 | S146: 0 | T146: =+VLOOKUP(D146,[1]CONSOLIDADO!$C$2:$F$93,4,0) -> 39288.75
A147: PA-31PAULO CESAR CARVAJAL & PRODUCTOS INSTITUCIONALES | D147: PA-31 | E147: PA-31 - JABÓN EN BARRA - BARRA, UNIDAD CON PESO MÍNIMO DE 250 GR EN ENVOLTURA INDIVIDUAL | F147: ELEMENTOS DE ASEO | G147: -COMPOSICIÓN DE ÁCIDOS GRASOS DE MÍNIMO 50%. | H147: Und | I147: Und | J147: Si | K147: Atención emergencia COVID-19 | L147: PAULO CESAR CARVAJAL & PRODUCTOS INSTITUCIONALES | M147: AECovid19-37 | N147: 990 | O147: COP | P147: 1 | Q147: 10000 | R147: =Q147-SUMIFS(ResumenCotizacion!L:L,ResumenCotizacion!S:S,Catalogo!L147,ResumenCotizacion!C:C,Catalogo!D147) -> 10000 | S147: 0 | T147: =+VLOOKUP(D147,[1]CONSOLIDADO!$C$2:$F$93,4,0) -> 5136.866231
A148: PA-33PAULO CESAR CARVAJAL & PRODUCTOS INSTITUCIONALES | D148: PA-33 | E148: PA-33 - JABÓN LAVAVAJILLAS O LAVALOZAS 2 - LÍQUIDO, EN RECIPIENTE PLÁSTICO DE MÍNIMO 500 CC | F148: ELEMENTOS DE ASEO | G148: - CON AGENTE(S) C35TENSOACTIVO(S) PRINCIPAL(ES) CON EFECTO LIMPIADOR Y DESENGRASANTE EN UNA CONCENTRACIÓN MÍNIMA DEL 8%. - DISPONIBLE EN MÍNIMO (2) DOS FRAGANCIAS - EL ENVASE DEL PRODUCTO DEBERÁ ESTAR CORRECTAMENTE ETIQUETADO BAJO LOS PARÁMETROS ESTABLECIDOS EN EL SISTEMA GLOBALMENTE ARMONIZADO, INDICANDO: NOMBRE COMERCIAL DEL PRODUCTO, PICTOGRAMAS DE LOS COMPUESTOS PELIGROSOS E INSTRUCCIONES DE USO | H148: Und | I148: Und | J148: Si | K148: Atención emergencia COVID-19 | L148: PAULO CESAR CARVAJAL & PRODUCTOS INSTITUCIONALES | M148: AECovid19-37 | N148: 4000 | O148: COP | P148: 1 | Q148: 2000 | R148: =Q148-SUMIFS(ResumenCotizacion!L:L,ResumenCotizacion!S:S,Catalogo!L148,ResumenCotizacion!C:C,Catalogo!D148) -> 2000 | S148: 0 | T148: =+VLOOKUP(D148,[1]CONSOLIDADO!$C$2:$F$93,4,0) -> 9610
A149: PA-34PAULO CESAR CARVAJAL & PRODUCTOS INSTITUCIONALES | D149: PA-34 | E149: PA-34 - JABÓN LAVAVAJILLAS O LAVALOZAS 3 - CREMA, EN RECIPIENTE PLÁSTICO DE MÍNIMO 900 GR | F149: ELEMENTOS DE ASEO | G149: - CON AGENTE(S) TENSOACTIVO(S) PRINCIPAL(ES) CON EFECTO LIMPIADOR Y DESENGRASANTE EN UNA CONCENTRACIÓN MÍNIMA DEL 15%. - DISPONIBLE EN MÍNIMO (2) DOS FRAGANCIAS - EL ENVASE DEL PRODUCTO DEBERÁ ESTAR CORRECTAMENTE ETIQUETADO, INDICANDO: NOMBRE COMERCIAL DEL PRODUCTO, PICTOGRAMAS DE LOS COMPUESTOS PELIGROSOS SI APLICA E INSTRUCCIONES DE USO. | H149: Und | I149: Und | J149: Si | K149: Atención emergencia COVID-19 | L149: PAULO CESAR CARVAJAL & PRODUCTOS INSTITUCIONALES | M149: AECovid19-37 | N149: 4500 | O149: COP | P149: 1 | Q149: 2000 | R149: =Q149-SUMIFS(ResumenCotizacion!L:L,ResumenCotizacion!S:S,Catalogo!L149,ResumenCotizacion!C:C,Catalogo!D149) -> 2000 | S149: 0 | T149: =+VLOOKUP(D149,[1]CONSOLIDADO!$C$2:$F$93,4,0) -> 15222.5
A150: PA-38PAULO CESAR CARVAJAL & PRODUCTOS INSTITUCIONALES | D150: PA-38 | E150: PA-38 - LIMPIADOR MULTIUSOS 1 - LÍQUIDO, EN RECIPIENTE PLÁSTICO CON CAPACIDAD MÍNIMA DE 3.785 CC | F150: ELEMENTOS DE ASEO | G150: - CON AGENTE(S) TENSOACTIVO(S) PRINCIPAL(ES) CON EFECTO LIMPIADOR EN UNA CONCENTRACIÓN MÍNIMA DEL 8% - DISPONIBLE EN MÍNIMO (2) DOS FRAGANCIAS - EL ENVASE DEBE ESTAR CORRECTAMENTE ETIQUETADOS BAJO LOS PARÁMETROS ESTABLECIDOS EN EL SISTEMA GLOBALMENTE ARMONIZADO INDICANDO: NOMBRE COMERCIAL DEL PRODUCTO, PICTOGRAMAS DE LOS COMPUESTOS PELIGROSOS E INSTRUCCIONES DE USO | H150: Und | I150: Und | J150: Si | K150: Atención emergencia COVID-19 | L150: PAULO CESAR CARVAJAL & PRODUCTOS INSTITUCIONALES | M150: AECovid19-37 | N150: 5690 | O150: COP | P150: 1 | Q150: 10000 | R150: =Q150-SUMIFS(ResumenCotizacion!L:L,ResumenCotizacion!S:S,Catalogo!L150,ResumenCotizacion!C:C,Catalogo!D150) -> 10000 | S150: 0 | T150: =+VLOOKUP(D150,[1]CONSOLIDADO!$C$2:$F$93,4,0) -> 10000
A151: PA-45PAULO CESAR CARVAJAL & PRODUCTOS INSTITUCIONALES | D151: PA-45 | E151: PA-45 - PAPEL HIGIÉNICO 1 - ROLLO | F151: ELEMENTOS DE ASEO | G151: - ROLLO CON LONGITUD MÍNIMA DE 30 METROS - DOBLE HOJA BLANCA - SIN FRAGANCIA | H151: Und | I151: Und | J151: Si | K151: Atención emergencia COVID-19 | L151: PAULO CESAR CARVAJAL & PRODUCTOS INSTITUCIONALES | M151: AECovid19-37 | N151: 1000 | O151: COP | P151: 1 | Q151: 1000 | R151: =Q151-SUMIFS(ResumenCotizacion!L:L,ResumenCotizacion!S:S,Catalogo!L151,ResumenCotizacion!C:C,Catalogo!D151) -> 1000 | S151: 0.19 | T151: =+VLOOKUP(D151,[1]CONSOLIDADO!$C$2:$F$93,4,0) -> 1804.637395
A152: PA-46PAULO CESAR CARVAJAL & PRODUCTOS INSTITUCIONALES | D152: PA-46 | E152: PA-46 - PAPEL HIGIÉNICO 2 - ROLLO | F152: ELEMENTOS DE ASEO | G152: - ROLLO CON LONGITUD MÍNIMA DE 250 METROS - DOBLE HOJA DE COLOR NATURAL - SIN FRAGANCIA | H152: Und | I152: Und | J152: Si | K152: Atención emergencia COVID-19 | L152: PAULO CESAR CARVAJAL & PRODUCTOS INSTITUCIONALES | M152: AECovid19-37 | N152: 8000 | O152: COP | P152: 1 | Q152: 1000 | R152: =Q152-SUMIFS(ResumenCotizacion!L:L,ResumenCotizacion!S:S,Catalogo!L152,ResumenCotizacion!C:C,Catalogo!D152) -> 1000 | S152: 0.19 | T152: =+VLOOKUP(D152,[1]CONSOLIDADO!$C$2:$F$93,4,0) -> 16458.65817
A153: PA-47PAULO CESAR CARVAJAL & PRODUCTOS INSTITUCIONALES | D153: PA-47 | E153: PA-47 - PAPEL HIGIÉNICO 3 - ROLLO | F153: ELEMENTOS DE ASEO | G153: - ROLLO CON LONGITUD MÍNIMA DE 250 METROS - DOBLE HOJA BLANCA - SIN FRAGANCIA | H153: Und | I153: Und | J153: Si | K153: Atención emergencia COVID-19 | L153: PAULO CESAR CARVAJAL & PRODUCTOS INSTITUCIONALES | M153: AECovid19-37 | N153: 8000 | O153: COP | P153: 1 | Q153: 1000 | R153: =Q153-SUMIFS(ResumenCotizacion!L:L,ResumenCotizacion!S:S,Catalogo!L153,ResumenCotizacion!C:C,Catalogo!D153) -> 1000 | S153: 0.19 | T153: =+VLOOKUP(D153,[1]CONSOLIDADO!$C$2:$F$93,4,0) -> 8450
A154: PA-48PAULO CESAR CARVAJAL & PRODUCTOS INSTITUCIONALES | D154: PA-48 | E154: PA-48 - PAPEL HIGIÉNICO 4 - ROLLO | F154: ELEMENTOS DE ASEO | G154: - ROLLO CON LONGITUD MÍNIMA DE 400 METROS - HOJA SENCILLA DE COLOR NATURAL - SINFRAGANCIA | H154: Und | I154: Und | J154: Si | K154: Atención emergencia COVID-19 | L154: PAULO CESAR CARVAJAL & PRODUCTOS INSTITUCIONALES | M154: AECovid19-37 | N154: 6100 | O154: COP | P154: 1 | Q154: 4000 | R154: =Q154-SUMIFS(ResumenCotizacion!L:L,ResumenCotizacion!S:S,Catalogo!L154,ResumenCotizacion!C:C,Catalogo!D154) -> 4000 | S154: 0.19 | T154: =+VLOOKUP(D154,[1]CONSOLIDADO!$C$2:$F$93,4,0) -> 25932
A155: PA-49PAULO CESAR CARVAJAL & PRODUCTOS INSTITUCIONALES | D155: PA-49 | E155: PA-49 - PAPEL HIGIÉNICO 5 - ROLLO | F155: ELEMENTOS DE ASEO | G155: - ROLLO CON LONGITUD MÍNIMA DE 400 METROS - HOJA SENCILLA DE COLOR BLANCO - SIN FRAGANCIA | H155: Und | I155: Und | J155: Si | K155: Atención emergencia COVID-19 | L155: PAULO CESAR CARVAJAL & PRODUCTOS INSTITUCIONALES | M155: AECovid19-37 | N155: 7500 | O155: COP | P155: 1 | Q155: 1000 | R155: =Q155-SUMIFS(ResumenCotizacion!L:L,ResumenCotizacion!S:S,Catalogo!L155,ResumenCotizacion!C:C,Catalogo!D155) -> 1000 | S155: 0.19 | T155: =+VLOOKUP(D155,[1]CONSOLIDADO!$C$2:$F$93,4,0) -> 11500
A156: PA-52PAULO CESAR CARVAJAL & PRODUCTOS INSTITUCIONALES | D156: PA-52 | E156: PA-52 - PRODUCTOS DE HIGIENE DOMÉSTICA CON PROPIEDAD DESINFECTANTE DE SUPERFICIE A BASE DE CLORO (EN ESPECIAL, FORMULADOS CON HIPOCLORITO DE SODIO). - GALON | F156: ELEMENTOS DE ASEO | G156: HIPOCLORITO DE SODIO AL 5% (NAOCL), SOLUCIÓN ACUOSA LIGERAMENTE AMARILLA, LIBRE DE PARTÍCULAS, DE OLOR CARACTERÍSTICO PENETRANTE E IRRITANTE, FUERTEMENTE OXIDANTE, DE CONTROL BACTERIOLÓGICO Y MICROBIOLÓGICO. PRESENTACIÓN GALÓN | H156: Und | I156: Und | J156: Si | K156: Atención emergencia COVID-19 | L156: PAULO CESAR CARVAJAL & PRODUCTOS INSTITUCIONALES | M156: AECovid19-37 | N156: 3980 | O156: COP | P156: 1 | Q156: 10000 | R156: =Q156-SUMIFS(ResumenCotizacion!L:L,ResumenCotizacion!S:S,Catalogo!L156,ResumenCotizacion!C:C,Catalogo!D156) -> 10000 | S156: 0 | T156: =+VLOOKUP(D156,[1]CONSOLIDADO!$C$2:$F$93,4,0) -> 18891
A157: PA-54PAULO CESAR CARVAJAL & PRODUCTOS INSTITUCIONALES | D157: PA-54 | E157: PA-54 - SERVILLETA PARA SECAR LAS MANOS - UNIDAD | F157: ELEMENTOS DE ASEO | G157: ROLLO DE 50 A 100M. | H157: Und | I157: Und | J157: Si | K157: Atención emergencia COVID-19 | L157: PAULO CESAR CARVAJAL & PRODUCTOS INSTITUCIONALES | M157: AECovid19-37 | N157: 11850 | O157: COP | P157: 1 | Q157: 3000 | R157: =Q157-SUMIFS(ResumenCotizacion!L:L,ResumenCotizacion!S:S,Catalogo!L157,ResumenCotizacion!C:C,Catalogo!D157) -> 3000 | S157: 0.19 | T157: =+VLOOKUP(D157,[1]CONSOLIDADO!$C$2:$F$93,4,0) -> 35500
A158: PA-55PAULO CESAR CARVAJAL & PRODUCTOS INSTITUCIONALES | D158: PA-55 | E158: PA-55 - SERVILLETA PARA SECAR LAS MANOS - PAQUETE DE MÍNIMO 100 UNIDADES | F158: ELEMENTOS DE ASEO | G158: - TIPO CAFETERÍA - DOBE HOJA - COLOR BLANCO - DIMENSIONES MÍNIMAS DE 25 CM DE LARGO Y 15 CM DE ANCHO | H158: Und | I158: Und | J158: Si | K158: Atención emergencia COVID-19 | L158: PAULO CESAR CARVAJAL & PRODUCTOS INSTITUCIONALES | M158: AECovid19-37 | N158: 1620 | O158: COP | P158: 1 | Q158: 16800 | R158: =Q158-SUMIFS(ResumenCotizacion!L:L,ResumenCotizacion!S:S,Catalogo!L158,ResumenCotizacion!C:C,Catalogo!D158) -> 16800 | S158: 0.19 | T158: =+VLOOKUP(D158,[1]CONSOLIDADO!$C$2:$F$93,4,0) -> 7565
A159: PA-57PAULO CESAR CARVAJAL & PRODUCTOS INSTITUCIONALES | D159: PA-57 | E159: PA-57 - TOALLAS PARA MANOS 1 - ROLLO | F159: ELEMENTOS DE ASEO | G159: - ROLLO CON LONGITUD MÍNIMA DE 100 METROS - DOBLE HOJA CON UN TAMAÑO MÍNIMO 15 CM DE ANCHO - DISPONIBLES EN COLOR BLANCO | H159: Und | I159: Und | J159: Si | K159: Atención emergencia COVID-19 | L159: PAULO CESAR CARVAJAL & PRODUCTOS INSTITUCIONALES | M159: AECovid19-37 | N159: 12000 | O159: COP | P159: 2 | Q159: 6000 | R159: =Q159-SUMIFS(ResumenCotizacion!L:L,ResumenCotizacion!S:S,Catalogo!L159,ResumenCotizacion!C:C,Catalogo!D159) -> 6000 | S159: 0.19 | T159: =+VLOOKUP(D159,[1]CONSOLIDADO!$C$2:$F$93,4,0) -> 23800.3125
A160: PA-58PAULO CESAR CARVAJAL & PRODUCTOS INSTITUCIONALES | D160: PA-58 | E160: PA-58 - TOALLAS PARA MANOS 2 - ROLLO | F160: ELEMENTOS DE ASEO | G160: - ROLLO CON LONGITUD MÍNIMA DE 100 METROS - DOBLE HOJA CON UN TAMAÑO MÍNIMO 15 CM DE ANCHO - DISPONIBLES EN COLOR NATURAL | H160: Und | I160: Und | J160: Si | K160: Atención emergencia COVID-19 | L160: PAULO CESAR CARVAJAL & PRODUCTOS INSTITUCIONALES | M160: AECovid19-37 | N160: 12000 | O160: COP | P160: 2 | Q160: 1200 | R160: =Q160-SUMIFS(ResumenCotizacion!L:L,ResumenCotizacion!S:S,Catalogo!L160,ResumenCotizacion!C:C,Catalogo!D160) -> 1200 | S160: 0.19 | T160: =+VLOOKUP(D160,[1]CONSOLIDADO!$C$2:$F$93,4,0) -> 22000.5
A161: PA-59PAULO CESAR CARVAJAL & PRODUCTOS INSTITUCIONALES | D161: PA-59 | E161: PA-59 - TOALLAS PARA MANOS 3 - UNIDAD | F161: ELEMENTOS DE ASEO | G161: - TOALLAS INTERDOBLADAS, PAQUETE CON MÍNIMO 150 UNIDADES - DOBLE HOJA CON UN TAMAÑO MÍNIMO DE 20 CM DE LARGO POR 15 CM DE ANCHO - HOJA COLOR NATURAL | H161: Und | I161: Und | J161: Si | K161: Atención emergencia COVID-19 | L161: PAULO CESAR CARVAJAL & PRODUCTOS INSTITUCIONALES | M161: AECovid19-37 | N161: 4100 | O161: COP | P161: 1 | Q161: 1200 | R161: =Q161-SUMIFS(ResumenCotizacion!L:L,ResumenCotizacion!S:S,Catalogo!L161,ResumenCotizacion!C:C,Catalogo!D161) -> 1200 | S161: 0.19 | T161: =+VLOOKUP(D161,[1]CONSOLIDADO!$C$2:$F$93,4,0) -> 10500
A162: PA-60PAULO CESAR CARVAJAL & PRODUCTOS INSTITUCIONALES | D162: PA-60 | E162: PA-60 - TOALLAS PARA MANOS 4 - UNIDAD | F162: ELEMENTOS DE ASEO | G162: - TOALLAS INTERDOBLADAS, PAQUETE CON MÍNIMO 150 UNIDADES - DOBLE HOJA CON UN TAMAÑO MÍNIMO DE 20 CM DE LARGO POR 15 CM DE ANCHO - HOJA COLOR BLANCO | H162: Und | I162: Und | J162: Si | K162: Atención emergencia COVID-19 | L162: PAULO CESAR CARVAJAL & PRODUCTOS INSTITUCIONALES | M162: AECovid19-37 | N162: 4100 | O162: COP | P162: 1 | Q162: 12000 | R162: =Q162-SUMIFS(ResumenCotizacion!L:L,ResumenCotizacion!S:S,Catalogo!L162,ResumenCotizacion!C:C,Catalogo!D162) -> 12000 | S162: 0.19 | T162: =+VLOOKUP(D162,[1]CONSOLIDADO!$C$2:$F$93,4,0) -> 13650
A163: PA-62PAULO CESAR CARVAJAL & PRODUCTOS INSTITUCIONALES | D163: PA-62 | E163: PA-62 - LAVAMANOS PORTÁTIL - UNIDAD | F163: ELEMENTOS DE ASEO | G163: LAVAMANOS PORTÁTIL DE USO AUTÓNOMO, TANQUES DE AGUA LIMPIA Y RESIDUAL 20 LT C/U, EN MATERIAL DE FÁCIL LAVADO Y DESINFECCIÓN, RESISTENTE A LA ABRASIÓN Y CORROSIÓN. LAVAMANOS CON SALPICADERO INCLUIDO Y GRIFERÍA TIPO PUSH. NOTA NO REQUIERE CONEXIÓN AL SISTEMA DE AGUAS | H163: Und | I163: Und | J163: Si | K163: Atención emergencia COVID-19 | L163: PAULO CESAR CARVAJAL & PRODUCTOS INSTITUCIONALES | M163: AECovid19-37 | N163: 1000000 | O163: COP | P163: 1 | Q163: 5 | R163: =Q163-SUMIFS(ResumenCotizacion!L:L,ResumenCotizacion!S:S,Catalogo!L163,ResumenCotizacion!C:C,Catalogo!D163) -> 5 | S163: 0.19 | T163: =+VLOOKUP(D163,[1]CONSOLIDADO!$C$2:$F$93,4,0) -> 1223604
A164: PA-65PAULO CESAR CARVAJAL & PRODUCTOS INSTITUCIONALES | D164: PA-65 | E164: PA-65 - DISPENSADOR AUTOMATICO DE JABÓN LÍQUIDO - UNIDAD | F164: ELEMENTOS DE ASEO | G164: ELABORADO EN PLÁSTICO ABS BLANCO CON SENSOR PARA SUMINISTRO DE JABÓN USO HABILITADO PARA CUALQUIER JABÓN LÍQUIDO CON CAPACIDAD MÍNIMA DE 800 CC CON CERRADURA Y LLAVE INCLUYE LOS ELEMENTOS NECESARIOS PARA REALIZAR LA INSTALACIÓN EN PARED | H164: Und | I164: Und | J164: Si | K164: Atención emergencia COVID-19 | L164: PAULO CESAR CARVAJAL & PRODUCTOS INSTITUCIONALES | M164: AECovid19-37 | N164: 105000 | O164: COP | P164: 1 | Q164: 50 | R164: =Q164-SUMIFS(ResumenCotizacion!L:L,ResumenCotizacion!S:S,Catalogo!L164,ResumenCotizacion!C:C,Catalogo!D164) -> 50 | S164: 0.19 | T164: =+VLOOKUP(D164,[1]CONSOLIDADO!$C$2:$F$93,4,0) -> 179319.8052
A165: PA-70PAULO CESAR CARVAJAL & PRODUCTOS INSTITUCIONALES | D165: PA-70 | E165: PA-70 - LAVAMANOS PORTÁTIL AUTÓNOMO CON DISPENSADORES INCLUIDOS - UNIDAD | F165: ELEMENTOS DE ASEO | G165: Lavamanos portátil de uso autónomo, tanques de agua limpia y residual 30 lt c/u, todo el lavamanos debe ser elaborado en acero inoxidable (Material de fácil lavado y desinfección, resistente a la abrasión y corrosión). Lavamanos con salpicadero incluido y pedal para dispensar el agua. Nota no requiere conexión al sistema de aguas. El lavamanos debe incluir: 1. DISPENSADOR TOALLA DE MANOS EN ROLLO PRECORTADO ASÍ: - Elaborado en plástico ABS - Para toallas de papel en rollo de 100 a 250 metros - Para halar con la mano. - Con cerradura y llave - Debe estár adherido al lavamanos 2. DISPENSADOR PARA JABÓN LÍQUIDO DE MANOS ASÍ: - Con pedal para suministro de jabón, que no implique tocar el dispensador - Uso habilitado para cualquier jabón líquido - Debe estár adherido al lavamanos | H165: Und | I165: Und | J165: Si | K165: Atención emergencia COVID-19 | L165: PAULO CESAR CARVAJAL & PRODUCTOS INSTITUCIONALES | M165: AECovid19-37 | N165: 1500000 | O165: COP | P165: 1 | Q165: 20 | R165: =Q165-SUMIFS(ResumenCotizacion!L:L,ResumenCotizacion!S:S,Catalogo!L165,ResumenCotizacion!C:C,Catalogo!D165) -> 20 | S165: 0.19 | T165: =+VLOOKUP(D165,[1]CONSOLIDADO!$C$2:$F$93,4,0) -> 2764995.219
A166: PA-71PAULO CESAR CARVAJAL & PRODUCTOS INSTITUCIONALES | D166: PA-71 | E166: PA-71 - BOLSA AMARILLAS - PAQUETE POR 50 UNIDADES | F166: ELEMENTOS DE ASEO | G166: BOLSA DE ELIMINACIÓN PARA RESIDUOS BIO-PELIGROSOS, 50X60CM, CON IMPRESIÓN "BIO HAZARD", POLIPROPILENO AUTOCLAVABLE. 50 O 70 MICRAS DE ESPESOR. COLOR AMARILLO | H166: Und | I166: Und | J166: Si | K166: Atención emergencia COVID-19 | L166: PAULO CESAR CARVAJAL & PRODUCTOS INSTITUCIONALES | M166: AECovid19-37 | N166: 6800 | O166: COP | P166: 1 | Q166: 3000 | R166: =Q166-SUMIFS(ResumenCotizacion!L:L,ResumenCotizacion!S:S,Catalogo!L166,ResumenCotizacion!C:C,Catalogo!D166) -> 3000 | S166: 0.19 | T166: =+VLOOKUP(D166,[1]CONSOLIDADO!$C$2:$F$93,4,0) -> 0
A167: PA-72PAULO CESAR CARVAJAL & PRODUCTOS INSTITUCIONALES | D167: PA-72 | E167: PA-72 - BOLSA ROJAS - PAQUETE POR 50 UNIDADES | F167: ELEMENTOS DE ASEO | G167: BOLSA DE ELIMINACIÓN PARA RESIDUOS BIO-PELIGROSOS, 18X18CM, CON IMPRESIÓN "BIO HAZARD", POLIPROPILENO AUTOCLAVABLE. 50 O 70 MICRAS DE ESPESOR. COLOR ROJO | H167: Und | I167: Und | J167: Si | K167: Atención emergencia COVID-19 | L167: PAULO CESAR CARVAJAL & PRODUCTOS INSTITUCIONALES | M167: AECovid19-37 | N167: 6800 | O167: COP | P167: 1 | Q167: 2000 | R167: =Q167-SUMIFS(ResumenCotizacion!L:L,ResumenCotizacion!S:S,Catalogo!L167,ResumenCotizacion!C:C,Catalogo!D167) -> 2000 | S167: 0.19 | T167: =+VLOOKUP(D167,[1]CONSOLIDADO!$C$2:$F$93,4,0) -> 77350
A168: PA-74PAULO CESAR CARVAJAL & PRODUCTOS INSTITUCIONALES | D168: PA-74 | E168: PA-74 - DETERGENTE - UNIDAD. BOLSA O RECIPIENTE PLÁSTICO POR 1.000 GR | F168: ELEMENTOS DE ASEO | G168: - Con agente tensoactivo de mínimo 60% de biodegradabilidad -Con efecto limpiador de mínimo 9%. - El envase del producto deberá estar correctamente etiquetado bajo los parámetros: nombre comercial del producto, pictogramas de los compuestos peligrosos e instrucciones de uso Polvo, en bolsa plástica o recipiente plástico con un peso de 1.000 gr | H168: Und | I168: Und | J168: Si | K168: Atención emergencia COVID-19 | L168: PAULO CESAR CARVAJAL & PRODUCTOS INSTITUCIONALES | M168: AECovid19-37 | N168: 2550 | O168: COP | P168: 1 | Q168: 10000 | R168: =Q168-SUMIFS(ResumenCotizacion!L:L,ResumenCotizacion!S:S,Catalogo!L168,ResumenCotizacion!C:C,Catalogo!D168) -> 10000 | S168: 0 | T168: =+VLOOKUP(D168,[1]CONSOLIDADO!$C$2:$F$93,4,0) -> 3151.25
A169: PA-77PAULO CESAR CARVAJAL & PRODUCTOS INSTITUCIONALES | D169: PA-77 | E169: PA-77 - ESPONJA - UNIDAD | F169: ELEMENTOS DE ASEO | G169: Esponja de limpieza de almohadilla verde para fregado de alta calidad para Cocina. Esponja amarilla con fibra verde adherida. | H169: Und | I169: Und | J169: Si | K169: Atención emergencia COVID-19 | L169: PAULO CESAR CARVAJAL & PRODUCTOS INSTITUCIONALES | M169: AECovid19-37 | N169: 400 | O169: COP | P169: 1 | Q169: 10000 | R169: =Q169-SUMIFS(ResumenCotizacion!L:L,ResumenCotizacion!S:S,Catalogo!L169,ResumenCotizacion!C:C,Catalogo!D169) -> 10000 | S169: 0.19 | T169: =+VLOOKUP(D169,[1]CONSOLIDADO!$C$2:$F$93,4,0) -> 0
A170: PA-80PAULO CESAR CARVAJAL & PRODUCTOS INSTITUCIONALES | D170: PA-80 | E170: PA-80 - MANGUERA - UNIDAD | F170: ELEMENTOS DE ASEO | G170: - Longitud mínima de 15 metros - Elaborada en PVC - Con terminales roscadas en ambos extremos - Incluye accesorios: acoples y pistola | H170: Und | I170: Und | J170: Si | K170: Atención emergencia COVID-19 | L170: PAULO CESAR CARVAJAL & PRODUCTOS INSTITUCIONALES | M170: AECovid19-37 | N170: 50000 | O170: COP | P170: 1 | Q170: 100 | R170: =Q170-SUMIFS(ResumenCotizacion!L:L,ResumenCotizacion!S:S,Catalogo!L170,ResumenCotizacion!C:C,Catalogo!D170) -> 100 | S170: 0.19 | T170: =+VLOOKUP(D170,[1]CONSOLIDADO!$C$2:$F$93,4,0) -> 0
A171: PA-84PAULO CESAR CARVAJAL & PRODUCTOS INSTITUCIONALES | D171: PA-84 | E171: PA-84 - VARSOL - UNIDAD POR 3.785 CC | F171: ELEMENTOS DE ASEO | G171: Varsol Ecológico Unidad de empaque: Líquido, en recipiente plástico con capacidad mínima de 3.785 cc | H171: Und | I171: Und | J171: Si | K171: Atención emergencia COVID-19 | L171: PAULO CESAR CARVAJAL & PRODUCTOS INSTITUCIONALES | M171: AECovid19-37 | N171: 40000 | O171: COP | P171: 2 | Q171: 300 | R171: =Q171-SUMIFS(ResumenCotizacion!L:L,ResumenCotizacion!S:S,Catalogo!L171,ResumenCotizacion!C:C,Catalogo!D171) -> 300 | S171: 0.19 | T171: =+VLOOKUP(D171,[1]CONSOLIDADO!$C$2:$F$93,4,0) -> 0
A172: PA-1COLCREATIVA SAS | D172: PA-1 | E172: PA-1 - ALCOHOL - FRASCO | F172: ELEMENTOS DE ASEO | G172: ANTISEPTICO DE USO EXTERNO AL 70%, FRASCO PLASTICO, BOTELLA X 750 CC | H172: Und | I172: Und | J172: Si | K172: Atención emergencia COVID-19 | L172: COLCREATIVA SAS | M172: AECovid19-53 | N172: 3900 | O172: COP | P172: 2 | Q172: 200000 | R172: =Q172-SUMIFS(ResumenCotizacion!L:L,ResumenCotizacion!S:S,Catalogo!L172,ResumenCotizacion!C:C,Catalogo!D172) -> 200000 | S172: 0 | T172: =+VLOOKUP(D172,[1]CONSOLIDADO!$C$2:$F$93,4,0) -> 11598.2175
A173: PA-4COLCREATIVA SAS | D173: PA-4 | E173: PA-4 - ALCOHOL ISOPROPILICO 70% EN GEL PARA ANTISEPSIA DE MANOS - FC X1LT | F173: ELEMENTOS DE ASEO | G173: ALCOHOL ISOPROPILICO EN GEL PARA ANTISEPSIA DE MANOS, 70ML+2G/100ML | H173: Und | I173: Und | J173: Si | K173: Atención emergencia COVID-19 | L173: COLCREATIVA SAS | M173: AECovid19-53 | N173: 23000 | O173: COP | P173: 1 | Q173: 100000 | R173: =Q173-SUMIFS(ResumenCotizacion!L:L,ResumenCotizacion!S:S,Catalogo!L173,ResumenCotizacion!C:C,Catalogo!D173) -> 100000 | S173: 0 | T173: =+VLOOKUP(D173,[1]CONSOLIDADO!$C$2:$F$93,4,0) -> 23444.5125
A174: PA-30COLCREATIVA SAS | D174: PA-30 | E174: PA-30 - JABÓN DISPENSADOR PARA MANOS 2 - LÍQUIDO, EN RECIPIENTE PLÁSTICO CON CAPACIDAD MÍNIMA DE 3.785 CC | F174: ELEMENTOS DE ASEO | G174: - CON AGENTE LIMPIADOR EN UNA CONCENTRACIÓN MÍNIMA DEL 6%. - CON AGENTE ANTIBACTERIAL EN UNA CONCENTRACIÓN MÍNIMA DEL 0,2% - CON AGENTE HUMECTANTE EN UNA CONCENTRACIÓN MÍNIMA DEL 3% - PH ENTRE 5,5 A 7 - DISPONIBLE EN MÍNIMO (2) DOS FRAGANCIAS | H174: Und | I174: Und | J174: Si | K174: Atención emergencia COVID-19 | L174: COLCREATIVA SAS | M174: AECovid19-53 | N174: 32000 | O174: COP | P174: 1 | Q174: 10000 | R174: =Q174-SUMIFS(ResumenCotizacion!L:L,ResumenCotizacion!S:S,Catalogo!L174,ResumenCotizacion!C:C,Catalogo!D174) -> 10000 | S174: 0 | T174: =+VLOOKUP(D174,[1]CONSOLIDADO!$C$2:$F$93,4,0) -> 39288.75
A175: PA-62COLCREATIVA SAS | D175: PA-62 | E175: PA-62 - LAVAMANOS PORTÁTIL - UNIDAD | F175: ELEMENTOS DE ASEO | G175: LAVAMANOS PORTÁTIL DE USO AUTÓNOMO, TANQUES DE AGUA LIMPIA Y RESIDUAL 20 LT C/U, EN MATERIAL DE FÁCIL LAVADO Y DESINFECCIÓN, RESISTENTE A LA ABRASIÓN Y CORROSIÓN. LAVAMANOS CON SALPICADERO INCLUIDO Y GRIFERÍA TIPO PUSH. NOTA NO REQUIERE CONEXIÓN AL SISTEMA DE AGUAS | H175: Und | I175: Und | J175: Si | K175: Atención emergencia COVID-19 | L175: COLCREATIVA SAS | M175: AECovid19-53 | N175: 580000 | O175: COP | P175: 1 | Q175: 100 | R175: =Q175-SUMIFS(ResumenCotizacion!L:L,ResumenCotizacion!S:S,Catalogo!L175,ResumenCotizacion!C:C,Catalogo!D175) -> 100 | S175: 0.19 | T175: =+VLOOKUP(D175,[1]CONSOLIDADO!$C$2:$F$93,4,0) -> 1223604
A176: PA-66COLCREATIVA SAS | D176: PA-66 | E176: PA-66 - BASES PARA DISPENSADORES DE GEL DESINFECTANTE Y JABÓN LÍQUIDO PARA MANOS - UNIDAD | F176: ELEMENTOS DE ASEO | G176: BASE EN TUBOS DE PLÁSTICO O METÁLICA. EL SOPORTE PRESIONA EL DISPENSADOR DEL GEL DESINFECTANTE O DEL JABÓN LÍQUIDO PARA MANOS SIN NECESIDAD DE TOCARLO CON LA MANO. ACCIONA EL PEDAN CON EL PIE HACIA ABAJO. | H176: Und | I176: Und | J176: Si | K176: Atención emergencia COVID-19 | L176: COLCREATIVA SAS | M176: AECovid19-53 | N176: 63000 | O176: COP | P176: 1 | Q176: 300 | R176: =Q176-SUMIFS(ResumenCotizacion!L:L,ResumenCotizacion!S:S,Catalogo!L176,ResumenCotizacion!C:C,Catalogo!D176) -> 300 | S176: 0.19 | T176: =+VLOOKUP(D176,[1]CONSOLIDADO!$C$2:$F$93,4,0) -> 135750
A177: PA-88COLCREATIVA SAS | D177: PA-88 | E177: PA-88 - LAVAMANOS PORTÁTIL AUTONOMO Y MOVIL, DUAL PARA POBLACIÓN OBJETIVO NIÑ@S PREESCOLAR | F177: ELEMENTOS DE ASEO | G177: Lavamanos portátil autónomo con sistema de pedal para accionamiento pasó agua con dispensadores de toallas y gel o jabón antibacterial. Papelera de residuos integrada y opciones multiuso. DIMENSIONES: ALTURA TOTAL 1000 mm +- 5mm ALTURA A POSETA LAVAMANOS 600 mm +- 5mm Ancho 550 mm +- 5 mm Profundo 450 mm +- 5mm Salpique 100 mm +- 5 mm Cumplir con lo estipulado en la ficha técnica de nombre: "PA-88_FICHA TECNICA LAVAMANOS PORTATIL MOVIL – PREESCOLAR" | H177: Und | I177: Und | J177: Si | K177: Atención emergencia COVID-19 | L177: COLCREATIVA SAS | M177: AECovid19-53 | N177: 890000 | O177: COP | P177: 1 | Q177: 100 | R177: =Q177-SUMIFS(ResumenCotizacion!L:L,ResumenCotizacion!S:S,Catalogo!L177,ResumenCotizacion!C:C,Catalogo!D177) -> 100 | S177: 0.19 | T177: =+VLOOKUP(D177,[1]CONSOLIDADO!$C$2:$F$93,4,0) -> 1965300
A178: PA-89COLCREATIVA SAS | D178: PA-89 | E178: PA-89 - LAVAMANOS PORTÁTIL AUTONOMO Y MOVIL, DUAL PARA POBLACIÓN OBJETIVO NIÑ@S DE PRIMARIA | F178: ELEMENTOS DE ASEO | G178: Lavamanos portátil autónomo con sistema de pedal para accionamiento pasó agua con dispensadores de toallas y gel o jabón antibacterial. Papelera de residuos integrada y opciones multiuso. DIMENSIONES: ALTURA TOTAL 1300 mm +- 5mm ALTURA A POSETA LAVAMANOS 720 mm +- 5mm Ancho 550 mm +- 5 mm Profundo 450 mm +- 5mm Salpique 100 mm +- 5 mm Cumplir con lo estipulado en la ficha técnica de nombre: "PA-89_FICHA TECNICA LAVAMANOS PORTATIL MOVIL – PRIMARIA" | H178: Und | I178: Und | J178: Si | K178: Atención emergencia COVID-19 | L178: COLCREATIVA SAS | M178: AECovid19-53 | N178: 950000 | O178: COP | P178: 1 | Q178: 100 | R178: =Q178-SUMIFS(ResumenCotizacion!L:L,ResumenCotizacion!S:S,Catalogo!L178,ResumenCotizacion!C:C,Catalogo!D178) -> 100 | S178: 0.19 | T178: =+VLOOKUP(D178,[1]CONSOLIDADO!$C$2:$F$93,4,0) -> 1700625
A179: PA-75MARKETING STORE SAS | D179: PA-75 | E179: PA-75 - FRASCO ATOMIZADOR 1 - UNIDAD | F179: ELEMENTOS DE ASEO | G179: FRASCO EN PLÁSTICO CON CAPACIDAD DE 1.000 ML | H179: Und | I179: Und | J179: Si | K179: Atención emergencia COVID-19 | L179: MARKETING STORE SAS | M179: AECovid19-70 | N179: 1500 | O179: COP | P179: 1 | Q179: 800000 | R179: =Q179-SUMIFS(ResumenCotizacion!L:L,ResumenCotizacion!S:S,Catalogo!L179,ResumenCotizacion!C:C,Catalogo!D179) -> 800000 | S179: 0.19 | T179: =+VLOOKUP(D179,[1]CONSOLIDADO!$C$2:$F$93,4,0) -> 6996.34625
A180: PA-76MARKETING STORE SAS | D180: PA-76 | E180: PA-76 - DISPENSADOR DE GEL - UNIDAD | F180: ELEMENTOS DE ASEO | G180: DISPENSADOR PLÁSTICO CON DOSIFICADOR. CAPACIDAD DE 500 ML | H180: Und | I180: Und | J180: Si | K180: Atención emergencia COVID-19 | L180: MARKETING STORE SAS | M180: AECovid19-70 | N180: 1500 | O180: COP | P180: 1 | Q180: 800000 | R180: =Q180-SUMIFS(ResumenCotizacion!L:L,ResumenCotizacion!S:S,Catalogo!L180,ResumenCotizacion!C:C,Catalogo!D180) -> 800000 | S180: 0.19 | T180: =+VLOOKUP(D180,[1]CONSOLIDADO!$C$2:$F$93,4,0) -> 2437
A181: PA-79MARKETING STORE SAS | D181: PA-79 | E181: PA-79 - HIDROLAVADORA - UNIDAD | F181: ELEMENTOS DE ASEO | G181: - Motor eléctrico y potencia de mínimo 2.2 Kw - 1.450 RPM y entre 2.5 HP y 3.5 HP. - Presión de salida de agua entre 1500 psi y 1900 psi. - Con ruedas | H181: Und | I181: Und | J181: Si | K181: Atención emergencia COVID-19 | L181: MARKETING STORE SAS | M181: AECovid19-70 | N181: 590000 | O181: COP | P181: 1 | Q181: 2000 | R181: =Q181-SUMIFS(ResumenCotizacion!L:L,ResumenCotizacion!S:S,Catalogo!L181,ResumenCotizacion!C:C,Catalogo!D181) -> 2000 | S181: 0.19 | T181: =+VLOOKUP(D181,[1]CONSOLIDADO!$C$2:$F$93,4,0) -> 0
A182: PA-88MARKETING STORE SAS | D182: PA-88 | E182: PA-88 - LAVAMANOS PORTÁTIL AUTONOMO Y MOVIL, DUAL PARA POBLACIÓN OBJETIVO NIÑ@S PREESCOLAR | F182: ELEMENTOS DE ASEO | G182: Lavamanos portátil autónomo con sistema de pedal para accionamiento pasó agua con dispensadores de toallas y gel o jabón antibacterial. Papelera de residuos integrada y opciones multiuso. DIMENSIONES: ALTURA TOTAL 1000 mm +- 5mm ALTURA A POSETA LAVAMANOS 600 mm +- 5mm Ancho 550 mm +- 5 mm Profundo 450 mm +- 5mm Salpique 100 mm +- 5 mm Cumplir con lo estipulado en la ficha técnica de nombre: "PA-88_FICHA TECNICA LAVAMANOS PORTATIL MOVIL – PREESCOLAR" | H182: Und | I182: Und | J182: Si | K182: Atención emergencia COVID-19 | L182: MARKETING STORE SAS | M182: AECovid19-70 | N182: 970000 | O182: COP | P182: 1 | Q182: 5000 | R182: =Q182-SUMIFS(ResumenCotizacion!L:L,ResumenCotizacion!S:S,Catalogo!L182,ResumenCotizacion!C:C,Catalogo!D182) -> 5000 | S182: 0.19 | T182: =+VLOOKUP(D182,[1]CONSOLIDADO!$C$2:$F$93,4,0) -> 1965300
A183: PA-89MARKETING STORE SAS | D183: PA-89 | E183: PA-89 - LAVAMANOS PORTÁTIL AUTONOMO Y MOVIL, DUAL PARA POBLACIÓN OBJETIVO NIÑ@S DE PRIMARIA | F183: ELEMENTOS DE ASEO | G183: Lavamanos portátil autónomo con sistema de pedal para accionamiento pasó agua con dispensadores de toallas y gel o jabón antibacterial. Papelera de residuos integrada y opciones multiuso. DIMENSIONES: ALTURA TOTAL 1300 mm +- 5mm ALTURA A POSETA LAVAMANOS 720 mm +- 5mm Ancho 550 mm +- 5 mm Profundo 450 mm +- 5mm Salpique 100 mm +- 5 mm Cumplir con lo estipulado en la ficha técnica de nombre: "PA-89_FICHA TECNICA LAVAMANOS PORTATIL MOVIL – PRIMARIA" | H183: Und | I183: Und | J183: Si | K183: Atención emergencia COVID-19 | L183: MARKETING STORE SAS | M183: AECovid19-70 | N183: 970000 | O183: COP | P183: 1 | Q183: 5000 | R183: =Q183-SUMIFS(ResumenCotizacion!L:L,ResumenCotizacion!S:S,Catalogo!L183,ResumenCotizacion!C:C,Catalogo!D183) -> 5000 | S183: 0.19 | T183: =+VLOOKUP(D183,[1]CONSOLIDADO!$C$2:$F$93,4,0) -> 1700625
A184: PA-90MARKETING STORE SAS | D184: PA-90 | E184: PA-90 - LAVAMANOS CONEXIÓN AGUA | F184: ELEMENTOS DE ASEO | G184: “LAVAMANOS CONEXIÓN AGUA: 50X50 X 90 CM, CON SISTEMA DE ACCIÓN CON EL PIE (3 PEDALES ) PARA DISPENSAR EL AGUA, EL JABÓN Y EL GEL. FÁCIL UBICACIÓN EN ÁREAS DE CIRCULACIÓN REDUCIDAS , ELABORADO EN LÁMINA DE ACERO 304 CA 20, COMPLETAMENTE INOXIDABLE, ANTIMAGNÉTICO, CÓMODO POZUELO QUIRÚRGICO DE 20 CM DE PROFUNDIDAD, CONEXIÓN A CUALQUIER ACOMETIDA DE AGUA, RÁPIDO Y EFICIENTE SISTEMA DE ACOPLE, LLAVE DE PASO CONVENCIONAL, SISTEMA DE GRIFERIA CON MANGUERA ACORDEÓN PARA FACIL CONEXIÓN, CONEXIÓN DE AGUA DE MEDIA A MEDIA” | H184: Und | I184: Und | J184: Si | K184: Atención emergencia COVID-19 | L184: MARKETING STORE SAS | M184: AECovid19-70 | N184: 748999 | O184: COP | P184: 1 | Q184: 2500 | R184: =Q184-SUMIFS(ResumenCotizacion!L:L,ResumenCotizacion!S:S,Catalogo!L184,ResumenCotizacion!C:C,Catalogo!D184) -> 2500 | S184: 0.19 | T184: =+VLOOKUP(D184,[1]CONSOLIDADO!$C$2:$F$93,4,0) -> 1608000
A185: PA-16PROCTECH TECNOLOGIA EN PROTECCION S.A.S. | D185: PA-16 | E185: PA-16 - DETERGENTE DESINFECTANTE LIQUIDO A BASE DE AMONIOS CUATERNARIOS DE V GENERACIÓN - FRASCO X 750ML | F185: ELEMENTOS DE ASEO | G185: DETERGENTE DESINFECTANTE DE DISPOSITIVOS MÉDICOS QUE COMBINA LIMPIEZA Y DESINFECCIÓN DE DISPOSITIVOS MÉDICOS, SUPERFICIES DE ÁREAS DE ALTO RIESGO, FORMULA SIN ALDEHIDO NI CLORURO AMPLIO, AMPLIO ESPECTRO ANTIMICROBIANO EN 5 MINUTOS DE CONTACTO FRASCO DE 750 ML CON CARÁCTER ANTICORROSIVO RESPECTO DEL ACERO INOXIDABLE, PULVERIZADOR ESPUMOSO COMPUESTO DE PROPIONATO DE AMONIO CUATERNARIO, ACETATO DE DUARDINIO, NPROPANOL, TENSIOACTIVO NO IÓNICO, PERFUME Y EXCIPIENTES EN 5 MINUTOS DE CONTACTO | H185: Und | I185: Und | J185: Si | K185: Atención emergencia COVID-19 | L185: PROCTECH TECNOLOGIA EN PROTECCION S.A.S. | M185: AECovid19-62 | N185: 2900 | O185: COP | P185: 1 | Q185: 10000 | R185: =Q185-SUMIFS(ResumenCotizacion!L:L,ResumenCotizacion!S:S,Catalogo!L185,ResumenCotizacion!C:C,Catalogo!D185) -> 10000 | S185: 0 | T185: =+VLOOKUP(D185,[1]CONSOLIDADO!$C$2:$F$93,4,0) -> 13500
A186: PA-17VADEL S.A.S. | D186: PA-17 | E186: PA-17 - GEL ANTIBACTERIAL - GALON | F186: ELEMENTOS DE ASEO | G186: ANTISÉPTICO GEL PARA MANOS QUE NO REQUIERE ENJUAGUE FORMULADO A BASE DE ALCOHOL ETÍLICO DE 60-80% W/W; ADICIONADO CON HUMECTANTES Y EMOLIENTES HIPO ALERGÉNICO. GEL ANTIBACTERIAL O ALCOHOL EN GEL PRESENTA LA MANERA MÁS PRÁCTICA DE MANTENER UNA HIGIENE A CUALQUIER HORA DEL DÍA Y EN CUALQUIER LUGAR. PRODUCTO ESPECIALMENTE FORMULADO PARA SATISFACER LAS NUEVAS NECESIDADES DE LIMPIEZA DE MANOS CON EL OBJETO ÚNICO DE CUIDAR LA SALUD. DEBE CONTAR CON REGISTRO INVIMA, PRESENTACIÓN GALÓN ASPECTO:GEL INCOLORO, TRANSPARENTE CONTENIDO ALCOHOL: AL 60-80% W/W, AGUA, HUMECTANTES Y EMOLIENTES, AROMATIZANTES Y ACEITES ESENCIALES. PH: 6.5 – 7.5 | H186: Und | I186: Und | J186: Si | K186: Atención emergencia COVID-19 | L186: VADEL S.A.S. | M186: AECovid19-6 | N186: 25000 | O186: COP | P186: 1 | Q186: 645 | R186: =Q186-SUMIFS(ResumenCotizacion!L:L,ResumenCotizacion!S:S,Catalogo!L186,ResumenCotizacion!C:C,Catalogo!D186) -> 645 | S186: 0 | T186: =+VLOOKUP(D186,[1]CONSOLIDADO!$C$2:$F$93,4,0) -> 71250
A187: PA-1MULTISUMINISTROS CTG S.A.S. | D187: PA-1 | E187: PA-1 - ALCOHOL - FRASCO | F187: ELEMENTOS DE ASEO | G187: ANTISEPTICO DE USO EXTERNO AL 70%, FRASCO PLASTICO, BOTELLA X 750 CC | H187: Und | I187: Und | J187: Si | K187: Atención emergencia COVID-19 | L187: MULTISUMINISTROS CTG S.A.S. | M187: AECovid19-108 | N187: 5250 | O187: COP | P187: 1 | Q187: 12000 | R187: =Q187-SUMIFS(ResumenCotizacion!L:L,ResumenCotizacion!S:S,Catalogo!L187,ResumenCotizacion!C:C,Catalogo!D187) -> 12000 | S187: 0 | T187: =+VLOOKUP(D187,[1]CONSOLIDADO!$C$2:$F$93,4,0) -> 11598.2175
A188: PA-2MULTISUMINISTROS CTG S.A.S. | D188: PA-2 | E188: PA-2 - ALCOHOL GALÓN X 3.750 ML - GALON | F188: ELEMENTOS DE ASEO | G188: ALCOHOL GALÓN X 3.750 ML CON INGREDIENTE ACTIVO ALCOHOL ETILICO IMPOTABILIZADO 96% | H188: Und | I188: Und | J188: Si | K188: Atención emergencia COVID-19 | L188: MULTISUMINISTROS CTG S.A.S. | M188: AECovid19-108 | N188: 22650 | O188: COP | P188: 1 | Q188: 6000 | R188: =Q188-SUMIFS(ResumenCotizacion!L:L,ResumenCotizacion!S:S,Catalogo!L188,ResumenCotizacion!C:C,Catalogo!D188) -> 6000 | S188: 0 | T188: =+VLOOKUP(D188,[1]CONSOLIDADO!$C$2:$F$93,4,0) -> 52400.25
A189: PA-17MULTISUMINISTROS CTG S.A.S. | D189: PA-17 | E189: PA-17 - GEL ANTIBACTERIAL - GALON | F189: ELEMENTOS DE ASEO | G189: ANTISÉPTICO GEL PARA MANOS QUE NO REQUIERE ENJUAGUE FORMULADO A BASE DE ALCOHOL ETÍLICO DE 60-80% W/W; ADICIONADO CON HUMECTANTES Y EMOLIENTES HIPO ALERGÉNICO. GEL ANTIBACTERIAL O ALCOHOL EN GEL PRESENTA LA MANERA MÁS PRÁCTICA DE MANTENER UNA HIGIENE A CUALQUIER HORA DEL DÍA Y EN CUALQUIER LUGAR. PRODUCTO ESPECIALMENTE FORMULADO PARA SATISFACER LAS NUEVAS NECESIDADES DE LIMPIEZA DE MANOS CON EL OBJETO ÚNICO DE CUIDAR LA SALUD. DEBE CONTAR CON REGISTRO INVIMA, PRESENTACIÓN GALÓN ASPECTO:GEL INCOLORO, TRANSPARENTE CONTENIDO ALCOHOL: AL 60-80% W/W, AGUA, HUMECTANTES Y EMOLIENTES, AROMATIZANTES Y ACEITES ESENCIALES. PH: 6.5 – 7.5 | H189: Und | I189: Und | J189: Si | K189: Atención emergencia COVID-19 | L189: MULTISUMINISTROS CTG S.A.S. | M189: AECovid19-108 | N189: 35250 | O189: COP | P189: 1 | Q189: 3000 | R189: =Q189-SUMIFS(ResumenCotizacion!L:L,ResumenCotizacion!S:S,Catalogo!L189,ResumenCotizacion!C:C,Catalogo!D189) -> 3000 | S189: 0 | T189: =+VLOOKUP(D189,[1]CONSOLIDADO!$C$2:$F$93,4,0) -> 71250
A190: PA-18MULTISUMINISTROS CTG S.A.S. | D190: PA-18 | E190: PA-18 - GEL ANTIBACTERIAL - FC X1LT | F190: ELEMENTOS DE ASEO | G190: ALCOHOL ISOPROPILICO 70% EN GEL PARA ANTISEPSIA DE MANOS ALCOHOL ISOPROPILICO EN GEL PARA ANTISEPSIA DE MANOS, 70ML+2G/100ML | H190: Und | I190: Und | J190: Si | K190: Atención emergencia COVID-19 | L190: MULTISUMINISTROS CTG S.A.S. | M190: AECovid19-108 | N190: 14100 | O190: COP | P190: 1 | Q190: 6000 | R190: =Q190-SUMIFS(ResumenCotizacion!L:L,ResumenCotizacion!S:S,Catalogo!L190,ResumenCotizacion!C:C,Catalogo!D190) -> 6000 | S190: 0 | T190: =+VLOOKUP(D190,[1]CONSOLIDADO!$C$2:$F$93,4,0) -> 27000
A191: PA-28MULTISUMINISTROS CTG S.A.S. | D191: PA-28 | E191: PA-28 - JABÓN DISPENSADOR PARA MANOS 1 - LÍQUIDO, EN RECIPIENTE PLÁSTICO CON DISPENSADOR Y CAPACIDAD MÍNIMA DE 500 ML. | F191: ELEMENTOS DE ASEO | G191: - CON AGENTE LIMPIADOR EN UNA CONCENTRACIÓN MÍNIMA DEL 6% - CON AGENTE HUMECTANTE EN UNA CONCENTRACIÓN MÍNIMA DEL 3% - PH ENTRE 5,5 A 7 - DISPONIBLE EN MÍNIMO (2) DOS FRAGANCIAS | H191: Und | I191: Und | J191: Si | K191: Atención emergencia COVID-19 | L191: MULTISUMINISTROS CTG S.A.S. | M191: AECovid19-108 | N191: 7000 | O191: COP | P191: 1 | Q191: 200 | R191: =Q191-SUMIFS(ResumenCotizacion!L:L,ResumenCotizacion!S:S,Catalogo!L191,ResumenCotizacion!C:C,Catalogo!D191) -> 200 | S191: 0 | T191: =+VLOOKUP(D191,[1]CONSOLIDADO!$C$2:$F$93,4,0) -> 10500
A192: PA-29MULTISUMINISTROS CTG S.A.S. | D192: PA-29 | E192: PA-29 - JABÓN LÍQUIDO QUIRUCIDAL - FRASCO POR 500 ML. | F192: ELEMENTOS DE ASEO | G192: POR CADA 100 ML : CLORHXIDINA DIGLUCONATO POR 4.0 g CETRIMIDA POR 1.0 g EXCIPIENTES, CSP POR 100.0 mL | H192: Und | I192: Und | J192: Si | K192: Atención emergencia COVID-19 | L192: MULTISUMINISTROS CTG S.A.S. | M192: AECovid19-108 | N192: 3822 | O192: COP | P192: 1 | Q192: 200 | R192: =Q192-SUMIFS(ResumenCotizacion!L:L,ResumenCotizacion!S:S,Catalogo!L192,ResumenCotizacion!C:C,Catalogo!D192) -> 200 | S192: 0 | T192: =+VLOOKUP(D192,[1]CONSOLIDADO!$C$2:$F$93,4,0) -> 5130.3225
A193: PA-31MULTISUMINISTROS CTG S.A.S. | D193: PA-31 | E193: PA-31 - JABÓN EN BARRA - BARRA, UNIDAD CON PESO MÍNIMO DE 250 GR EN ENVOLTURA INDIVIDUAL | F193: ELEMENTOS DE ASEO | G193: -COMPOSICIÓN DE ÁCIDOS GRASOS DE MÍNIMO 50%. | H193: Und | I193: Und | J193: Si | K193: Atención emergencia COVID-19 | L193: MULTISUMINISTROS CTG S.A.S. | M193: AECovid19-108 | N193: 2031.5 | O193: COP | P193: 1 | Q193: 200 | R193: =Q193-SUMIFS(ResumenCotizacion!L:L,ResumenCotizacion!S:S,Catalogo!L193,ResumenCotizacion!C:C,Catalogo!D193) -> 200 | S193: 0 | T193: =+VLOOKUP(D193,[1]CONSOLIDADO!$C$2:$F$93,4,0) -> 5136.866231
A194: PA-17SERVICIOS INTEGRALES INTELIGENTES SAS | D194: PA-17 | E194: PA-17 - GEL ANTIBACTERIAL - GALON | F194: ELEMENTOS DE ASEO | G194: ANTISÉPTICO GEL PARA MANOS QUE NO REQUIERE ENJUAGUE FORMULADO A BASE DE ALCOHOL ETÍLICO DE 60-80% W/W; ADICIONADO CON HUMECTANTES Y EMOLIENTES HIPO ALERGÉNICO. GEL ANTIBACTERIAL O ALCOHOL EN GEL PRESENTA LA MANERA MÁS PRÁCTICA DE MANTENER UNA HIGIENE A CUALQUIER HORA DEL DÍA Y EN CUALQUIER LUGAR. PRODUCTO ESPECIALMENTE FORMULADO PARA SATISFACER LAS NUEVAS NECESIDADES DE LIMPIEZA DE MANOS CON EL OBJETO ÚNICO DE CUIDAR LA SALUD. DEBE CONTAR CON REGISTRO INVIMA, PRESENTACIÓN GALÓN ASPECTO:GEL INCOLORO, TRANSPARENTE CONTENIDO ALCOHOL: AL 60-80% W/W, AGUA, HUMECTANTES Y EMOLIENTES, AROMATIZANTES Y ACEITES ESENCIALES. PH: 6.5 – 7.5 | H194: Und | I194: Und | J194: Si | K194: Atención emergencia COVID-19 | L194: SERVICIOS INTEGRALES INTELIGENTES SAS | M194: AECovid19-78 | N194: 48000 | O194: COP | P194: =COUNTIFS(D:D,D194,N:N,N194) -> 2 | Q194: 50 | R194: =Q194-SUMIFS(ResumenCotizacion!L:L,ResumenCotizacion!S:S,Catalogo!L194,ResumenCotizacion!C:C,Catalogo!D194) -> 50 | S194: 0 | T194: =+VLOOKUP(D194,[1]CONSOLIDADO!$C$2:$F$93,4,0) -> 71250
A195: =+D195&L195 -> PA-18SERVICIOS INTEGRALES INTELIGENTES SAS | D195: PA-18 | E195: PA-18 - GEL ANTIBACTERIAL - FC X1LT | F195: ELEMENTOS DE ASEO | G195: ALCOHOL ISOPROPILICO 70% EN GEL PARA ANTISEPSIA DE MANOS ALCOHOL ISOPROPILICO EN GEL PARA ANTISEPSIA DE MANOS, 70ML+2G/100ML | H195: Und | I195: Und | J195: Si | K195: Atención emergencia COVID-19 | L195: SERVICIOS INTEGRALES INTELIGENTES SAS | M195: AECovid19-78 | N195: 13000 | O195: COP | P195: 2 | Q195: 150 | R195: =Q195-SUMIFS(ResumenCotizacion!L:L,ResumenCotizacion!S:S,Catalogo!L195,ResumenCotizacion!C:C,Catalogo!D195) -> 150 | S195: 0 | T195: =+VLOOKUP(D195,[1]CONSOLIDADO!$C$2:$F$93,4,0) -> 27000
A196: PA-17HB SUPPLIER S.A | D196: PA-17 | E196: PA-17 - GEL ANTIBACTERIAL - GALON | F196: ELEMENTOS DE ASEO | G196: ANTISÉPTICO GEL PARA MANOS QUE NO REQUIERE ENJUAGUE FORMULADO A BASE DE ALCOHOL ETÍLICO DE 60-80% W/W; ADICIONADO CON HUMECTANTES Y EMOLIENTES HIPO ALERGÉNICO. GEL ANTIBACTERIAL O ALCOHOL EN GEL PRESENTA LA MANERA MÁS PRÁCTICA DE MANTENER UNA HIGIENE A CUALQUIER HORA DEL DÍA Y EN CUALQUIER LUGAR. PRODUCTO ESPECIALMENTE FORMULADO PARA SATISFACER LAS NUEVAS NECESIDADES DE LIMPIEZA DE MANOS CON EL OBJETO ÚNICO DE CUIDAR LA SALUD. DEBE CONTAR CON REGISTRO INVIMA, PRESENTACIÓN GALÓN ASPECTO:GEL INCOLORO, TRANSPARENTE CONTENIDO ALCOHOL: AL 60-80% W/W, AGUA, HUMECTANTES Y EMOLIENTES, AROMATIZANTES Y ACEITES ESENCIALES. PH: 6.5 – 7.5 | H196: Und | I196: Und | J196: Si | K196: Atención emergencia COVID-19 | L196: HB SUPPLIER S.A | M196: AECovid19-74 | N196: 40500 | O196: COP | P196: 1 | Q196: 200 | R196: =Q196-SUMIFS(ResumenCotizacion!L:L,ResumenCotizacion!S:S,Catalogo!L196,ResumenCotizacion!C:C,Catalogo!D196) -> 200 | S196: 0 | T196: =+VLOOKUP(D196,[1]CONSOLIDADO!$C$2:$F$93,4,0) -> 71250
A197: PA-36HB SUPPLIER S.A | D197: PA-36 | E197: PA-36 - JABÓN GERMICIDA - FRASCO POR 500 ML. | F197: ELEMENTOS DE ASEO | G197: JABÓN LIQUIDO CON APARIENCIA VISCOSA E INCOLORA. 0,2% DE TRICLOSÁN. CON ÁCIDO LÁCTICO Y EXIPIENTES. | H197: Und | I197: Und | J197: Si | K197: Atención emergencia COVID-19 | L197: HB SUPPLIER S.A | M197: AECovid19-74 | N197: 9500 | O197: COP | P197: 1 | Q197: 1500 | R197: =Q197-SUMIFS(ResumenCotizacion!L:L,ResumenCotizacion!S:S,Catalogo!L197,ResumenCotizacion!C:C,Catalogo!D197) -> 1500 | S197: 0 | T197: =+VLOOKUP(D197,[1]CONSOLIDADO!$C$2:$F$93,4,0) -> 23025
A198: PA-38HB SUPPLIER S.A | D198: PA-38 | E198: PA-38 - LIMPIADOR MULTIUSOS 1 - LÍQUIDO, EN RECIPIENTE PLÁSTICO CON CAPACIDAD MÍNIMA DE 3.785 CC | F198: ELEMENTOS DE ASEO | G198: - CON AGENTE(S) TENSOACTIVO(S) PRINCIPAL(ES) CON EFECTO LIMPIADOR EN UNA CONCENTRACIÓN MÍNIMA DEL 8% - DISPONIBLE EN MÍNIMO (2) DOS FRAGANCIAS - EL ENVASE DEBE ESTAR CORRECTAMENTE ETIQUETADOS BAJO LOS PARÁMETROS ESTABLECIDOS EN EL SISTEMA GLOBALMENTE ARMONIZADO INDICANDO: NOMBRE COMERCIAL DEL PRODUCTO, PICTOGRAMAS DE LOS COMPUESTOS PELIGROSOS E INSTRUCCIONES DE USO | H198: Und | I198: Und | J198: Si | K198: Atención emergencia COVID-19 | L198: HB SUPPLIER S.A | M198: AECovid19-74 | N198: 9500 | O198: COP | P198: 1 | Q198: 50 | R198: =Q198-SUMIFS(ResumenCotizacion!L:L,ResumenCotizacion!S:S,Catalogo!L198,ResumenCotizacion!C:C,Catalogo!D198) -> 50 | S198: 0 | T198: =+VLOOKUP(D198,[1]CONSOLIDADO!$C$2:$F$93,4,0) -> 10000
A199: PA-39HB SUPPLIER S.A | D199: PA-39 | E199: PA-39 - LIMPIADOR Y DESCONTAMINANTE ENZIMÀTICO - PAQUETE POR 12 BOLSITAS HIDROSOLUBLES DE 20 GRS | F199: ELEMENTOS DE ASEO | G199: DETERGENTE ENZIMÁTICO BACTERICIDA CON CAPACIDAD DE HIDROLIZAR LAS PROTEÍNAS. ESTABILIDAD DE LA SOLUCIÓN PREPARADA SIN USAR HASTA POR 7 DÍAS SIN DEGRADACIÓN DE LA ACTIVIDAD ENZIMÁTICA, PROTEOLÌTICA Y DETERGENTE. IDEAL PARA LA DESINFECCIÓN DE DISPOSITIVOS DIFÍCILES DE LAVAR. | H199: Und | I199: Und | J199: Si | K199: Atención emergencia COVID-19 | L199: HB SUPPLIER S.A | M199: AECovid19-74 | N199: 58000 | O199: COP | P199: 1 | Q199: 300 | R199: =Q199-SUMIFS(ResumenCotizacion!L:L,ResumenCotizacion!S:S,Catalogo!L199,ResumenCotizacion!C:C,Catalogo!D199) -> 300 | S199: 0 | T199: =+VLOOKUP(D199,[1]CONSOLIDADO!$C$2:$F$93,4,0) -> 126600
A200: PA-40HB SUPPLIER S.A | D200: PA-40 | E200: PA-40 - LIMPIADOR Y DESCONTAMINANTE ENZIMÀTICO - PAQUETE POR 12 BOLSITAS HIDROSOLUBLES DE 20 GRS | F200: ELEMENTOS DE ASEO | G200: DETERGENTE ENZIMÁTICO BACTERICIDA CON CAPACIDAD DE HIDROLIZAR LAS PROTEÍNAS. ESTABILIDAD DE LA SOLUCIÓN PREPARADA SIN USAR HASTA POR 7 DÍAS SIN DEGRADACIÓN DE LA ACTIVIDAD ENZIMÁTICA, PROTEOLÌTICA Y DETERGENTE. IDEAL PARA LA DESINFECCIÓN DE DISPOSITIVOS DIFÍCILES DE LAVAR. | H200: Und | I200: Und | J200: Si | K200: Atención emergencia COVID-19 | L200: HB SUPPLIER S.A | M200: AECovid19-74 | N200: 58000 | O200: COP | P200: 1 | Q200: 300 | R200: =Q200-SUMIFS(ResumenCotizacion!L:L,ResumenCotizacion!S:S,Catalogo!L200,ResumenCotizacion!C:C,Catalogo!D200) -> 300 | S200: 0 | T200: =+VLOOKUP(D200,[1]CONSOLIDADO!$C$2:$F$93,4,0) -> 126600
... 842 more rows

Sheet Hoja1 (hidden)
B2: PA-1
B3: PA-2
B4: PA-3
B5: PA-4
B6: PA-17
B7: PA-24
B8: PA-59
B9: PA-60
B10: PA-5
B11: PA-14
B12: PA-15
B13: PA-16
B14: PA-18
B15: PA-30
B16: PA-28
B17: PA-32
B18: PA-33
B19: PA-36
B20: PA-38
B21: PA-52
B22: PA-53
B23: PA-19
B24: PA-20
B25: PA-21
B26: PA-22
B27: PA-23
B28: PA-6
B29: PA-13
B30: PA-26
B31: PA-31
B32: PA-34
B33: PA-45
B34: PA-46
B35: PA-47
B36: PA-51
B37: PA-54
B38: PA-55

Sheet tempListas (hidden)
A1: codigo unico
A2: PA-18
A3: PA-30
A4: PA-52
A5: PA-45
A6: PA-51
A7: PA-57
A8: PA-58
A9: PA-60
A10: PA-1
A11: PA-2
A12: PA-17
A13: PA-31
A14: PA-3
A15: PA-4
A16: PA-5
A17: PA-20
A18: PA-21
A19: PA-22
A20: PA-23
A21: PA-46
A22: PA-47
A23: PA-48
A24: PA-49
A25: PA-55
A26: PA-59
A27: PA-28
A28: PA-33
A29: PA-70
A30: PA-25
A31: PA-26
A32: PA-14
A33: PA-6
A34: PA-16
A35: PA-38
A36: PA-10
A37: PA-13
A38: PA-24
A39: PA-34
A40: PA-54
A41: PA-62
A42: PA-65
A43: PA-71
A44: PA-72
A45: PA-74
A46: PA-77
A47: PA-80
A48: PA-84
A49: PA-66
A50: PA-88
A51: PA-89
A52: PA-75
A53: PA-76
A54: PA-79
A55: PA-90
A56: PA-29
A57: PA-36
A58: PA-39
A59: PA-40
A60: PA-61
A61: PA-78
A62: PA-68
A63: PA-81
A64: PA-83
A65: PA-35
A66: PA-67
A67: PA-69
A68: PA-82
A69: PA-85
A70: PA-7
A71: PA-8
A72: PA-50
A73: PA-93
A74: PA-94
A75: PA-87
A76: PA-9
A77: PA-11
A78: PA-19
A79: PA-37
A80: PA-41
A81: PA-42
A82: PA-43
A83: PA-44
A84: PA-63
A85: PA-64
A86: PA-73
A87: PA-86
A88: PA-27
A89: PA-32
A90: PA-91
A91: PA-92
A92: PA-12
A93: PA-56

Sheet Listas (hidden)
A1: GAlimentos | B1: Proveedores | C1: Departamentos | D1: 1Municipios | E1: 2Municipios | F1: 3Municipios | G1: 4Municipios | H1: 5Municipios | I1: 6Municipios | J1: 7Municipios | K1: 8Municipios | L1: 9Municipios | M1: 10Municipios | N1: 11Municipios | O1: 12Municipios | P1: 13Municipios | Q1: 14Municipios | R1: 15Municipios | S1: 16Municipios | T1: 17Municipios | U1: 18Municipios | V1: 19Municipios | W1: 20Municipios | X1: 21Municipios | Y1: 22Municipios | Z1: 23Municipios | AA1: 24Municipios | AB1: 25Municipios | AC1: 26Municipios | AD1: 27Municipios | AE1: 28Municipios | AF1: 29Municipios | AG1: 30Municipios | AH1: 31Municipios | AI1: 32Municipios | AJ1: 33Municipios | AK1: 34Municipios | AL1: 35Municipios | AM1: 36Municipios | AN1: 37Municipios | AO1: 38Municipios | AP1: 39Municipios | AQ1: 40Municipios | AR1: 41Municipios | AS1: 42Municipios | AT1: 43Municipios | AU1: 44Municipios | AV1: 45Municipios | AW1: 46Municipios | AX1: 47Municipios | AY1: 48Municipios | AZ1: 49Municipios | BA1: 50Municipios | BB1: 51Municipios | BC1: 52Municipios | BD1: 53Municipios | BE1: 54Municipios | BF1: 55Municipios | BG1: 56Municipios | BH1: 57Municipios | BI1: 58Municipios | BJ1: 59Municipios | BK1: 60Municipios | BL1: 61Municipios | BM1: 62Municipios | BN1: 63Municipios | BO1: 64Municipios | BP1: 65Municipios | BQ1: 66Municipios | BR1: 67Municipios | BS1: 68Municipios | BT1: 69Municipios | BU1: 70Municipios | BV1: 71Municipios | BW1: 72Municipios | BX1: 73Municipios | BY1: 74Municipios | BZ1: 75Municipios | CA1: 76Municipios | CB1: 77Municipios | CC1: 78Municipios | CD1: 79Municipios | CE1: 80Municipios | CF1: 81Municipios | CG1: 82Municipios | CH1: 83Municipios | CI1: 84Municipios | CJ1: 85Municipios | CK1: 86Municipios | CL1: 87Municipios | CM1: 88Municipios | CN1: 89Municipios | CO1: 90Municipios | CP1: 91Municipios | CQ1: 92Municipios | CR1: 93Municipios | CS1: 94Municipios | CT1: 95Municipios | CU1: 96Municipios | CV1: 97Municipios | CW1: 98Municipios | CX1: 99Municipios | CY1: 100Municipios | CZ1: 101Municipios | DA1: 102Municipios | DB1: 103Municipios | DC1: 104Municipios | DD1: 105Municipios | DE1: 106Municipios | DF1: 107Municipios | DG1: 108Municipios | DH1: 109Municipios | DI1: 110Municipios | DJ1: 111Municipios | DK1: 112Municipios | DL1: 113Municipios | DM1: 114Municipios | DN1: 115Municipios | DO1: 116Municipios | DP1: 117Municipios | DQ1: 118Municipios | DR1: 119Municipios | DS1: 120Municipios | DT1: 121Municipios | DU1: 122Municipios | WP1: 611Municipios | WQ1: 612Municipios | WR1: 613Municipios | WS1: 614Municipios | WT1: 615Municipios | WU1: 616Municipios | WV1: 617Municipios | WW1: 618Municipios | WX1: 619Municipios | WY1: 620Municipios | WZ1: 621Municipios | XA1: 622Municipios | XB1: 623Municipios | XC1: 624Municipios | XD1: 625Municipios | XE1: 626Municipios | XF1: 627Municipios | XG1: 628Municipios | XH1: 629Municipios | XI1: 630Municipios | XJ1: 631Municipios | XK1: 632Municipios | XL1: 633Municipios | XM1: 634Municipios | XN1: 635Municipios | XO1: 636Municipios
A2: PA-18 | B2: proveedor16 | C2: AMAZONAS | G2: ABEJORRAL | H2: ABEJORRAL | I2: ABEJORRAL | J2: ABEJORRAL | K2: ABEJORRAL | L2: ABEJORRAL | M2: ABEJORRAL | N2: ABEJORRAL | O2: ABEJORRAL | P2: ABEJORRAL | Q2: ARAUCA | R2: ARAUCA | S2: ARAUCA | T2: ARAUCA | U2: BARANOA | V2: BARANOA | W2: BARANOA | X2: ACHI | Y2: ACHI | Z2: ACHI | AA2: ACHI | AB2: ACHI | AC2: ACHI | AD2: ALMEIDA | AE2: ALMEIDA | AF2: ALMEIDA | AG2: ALMEIDA | AH2: ALMEIDA | AI2: ALMEIDA | AJ2: AGUADAS | AK2: AGUADAS | AL2: AGUADAS | AM2: ALBANIA | AN2: AGUAZUL | AO2: ALMAGUER | AP2: ALMAGUER | AQ2: ALMAGUER | AR2: ALMAGUER | AS2: AGUACHICA | AT2: AGUACHICA | AU2: AGUACHICA | AV2: AGUACHICA | AW2: AGUACHICA | AX2: ACANDI | AY2: AYAPEL | AZ2: AYAPEL | BA2: AYAPEL | BB2: BOGOTÁ, D.C. | BC2: AGUA DE DIOS | BD2: AGUA DE DIOS | BE2: AGUA DE DIOS | BF2: AGUA DE DIOS | BG2: AGUA DE DIOS | BH2: AGUA DE DIOS | BI2: BOGOTÁ, D.C. | BJ2: BOGOTÁ, D.C. | BK2: BOGOTÁ, D.C. | BL2: BOGOTÁ, D.C. | BM2: BOGOTÁ, D.C. | BN2: BOGOTÁ, D.C. | BO2: BOGOTÁ, D.C. | BP2: BOGOTÁ, D.C. | BQ2: BOGOTÁ, D.C. | BR2: BOGOTÁ, D.C. | BS2: BOGOTÁ, D.C. | BT2: AGUA DE DIOS | BU2: BARRANCO MINA | BV2: ALBANIA | BW2: CALAMAR | BX2: ACEVEDO | BY2: ACEVEDO | BZ2: ACEVEDO | CA2: ACEVEDO | CB2: ACEVEDO | CC2: ALGARROBO | CD2: ALGARROBO | CE2: ALGARROBO | CF2: ALGARROBO | CG2: ALGARROBO | CH2: ACACÍAS | CI2: ACACÍAS | CJ2: ACACÍAS | CK2: ALBÁN (SAN JOSÉ) | CL2: ALBÁN (SAN JOSÉ) | CM2: ALBÁN (SAN JOSÉ) | CN2: ALBÁN (SAN JOSÉ) | CO2: ÁBREGO | CP2: COLON | CQ2: ARMENIA | CR2: ARMENIA | CS2: APÍA | CT2: APÍA | CU2: APÍA | CV2: PROVIDENCIA | CW2: AGUADA | CX2: AGUADA | CY2: AGUADA | CZ2: AGUADA | DA2: AGUADA | DB2: AGUADA | DC2: AGUADA | DD2: AGUADA | DE2: AGUADA | DF2: AGUADA | DG2: AGUADA | DH2: BUENAVISTA | DI2: ALPUJARRA | DJ2: ALPUJARRA | DK2: ALPUJARRA | DL2: ALCALÁ | DM2: ALCALÁ | DN2: ALCALÁ | DO2: ALCALÁ | DP2: ALCALÁ | DQ2: ALCALÁ | DR2: ALCALÁ | DS2: ALCALÁ | DT2: CARURÚ | DU2: CUMARIBO | WP2: ABEJORRAL | WQ2: ABEJORRAL | WR2: ACHI | WS2: ALMEIDA | WT2: AYAPEL | WU2: AGUA DE DIOS | WV2: AGUA DE DIOS | WW2: BOGOTÁ, D.C. | WX2: BOGOTÁ, D.C. | WY2: BOGOTÁ, D.C. | WZ2: BOGOTÁ, D.C. | XA2: BOGOTÁ, D.C. | XB2: BOGOTÁ, D.C. | XC2: AGUA DE DIOS | XD2: ALGARROBO | XE2: ALGARROBO | XF2: ACACÍAS | XG2: ARMENIA | XH2: APÍA | XI2: APÍA | XJ2: AGUADA | XK2: AGUADA | XL2: AGUADA | XM2: AGUADA | XN2: AGUADA | XO2: ALCALÁ
A3: PA-30 | B3: proveedor17 | C3: ANTIOQUIA | G3: ABRIAQUÍ | H3: ABRIAQUÍ | I3: ABRIAQUÍ | J3: ABRIAQUÍ | K3: ABRIAQUÍ | L3: ABRIAQUÍ | M3: ABRIAQUÍ | N3: ABRIAQUÍ | O3: ABRIAQUÍ | P3: ABRIAQUÍ | Q3: ARAUQUITA | R3: ARAUQUITA | S3: ARAUQUITA | T3: ARAUQUITA | U3: BARRANQUILLA | V3: BARRANQUILLA | W3: BARRANQUILLA | X3: ALTOS DEL ROSARIO | Y3: ALTOS DEL ROSARIO | Z3: ALTOS DEL ROSARIO | AA3: ALTOS DEL ROSARIO | AB3: ALTOS DEL ROSARIO | AC3: ALTOS DEL ROSARIO | AD3: AQUITANIA | AE3: AQUITANIA | AF3: AQUITANIA | AG3: AQUITANIA | AH3: AQUITANIA | AI3: AQUITANIA | AJ3: ANSERMA | AK3: ANSERMA | AL3: ANSERMA | AM3: BELÉN DE LOS ANDAQUÍES | AN3: CHÁMEZA | AO3: AREA EN LITIGIO | AP3: AREA EN LITIGIO | AQ3: AREA EN LITIGIO | AR3: AREA EN LITIGIO | AS3: AGUSTIN CODAZZI | AT3: AGUSTIN CODAZZI | AU3: AGUSTIN CODAZZI | AV3: AGUSTIN CODAZZI | AW3: AGUSTIN CODAZZI | AX3: ALTO BAUDO | AY3: BUENAVISTA | AZ3: BUENAVISTA | BA3: BUENAVISTA | BC3: ALBÁN | BD3: ALBÁN | BE3: ALBÁN | BF3: ALBÁN | BG3: ALBÁN | BH3: ALBÁN | BT3: ALBÁN | BU3: CACAHUAL | BV3: BARRANCAS | BW3: EL RETORNO | BX3: AGRADO | BY3: AGRADO | BZ3: AGRADO | CA3: AGRADO | CB3: AGRADO | CC3: ARACATACA | CD3: ARACATACA | CE3: ARACATACA | CF3: ARACATACA | CG3: ARACATACA | CH3: BARRANCA DE UPÍA | CI3: BARRANCA DE UPÍA | CJ3: BARRANCA DE UPÍA | CK3: ALDANA | CL3: ALDANA | CM3: ALDANA | CN3: ALDANA | CO3: ARBOLEDAS | CP3: LEGUIZAMO | CQ3: BUENAVISTA | CR3: BUENAVISTA | CS3: BALBOA | CT3: BALBOA | CU3: BALBOA | CV3: SAN ANDRES | CW3: ALBANIA | CX3: ALBANIA | CY3: ALBANIA | CZ3: ALBANIA | DA3: ALBANIA | DB3: ALBANIA | DC3: ALBANIA | DD3: ALBANIA | DE3: ALBANIA | DF3: ALBANIA | DG3: ALBANIA | DH3: CAIMITO | DI3: ALVARADO | DJ3: ALVARADO | DK3: ALVARADO | DL3: ANDALUCIA | DM3: ANDALUCIA | DN3: ANDALUCIA | DO3: ANDALUCIA | DP3: ANDALUCIA | DQ3: ANDALUCIA | DR3: ANDALUCIA | DS3: ANDALUCIA | DT3: MITU | DU3: LA PRIMAVERA | WP3: ABRIAQUÍ | WQ3: ABRIAQUÍ | WR3: ALTOS DEL ROSARIO | WS3: AQUITANIA | WT3: BUENAVISTA | WU3: ALBÁN | WV3: ALBÁN | XC3: ALBÁN | XD3: ARACATACA | XE3: ARACATACA | XF3: BARRANCA DE UPÍA | XG3: BUENAVISTA | XH3: BALBOA | XI3: BALBOA | XJ3: ALBANIA | XK3: ALBANIA | XL3: ALBANIA | XM3: ALBANIA | XN3: ALBANIA | XO3: ANDALUCIA
A4: PA-52 | C4: ARAUCA | G4: ALEJANDRÍA | H4: ALEJANDRÍA | I4: ALEJANDRÍA | J4: ALEJANDRÍA | K4: ALEJANDRÍA | L4: ALEJANDRÍA | M4: ALEJANDRÍA | N4: ALEJANDRÍA | O4: ALEJANDRÍA | P4: ALEJANDRÍA | Q4: CRAVO NORTE | R4: CRAVO NORTE | S4: CRAVO NORTE | T4: CRAVO NORTE | U4: CAMPO DE LA CRUZ | V4: CAMPO DE LA CRUZ | W4: CAMPO DE LA CRUZ | X4: ARENAL | Y4: ARENAL | Z4: ARENAL | AA4: ARENAL | AB4: ARENAL | AC4: ARENAL | AD4: ARCABUCO | AE4: ARCABUCO | AF4: ARCABUCO | AG4: ARCABUCO | AH4: ARCABUCO | AI4: ARCABUCO | AJ4: ARANZAZU | AK4: ARANZAZU | AL4: ARANZAZU | AM4: CARTAGENA DEL CHAIRÁ | AN4: HATO COROZAL | AO4: ARGELIA | AP4: ARGELIA | AQ4: ARGELIA | AR4: ARGELIA | AS4: ASTREA | AT4: ASTREA | AU4: ASTREA | AV4: ASTREA | AW4: ASTREA | AX4: ATRATO (YUTO) | AY4: CANALETE | AZ4: CANALETE | BA4: CANALETE | BC4: ANAPOIMA | BD4: ANAPOIMA | BE4: ANAPOIMA | BF4: ANAPOIMA | BG4: ANAPOIMA | BH4: ANAPOIMA | BT4: ANAPOIMA | BU4: INIRIDA | BV4: DIBULLA | BW4: MIRAFLORES | BX4: AIPE | BY4: AIPE | BZ4: AIPE | CA4: AIPE | CB4: AIPE | CC4: ARIGUANÍ | CD4: ARIGUANÍ | CE4: ARIGUANÍ | CF4: ARIGUANÍ | CG4: ARIGUANÍ | CH4: CABUYARO | CI4: CABUYARO | CJ4: CABUYARO | CK4: ANCUYA | CL4: ANCUYA | CM4: ANCUYA | CN4: ANCUYA | CO4: BOCHALEMA | CP4: MOCOA | CQ4: CALARCÁ | CR4: CALARCÁ | CS4: BELÉN DE UMBRÍA | CT4: BELÉN DE UMBRÍA | CU4: BELÉN DE UMBRÍA | CW4: ARATOCA | CX4: ARATOCA | CY4: ARATOCA | CZ4: ARATOCA | DA4: ARATOCA | DB4: ARATOCA | DC4: ARATOCA | DD4: ARATOCA | DE4: ARATOCA | DF4: ARATOCA | DG4: ARATOCA | DH4: CHALÁN | DI4: AMBALEMA | DJ4: AMBALEMA | DK4: AMBALEMA | DL4: ANSERMANUEVO | DM4: ANSERMANUEVO | DN4: ANSERMANUEVO | DO4: ANSERMANUEVO | DP4: ANSERMANUEVO | DQ4: ANSERMANUEVO | DR4: ANSERMANUEVO | DS4: ANSERMANUEVO | DT4: PACOA (COR. DEPARTAMENTAL) | DU4: PUERTO CARREÑO | WP4: ALEJANDRÍA | WQ4: ALEJANDRÍA | WR4: ARENAL | WS4: ARCABUCO | WT4: CANALETE | WU4: ANAPOIMA | WV4: ANAPOIMA | XC4: ANAPOIMA | XD4: ARIGUANÍ | XE4: ARIGUANÍ | XF4: CABUYARO | XG4: CALARCÁ | XH4: BELÉN DE UMBRÍA | XI4: BELÉN DE UMBRÍA | XJ4: ARATOCA | XK4: ARATOCA | XL4: ARATOCA | XM4: ARATOCA | XN4: ARATOCA | XO4: ANSERMANUEVO
A5: PA-45 | C5: ATLÁNTICO | G5: AMAGÁ | H5: AMAGÁ | I5: AMAGÁ | J5: AMAGÁ | K5: AMAGÁ | L5: AMAGÁ | M5: AMAGÁ | N5: AMAGÁ | O5: AMAGÁ | P5: AMAGÁ | Q5: FORTUL | R5: FORTUL | S5: FORTUL | T5: FORTUL | U5: CANDELARIA | V5: CANDELARIA | W5: CANDELARIA | X5: ARJONA | Y5: ARJONA | Z5: ARJONA | AA5: ARJONA | AB5: ARJONA | AC5: ARJONA | AD5: BELÉN | AE5: BELÉN | AF5: BELÉN | AG5: BELÉN | AH5: BELÉN | AI5: BELÉN | AJ5: BELALCAZAR | AK5: BELALCAZAR | AL5: BELALCAZAR | AM5: CURILLO | AN5: LA SALINA | AO5: BALBOA | AP5: BALBOA | AQ5: BALBOA | AR5: BALBOA | AS5: BECERRIL | AT5: BECERRIL | AU5: BECERRIL | AV5: BECERRIL | AW5: BECERRIL | AX5: BAGADO | AY5: CERETÉ | AZ5: CERETÉ | BA5: CERETÉ | BC5: ANOLAIMA | BD5: ANOLAIMA | BE5: ANOLAIMA | BF5: ANOLAIMA | BG5: ANOLAIMA | BH5: ANOLAIMA | BT5: ANOLAIMA | BU5: INÍRIDA | BV5: DISTRACCIÓN | BW5: SAN JOSÉ DEL GUAVIARE | BX5: ALGECIRAS | BY5: ALGECIRAS | BZ5: ALGECIRAS | CA5: ALGECIRAS | CB5: ALGECIRAS | CC5: CERRO DE SAN ANTONIO | CD5: CERRO DE SAN ANTONIO | CE5: CERRO DE SAN ANTONIO | CF5: CERRO DE SAN ANTONIO | CG5: CERRO DE SAN ANTONIO | CH5: CAIMITAL | CI5: CAIMITAL | CJ5: CAIMITAL | CK5: ARBOLEDA (BERRUECOS) | CL5: ARBOLEDA (BERRUECOS) | CM5: ARBOLEDA (BERRUECOS) | CN5: ARBOLEDA (BERRUECOS) | CO5: BUCARASICA | CP5: ORITO | CQ5: CIRCASIA | CR5: CIRCASIA | CS5: DOSQUEBRADAS | CT5: DOSQUEBRADAS | CU5: DOSQUEBRADAS | CW5: BARBOSA | CX5: BARBOSA | CY5: BARBOSA | CZ5: BARBOSA | DA5: BARBOSA | DB5: BARBOSA | DC5: BARBOSA | DD5: BARBOSA | DE5: BARBOSA | DF5: BARBOSA | DG5: BARBOSA | DH5: COLOSÓ | DI5: ANZOÁTEGUI | DJ5: ANZOÁTEGUI | DK5: ANZOÁTEGUI | DL5: ARGELIA | DM5: ARGELIA | DN5: ARGELIA | DO5: ARGELIA | DP5: ARGELIA | DQ5: ARGELIA | DR5: ARGELIA | DS5: ARGELIA | DT5: PAPUNAUA (COR. DEPARTAMENTAL) | DU5: SANTA ROSALÍA | WP5: AMAGÁ | WQ5: AMAGÁ | WR5: ARJONA | WS5: BELÉN | WT5: CERETÉ | WU5: ANOLAIMA | WV5: ANOLAIMA | XC5: ANOLAIMA | XD5: CERRO DE SAN ANTONIO | XE5: CERRO DE SAN ANTONIO | XF5: CAIMITAL | XG5: CIRCASIA | XH5: DOSQUEBRADAS | XI5: DOSQUEBRADAS | XJ5: BARBOSA | XK5: BARBOSA | XL5: BARBOSA | XM5: BARBOSA | XN5: BARBOSA | XO5: ARGELIA
A6: PA-51 | C6: BOGOTÁ, D.C. | G6: AMALFI | H6: AMALFI | I6: AMALFI | J6: AMALFI | K6: AMALFI | L6: AMALFI | M6: AMALFI | N6: AMALFI | O6: AMALFI | P6: AMALFI | Q6: PUERTO RONDÓN | R6: PUERTO RONDÓN | S6: PUERTO RONDÓN | T6: PUERTO RONDÓN | U6: GALAPA | V6: GALAPA | W6: GALAPA | X6: ARROYOHONDO | Y6: ARROYOHONDO | Z6: ARROYOHONDO | AA6: ARROYOHONDO | AB6: ARROYOHONDO | AC6: ARROYOHONDO | AD6: BERBEO | AE6: BERBEO | AF6: BERBEO | AG6: BERBEO | AH6: BERBEO | AI6: BERBEO | AJ6: CHINCHINÁ | AK6: CHINCHINÁ | AL6: CHINCHINÁ | AM6: EL DONCELLO | AN6: MANÍ | AO6: BOLÍVAR | AP6: BOLÍVAR | AQ6: BOLÍVAR | AR6: BOLÍVAR | AS6: BECERRILL | AT6: BECERRILL | AU6: BECERRILL | AV6: BECERRILL | AW6: BECERRILL | AX6: BAHIA SOLANO | AY6: CHIMA | AZ6: CHIMA | BA6: CHIMA | BC6: APULO | BD6: APULO | BE6: APULO | BF6: APULO | BG6: APULO | BH6: APULO | BT6: APULO | BU6: LA GUADALUPE | BV6: EL MOLINO | BX6: ALTAMIRA | BY6: ALTAMIRA | BZ6: ALTAMIRA | CA6: ALTAMIRA | CB6: ALTAMIRA | CC6: CHIVOLO | CD6: CHIVOLO | CE6: CHIVOLO | CF6: CHIVOLO | CG6: CHIVOLO | CH6: CASTILLA LA NUEVA | CI6: CASTILLA LA NUEVA | CJ6: CASTILLA LA NUEVA | CK6: BARBACOAS | CL6: BARBACOAS | CM6: BARBACOAS | CN6: BARBACOAS | CO6: CÁCHIRA | CP6: PUERTO ASIS | CQ6: CÓRDOBA | CR6: CÓRDOBA | CS6: GUÁTICA | CT6: GUÁTICA | CU6: GUÁTICA | CW6: BARICHARA | CX6: BARICHARA | CY6: BARICHARA | CZ6: BARICHARA | DA6: BARICHARA | DB6: BARICHARA | DC6: BARICHARA | DD6: BARICHARA | DE6: BARICHARA | DF6: BARICHARA | DG6: BARICHARA | DH6: COROZAL | DI6: ARMERO | DJ6: ARMERO | DK6: ARMERO | DL6: BOLÍVAR | DM6: BOLÍVAR | DN6: BOLÍVAR | DO6: BOLÍVAR | DP6: BOLÍVAR | DQ6: BOLÍVAR | DR6: BOLÍVAR | DS6: BOLÍVAR | DT6: TARAIRA | WP6: AMALFI | WQ6: AMALFI | WR6: ARROYOHONDO | WS6: BERBEO | WT6: CHIMA | WU6: APULO | WV6: APULO | XC6: APULO | XD6: CHIVOLO | XE6: CHIVOLO | XF6: CASTILLA LA NUEVA | XG6: CÓRDOBA | XH6: GUÁTICA | XI6: GUÁTICA | XJ6: BARICHARA | XK6: BARICHARA | XL6: BARICHARA | XM6: BARICHARA | XN6: BARICHARA | XO6: BOLÍVAR
A7: PA-57 | C7: BOLÍVAR | G7: ANDES | H7: ANDES | I7: ANDES | J7: ANDES | K7: ANDES | L7: ANDES | M7: ANDES | N7: ANDES | O7: ANDES | P7: ANDES | Q7: SARAVENA | R7: SARAVENA | S7: SARAVENA | T7: SARAVENA | U7: JUAN DE ACOSTA | V7: JUAN DE ACOSTA | W7: JUAN DE ACOSTA | X7: BARRANCO DE LOBA | Y7: BARRANCO DE LOBA | Z7: BARRANCO DE LOBA | AA7: BARRANCO DE LOBA | AB7: BARRANCO DE LOBA | AC7: BARRANCO DE LOBA | AD7: BETEITIVA | AE7: BETEITIVA | AF7: BETEITIVA | AG7: BETEITIVA | AH7: BETEITIVA | AI7: BETEITIVA | AJ7: FILADELFIA | AK7: FILADELFIA | AL7: FILADELFIA | AM7: EL PAUJIL | AN7: MONTERREY | AO7: BUENOS AIRES | AP7: BUENOS AIRES | AQ7: BUENOS AIRES | AR7: BUENOS AIRES | AS7: BOSCONIA | AT7: BOSCONIA | AU7: BOSCONIA | AV7: BOSCONIA | AW7: BOSCONIA | AX7: BAJO BAUDO | AY7: CHINÚ | AZ7: CHINÚ | BA7: CHINÚ | BC7: ARBELÁEZ | BD7: ARBELÁEZ | BE7: ARBELÁEZ | BF7: ARBELÁEZ | BG7: ARBELÁEZ | BH7: ARBELÁEZ | BT7: ARBELÁEZ | BU7: MAPIRIPANA | BV7: FONSECA | BX7: BARAYA | BY7: BARAYA | BZ7: BARAYA | CA7: BARAYA | CB7: BARAYA | CC7: CIÉNAGA | CD7: CIÉNAGA | CE7: CIÉNAGA | CF7: CIÉNAGA | CG7: CIÉNAGA | CH7: CUMARAL | CI7: CUMARAL | CJ7: CUMARAL | CK7: BELÉN | CL7: BELÉN | CM7: BELÉN | CN7: BELÉN | CO7: CÁCOTA | CP7: PUERTO CAICEDO | CQ7: FILANDIA | CR7: FILANDIA | CS7: LA CELIA | CT7: LA CELIA | CU7: LA CELIA | CW7: BARRANCABERMEJA | CX7: BARRANCABERMEJA | CY7: BARRANCABERMEJA | CZ7: BARRANCABERMEJA | DA7: BARRANCABERMEJA | DB7: BARRANCABERMEJA | DC7: BARRANCABERMEJA | DD7: BARRANCABERMEJA | DE7: BARRANCABERMEJA | DF7: BARRANCABERMEJA | DG7: BARRANCABERMEJA | DH7: COVEÑAS | DI7: ATACO | DJ7: ATACO | DK7: ATACO | DL7: BUENAVENTURA | DM7: BUENAVENTURA | DN7: BUENAVENTURA | DO7: BUENAVENTURA | DP7: BUENAVENTURA | DQ7: BUENAVENTURA | DR7: BUENAVENTURA | DS7: BUENAVENTURA | DT7: YABARATÉ | WP7: ANDES | WQ7: ANDES | WR7: BARRANCO DE LOBA | WS7: BETEITIVA | WT7: CHINÚ | WU7: ARBELÁEZ | WV7: ARBELÁEZ | XC7: ARBELÁEZ | XD7: CIÉNAGA | XE7: CIÉNAGA | XF7: CUMARAL | XG7: FILANDIA | XH7: LA CELIA | XI7: LA CELIA | XJ7: BARRANCABERMEJA | XK7: BARRANCABERMEJA | XL7: BARRANCABERMEJA | XM7: BARRANCABERMEJA | XN7: BARRANCABERMEJA | XO7: BUENAVENTURA
A8: PA-58 | C8: BOYACÁ | G8: ANGELÓPOLIS | H8: ANGELÓPOLIS | I8: ANGELÓPOLIS | J8: ANGELÓPOLIS | K8: ANGELÓPOLIS | L8: ANGELÓPOLIS | M8: ANGELÓPOLIS | N8: ANGELÓPOLIS | O8: ANGELÓPOLIS | P8: ANGELÓPOLIS | Q8: TAME | R8: TAME | S8: TAME | T8: TAME | U8: LURUACO | V8: LURUACO | W8: LURUACO | X8: BOLÍVAR | Y8: BOLÍVAR | Z8: BOLÍVAR | AA8: BOLÍVAR | AB8: BOLÍVAR | AC8: BOLÍVAR | AD8: BOAVITA | AE8: BOAVITA | AF8: BOAVITA | AG8: BOAVITA | AH8: BOAVITA | AI8: BOAVITA | AJ8: LA DORADA | AK8: LA DORADA | AL8: LA DORADA | AM8: FLORENCIA | AN8: NUNCHÍA | AO8: CAJIBÍO | AP8: CAJIBÍO | AQ8: CAJIBÍO | AR8: CAJIBÍO | AS8: CHIMICHAGUA | AT8: CHIMICHAGUA | AU8: CHIMICHAGUA | AV8: CHIMICHAGUA | AW8: CHIMICHAGUA | AX8: BOJAYA | AY8: CIÉNAGA DE ORO | AZ8: CIÉNAGA DE ORO | BA8: CIÉNAGA DE ORO | BC8: BELTRÁN | BD8: BELTRÁN | BE8: BELTRÁN | BF8: BELTRÁN | BG8: BELTRÁN | BH8: BELTRÁN | BT8: BELTRÁN | BU8: MORICHAL | BV8: HATO NUEVO | BX8: CAMPOALEGRE | BY8: CAMPOALEGRE | BZ8: CAMPOALEGRE | CA8: CAMPOALEGRE | CB8: CAMPOALEGRE | CC8: CONCORDIA | CD8: CONCORDIA | CE8: CONCORDIA | CF8: CONCORDIA | CG8: CONCORDIA | CH8: EL CALVARIO | CI8: EL CALVARIO | CJ8: EL CALVARIO | CK8: BUESACO | CL8: BUESACO | CM8: BUESACO | CN8: BUESACO | CO8: CHINÁCOTA | CP8: PUERTO GUZMAN | CQ8: GÉNOVA | CR8: GÉNOVA | CS8: LA VIRGINIA | CT8: LA VIRGINIA | CU8: LA VIRGINIA | CW8: BETULIA | CX8: BETULIA | CY8: BETULIA | CZ8: BETULIA | DA8: BETULIA | DB8: BETULIA | DC8: BETULIA | DD8: BETULIA | DE8: BETULIA | DF8: BETULIA | DG8: BETULIA | DH8: EL ROBLE | DI8: CAJAMARCA | DJ8: CAJAMARCA | DK8: CAJAMARCA | DL8: BUGA | DM8: BUGA | DN8: BUGA | DO8: BUGA | DP8: BUGA | DQ8: BUGA | DR8: BUGA | DS8: BUGA | WP8: ANGELÓPOLIS | WQ8: ANGELÓPOLIS | WR8: BOLÍVAR | WS8: BOAVITA | WT8: CIÉNAGA DE ORO | WU8: BELTRÁN | WV8: BELTRÁN | XC8: BELTRÁN | XD8: CONCORDIA | XE8: CONCORDIA | XF8: EL CALVARIO | XG8: GÉNOVA | XH8: LA VIRGINIA | XI8: LA VIRGINIA | XJ8: BETULIA | XK8: BETULIA | XL8: BETULIA | XM8: BETULIA | XN8: BETULIA | XO8: BUGA
A9: PA-60 | C9: CALDAS | G9: ANGOSTURA | H9: ANGOSTURA | I9: ANGOSTURA | J9: ANGOSTURA | K9: ANGOSTURA | L9: ANGOSTURA | M9: ANGOSTURA | N9: ANGOSTURA | O9: ANGOSTURA | P9: ANGOSTURA | U9: MALAMBO | V9: MALAMBO | W9: MALAMBO | X9: CALAMAR | Y9: CALAMAR | Z9: CALAMAR | AA9: CALAMAR | AB9: CALAMAR | AC9: CALAMAR | AD9: BOYACÁ | AE9: BOYACÁ | AF9: BOYACÁ | AG9: BOYACÁ | AH9: BOYACÁ | AI9: BOYACÁ | AJ9: LA MERCED | AK9: LA MERCED | AL9: LA MERCED | AM9: LA MONTAÑITA | AN9: OROCUÉ | AO9: CALDONO | AP9: CALDONO | AQ9: CALDONO | AR9: CALDONO | AS9: CHIRIGUANA | AT9: CHIRIGUANA | AU9: CHIRIGUANA | AV9: CHIRIGUANA | AW9: CHIRIGUANA | AX9: CARMEN DEL DARIEN | AY9: COTORRA | AZ9: COTORRA | BA9: COTORRA | BC9: BITUIMA | BD9: BITUIMA | BE9: BITUIMA | BF9: BITUIMA | BG9: BITUIMA | BH9: BITUIMA | BT9: BITUIMA | BU9: PANÁ PANÁ | BV9: LA JAGUA DEL PILAR | BX9: COLOMBIA | BY9: COLOMBIA | BZ9: COLOMBIA | CA9: COLOMBIA | CB9: COLOMBIA | CC9: EL BANCO | CD9: EL BANCO | CE9: EL BANCO | CF9: EL BANCO | CG9: EL BANCO | CH9: EL CASTILLO | CI9: EL CASTILLO | CJ9: EL CASTILLO | CK9: CHACHAGUÍ | CL9: CHACHAGUÍ | CM9: CHACHAGUÍ | CN9: CHACHAGUÍ | CO9: CHITAGÁ | CP9: SAN FRANCISCO | CQ9: LA TEBAIDA | CR9: LA TEBAIDA | CS9: MARSELLA | CT9: MARSELLA | CU9: MARSELLA | CW9: BOLÍVAR | CX9: BOLÍVAR | CY9: BOLÍVAR | CZ9: BOLÍVAR | DA9: BOLÍVAR | DB9: BOLÍVAR | DC9: BOLÍVAR | DD9: BOLÍVAR | DE9: BOLÍVAR | DF9: BOLÍVAR | DG9: BOLÍVAR | DH9: GALERAS | DI9: CARMEN APICALA | DJ9: CARMEN APICALA | DK9: CARMEN APICALA | DL9: BUGA LA GRANDE | DM9: BUGA LA GRANDE | DN9: BUGA LA GRANDE | DO9: BUGA LA GRANDE | DP9: BUGA LA GRANDE | DQ9: BUGA LA GRANDE | DR9: BUGA LA GRANDE | DS9: BUGA LA GRANDE | WP9: ANGOSTURA | WQ9: ANGOSTURA | WR9: CALAMAR | WS9: BOYACÁ | WT9: COTORRA | WU9: BITUIMA | WV9: BITUIMA | XC9: BITUIMA | XD9: EL BANCO | XE9: EL BANCO | XF9: EL CASTILLO | XG9: LA TEBAIDA | XH9: MARSELLA | XI9: MARSELLA | XJ9: BOLÍVAR | XK9: BOLÍVAR | XL9: BOLÍVAR | XM9: BOLÍVAR | XN9: BOLÍVAR | XO9: BUGA LA GRANDE
A10: PA-1 | C10: CAQUETÁ | G10: ANORÍ | H10: ANORÍ | I10: ANORÍ | J10: ANORÍ | K10: ANORÍ | L10: ANORÍ | M10: ANORÍ | N10: ANORÍ | O10: ANORÍ | P10: ANORÍ | U10: MANATI | V10: MANATI | W10: MANATI | X10: CANTAGALLO | Y10: CANTAGALLO | Z10: CANTAGALLO | AA10: CANTAGALLO | AB10: CANTAGALLO | AC10: CANTAGALLO | AD10: BRICEÑO | AE10: BRICEÑO | AF10: BRICEÑO | AG10: BRICEÑO | AH10: BRICEÑO | AI10: BRICEÑO | AJ10: MANIZALES | AK10: MANIZALES | AL10: MANIZALES | AM10: MILAN | AN10: PAZ DE ARIPORO | AO10: CALOTO | AP10: CALOTO | AQ10: CALOTO | AR10: CALOTO | AS10: CURUMANÍ | AT10: CURUMANÍ | AU10: CURUMANÍ | AV10: CURUMANÍ | AW10: CURUMANÍ | AX10: CÉRTEGUI | AY10: LA APARTADA | AZ10: LA APARTADA | BA10: LA APARTADA | BC10: BOJACÁ | BD10: BOJACÁ | BE10: BOJACÁ | BF10: BOJACÁ | BG10: BOJACÁ | BH10: BOJACÁ | BT10: BOJACÁ | BU10: PUERTO COLOMBIA (COR. DEPARTAMENTAL) | BV10: MAICAO | BX10: ELÍAS | BY10: ELÍAS | BZ10: ELÍAS | CA10: ELÍAS | CB10: ELÍAS | CC10: EL PIÑÓN | CD10: EL PIÑÓN | CE10: EL PIÑÓN | CF10: EL PIÑÓN | CG10: EL PIÑÓN | CH10: EL DORADO | CI10: EL DORADO | CJ10: EL DORADO | CK10: COLÓN (GÉNOVA) | CL10: COLÓN (GÉNOVA) | CM10: COLÓN (GÉNOVA) | CN10: COLÓN (GÉNOVA) | CO10: CONVENCIÓN | CP10: SAN MIGUEL | CQ10: MONTENEGRO | CR10: MONTENEGRO | CS10: MISTRATO | CT10: MISTRATO | CU10: MISTRATO | CW10: BUCARAMANGA | CX10: BUCARAMANGA | CY10: BUCARAMANGA | CZ10: BUCARAMANGA | DA10: BUCARAMANGA | DB10: BUCARAMANGA | DC10: BUCARAMANGA | DD10: BUCARAMANGA | DE10: BUCARAMANGA | DF10: BUCARAMANGA | DG10: BUCARAMANGA | DH10: GUARANDA | DI10: CASABIANCA | DJ10: CASABIANCA | DK10: CASABIANCA | DL10: CAICEDONIA | DM10: CAICEDONIA | DN10: CAICEDONIA | DO10: CAICEDONIA | DP10: CAICEDONIA | DQ10: CAICEDONIA | DR10: CAICEDONIA | DS10: CAICEDONIA | WP10: ANORÍ | WQ10: ANORÍ | WR10: CANTAGALLO | WS10: BRICEÑO | WT10: LA APARTADA | WU10: BOJACÁ | WV10: BOJACÁ | XC10: BOJACÁ | XD10: EL PIÑÓN | XE10: EL PIÑÓN | XF10: EL DORADO | XG10: MONTENEGRO | XH10: MISTRATO | XI10: MISTRATO | XJ10: BUCARAMANGA | XK10: BUCARAMANGA | XL10: BUCARAMANGA | XM10: BUCARAMANGA | XN10: BUCARAMANGA | XO10: CAICEDONIA
A11: PA-2 | C11: CASANARE | G11: ANZÁ | H11: ANZÁ | I11: ANZÁ | J11: ANZÁ | K11: ANZÁ | L11: ANZÁ | M11: ANZÁ | N11: ANZÁ | O11: ANZÁ | P11: ANZÁ | U11: PALMAR DE VARELA | V11: PALMAR DE VARELA | W11: PALMAR DE VARELA | X11: CARTAGENA DE INDIAS | Y11: CARTAGENA DE INDIAS | Z11: CARTAGENA DE INDIAS | AA11: CARTAGENA DE INDIAS | AB11: CARTAGENA DE INDIAS | AC11: CARTAGENA DE INDIAS | AD11: BUENAVISTA | AE11: BUENAVISTA | AF11: BUENAVISTA | AG11: BUENAVISTA | AH11: BUENAVISTA | AI11: BUENAVISTA | AJ11: MANZANARES | AK11: MANZANARES | AL11: MANZANARES | AM11: MORELIA | AN11: PORE | AO11: CORINTO | AP11: CORINTO | AQ11: CORINTO | AR11: CORINTO | AS11: EL COPEY | AT11: EL COPEY | AU11: EL COPEY | AV11: EL COPEY | AW11: EL COPEY | AX11: CONDOTO | AY11: LORICA | AZ11: LORICA | BA11: LORICA | BC11: CABRERA | BD11: CABRERA | BE11: CABRERA | BF11: CABRERA | BG11: CABRERA | BH11: CABRERA | BT11: CABRERA | BU11: SAN FELIPE | BV11: MANAURE | BX11: GARZÓN | BY11: GARZÓN | BZ11: GARZÓN | CA11: GARZÓN | CB11: GARZÓN | CC11: EL RETÉN | CD11: EL RETÉN | CE11: EL RETÉN | CF11: EL RETÉN | CG11: EL RETÉN | CH11: FUENTE DE ORO | CI11: FUENTE DE ORO | CJ11: FUENTE DE ORO | CK11: CONSACÁ | CL11: CONSACÁ | CM11: CONSACÁ | CN11: CONSACÁ | CO11: CÚCUTA | CP11: SANTIAGO | CQ11: PIJAO | CR11: PIJAO | CS11: MISTRATÓ | CT11: MISTRATÓ | CU11: MISTRATÓ | CW11: CABRERA | CX11: CABRERA | CY11: CABRERA | CZ11: CABRERA | DA11: CABRERA | DB11: CABRERA | DC11: CABRERA | DD11: CABRERA | DE11: CABRERA | DF11: CABRERA | DG11: CABRERA | DH11: LA UNION | DI11: CHAPARRAL | DJ11: CHAPARRAL | DK11: CHAPARRAL | DL11: CALI | DM11: CALI | DN11: CALI | DO11: CALI | DP11: CALI | DQ11: CALI | DR11: CALI | DS11: CALI | WP11: ANZÁ | WQ11: ANZÁ | WR11: CARTAGENA DE INDIAS | WS11: BUENAVISTA | WT11: LORICA | WU11: CABRERA | WV11: CABRERA | XC11: CABRERA | XD11: EL RETÉN | XE11: EL RETÉN | XF11: FUENTE DE ORO | XG11: PIJAO | XH11: MISTRATÓ | XI11: MISTRATÓ | XJ11: CABRERA | XK11: CABRERA | XL11: CABRERA | XM11: CABRERA | XN11: CABRERA | XO11: CALI
A12: PA-17 | C12: CAUCA | G12: APARTADÓ | H12: APARTADÓ | I12: APARTADÓ | J12: APARTADÓ | K12: APARTADÓ | L12: APARTADÓ | M12: APARTADÓ | N12: APARTADÓ | O12: APARTADÓ | P12: APARTADÓ | U12: PIOJO | V12: PIOJO | W12: PIOJO | X12: CICUCO | Y12: CICUCO | Z12: CICUCO | AA12: CICUCO | AB12: CICUCO | AC12: CICUCO | AD12: BUSBANZÁ | AE12: BUSBANZÁ | AF12: BUSBANZÁ | AG12: BUSBANZÁ | AH12: BUSBANZÁ | AI12: BUSBANZÁ | AJ12: MARMATO | AK12: MARMATO | AL12: MARMATO | AM12: PRIMAVERA | AN12: RECETOR | AO12: EL TAMBO | AP12: EL TAMBO | AQ12: EL TAMBO | AR12: EL TAMBO | AS12: EL PASO | AT12: EL PASO | AU12: EL PASO | AV12: EL PASO | AW12: EL PASO | AX12: EL CANTÓN DEL SAN PABLO | AY12: LOS CORDOBAS | AZ12: LOS CORDOBAS | BA12: LOS CORDOBAS | BC12: CACHIPAY | BD12: CACHIPAY | BE12: CACHIPAY | BF12: CACHIPAY | BG12: CACHIPAY | BH12: CACHIPAY | BT12: CACHIPAY | BV12: RIOHACHA | BX12: GIGANTE | BY12: GIGANTE | BZ12: GIGANTE | CA12: GIGANTE | CB12: GIGANTE | CC12: FUNDACIÓN | CD12: FUNDACIÓN | CE12: FUNDACIÓN | CF12: FUNDACIÓN | CG12: FUNDACIÓN | CH12: GRANADA | CI12: GRANADA | CJ12: GRANADA | CK12: CONTADERO | CL12: CONTADERO | CM12: CONTADERO | CN12: CONTADERO | CO12: CUCUTILLA | CP12: SIBUNDOY | CQ12: QUIMBAYA | CR12: QUIMBAYA | CS12: PEREIRA | CT12: PEREIRA | CU12: PEREIRA | CW12: CALIFORNIA | CX12: CALIFORNIA | CY12: CALIFORNIA | CZ12: CALIFORNIA | DA12: CALIFORNIA | DB12: CALIFORNIA | DC12: CALIFORNIA | DD12: CALIFORNIA | DE12: CALIFORNIA | DF12: CALIFORNIA | DG12: CALIFORNIA | DH12: LOS PALMITOS | DI12: COELLO | DJ12: COELLO | DK12: COELLO | DL12: CALIMA | DM12: CALIMA | DN12: CALIMA | DO12: CALIMA | DP12: CALIMA | DQ12: CALIMA | DR12: CALIMA | DS12: CALIMA | WP12: APARTADÓ | WQ12: APARTADÓ | WR12: CICUCO | WS12: BUSBANZÁ | WT12: LOS CORDOBAS | WU12: CACHIPAY | WV12: CACHIPAY | XC12: CACHIPAY | XD12: FUNDACIÓN | XE12: FUNDACIÓN | XF12: GRANADA | XG12: QUIMBAYA | XH12: PEREIRA | XI12: PEREIRA | XJ12: CALIFORNIA | XK12: CALIFORNIA | XL12: CALIFORNIA | XM12: CALIFORNIA | XN12: CALIFORNIA | XO12: CALIMA
A13: PA-31 | C13: CESAR | G13: ARBOLETES | H13: ARBOLETES | I13: ARBOLETES | J13: ARBOLETES | K13: ARBOLETES | L13: ARBOLETES | M13: ARBOLETES | N13: ARBOLETES | O13: ARBOLETES | P13: ARBOLETES | U13: POLONUEVO | V13: POLONUEVO | W13: POLONUEVO | X13: CLEMENCIA | Y13: CLEMENCIA | Z13: CLEMENCIA | AA13: CLEMENCIA | AB13: CLEMENCIA | AC13: CLEMENCIA | AD13: CALDAS | AE13: CALDAS | AF13: CALDAS | AG13: CALDAS | AH13: CALDAS | AI13: CALDAS | AJ13: MARQUETALIA | AK13: MARQUETALIA | AL13: MARQUETALIA | AM13: PUERTO RICO | AN13: SABANALARGA | AO13: FLORENCIA | AP13: FLORENCIA | AQ13: FLORENCIA | AR13: FLORENCIA | AS13: GAMARRA | AT13: GAMARRA | AU13: GAMARRA | AV13: GAMARRA | AW13: GAMARRA | AX13: EL CARMEN DE ATRATO | AY13: MOMIL | AZ13: MOMIL | BA13: MOMIL | BC13: CAJICÁ | BD13: CAJICÁ | BE13: CAJICÁ | BF13: CAJICÁ | BG13: CAJICÁ | BH13: CAJICÁ | BT13: CAJICÁ | BV13: SAN JUAN DEL CESAR | BX13: GUADALUPE | BY13: GUADALUPE | BZ13: GUADALUPE | CA13: GUADALUPE | CB13: GUADALUPE | CC13: GUAMAL | CD13: GUAMAL | CE13: GUAMAL | CF13: GUAMAL | CG13: GUAMAL | CH13: GUAMAL | CI13: GUAMAL | CJ13: GUAMAL | CK13: CÓRDOBA | CL13: CÓRDOBA | CM13: CÓRDOBA | CN13: CÓRDOBA | CO13: DURANIA | CP13: VALLE DEL GUAMUEZ | CQ13: SALENTO | CR13: SALENTO | CS13: PUEBLO RICO | CT13: PUEBLO RICO | CU13: PUEBLO RICO | CW13: CAPITANEJO | CX13: CAPITANEJO | CY13: CAPITANEJO | CZ13: CAPITANEJO | DA13: CAPITANEJO | DB13: CAPITANEJO | DC13: CAPITANEJO | DD13: CAPITANEJO | DE13: CAPITANEJO | DF13: CAPITANEJO | DG13: CAPITANEJO | DH13: MAJAGUAL | DI13: COYAIMA | DJ13: COYAIMA | DK13: COYAIMA | DL13: CANDELARIA | DM13: CANDELARIA | DN13: CANDELARIA | DO13: CANDELARIA | DP13: CANDELARIA | DQ13: CANDELARIA | DR13: CANDELARIA | DS13: CANDELARIA | WP13: ARBOLETES | WQ13: ARBOLETES | WR13: CLEMENCIA | WS13: CALDAS | WT13: MOMIL | WU13: CAJICÁ | WV13: CAJICÁ | XC13: CAJICÁ | XD13: GUAMAL | XE13: GUAMAL | XF13: GUAMAL | XG13: SALENTO | XH13: PUEBLO RICO | XI13: PUEBLO RICO | XJ13: CAPITANEJO | XK13: CAPITANEJO | XL13: CAPITANEJO | XM13: CAPITANEJO | XN13: CAPITANEJO | XO13: CANDELARIA
A14: PA-3 | C14: CHOCÓ | G14: ARGELIA | H14: ARGELIA | I14: ARGELIA | J14: ARGELIA | K14: ARGELIA | L14: ARGELIA | M14: ARGELIA | N14: ARGELIA | O14: ARGELIA | P14: ARGELIA | U14: PONEDERA | V14: PONEDERA | W14: PONEDERA | X14: CORDOBA | Y14: CORDOBA | Z14: CORDOBA | AA14: CORDOBA | AB14: CORDOBA | AC14: CORDOBA | AD14: CAMPOHERMOSO | AE14: CAMPOHERMOSO | AF14: CAMPOHERMOSO | AG14: CAMPOHERMOSO | AH14: CAMPOHERMOSO | AI14: CAMPOHERMOSO | AJ14: MARULANDA | AK14: MARULANDA | AL14: MARULANDA | AM14: SAN JOSÉ DEL FRAGUA | AN14: SÁCAMA | AO14: GUACHENE | AP14: GUACHENE | AQ14: GUACHENE | AR14: GUACHENE | AS14: GONZÁLEZ | AT14: GONZÁLEZ | AU14: GONZÁLEZ | AV14: GONZÁLEZ | AW14: GONZÁLEZ | AX14: EL LITORAL DEL SAN JUAN | AY14: MONTELÍBANO | AZ14: MONTELÍBANO | BA14: MONTELÍBANO | BC14: CAPARRAPÍ | BD14: CAPARRAPÍ | BE14: CAPARRAPÍ | BF14: CAPARRAPÍ | BG14: CAPARRAPÍ | BH14: CAPARRAPÍ | BT14: CAPARRAPÍ | BV14: URIBIA | BX14: HOBO | BY14: HOBO | BZ14: HOBO | CA14: HOBO | CB14: HOBO | CC14: NUEVA GRANADA | CD14: NUEVA GRANADA | CE14: NUEVA GRANADA | CF14: NUEVA GRANADA | CG14: NUEVA GRANADA | CH14: LA MACARENA | CI14: LA MACARENA | CJ14: LA MACARENA | CK14: CUASPUD (CARLOSAMA) | CL14: CUASPUD (CARLOSAMA) | CM14: CUASPUD (CARLOSAMA) | CN14: CUASPUD (CARLOSAMA) | CO14: EL CARMEN | CP14: VALLE DEL GUAMUEZ 1 | CS14: QUINCHÍA | CT14: QUINCHÍA | CU14: QUINCHÍA | CW14: CARCASÍ | CX14: CARCASÍ | CY14: CARCASÍ | CZ14: CARCASÍ | DA14: CARCASÍ | DB14: CARCASÍ | DC14: CARCASÍ | DD14: CARCASÍ | DE14: CARCASÍ | DF14: CARCASÍ | DG14: CARCASÍ | DH14: MORROA | DI14: CUNDAY | DJ14: CUNDAY | DK14: CUNDAY | DL14: CARTAGO | DM14: CARTAGO | DN14: CARTAGO | DO14: CARTAGO | DP14: CARTAGO | DQ14: CARTAGO | DR14: CARTAGO | DS14: CARTAGO | WP14: ARGELIA | WQ14: ARGELIA | WR14: CORDOBA | WS14: CAMPOHERMOSO | WT14: MONTELÍBANO | WU14: CAPARRAPÍ | WV14: CAPARRAPÍ | XC14: CAPARRAPÍ | XD14: NUEVA GRANADA | XE14: NUEVA GRANADA | XF14: LA MACARENA | XH14: QUINCHÍA | XI14: QUINCHÍA | XJ14: CARCASÍ | XK14: CARCASÍ | XL14: CARCASÍ | XM14: CARCASÍ | XN14: CARCASÍ | XO14: CARTAGO
A15: PA-4 | C15: CÓRDOBA | G15: ARMENIA | H15: ARMENIA | I15: ARMENIA | J15: ARMENIA | K15: ARMENIA | L15: ARMENIA | M15: ARMENIA | N15: ARMENIA | O15: ARMENIA | P15: ARMENIA | U15: PUERTO COLOMBIA | V15: PUERTO COLOMBIA | W15: PUERTO COLOMBIA | X15: EL CARMEN DE BOLÍVAR | Y15: EL CARMEN DE BOLÍVAR | Z15: EL CARMEN DE BOLÍVAR | AA15: EL CARMEN DE BOLÍVAR | AB15: EL CARMEN DE BOLÍVAR | AC15: EL CARMEN DE BOLÍVAR | AD15: CERINZA | AE15: CERINZA | AF15: CERINZA | AG15: CERINZA | AH15: CERINZA | AI15: CERINZA | AJ15: NEIRA | AK15: NEIRA | AL15: NEIRA | AM15: SAN VICENTE DEL CAGUÁN | AN15: SAN LUIS DE PALENQUE | AO15: GUAPI | AP15: GUAPI | AQ15: GUAPI | AR15: GUAPI | AS15: LA GLORIA | AT15: LA GLORIA | AU15: LA GLORIA | AV15: LA GLORIA | AW15: LA GLORIA | AX15: ISTMINA | AY15: MONTERÍA | AZ15: MONTERÍA | BA15: MONTERÍA | BC15: CAQUEZA | BD15: CAQUEZA | BE15: CAQUEZA | BF15: CAQUEZA | BG15: CAQUEZA | BH15: CAQUEZA | BT15: CAQUEZA | BV15: URUMITA | BX15: ÍQUIRA | BY15: ÍQUIRA | BZ15: ÍQUIRA | CA15: ÍQUIRA | CB15: ÍQUIRA | CC15: PEDRAZA | CD15: PEDRAZA | CE15: PEDRAZA | CF15: PEDRAZA | CG15: PEDRAZA | CH15: LEJANÍAS | CI15: LEJANÍAS | CJ15: LEJANÍAS | CK15: CUMBAL | CL15: CUMBAL | CM15: CUMBAL | CN15: CUMBAL | CO15: EL TARRA | CP15: VILLAGARZON | CS15: SANTA ROSA DE CABAL | CT15: SANTA ROSA DE CABAL | CU15: SANTA ROSA DE CABAL | CW15: CEPITÁ | CX15: CEPITÁ | CY15: CEPITÁ | CZ15: CEPITÁ | DA15: CEPITÁ | DB15: CEPITÁ | DC15: CEPITÁ | DD15: CEPITÁ | DE15: CEPITÁ | DF15: CEPITÁ | DG15: CEPITÁ | DH15: OVEJAS | DI15: DOLORES | DJ15: DOLORES | DK15: DOLORES | DL15: DAGUA | DM15: DAGUA | DN15: DAGUA | DO15: DAGUA | DP15: DAGUA | DQ15: DAGUA | DR15: DAGUA | DS15: DAGUA | WP15: ARMENIA | WQ15: ARMENIA | WR15: EL CARMEN DE BOLÍVAR | WS15: CERINZA | WT15: MONTERÍA | WU15: CAQUEZA | WV15: CAQUEZA | XC15: CAQUEZA | XD15: PEDRAZA | XE15: PEDRAZA | XF15: LEJANÍAS | XH15: SANTA ROSA DE CABAL | XI15: SANTA ROSA DE CABAL | XJ15: CEPITÁ | XK15: CEPITÁ | XL15: CEPITÁ | XM15: CEPITÁ | XN15: CEPITÁ | XO15: DAGUA
A16: PA-5 | C16: CUNDINAMARCA | G16: BARBOSA | H16: BARBOSA | I16: BARBOSA | J16: BARBOSA | K16: BARBOSA | L16: BARBOSA | M16: BARBOSA | N16: BARBOSA | O16: BARBOSA | P16: BARBOSA | U16: REPELON | V16: REPELON | W16: REPELON | X16: EL GUAMO | Y16: EL GUAMO | Z16: EL GUAMO | AA16: EL GUAMO | AB16: EL GUAMO | AC16: EL GUAMO | AD16: CHINAVITA | AE16: CHINAVITA | AF16: CHINAVITA | AG16: CHINAVITA | AH16: CHINAVITA | AI16: CHINAVITA | AJ16: NORCASIA | AK16: NORCASIA | AL16: NORCASIA | AM16: SOLANO | AN16: TAMARA | AO16: INZÁ | AP16: INZÁ | AQ16: INZÁ | AR16: INZÁ | AS16: LA JAGUA DE IBIRICO | AT16: LA JAGUA DE IBIRICO | AU16: LA JAGUA DE IBIRICO | AV16: LA JAGUA DE IBIRICO | AW16: LA JAGUA DE IBIRICO | AX16: JURADO | AY16: MOÑITOS | AZ16: MOÑITOS | BA16: MOÑITOS | BC16: CARMEN DE CARUPA | BD16: CARMEN DE CARUPA | BE16: CARMEN DE CARUPA | BF16: CARMEN DE CARUPA | BG16: CARMEN DE CARUPA | BH16: CARMEN DE CARUPA | BT16: CARMEN DE CARUPA | BV16: VILLANUEVA | BX16: ISNOS | BY16: ISNOS | BZ16: ISNOS | CA16: ISNOS | CB16: ISNOS | CC16: PIJIÑO DEL CARMEN | CD16: PIJIÑO DEL CARMEN | CE16: PIJIÑO DEL CARMEN | CF16: PIJIÑO DEL CARMEN | CG16: PIJIÑO DEL CARMEN | CH16: MAPIRIPÁN | CI16: MAPIRIPÁN | CJ16: MAPIRIPÁN | CK16: CUMBITARA | CL16: CUMBITARA | CM16: CUMBITARA | CN16: CUMBITARA | CO16: EL ZULIA | CS16: SANTUARIO | CT16: SANTUARIO | CU16: SANTUARIO | CW16: CERRITO | CX16: CERRITO | CY16: CERRITO | CZ16: CERRITO | DA16: CERRITO | DB16: CERRITO | DC16: CERRITO | DD16: CERRITO | DE16: CERRITO | DF16: CERRITO | DG16: CERRITO | DH16: PALMITO | DI16: ESPINAL | DJ16: ESPINAL | DK16: ESPINAL | DL16: EL ÁGUILA | DM16: EL ÁGUILA | DN16: EL ÁGUILA | DO16: EL ÁGUILA | DP16: EL ÁGUILA | DQ16: EL ÁGUILA | DR16: EL ÁGUILA | DS16: EL ÁGUILA | WP16: BARBOSA | WQ16: BARBOSA | WR16: EL GUAMO | WS16: CHINAVITA | WT16: MOÑITOS | WU16: CARMEN DE CARUPA | WV16: CARMEN DE CARUPA | XC16: CARMEN DE CARUPA | XD16: PIJIÑO DEL CARMEN | XE16: PIJIÑO DEL CARMEN | XF16: MAPIRIPÁN | XH16: SANTUARIO | XI16: SANTUARIO | XJ16: CERRITO | XK16: CERRITO | XL16: CERRITO | XM16: CERRITO | XN16: CERRITO | XO16: EL ÁGUILA
A17: PA-20 | C17: GUAINIA | G17: BELLO | H17: BELLO | I17: BELLO | J17: BELLO | K17: BELLO | L17: BELLO | M17: BELLO | N17: BELLO | O17: BELLO | P17: BELLO | U17: SABANAGRANDE | V17: SABANAGRANDE | W17: SABANAGRANDE | X17: EL PENON | Y17: EL PENON | Z17: EL PENON | AA17: EL PENON | AB17: EL PENON | AC17: EL PENON | AD17: CHIQUINQUIRÁ | AE17: CHIQUINQUIRÁ | AF17: CHIQUINQUIRÁ | AG17: CHIQUINQUIRÁ | AH17: CHIQUINQUIRÁ | AI17: CHIQUINQUIRÁ | AJ17: PÁCORA | AK17: PÁCORA | AL17: PÁCORA | AM17: SOLITA | AN17: TAURAMENA | AO17: JAMBALÓ | AP17: JAMBALÓ | AQ17: JAMBALÓ | AR17: JAMBALÓ | AS17: LA PAZ | AT17: LA PAZ | AU17: LA PAZ | AV17: LA PAZ | AW17: LA PAZ | AX17: LLORO | AY17: PLANETA RICA | AZ17: PLANETA RICA | BA17: PLANETA RICA | BC17: CHAGUANÍ | BD17: CHAGUANÍ | BE17: CHAGUANÍ | BF17: CHAGUANÍ | BG17: CHAGUANÍ | BH17: CHAGUANÍ | BT17: CHAGUANÍ | BX17: LA ARGENTINA | BY17: LA ARGENTINA | BZ17: LA ARGENTINA | CA17: LA ARGENTINA | CB17: LA ARGENTINA | CC17: PIVIJAY | CD17: PIVIJAY | CE17: PIVIJAY | CF17: PIVIJAY | CG17: PIVIJAY | CH17: MESETAS | CI17: MESETAS | CJ17: MESETAS | CK17: EL CHARCO | CL17: EL CHARCO | CM17: EL CHARCO | CN17: EL CHARCO | CO17: GRAMALOTE | CW17: CHARALÁ | CX17: CHARALÁ | CY17: CHARALÁ | CZ17: CHARALÁ | DA17: CHARALÁ | DB17: CHARALÁ | DC17: CHARALÁ | DD17: CHARALÁ | DE17: CHARALÁ | DF17: CHARALÁ | DG17: CHARALÁ | DH17: SAMPUÉS | DI17: FALAN | DJ17: FALAN | DK17: FALAN | DL17: EL CAIRO | DM17: EL CAIRO | DN17: EL CAIRO | DO17: EL CAIRO | DP17: EL CAIRO | DQ17: EL CAIRO | DR17: EL CAIRO | DS17: EL CAIRO | WP17: BELLO | WQ17: BELLO | WR17: EL PENON | WS17: CHIQUINQUIRÁ | WT17: PLANETA RICA | WU17: CHAGUANÍ | WV17: CHAGUANÍ | XC17: CHAGUANÍ | XD17: PIVIJAY | XE17: PIVIJAY | XF17: MESETAS | XJ17: CHARALÁ | XK17: CHARALÁ | XL17: CHARALÁ | XM17: CHARALÁ | XN17: CHARALÁ | XO17: EL CAIRO
A18: PA-21 | C18: GUAVIARE | G18: BELMIRA | H18: BELMIRA | I18: BELMIRA | J18: BELMIRA | K18: BELMIRA | L18: BELMIRA | M18: BELMIRA | N18: BELMIRA | O18: BELMIRA | P18: BELMIRA | U18: SABANALARGA | V18: SABANALARGA | W18: SABANALARGA | X18: HATILLO DE LOBA | Y18: HATILLO DE LOBA | Z18: HATILLO DE LOBA | AA18: HATILLO DE LOBA | AB18: HATILLO DE LOBA | AC18: HATILLO DE LOBA | AD18: CHÍQUIZA | AE18: CHÍQUIZA | AF18: CHÍQUIZA | AG18: CHÍQUIZA | AH18: CHÍQUIZA | AI18: CHÍQUIZA | AJ18: PALESTINA | AK18: PALESTINA | AL18: PALESTINA | AM18: VALPARAISO | AN18: TRINIDAD | AO18: LA SIERRA | AP18: LA SIERRA | AQ18: LA SIERRA | AR18: LA SIERRA | AS18: MANAURE BALCÓN DEL CESAR | AT18: MANAURE BALCÓN DEL CESAR | AU18: MANAURE BALCÓN DEL CESAR | AV18: MANAURE BALCÓN DEL CESAR | AW18: MANAURE BALCÓN DEL CESAR | AX18: MEDIO ATRATO | AY18: PUEBLO NUEVO | AZ18: PUEBLO NUEVO | BA18: PUEBLO NUEVO | BC18: CHÍA | BD18: CHÍA | BE18: CHÍA | BF18: CHÍA | BG18: CHÍA | BH18: CHÍA | BT18: CHÍA | BX18: LA PLATA | BY18: LA PLATA | BZ18: LA PLATA | CA18: LA PLATA | CB18: LA PLATA | CC18: PLATO | CD18: PLATO | CE18: PLATO | CF18: PLATO | CG18: PLATO | CH18: PUERTO CONCORDIA | CI18: PUERTO CONCORDIA | CJ18: PUERTO CONCORDIA | CK18: EL PEÑOL | CL18: EL PEÑOL | CM18: EL PEÑOL | CN18: EL PEÑOL | CO18: HACARÍ | CW18: CHARTA | CX18: CHARTA | CY18: CHARTA | CZ18: CHARTA | DA18: CHARTA | DB18: CHARTA | DC18: CHARTA | DD18: CHARTA | DE18: CHARTA | DF18: CHARTA | DG18: CHARTA | DH18: SAN BENITO ABAD | DI18: FLANDES | DJ18: FLANDES | DK18: FLANDES | DL18: EL CERRITO | DM18: EL CERRITO | DN18: EL CERRITO | DO18: EL CERRITO | DP18: EL CERRITO | DQ18: EL CERRITO | DR18: EL CERRITO | DS18: EL CERRITO | WP18: BELMIRA | WQ18: BELMIRA | WR18: HATILLO DE LOBA | WS18: CHÍQUIZA | WT18: PUEBLO NUEVO | WU18: CHÍA | WV18: CHÍA | XC18: CHÍA | XD18: PLATO | XE18: PLATO | XF18: PUERTO CONCORDIA | XJ18: CHARTA | XK18: CHARTA | XL18: CHARTA | XM18: CHARTA | XN18: CHARTA | XO18: EL CERRITO
A19: PA-22 | C19: HUILA | G19: BETANIA | H19: BETANIA | I19: BETANIA | J19: BETANIA | K19: BETANIA | L19: BETANIA | M19: BETANIA | N19: BETANIA | O19: BETANIA | P19: BETANIA | U19: SANTA LUCIA | V19: SANTA LUCIA | W19: SANTA LUCIA | X19: MAGANGUE | Y19: MAGANGUE | Z19: MAGANGUE | AA19: MAGANGUE | AB19: MAGANGUE | AC19: MAGANGUE | AD19: CHISCAS | AE19: CHISCAS | AF19: CHISCAS | AG19: CHISCAS | AH19: CHISCAS | AI19: CHISCAS | AJ19: PENSILVANIA | AK19: PENSILVANIA | AL19: PENSILVANIA | AM19: VALPARAÍSO | AN19: VILLANUEVA | AO19: LA VEGA | AP19: LA VEGA | AQ19: LA VEGA | AR19: LA VEGA | AS19: PAILITAS | AT19: PAILITAS | AU19: PAILITAS | AV19: PAILITAS | AW19: PAILITAS | AX19: MEDIO BAUDO | AY19: PUERTO ESCONDIDO | AZ19: PUERTO ESCONDIDO | BA19: PUERTO ESCONDIDO | BC19: CHIPAQUE | BD19: CHIPAQUE | BE19: CHIPAQUE | BF19: CHIPAQUE | BG19: CHIPAQUE | BH19: CHIPAQUE | BT19: CHIPAQUE | BX19: NÁTAGA | BY19: NÁTAGA | BZ19: NÁTAGA | CA19: NÁTAGA | CB19: NÁTAGA | CC19: PUEBLOVIEJO | CD19: PUEBLOVIEJO | CE19: PUEBLOVIEJO | CF19: PUEBLOVIEJO | CG19: PUEBLOVIEJO | CH19: PUERTO GAITÁN | CI19: PUERTO GAITÁN | CJ19: PUERTO GAITÁN | CK19: EL ROSARIO | CL19: EL ROSARIO | CM19: EL ROSARIO | CN19: EL ROSARIO | CO19: HERRÁN | CW19: CHIMA | CX19: CHIMA | CY19: CHIMA | CZ19: CHIMA | DA19: CHIMA | DB19: CHIMA | DC19: CHIMA | DD19: CHIMA | DE19: CHIMA | DF19: CHIMA | DG19: CHIMA | DH19: SAN JUAN BETULIA | DI19: FRESNO | DJ19: FRESNO | DK19: FRESNO | DL19: EL DOVIO | DM19: EL DOVIO | DN19: EL DOVIO | DO19: EL DOVIO | DP19: EL DOVIO | DQ19: EL DOVIO | DR19: EL DOVIO | DS19: EL DOVIO | WP19: BETANIA | WQ19: BETANIA | WR19: MAGANGUE | WS19: CHISCAS | WT19: PUERTO ESCONDIDO | WU19: CHIPAQUE | WV19: CHIPAQUE | XC19: CHIPAQUE | XD19: PUEBLOVIEJO | XE19: PUEBLOVIEJO | XF19: PUERTO GAITÁN | XJ19: CHIMA | XK19: CHIMA | XL19: CHIMA | XM19: CHIMA | XN19: CHIMA | XO19: EL DOVIO
A20: PA-23 | C20: LA GUAJIRA | G20: BETULIA | H20: BETULIA | I20: BETULIA | J20: BETULIA | K20: BETULIA | L20: BETULIA | M20: BETULIA | N20: BETULIA | O20: BETULIA | P20: BETULIA | U20: SANTO TOMÁS | V20: SANTO TOMÁS | W20: SANTO TOMÁS | X20: MAHATES | Y20: MAHATES | Z20: MAHATES | AA20: MAHATES | AB20: MAHATES | AC20: MAHATES | AD20: CHITA | AE20: CHITA | AF20: CHITA | AG20: CHITA | AH20: CHITA | AI20: CHITA | AJ20: RIOSUCIO | AK20: RIOSUCIO | AL20: RIOSUCIO | AN20: YOPAL | AO20: LÓPEZ DE MICAY | AP20: LÓPEZ DE MICAY | AQ20: LÓPEZ DE MICAY | AR20: LÓPEZ DE MICAY | AS20: PELAYA | AT20: PELAYA | AU20: PELAYA | AV20: PELAYA | AW20: PELAYA | AX20: MEDIO SAN JUAN | AY20: PUERTO LIBERTADOR | AZ20: PUERTO LIBERTADOR | BA20: PUERTO LIBERTADOR | BC20: CHOACHÍ | BD20: CHOACHÍ | BE20: CHOACHÍ | BF20: CHOACHÍ | BG20: CHOACHÍ | BH20: CHOACHÍ | BT20: CHOACHÍ | BX20: NEIVA | BY20: NEIVA | BZ20: NEIVA | CA20: NEIVA | CB20: NEIVA | CC20: REMOLINO | CD20: REMOLINO | CE20: REMOLINO | CF20: REMOLINO | CG20: REMOLINO | CH20: PUERTO LLERAS | CI20: PUERTO LLERAS | CJ20: PUERTO LLERAS | CK20: EL TABLÓN | CL20: EL TABLÓN | CM20: EL TABLÓN | CN20: EL TABLÓN | CO20: LA ESPERANZA | CW20: CHIPATÁ | CX20: CHIPATÁ | CY20: CHIPATÁ | CZ20: CHIPATÁ | DA20: CHIPATÁ | DB20: CHIPATÁ | DC20: CHIPATÁ | DD20: CHIPATÁ | DE20: CHIPATÁ | DF20: CHIPATÁ | DG20: CHIPATÁ | DH20: SAN MARCOS | DI20: GUAMO | DJ20: GUAMO | DK20: GUAMO | DL20: FLORIDA | DM20: FLORIDA | DN20: FLORIDA | DO20: FLORIDA | DP20: FLORIDA | DQ20: FLORIDA | DR20: FLORIDA | DS20: FLORIDA | WP20: BETULIA | WQ20: BETULIA | WR20: MAHATES | WS20: CHITA | WT20: PUERTO LIBERTADOR | WU20: CHOACHÍ | WV20: CHOACHÍ | XC20: CHOACHÍ | XD20: REMOLINO | XE20: REMOLINO | XF20: PUERTO LLERAS | XJ20: CHIPATÁ | XK20: CHIPATÁ | XL20: CHIPATÁ | XM20: CHIPATÁ | XN20: CHIPATÁ | XO20: FLORIDA
A21: PA-46 | C21: MAGDALENA | G21: BRICEÑO | H21: BRICEÑO | I21: BRICEÑO | J21: BRICEÑO | K21: BRICEÑO | L21: BRICEÑO | M21: BRICEÑO | N21: BRICEÑO | O21: BRICEÑO | P21: BRICEÑO | U21: SOLEDAD | V21: SOLEDAD | W21: SOLEDAD | X21: MARGARITA | Y21: MARGARITA | Z21: MARGARITA | AA21: MARGARITA | AB21: MARGARITA | AC21: MARGARITA | AD21: CHITARAQUE | AE21: CHITARAQUE | AF21: CHITARAQUE | AG21: CHITARAQUE | AH21: CHITARAQUE | AI21: CHITARAQUE | AJ21: RISARALDA | AK21: RISARALDA | AL21: RISARALDA | AO21: MERCADERES | AP21: MERCADERES | AQ21: MERCADERES | AR21: MERCADERES | AS21: PUEBLO BELLO | AT21: PUEBLO BELLO | AU21: PUEBLO BELLO | AV21: PUEBLO BELLO | AW21: PUEBLO BELLO | AX21: NÓVITA | AY21: PURISIMA | AZ21: PURISIMA | BA21: PURISIMA | BC21: CHOCONTÁ | BD21: CHOCONTÁ | BE21: CHOCONTÁ | BF21: CHOCONTÁ | BG21: CHOCONTÁ | BH21: CHOCONTÁ | BT21: CHOCONTÁ | BX21: OPORAPA | BY21: OPORAPA | BZ21: OPORAPA | CA21: OPORAPA | CB21: OPORAPA | CC21: SABANAS DE SAN ÁNGEL | CD21: SABANAS DE SAN ÁNGEL | CE21: SABANAS DE SAN ÁNGEL | CF21: SABANAS DE SAN ÁNGEL | CG21: SABANAS DE SAN ÁNGEL | CH21: PUERTO LOPEZ | CI21: PUERTO LOPEZ | CJ21: PUERTO LOPEZ | CK21: EL TAMBO | CL21: EL TAMBO | CM21: EL TAMBO | CN21: EL TAMBO | CO21: LA PLAYA | CW21: CIMITARRA | CX21: CIMITARRA | CY21: CIMITARRA | CZ21: CIMITARRA | DA21: CIMITARRA | DB21: CIMITARRA | DC21: CIMITARRA | DD21: CIMITARRA | DE21: CIMITARRA | DF21: CIMITARRA | DG21: CIMITARRA | DH21: SAN ONOFRE | DI21: HERVEO | DJ21: HERVEO | DK21: HERVEO | DL21: GINEBRA | DM21: GINEBRA | DN21: GINEBRA | DO21: GINEBRA | DP21: GINEBRA | DQ21: GINEBRA | DR21: GINEBRA | DS21: GINEBRA | WP21: BRICEÑO | WQ21: BRICEÑO | WR21: MARGARITA | WS21: CHITARAQUE | WT21: PURISIMA | WU21: CHOCONTÁ | WV21: CHOCONTÁ | XC21: CHOCONTÁ | XD21: SABANAS DE SAN ÁNGEL | XE21: SABANAS DE SAN ÁNGEL | XF21: PUERTO LOPEZ | XJ21: CIMITARRA | XK21: CIMITARRA | XL21: CIMITARRA | XM21: CIMITARRA | XN21: CIMITARRA | XO21: GINEBRA
A22: PA-47 | C22: META | G22: BURITICÁ | H22: BURITICÁ | I22: BURITICÁ | J22: BURITICÁ | K22: BURITICÁ | L22: BURITICÁ | M22: BURITICÁ | N22: BURITICÁ | O22: BURITICÁ | P22: BURITICÁ | U22: SUAN | V22: SUAN | W22: SUAN | X22: MARIA LA BAJA | Y22: MARIA LA BAJA | Z22: MARIA LA BAJA | AA22: MARIA LA BAJA | AB22: MARIA LA BAJA | AC22: MARIA LA BAJA | AD22: CHIVATÁ | AE22: CHIVATÁ | AF22: CHIVATÁ | AG22: CHIVATÁ | AH22: CHIVATÁ | AI22: CHIVATÁ | AJ22: SALAMINA | AK22: SALAMINA | AL22: SALAMINA | AO22: MIRANDA | AP22: MIRANDA | AQ22: MIRANDA | AR22: MIRANDA | AS22: RIO DE ORO | AT22: RIO DE ORO | AU22: RIO DE ORO | AV22: RIO DE ORO | AW22: RIO DE ORO | AX22: NUQUI | AY22: SAHAGÚN | AZ22: SAHAGÚN | BA22: SAHAGÚN | BC22: COGUA | BD22: COGUA | BE22: COGUA | BF22: COGUA | BG22: COGUA | BH22: COGUA | BT22: COGUA | BX22: PAICOL | BY22: PAICOL | BZ22: PAICOL | CA22: PAICOL | CB22: PAICOL | CC22: SALAMINA | CD22: SALAMINA | CE22: SALAMINA | CF22: SALAMINA | CG22: SALAMINA | CH22: PUERTO RICO | CI22: PUERTO RICO | CJ22: PUERTO RICO | CK22: FRANCISCO PIZARRO | CL22: FRANCISCO PIZARRO | CM22: FRANCISCO PIZARRO | CN22: FRANCISCO PIZARRO | CO22: LABATECA | CW22: CONCEPCIÓN | CX22: CONCEPCIÓN | CY22: CONCEPCIÓN | CZ22: CONCEPCIÓN | DA22: CONCEPCIÓN | DB22: CONCEPCIÓN | DC22: CONCEPCIÓN | DD22: CONCEPCIÓN | DE22: CONCEPCIÓN | DF22: CONCEPCIÓN | DG22: CONCEPCIÓN | DH22: SAN PEDRO | DI22: HONDA | DJ22: HONDA | DK22: HONDA | DL22: GUACARÍ | DM22: GUACARÍ | DN22: GUACARÍ | DO22: GUACARÍ | DP22: GUACARÍ | DQ22: GUACARÍ | DR22: GUACARÍ | DS22: GUACARÍ | WP22: BURITICÁ | WQ22: BURITICÁ | WR22: MARIA LA BAJA | WS22: CHIVATÁ | WT22: SAHAGÚN | WU22: COGUA | WV22: COGUA | XC22: COGUA | XD22: SALAMINA | XE22: SALAMINA | XF22: PUERTO RICO | XJ22: CONCEPCIÓN | XK22: CONCEPCIÓN | XL22: CONCEPCIÓN | XM22: CONCEPCIÓN | XN22: CONCEPCIÓN | XO22: GUACARÍ
A23: PA-48 | C23: NARIÑO | G23: CÁCERES | H23: CÁCERES | I23: CÁCERES | J23: CÁCERES | K23: CÁCERES | L23: CÁCERES | M23: CÁCERES | N23: CÁCERES | O23: CÁCERES | P23: CÁCERES | U23: TUBARÁ | V23: TUBARÁ | W23: TUBARÁ | X23: MOMPÓS | Y23: MOMPÓS | Z23: MOMPÓS | AA23: MOMPÓS | AB23: MOMPÓS | AC23: MOMPÓS | AD23: CHIVOR | AE23: CHIVOR | AF23: CHIVOR | AG23: CHIVOR | AH23: CHIVOR | AI23: CHIVOR | AJ23: SAMANA | AK23: SAMANA | AL23: SAMANA | AO23: MORALES | AP23: MORALES | AQ23: MORALES | AR23: MORALES | AS23: SAN ALBERTO | AT23: SAN ALBERTO | AU23: SAN ALBERTO | AV23: SAN ALBERTO | AW23: SAN ALBERTO | AX23: QUIBDO | AY23: SAN ANDRES DE SOTAVENTO | AZ23: SAN ANDRES DE SOTAVENTO | BA23: SAN ANDRES DE SOTAVENTO | BC23: COTA | BD23: COTA | BE23: COTA | BF23: COTA | BG23: COTA | BH23: COTA | BT23: COTA | BX23: PALERMO | BY23: PALERMO | BZ23: PALERMO | CA23: PALERMO | CB23: PALERMO | CC23: SAN SEBASTIÁN DE BUENAVISTA | CD23: SAN SEBASTIÁN DE BUENAVISTA | CE23: SAN SEBASTIÁN DE BUENAVISTA | CF23: SAN SEBASTIÁN DE BUENAVISTA | CG23: SAN SEBASTIÁN DE BUENAVISTA | CH23: RESTREPO | CI23: RESTREPO | CJ23: RESTREPO | CK23: FUNES | CL23: FUNES | CM23: FUNES | CN23: FUNES | CO23: LOS PATIOS | CW23: CONFINES | CX23: CONFINES | CY23: CONFINES | CZ23: CONFINES | DA23: CONFINES | DB23: CONFINES | DC23: CONFINES | DD23: CONFINES | DE23: CONFINES | DF23: CONFINES | DG23: CONFINES | DH23: SINCÉ | DI23: IBAGUÉ | DJ23: IBAGUÉ | DK23: IBAGUÉ | DL23: JAMUNDÍ | DM23: JAMUNDÍ | DN23: JAMUNDÍ | DO23: JAMUNDÍ | DP23: JAMUNDÍ | DQ23: JAMUNDÍ | DR23: JAMUNDÍ | DS23: JAMUNDÍ | WP23: CÁCERES | WQ23: CÁCERES | WR23: MOMPÓS | WS23: CHIVOR | WT23: SAN ANDRES DE SOTAVENTO | WU23: COTA | WV23: COTA | XC23: COTA | XD23: SAN SEBASTIÁN DE BUENAVISTA | XE23: SAN SEBASTIÁN DE BUENAVISTA | XF23: RESTREPO | XJ23: CONFINES | XK23: CONFINES | XL23: CONFINES | XM23: CONFINES | XN23: CONFINES | XO23: JAMUNDÍ
A24: PA-49 | C24: NORTE DE SANTANDER | G24: CAICEDO | H24: CAICEDO | I24: CAICEDO | J24: CAICEDO | K24: CAICEDO | L24: CAICEDO | M24: CAICEDO | N24: CAICEDO | O24: CAICEDO | P24: CAICEDO | U24: USIACURI | V24: USIACURI | W24: USIACURI | X24: MONTECRISTO | Y24: MONTECRISTO | Z24: MONTECRISTO | AA24: MONTECRISTO | AB24: MONTECRISTO | AC24: MONTECRISTO | AD24: CIÉNEGA | AE24: CIÉNEGA | AF24: CIÉNEGA | AG24: CIÉNEGA | AH24: CIÉNEGA | AI24: CIÉNEGA | AJ24: SAN JOSÉ | AK24: SAN JOSÉ | AL24: SAN JOSÉ | AO24: PADILLA | AP24: PADILLA | AQ24: PADILLA | AR24: PADILLA | AS24: SAN DIEGO | AT24: SAN DIEGO | AU24: SAN DIEGO | AV24: SAN DIEGO | AW24: SAN DIEGO | AX24: RIO IRÓ (SANTA RITA) | AY24: SAN ANTERO | AZ24: SAN ANTERO | BA24: SAN ANTERO | BC24: CUCUNUBÁ | BD24: CUCUNUBÁ | BE24: CUCUNUBÁ | BF24: CUCUNUBÁ | BG24: CUCUNUBÁ | BH24: CUCUNUBÁ | BT24: CUCUNUBÁ | BX24: PALESTINA | BY24: PALESTINA | BZ24: PALESTINA | CA24: PALESTINA | CB24: PALESTINA | CC24: SAN ZENÓN | CD24: SAN ZENÓN | CE24: SAN ZENÓN | CF24: SAN ZENÓN | CG24: SAN ZENÓN | CH24: SAN CARLOS DE GUAROA | CI24: SAN CARLOS DE GUAROA | CJ24: SAN CARLOS DE GUAROA | CK24: GUACHUCAL | CL24: GUACHUCAL | CM24: GUACHUCAL | CN24: GUACHUCAL | CO24: LOURDES | CW24: CONTRATACIÓN | CX24: CONTRATACIÓN | CY24: CONTRATACIÓN | CZ24: CONTRATACIÓN | DA24: CONTRATACIÓN | DB24: CONTRATACIÓN | DC24: CONTRATACIÓN | DD24: CONTRATACIÓN | DE24: CONTRATACIÓN | DF24: CONTRATACIÓN | DG24: CONTRATACIÓN | DH24: SINCELEJO | DI24: ICONONZO | DJ24: ICONONZO | DK24: ICONONZO | DL24: LA CUMBRE | DM24: LA CUMBRE | DN24: LA CUMBRE | DO24: LA CUMBRE | DP24: LA CUMBRE | DQ24: LA CUMBRE | DR24: LA CUMBRE | DS24: LA CUMBRE | WP24: CAICEDO | WQ24: CAICEDO | WR24: MONTECRISTO | WS24: CIÉNEGA | WT24: SAN ANTERO | WU24: CUCUNUBÁ | WV24: CUCUNUBÁ | XC24: CUCUNUBÁ | XD24: SAN ZENÓN | XE24: SAN ZENÓN | XF24: SAN CARLOS DE GUAROA | XJ24: CONTRATACIÓN | XK24: CONTRATACIÓN | XL24: CONTRATACIÓN | XM24: CONTRATACIÓN | XN24: CONTRATACIÓN | XO24: LA CUMBRE
A25: PA-55 | C25: PUTUMAYO | G25: CALDAS | H25: CALDAS | I25: CALDAS | J25: CALDAS | K25: CALDAS | L25: CALDAS | M25: CALDAS | N25: CALDAS | O25: CALDAS | P25: CALDAS | X25: MORALES | Y25: MORALES | Z25: MORALES | AA25: MORALES | AB25: MORALES | AC25: MORALES | AD25: CÓMBITA | AE25: CÓMBITA | AF25: CÓMBITA | AG25: CÓMBITA | AH25: CÓMBITA | AI25: CÓMBITA | AJ25: SUPIA | AK25: SUPIA | AL25: SUPIA | AO25: PÁEZ (BELALCÁZAR) | AP25: PÁEZ (BELALCÁZAR) | AQ25: PÁEZ (BELALCÁZAR) | AR25: PÁEZ (BELALCÁZAR) | AS25: SAN MARTÍN | AT25: SAN MARTÍN | AU25: SAN MARTÍN | AV25: SAN MARTÍN | AW25: SAN MARTÍN | AX25: RIO QUITO | AY25: SAN BERNARDO DEL VIENTO | AZ25: SAN BERNARDO DEL VIENTO | BA25: SAN BERNARDO DEL VIENTO | BC25: EL COLEGIO | BD25: EL COLEGIO | BE25: EL COLEGIO | BF25: EL COLEGIO | BG25: EL COLEGIO | BH25: EL COLEGIO | BT25: EL COLEGIO | BX25: PITAL | BY25: PITAL | BZ25: PITAL | CA25: PITAL | CB25: PITAL | CC25: SANTA ANA | CD25: SANTA ANA | CE25: SANTA ANA | CF25: SANTA ANA | CG25: SANTA ANA | CH25: SAN JUAN DE ARAMA | CI25: SAN JUAN DE ARAMA | CJ25: SAN JUAN DE ARAMA | CK25: GUAITARILLA | CL25: GUAITARILLA | CM25: GUAITARILLA | CN25: GUAITARILLA | CO25: MUTISCUA | CW25: COROMORO | CX25: COROMORO | CY25: COROMORO | CZ25: COROMORO | DA25: COROMORO | DB25: COROMORO | DC25: COROMORO | DD25: COROMORO | DE25: COROMORO | DF25: COROMORO | DG25: COROMORO | DH25: SUCRE | DI25: LÉRIDA | DJ25: LÉRIDA | DK25: LÉRIDA | DL25: LA UNIÓN | DM25: LA UNIÓN | DN25: LA UNIÓN | DO25: LA UNIÓN | DP25: LA UNIÓN | DQ25: LA UNIÓN | DR25: LA UNIÓN | DS25: LA UNIÓN | WP25: CALDAS | WQ25: CALDAS | WR25: MORALES | WS25: CÓMBITA | WT25: SAN BERNARDO DEL VIENTO | WU25: EL COLEGIO | WV25: EL COLEGIO | XC25: EL COLEGIO | XD25: SANTA ANA | XE25: SANTA ANA | XF25: SAN JUAN DE ARAMA | XJ25: COROMORO | XK25: COROMORO | XL25: COROMORO | XM25: COROMORO | XN25: COROMORO | XO25: LA UNIÓN
A26: PA-59 | C26: QUINDIO | G26: CAMPAMENTO | H26: CAMPAMENTO | I26: CAMPAMENTO | J26: CAMPAMENTO | K26: CAMPAMENTO | L26: CAMPAMENTO | M26: CAMPAMENTO | N26: CAMPAMENTO | O26: CAMPAMENTO | P26: CAMPAMENTO | X26: PINILLOS | Y26: PINILLOS | Z26: PINILLOS | AA26: PINILLOS | AB26: PINILLOS | AC26: PINILLOS | AD26: COPER | AE26: COPER | AF26: COPER | AG26: COPER | AH26: COPER | AI26: COPER | AJ26: VICTORIA | AK26: VICTORIA | AL26: VICTORIA | AO26: PATÍA (EL BORDO) | AP26: PATÍA (EL BORDO) | AQ26: PATÍA (EL BORDO) | AR26: PATÍA (EL BORDO) | AS26: TAMALAMEQUE | AT26: TAMALAMEQUE | AU26: TAMALAMEQUE | AV26: TAMALAMEQUE | AW26: TAMALAMEQUE | AX26: RIOSUCIO | AY26: SAN CARLOS | AZ26: SAN CARLOS | BA26: SAN CARLOS | BC26: EL PEÑÓN | BD26: EL PEÑÓN | BE26: EL PEÑÓN | BF26: EL PEÑÓN | BG26: EL PEÑÓN | BH26: EL PEÑÓN | BT26: EL PEÑÓN | BX26: PITALITO | BY26: PITALITO | BZ26: PITALITO | CA26: PITALITO | CB26: PITALITO | CC26: SANTA BÁRBARA DE PINTO | CD26: SANTA BÁRBARA DE PINTO | CE26: SANTA BÁRBARA DE PINTO | CF26: SANTA BÁRBARA DE PINTO | CG26: SANTA BÁRBARA DE PINTO | CH26: SAN JUANITO | CI26: SAN JUANITO | CJ26: SAN JUANITO | CK26: GUALMATAN | CL26: GUALMATAN | CM26: GUALMATAN | CN26: GUALMATAN | CO26: OCAÑA | CW26: CURITÍ | CX26: CURITÍ | CY26: CURITÍ | CZ26: CURITÍ | DA26: CURITÍ | DB26: CURITÍ | DC26: CURITÍ | DD26: CURITÍ | DE26: CURITÍ | DF26: CURITÍ | DG26: CURITÍ | DH26: TOLÚ | DI26: LÍBANO | DJ26: LÍBANO | DK26: LÍBANO | DL26: LA VICTORIA | DM26: LA VICTORIA | DN26: LA VICTORIA | DO26: LA VICTORIA | DP26: LA VICTORIA | DQ26: LA VICTORIA | DR26: LA VICTORIA | DS26: LA VICTORIA | WP26: CAMPAMENTO | WQ26: CAMPAMENTO | WR26: PINILLOS | WS26: COPER | WT26: SAN CARLOS | WU26: EL PEÑÓN | WV26: EL PEÑÓN | XC26: EL PEÑÓN | XD26: SANTA BÁRBARA DE PINTO | XE26: SANTA BÁRBARA DE PINTO | XF26: SAN JUANITO | XJ26: CURITÍ | XK26: CURITÍ | XL26: CURITÍ | XM26: CURITÍ | XN26: CURITÍ | XO26: LA VICTORIA
A27: PA-28 | C27: RISARALDA | G27: CAÑASGORDAS | H27: CAÑASGORDAS | I27: CAÑASGORDAS | J27: CAÑASGORDAS | K27: CAÑASGORDAS | L27: CAÑASGORDAS | M27: CAÑASGORDAS | N27: CAÑASGORDAS | O27: CAÑASGORDAS | P27: CAÑASGORDAS | X27: REGIDOR | Y27: REGIDOR | Z27: REGIDOR | AA27: REGIDOR | AB27: REGIDOR | AC27: REGIDOR | AD27: CORRALES | AE27: CORRALES | AF27: CORRALES | AG27: CORRALES | AH27: CORRALES | AI27: CORRALES | AJ27: VILLAMARIA | AK27: VILLAMARIA | AL27: VILLAMARIA | AO27: PIAMONTE | AP27: PIAMONTE | AQ27: PIAMONTE | AR27: PIAMONTE | AS27: VALLEDUPAR | AT27: VALLEDUPAR | AU27: VALLEDUPAR | AV27: VALLEDUPAR | AW27: VALLEDUPAR | AX27: SAN JOSÉ DEL PALMAR | AY27: SAN JOSE DE URE | AZ27: SAN JOSE DE URE | BA27: SAN JOSE DE URE | BC27: EL ROSAL | BD27: EL ROSAL | BE27: EL ROSAL | BF27: EL ROSAL | BG27: EL ROSAL | BH27: EL ROSAL | BT27: EL ROSAL | BX27: RIVERA | BY27: RIVERA | BZ27: RIVERA | CA27: RIVERA | CB27: RIVERA | CC27: SANTA MARTA | CD27: SANTA MARTA | CE27: SANTA MARTA | CF27: SANTA MARTA | CG27: SANTA MARTA | CH27: SAN LUIS DE CUBARRAL | CI27: SAN LUIS DE CUBARRAL | CJ27: SAN LUIS DE CUBARRAL | CK27: ILES | CL27: ILES | CM27: ILES | CN27: ILES | CO27: PAMPLONA | CW27: EL CARMEN DE CHUCURÍ | CX27: EL CARMEN DE CHUCURÍ | CY27: EL CARMEN DE CHUCURÍ | CZ27: EL CARMEN DE CHUCURÍ | DA27: EL CARMEN DE CHUCURÍ | DB27: EL CARMEN DE CHUCURÍ | DC27: EL CARMEN DE CHUCURÍ | DD27: EL CARMEN DE CHUCURÍ | DE27: EL CARMEN DE CHUCURÍ | DF27: EL CARMEN DE CHUCURÍ | DG27: EL CARMEN DE CHUCURÍ | DH27: TOLUVIEJO | DI27: MARIQUITA | DJ27: MARIQUITA | DK27: MARIQUITA | DL27: OBANDO | DM27: OBANDO | DN27: OBANDO | DO27: OBANDO | DP27: OBANDO | DQ27: OBANDO | DR27: OBANDO | DS27: OBANDO | WP27: CAÑASGORDAS | WQ27: CAÑASGORDAS | WR27: REGIDOR | WS27: CORRALES | WT27: SAN JOSE DE URE | WU27: EL ROSAL | WV27: EL ROSAL | XC27: EL ROSAL | XD27: SANTA MARTA | XE27: SANTA MARTA | XF27: SAN LUIS DE CUBARRAL | XJ27: EL CARMEN DE CHUCURÍ | XK27: EL CARMEN DE CHUCURÍ | XL27: EL CARMEN DE CHUCURÍ | XM27: EL CARMEN DE CHUCURÍ | XN27: EL CARMEN DE CHUCURÍ | XO27: OBANDO
A28: PA-33 | C28: SAN ANDRES Y PROVIDENCIA | G28: CARACOLÍ | H28: CARACOLÍ | I28: CARACOLÍ | J28: CARACOLÍ | K28: CARACOLÍ | L28: CARACOLÍ | M28: CARACOLÍ | N28: CARACOLÍ | O28: CARACOLÍ | P28: CARACOLÍ | X28: RIO VIEJO | Y28: RIO VIEJO | Z28: RIO VIEJO | AA28: RIO VIEJO | AB28: RIO VIEJO | AC28: RIO VIEJO | AD28: COVARACHÍA | AE28: COVARACHÍA | AF28: COVARACHÍA | AG28: COVARACHÍA | AH28: COVARACHÍA | AI28: COVARACHÍA | AJ28: VITERBO | AK28: VITERBO | AL28: VITERBO | AO28: PIENDAMÓ | AP28: PIENDAMÓ | AQ28: PIENDAMÓ | AR28: PIENDAMÓ | AX28: SIPÍ | AY28: SAN PELAYO | AZ28: SAN PELAYO | BA28: SAN PELAYO | BC28: FACATATIVÁ | BD28: FACATATIVÁ | BE28: FACATATIVÁ | BF28: FACATATIVÁ | BG28: FACATATIVÁ | BH28: FACATATIVÁ | BT28: FACATATIVÁ | BX28: SALADOBLANCO | BY28: SALADOBLANCO | BZ28: SALADOBLANCO | CA28: SALADOBLANCO | CB28: SALADOBLANCO | CC28: SITIONUEVO | CD28: SITIONUEVO | CE28: SITIONUEVO | CF28: SITIONUEVO | CG28: SITIONUEVO | CH28: SAN MARTIN | CI28: SAN MARTIN | CJ28: SAN MARTIN | CK28: IMUÉS | CL28: IMUÉS | CM28: IMUÉS | CN28: IMUÉS | CO28: PAMPLONITA | CW28: EL GUACAMAYO | CX28: EL GUACAMAYO | CY28: EL GUACAMAYO | CZ28: EL GUACAMAYO | DA28: EL GUACAMAYO | DB28: EL GUACAMAYO | DC28: EL GUACAMAYO | DD28: EL GUACAMAYO | DE28: EL GUACAMAYO | DF28: EL GUACAMAYO | DG28: EL GUACAMAYO | DI28: MELGAR | DJ28: MELGAR | DK28: MELGAR | DL28: PALMIRA | DM28: PALMIRA | DN28: PALMIRA | DO28: PALMIRA | DP28: PALMIRA | DQ28: PALMIRA | DR28: PALMIRA | DS28: PALMIRA | WP28: CARACOLÍ | WQ28: CARACOLÍ | WR28: RIO VIEJO | WS28: COVARACHÍA | WT28: SAN PELAYO | WU28: FACATATIVÁ | WV28: FACATATIVÁ | XC28: FACATATIVÁ | XD28: SITIONUEVO | XE28: SITIONUEVO | XF28: SAN MARTIN | XJ28: EL GUACAMAYO | XK28: EL GUACAMAYO | XL28: EL GUACAMAYO | XM28: EL GUACAMAYO | XN28: EL GUACAMAYO | XO28: PALMIRA
A29: PA-70 | C29: SANTANDER | G29: CARAMANTA | H29: CARAMANTA | I29: CARAMANTA | J29: CARAMANTA | K29: CARAMANTA | L29: CARAMANTA | M29: CARAMANTA | N29: CARAMANTA | O29: CARAMANTA | P29: CARAMANTA | X29: RIOVIEJO | Y29: RIOVIEJO | Z29: RIOVIEJO | AA29: RIOVIEJO | AB29: RIOVIEJO | AC29: RIOVIEJO | AD29: CUBARÁ | AE29: CUBARÁ | AF29: CUBARÁ | AG29: CUBARÁ | AH29: CUBARÁ | AI29: CUBARÁ | AO29: POPAYÁN | AP29: POPAYÁN | AQ29: POPAYÁN | AR29: POPAYÁN | AX29: TADÓ | AY29: TIERRALTA | AZ29: TIERRALTA | BA29: TIERRALTA | BC29: FOMEQUE | BD29: FOMEQUE | BE29: FOMEQUE | BF29: FOMEQUE | BG29: FOMEQUE | BH29: FOMEQUE | BT29: FOMEQUE | BX29: SAN AGUSTÍN | BY29: SAN AGUSTÍN | BZ29: SAN AGUSTÍN | CA29: SAN AGUSTÍN | CB29: SAN AGUSTÍN | CC29: TENERIFE | CD29: TENERIFE | CE29: TENERIFE | CF29: TENERIFE | CG29: TENERIFE | CH29: URIBE | CI29: URIBE | CJ29: URIBE | CK29: IPIALES | CL29: IPIALES | CM29: IPIALES | CN29: IPIALES | CO29: PUERTO SANTANDER | CW29: EL PEÑÓN | CX29: EL PEÑÓN | CY29: EL PEÑÓN | CZ29: EL PEÑÓN | DA29: EL PEÑÓN | DB29: EL PEÑÓN | DC29: EL PEÑÓN | DD29: EL PEÑÓN | DE29: EL PEÑÓN | DF29: EL PEÑÓN | DG29: EL PEÑÓN | DI29: MURILLO | DJ29: MURILLO | DK29: MURILLO | DL29: PRADERA | DM29: PRADERA | DN29: PRADERA | DO29: PRADERA | DP29: PRADERA | DQ29: PRADERA | DR29: PRADERA | DS29: PRADERA | WP29: CARAMANTA | WQ29: CARAMANTA | WR29: RIOVIEJO | WS29: CUBARÁ | WT29: TIERRALTA | WU29: FOMEQUE | WV29: FOMEQUE | XC29: FOMEQUE | XD29: TENERIFE | XE29: TENERIFE | XF29: URIBE | XJ29: EL PEÑÓN | XK29: EL PEÑÓN | XL29: EL PEÑÓN | XM29: EL PEÑÓN | XN29: EL PEÑÓN | XO29: PRADERA
A30: PA-25 | C30: SUCRE | G30: CAREPA | H30: CAREPA | I30: CAREPA | J30: CAREPA | K30: CAREPA | L30: CAREPA | M30: CAREPA | N30: CAREPA | O30: CAREPA | P30: CAREPA | X30: SAN CRISTOBAL | Y30: SAN CRISTOBAL | Z30: SAN CRISTOBAL | AA30: SAN CRISTOBAL | AB30: SAN CRISTOBAL | AC30: SAN CRISTOBAL | AD30: CUCAITA | AE30: CUCAITA | AF30: CUCAITA | AG30: CUCAITA | AH30: CUCAITA | AI30: CUCAITA | AO30: PUERTO TEJADA | AP30: PUERTO TEJADA | AQ30: PUERTO TEJADA | AR30: PUERTO TEJADA | AX30: UNGUÍA | AY30: TUCHÍN | AZ30: TUCHÍN | BA30: TUCHÍN | BC30: FOSCA | BD30: FOSCA | BE30: FOSCA | BF30: FOSCA | BG30: FOSCA | BH30: FOSCA | BT30: FOSCA | BX30: SANTA MARÍA | BY30: SANTA MARÍA | BZ30: SANTA MARÍA | CA30: SANTA MARÍA | CB30: SANTA MARÍA | CC30: ZAPAYÁN | CD30: ZAPAYÁN | CE30: ZAPAYÁN | CF30: ZAPAYÁN | CG30: ZAPAYÁN | CH30: VILLAVICENCIO | CI30: VILLAVICENCIO | CJ30: VILLAVICENCIO | CK30: LA CRUZ | CL30: LA CRUZ | CM30: LA CRUZ | CN30: LA CRUZ | CO30: RAGONVALIA | CW30: EL PLAYÓN | CX30: EL PLAYÓN | CY30: EL PLAYÓN | CZ30: EL PLAYÓN | DA30: EL PLAYÓN | DB30: EL PLAYÓN | DC30: EL PLAYÓN | DD30: EL PLAYÓN | DE30: EL PLAYÓN | DF30: EL PLAYÓN | DG30: EL PLAYÓN | DI30: NATAGAIMA | DJ30: NATAGAIMA | DK30: NATAGAIMA | DL30: RESTREPO | DM30: RESTREPO | DN30: RESTREPO | DO30: RESTREPO | DP30: RESTREPO | DQ30: RESTREPO | DR30: RESTREPO | DS30: RESTREPO | WP30: CAREPA | WQ30: CAREPA | WR30: SAN CRISTOBAL | WS30: CUCAITA | WT30: TUCHÍN | WU30: FOSCA | WV30: FOSCA | XC30: FOSCA | XD30: ZAPAYÁN | XE30: ZAPAYÁN | XF30: VILLAVICENCIO | XJ30: EL PLAYÓN | XK30: EL PLAYÓN | XL30: EL PLAYÓN | XM30: EL PLAYÓN | XN30: EL PLAYÓN | XO30: RESTREPO
A31: PA-26 | C31: TOLIMA | G31: CARMEN DE VIBORAL | H31: CARMEN DE VIBORAL | I31: CARMEN DE VIBORAL | J31: CARMEN DE VIBORAL | K31: CARMEN DE VIBORAL | L31: CARMEN DE VIBORAL | M31: CARMEN DE VIBORAL | N31: CARMEN DE VIBORAL | O31: CARMEN DE VIBORAL | P31: CARMEN DE VIBORAL | X31: SAN ESTANISLAO | Y31: SAN ESTANISLAO | Z31: SAN ESTANISLAO | AA31: SAN ESTANISLAO | AB31: SAN ESTANISLAO | AC31: SAN ESTANISLAO | AD31: CUÍTIVA | AE31: CUÍTIVA | AF31: CUÍTIVA | AG31: CUÍTIVA | AH31: CUÍTIVA | AI31: CUÍTIVA | AO31: ROSAS | AP31: ROSAS | AQ31: ROSAS | AR31: ROSAS | AX31: UNIÓN PANAMERICANA ( ANIMAS) | AY31: VALENCIA | AZ31: VALENCIA | BA31: VALENCIA | BC31: FUNZA | BD31: FUNZA | BE31: FUNZA | BF31: FUNZA | BG31: FUNZA | BH31: FUNZA | BT31: FUNZA | BX31: SUAZA | BY31: SUAZA | BZ31: SUAZA | CA31: SUAZA | CB31: SUAZA | CC31: ZONA BANANERA | CD31: ZONA BANANERA | CE31: ZONA BANANERA | CF31: ZONA BANANERA | CG31: ZONA BANANERA | CH31: VISTAHERMOSA | CI31: VISTAHERMOSA | CJ31: VISTAHERMOSA | CK31: LA FLORIDA | CL31: LA FLORIDA | CM31: LA FLORIDA | CN31: LA FLORIDA | CO31: SALAZAR | CW31: ENCINO | CX31: ENCINO | CY31: ENCINO | CZ31: ENCINO | DA31: ENCINO | DB31: ENCINO | DC31: ENCINO | DD31: ENCINO | DE31: ENCINO | DF31: ENCINO | DG31: ENCINO | DI31: ORTEGA | DJ31: ORTEGA | DK31: ORTEGA | DL31: RIOFRÍO | DM31: RIOFRÍO | DN31: RIOFRÍO | DO31: RIOFRÍO | DP31: RIOFRÍO | DQ31: RIOFRÍO | DR31: RIOFRÍO | DS31: RIOFRÍO | WP31: CARMEN DE VIBORAL | WQ31: CARMEN DE VIBORAL | WR31: SAN ESTANISLAO | WS31: CUÍTIVA | WT31: VALENCIA | WU31: FUNZA | WV31: FUNZA | XC31: FUNZA | XD31: ZONA BANANERA | XE31: ZONA BANANERA | XF31: VISTAHERMOSA | XJ31: ENCINO | XK31: ENCINO | XL31: ENCINO | XM31: ENCINO | XN31: ENCINO | XO31: RIOFRÍO
A32: PA-14 | C32: VALLE DEL CAUCA | G32: CAROLINA | H32: CAROLINA | I32: CAROLINA | J32: CAROLINA | K32: CAROLINA | L32: CAROLINA | M32: CAROLINA | N32: CAROLINA | O32: CAROLINA | P32: CAROLINA | X32: SAN FERNANDO | Y32: SAN FERNANDO | Z32: SAN FERNANDO | AA32: SAN FERNANDO | AB32: SAN FERNANDO | AC32: SAN FERNANDO | AD32: DUITAMA | AE32: DUITAMA | AF32: DUITAMA | AG32: DUITAMA | AH32: DUITAMA | AI32: DUITAMA | AO32: SAN SEBASTIÁN | AP32: SAN SEBASTIÁN | AQ32: SAN SEBASTIÁN | AR32: SAN SEBASTIÁN | BC32: FÚQUENE | BD32: FÚQUENE | BE32: FÚQUENE | BF32: FÚQUENE | BG32: FÚQUENE | BH32: FÚQUENE | BT32: FÚQUENE | BX32: TARQUI | BY32: TARQUI | BZ32: TARQUI | CA32: TARQUI | CB32: TARQUI | CK32: LA LLANADA | CL32: LA LLANADA | CM32: LA LLANADA | CN32: LA LLANADA | CO32: SAN CALIXTO | CW32: ENCISO | CX32: ENCISO | CY32: ENCISO | CZ32: ENCISO | DA32: ENCISO | DB32: ENCISO | DC32: ENCISO | DD32: ENCISO | DE32: ENCISO | DF32: ENCISO | DG32: ENCISO | DI32: PALOCABILDO | DJ32: PALOCABILDO | DK32: PALOCABILDO | DL32: ROLDANILLO | DM32: ROLDANILLO | DN32: ROLDANILLO | DO32: ROLDANILLO | DP32: ROLDANILLO | DQ32: ROLDANILLO | DR32: ROLDANILLO | DS32: ROLDANILLO | WP32: CAROLINA | WQ32: CAROLINA | WR32: SAN FERNANDO | WS32: DUITAMA | WU32: FÚQUENE | WV32: FÚQUENE | XC32: FÚQUENE | XJ32: ENCISO | XK32: ENCISO | XL32: ENCISO | XM32: ENCISO | XN32: ENCISO | XO32: ROLDANILLO
A33: PA-6 | C33: VAUPES | G33: CAUCASIA | H33: CAUCASIA | I33: CAUCASIA | J33: CAUCASIA | K33: CAUCASIA | L33: CAUCASIA | M33: CAUCASIA | N33: CAUCASIA | O33: CAUCASIA | P33: CAUCASIA | X33: SAN JACINTO | Y33: SAN JACINTO | Z33: SAN JACINTO | AA33: SAN JACINTO | AB33: SAN JACINTO | AC33: SAN JACINTO | AD33: EL COCUY | AE33: EL COCUY | AF33: EL COCUY | AG33: EL COCUY | AH33: EL COCUY | AI33: EL COCUY | AO33: SANTA ROSA | AP33: SANTA ROSA | AQ33: SANTA ROSA | AR33: SANTA ROSA | BC33: FUSAGASUGÁ | BD33: FUSAGASUGÁ | BE33: FUSAGASUGÁ | BF33: FUSAGASUGÁ | BG33: FUSAGASUGÁ | BH33: FUSAGASUGÁ | BT33: FUSAGASUGÁ | BX33: TELLO | BY33: TELLO | BZ33: TELLO | CA33: TELLO | CB33: TELLO | CK33: LA TOLA | CL33: LA TOLA | CM33: LA TOLA | CN33: LA TOLA | CO33: SAN CAYETANO | CW33: FLORIÁN | CX33: FLORIÁN | CY33: FLORIÁN | CZ33: FLORIÁN | DA33: FLORIÁN | DB33: FLORIÁN | DC33: FLORIÁN | DD33: FLORIÁN | DE33: FLORIÁN | DF33: FLORIÁN | DG33: FLORIÁN | DI33: PIEDRAS | DJ33: PIEDRAS | DK33: PIEDRAS | DL33: SAN PEDRO | DM33: SAN PEDRO | DN33: SAN PEDRO | DO33: SAN PEDRO | DP33: SAN PEDRO | DQ33: SAN PEDRO | DR33: SAN PEDRO | DS33: SAN PEDRO | WP33: CAUCASIA | WQ33: CAUCASIA | WR33: SAN JACINTO | WS33: EL COCUY | WU33: FUSAGASUGÁ | WV33: FUSAGASUGÁ | XC33: FUSAGASUGÁ | XJ33: FLORIÁN | XK33: FLORIÁN | XL33: FLORIÁN | XM33: FLORIÁN | XN33: FLORIÁN | XO33: SAN PEDRO
A34: PA-16 | C34: VICHADA | G34: CHIGORODÓ | H34: CHIGORODÓ | I34: CHIGORODÓ | J34: CHIGORODÓ | K34: CHIGORODÓ | L34: CHIGORODÓ | M34: CHIGORODÓ | N34: CHIGORODÓ | O34: CHIGORODÓ | P34: CHIGORODÓ | X34: SAN JACINTO DEL CAUCA | Y34: SAN JACINTO DEL CAUCA | Z34: SAN JACINTO DEL CAUCA | AA34: SAN JACINTO DEL CAUCA | AB34: SAN JACINTO DEL CAUCA | AC34: SAN JACINTO DEL CAUCA | AD34: EL ESPINO | AE34: EL ESPINO | AF34: EL ESPINO | AG34: EL ESPINO | AH34: EL ESPINO | AI34: EL ESPINO | AO34: SANTANDER DE QUILICHAO | AP34: SANTANDER DE QUILICHAO | AQ34: SANTANDER DE QUILICHAO | AR34: SANTANDER DE QUILICHAO | BC34: GACHALA | BD34: GACHALA | BE34: GACHALA | BF34: GACHALA | BG34: GACHALA | BH34: GACHALA | BT34: GACHALA | BX34: TERUEL | BY34: TERUEL | BZ34: TERUEL | CA34: TERUEL | CB34: TERUEL | CK34: LA UNION | CL34: LA UNION | CM34: LA UNION | CN34: LA UNION | CO34: SANTIAGO | CW34: FLORIDABLANCA | CX34: FLORIDABLANCA | CY34: FLORIDABLANCA | CZ34: FLORIDABLANCA | DA34: FLORIDABLANCA | DB34: FLORIDABLANCA | DC34: FLORIDABLANCA | DD34: FLORIDABLANCA | DE34: FLORIDABLANCA | DF34: FLORIDABLANCA | DG34: FLORIDABLANCA | DI34: PLANADAS | DJ34: PLANADAS | DK34: PLANADAS | DL34: SEVILLA | DM34: SEVILLA | DN34: SEVILLA | DO34: SEVILLA | DP34: SEVILLA | DQ34: SEVILLA | DR34: SEVILLA | DS34: SEVILLA | WP34: CHIGORODÓ | WQ34: CHIGORODÓ | WR34: SAN JACINTO DEL CAUCA | WS34: EL ESPINO | WU34: GACHALA | WV34: GACHALA | XC34: GACHALA | XJ34: FLORIDABLANCA | XK34: FLORIDABLANCA | XL34: FLORIDABLANCA | XM34: FLORIDABLANCA | XN34: FLORIDABLANCA | XO34: SEVILLA
A35: PA-38 | G35: CISNEROS | H35: CISNEROS | I35: CISNEROS | J35: CISNEROS | K35: CISNEROS | L35: CISNEROS | M35: CISNEROS | N35: CISNEROS | O35: CISNEROS | P35: CISNEROS | X35: SAN JUAN NEPOMUCENO | Y35: SAN JUAN NEPOMUCENO | Z35: SAN JUAN NEPOMUCENO | AA35: SAN JUAN NEPOMUCENO | AB35: SAN JUAN NEPOMUCENO | AC35: SAN JUAN NEPOMUCENO | AD35: FIRAVITOBA | AE35: FIRAVITOBA | AF35: FIRAVITOBA | AG35: FIRAVITOBA | AH35: FIRAVITOBA | AI35: FIRAVITOBA | AO35: SILVIA | AP35: SILVIA | AQ35: SILVIA | AR35: SILVIA | BC35: GACHALÁ | BD35: GACHALÁ | BE35: GACHALÁ | BF35: GACHALÁ | BG35: GACHALÁ | BH35: GACHALÁ | BT35: GACHALÁ | BX35: TESALIA | BY35: TESALIA | BZ35: TESALIA | CA35: TESALIA | CB35: TESALIA | CK35: LEIVA | CL35: LEIVA | CM35: LEIVA | CN35: LEIVA | CO35: SARDINATA | CW35: GALÁN | CX35: GALÁN | CY35: GALÁN | CZ35: GALÁN | DA35: GALÁN | DB35: GALÁN | DC35: GALÁN | DD35: GALÁN | DE35: GALÁN | DF35: GALÁN | DG35: GALÁN | DI35: PRADO | DJ35: PRADO | DK35: PRADO | DL35: TORO | DM35: TORO | DN35: TORO | DO35: TORO | DP35: TORO | DQ35: TORO | DR35: TORO | DS35: TORO | WP35: CISNEROS | WQ35: CISNEROS | WR35: SAN JUAN NEPOMUCENO | WS35: FIRAVITOBA | WU35: GACHALÁ | WV35: GACHALÁ | XC35: GACHALÁ | XJ35: GALÁN | XK35: GALÁN | XL35: GALÁN | XM35: GALÁN | XN35: GALÁN | XO35: TORO
A36: PA-10 | G36: CIUDAD BOLÍVAR | H36: CIUDAD BOLÍVAR | I36: CIUDAD BOLÍVAR | J36: CIUDAD BOLÍVAR | K36: CIUDAD BOLÍVAR | L36: CIUDAD BOLÍVAR | M36: CIUDAD BOLÍVAR | N36: CIUDAD BOLÍVAR | O36: CIUDAD BOLÍVAR | P36: CIUDAD BOLÍVAR | X36: SAN MARTIN DE LOBA | Y36: SAN MARTIN DE LOBA | Z36: SAN MARTIN DE LOBA | AA36: SAN MARTIN DE LOBA | AB36: SAN MARTIN DE LOBA | AC36: SAN MARTIN DE LOBA | AD36: FLORESTA | AE36: FLORESTA | AF36: FLORESTA | AG36: FLORESTA | AH36: FLORESTA | AI36: FLORESTA | AO36: SOTARA | AP36: SOTARA | AQ36: SOTARA | AR36: SOTARA | BC36: GACHANCIPÁ | BD36: GACHANCIPÁ | BE36: GACHANCIPÁ | BF36: GACHANCIPÁ | BG36: GACHANCIPÁ | BH36: GACHANCIPÁ | BT36: GACHANCIPÁ | BX36: TIMANÁ | BY36: TIMANÁ | BZ36: TIMANÁ | CA36: TIMANÁ | CB36: TIMANÁ | CK36: LINARES | CL36: LINARES | CM36: LINARES | CN36: LINARES | CO36: SILOS | CW36: GAMBITA | CX36: GAMBITA | CY36: GAMBITA | CZ36: GAMBITA | DA36: GAMBITA | DB36: GAMBITA | DC36: GAMBITA | DD36: GAMBITA | DE36: GAMBITA | DF36: GAMBITA | DG36: GAMBITA | DI36: PURIFICACIÓN | DJ36: PURIFICACIÓN | DK36: PURIFICACIÓN | DL36: TRUJILLO | DM36: TRUJILLO | DN36: TRUJILLO | DO36: TRUJILLO | DP36: TRUJILLO | DQ36: TRUJILLO | DR36: TRUJILLO | DS36: TRUJILLO | WP36: CIUDAD BOLÍVAR | WQ36: CIUDAD BOLÍVAR | WR36: SAN MARTIN DE LOBA | WS36: FLORESTA | WU36: GACHANCIPÁ | WV36: GACHANCIPÁ | XC36: GACHANCIPÁ | XJ36: GAMBITA | XK36: GAMBITA | XL36: GAMBITA | XM36: GAMBITA | XN36: GAMBITA | XO36: TRUJILLO
A37: PA-13 | G37: COCORNÁ | H37: COCORNÁ | I37: COCORNÁ | J37: COCORNÁ | K37: COCORNÁ | L37: COCORNÁ | M37: COCORNÁ | N37: COCORNÁ | O37: COCORNÁ | P37: COCORNÁ | X37: SAN PABLO | Y37: SAN PABLO | Z37: SAN PABLO | AA37: SAN PABLO | AB37: SAN PABLO | AC37: SAN PABLO | AD37: GACHANTIVÁ | AE37: GACHANTIVÁ | AF37: GACHANTIVÁ | AG37: GACHANTIVÁ | AH37: GACHANTIVÁ | AI37: GACHANTIVÁ | AO37: SUÁREZ | AP37: SUÁREZ | AQ37: SUÁREZ | AR37: SUÁREZ | BC37: GACHETÁ | BD37: GACHETÁ | BE37: GACHETÁ | BF37: GACHETÁ | BG37: GACHETÁ | BH37: GACHETÁ | BT37: GACHETÁ | BX37: VILLAVIEJA | BY37: VILLAVIEJA | BZ37: VILLAVIEJA | CA37: VILLAVIEJA | CB37: VILLAVIEJA | CK37: LOS ANDES (SOTOMAYOR) | CL37: LOS ANDES (SOTOMAYOR) | CM37: LOS ANDES (SOTOMAYOR) | CN37: LOS ANDES (SOTOMAYOR) | CO37: TEORAMA | CW37: GIRON | CX37: GIRON | CY37: GIRON | CZ37: GIRON | DA37: GIRON | DB37: GIRON | DC37: GIRON | DD37: GIRON | DE37: GIRON | DF37: GIRON | DG37: GIRON | DI37: RIOBLANCO | DJ37: RIOBLANCO | DK37: RIOBLANCO | DL37: TULUÁ | DM37: TULUÁ | DN37: TULUÁ | DO37: TULUÁ | DP37: TULUÁ | DQ37: TULUÁ | DR37: TULUÁ | DS37: TULUÁ | WP37: COCORNÁ | WQ37: COCORNÁ | WR37: SAN PABLO | WS37: GACHANTIVÁ | WU37: GACHETÁ | WV37: GACHETÁ | XC37: GACHETÁ | XJ37: GIRON | XK37: GIRON | XL37: GIRON | XM37: GIRON | XN37: GIRON | XO37: TULUÁ
A38: PA-24 | G38: CONCEPCIÓN | H38: CONCEPCIÓN | I38: CONCEPCIÓN | J38: CONCEPCIÓN | K38: CONCEPCIÓN | L38: CONCEPCIÓN | M38: CONCEPCIÓN | N38: CONCEPCIÓN | O38: CONCEPCIÓN | P38: CONCEPCIÓN | X38: SANTA CATALINA | Y38: SANTA CATALINA | Z38: SANTA CATALINA | AA38: SANTA CATALINA | AB38: SANTA CATALINA | AC38: SANTA CATALINA | AD38: GAMEZA | AE38: GAMEZA | AF38: GAMEZA | AG38: GAMEZA | AH38: GAMEZA | AI38: GAMEZA | AO38: SUCRE | AP38: SUCRE | AQ38: SUCRE | AR38: SUCRE | BC38: GAMA | BD38: GAMA | BE38: GAMA | BF38: GAMA | BG38: GAMA | BH38: GAMA | BT38: GAMA | BX38: YAGUARÁ | BY38: YAGUARÁ | BZ38: YAGUARÁ | CA38: YAGUARÁ | CB38: YAGUARÁ | CK38: MAGUI | CL38: MAGUI | CM38: MAGUI | CN38: MAGUI | CO38: TIBÚ | CW38: GUACA | CX38: GUACA | CY38: GUACA | CZ38: GUACA | DA38: GUACA | DB38: GUACA | DC38: GUACA | DD38: GUACA | DE38: GUACA | DF38: GUACA | DG38: GUACA | DI38: RONCESVALLES | DJ38: RONCESVALLES | DK38: RONCESVALLES | DL38: ULLOA | DM38: ULLOA | DN38: ULLOA | DO38: ULLOA | DP38: ULLOA | DQ38: ULLOA | DR38: ULLOA | DS38: ULLOA | WP38: CONCEPCIÓN | WQ38: CONCEPCIÓN | WR38: SANTA CATALINA | WS38: GAMEZA | WU38: GAMA | WV38: GAMA | XC38: GAMA | XJ38: GUACA | XK38: GUACA | XL38: GUACA | XM38: GUACA | XN38: GUACA | XO38: ULLOA
A39: PA-34 | G39: CONCORDIA | H39: CONCORDIA | I39: CONCORDIA | J39: CONCORDIA | K39: CONCORDIA | L39: CONCORDIA | M39: CONCORDIA | N39: CONCORDIA | O39: CONCORDIA | P39: CONCORDIA | X39: SANTA ROSA | Y39: SANTA ROSA | Z39: SANTA ROSA | AA39: SANTA ROSA | AB39: SANTA ROSA | AC39: SANTA ROSA | AD39: GARAGOA | AE39: GARAGOA | AF39: GARAGOA | AG39: GARAGOA | AH39: GARAGOA | AI39: GARAGOA | AO39: TIMBÍO | AP39: TIMBÍO | AQ39: TIMBÍO | AR39: TIMBÍO | BC39: GIRARDOT | BD39: GIRARDOT | BE39: GIRARDOT | BF39: GIRARDOT | BG39: GIRARDOT | BH39: GIRARDOT | BT39: GIRARDOT | CK39: MALLAMA | CL39: MALLAMA | CM39: MALLAMA | CN39: MALLAMA | CO39: TOLEDO | CW39: GUADALUPE | CX39: GUADALUPE | CY39: GUADALUPE | CZ39: GUADALUPE | DA39: GUADALUPE | DB39: GUADALUPE | DC39: GUADALUPE | DD39: GUADALUPE | DE39: GUADALUPE | DF39: GUADALUPE | DG39: GUADALUPE | DI39: ROVIRA | DJ39: ROVIRA | DK39: ROVIRA | DL39: VERSALLES | DM39: VERSALLES | DN39: VERSALLES | DO39: VERSALLES | DP39: VERSALLES | DQ39: VERSALLES | DR39: VERSALLES | DS39: VERSALLES | WP39: CONCORDIA | WQ39: CONCORDIA | WR39: SANTA ROSA | WS39: GARAGOA | WU39: GIRARDOT | WV39: GIRARDOT | XC39: GIRARDOT | XJ39: GUADALUPE | XK39: GUADALUPE | XL39: GUADALUPE | XM39: GUADALUPE | XN39: GUADALUPE | XO39: VERSALLES
A40: PA-54 | G40: COPACABANA | H40: COPACABANA | I40: COPACABANA | J40: COPACABANA | K40: COPACABANA | L40: COPACABANA | M40: COPACABANA | N40: COPACABANA | O40: COPACABANA | P40: COPACABANA | X40: SANTA ROSA DEL SUR | Y40: SANTA ROSA DEL SUR | Z40: SANTA ROSA DEL SUR | AA40: SANTA ROSA DEL SUR | AB40: SANTA ROSA DEL SUR | AC40: SANTA ROSA DEL SUR | AD40: GUACAMAYAS | AE40: GUACAMAYAS | AF40: GUACAMAYAS | AG40: GUACAMAYAS | AH40: GUACAMAYAS | AI40: GUACAMAYAS | AO40: TIMBIQUÍ | AP40: TIMBIQUÍ | AQ40: TIMBIQUÍ | AR40: TIMBIQUÍ | BC40: GRANADA | BD40: GRANADA | BE40: GRANADA | BF40: GRANADA | BG40: GRANADA | BH40: GRANADA | BT40: GRANADA | CK40: MOSQUERA | CL40: MOSQUERA | CM40: MOSQUERA | CN40: MOSQUERA | CO40: VILLA CARO | CW40: GUAPOTÁ | CX40: GUAPOTÁ | CY40: GUAPOTÁ | CZ40: GUAPOTÁ | DA40: GUAPOTÁ | DB40: GUAPOTÁ | DC40: GUAPOTÁ | DD40: GUAPOTÁ | DE40: GUAPOTÁ | DF40: GUAPOTÁ | DG40: GUAPOTÁ | DI40: SALDAÑA | DJ40: SALDAÑA | DK40: SALDAÑA | DL40: VIJES | DM40: VIJES | DN40: VIJES | DO40: VIJES | DP40: VIJES | DQ40: VIJES | DR40: VIJES | DS40: VIJES | WP40: COPACABANA | WQ40: COPACABANA | WR40: SANTA ROSA DEL SUR | WS40: GUACAMAYAS | WU40: GRANADA | WV40: GRANADA | XC40: GRANADA | XJ40: GUAPOTÁ | XK40: GUAPOTÁ | XL40: GUAPOTÁ | XM40: GUAPOTÁ | XN40: GUAPOTÁ | XO40: VIJES
A41: PA-62 | G41: DABEIBA | H41: DABEIBA | I41: DABEIBA | J41: DABEIBA | K41: DABEIBA | L41: DABEIBA | M41: DABEIBA | N41: DABEIBA | O41: DABEIBA | P41: DABEIBA | X41: SIMITÍ | Y41: SIMITÍ | Z41: SIMITÍ | AA41: SIMITÍ | AB41: SIMITÍ | AC41: SIMITÍ | AD41: GUATEQUE | AE41: GUATEQUE | AF41: GUATEQUE | AG41: GUATEQUE | AH41: GUATEQUE | AI41: GUATEQUE | AO41: TORIBÍO | AP41: TORIBÍO | AQ41: TORIBÍO | AR41: TORIBÍO | BC41: GUACHETÁ | BD41: GUACHETÁ | BE41: GUACHETÁ | BF41: GUACHETÁ | BG41: GUACHETÁ | BH41: GUACHETÁ | BT41: GUACHETÁ | CK41: NARIÑO | CL41: NARIÑO | CM41: NARIÑO | CN41: NARIÑO | CO41: VILLA DEL ROSARIO | CW41: GUAVATÁ | CX41: GUAVATÁ | CY41: GUAVATÁ | CZ41: GUAVATÁ | DA41: GUAVATÁ | DB41: GUAVATÁ | DC41: GUAVATÁ | DD41: GUAVATÁ | DE41: GUAVATÁ | DF41: GUAVATÁ | DG41: GUAVATÁ | DI41: SAN ANTONIO | DJ41: SAN ANTONIO | DK41: SAN ANTONIO | DL41: YOTOCO | DM41: YOTOCO | DN41: YOTOCO | DO41: YOTOCO | DP41: YOTOCO | DQ41: YOTOCO | DR41: YOTOCO | DS41: YOTOCO | WP41: DABEIBA | WQ41: DABEIBA | WR41: SIMITÍ | WS41: GUATEQUE | WU41: GUACHETÁ | WV41: GUACHETÁ | XC41: GUACHETÁ | XJ41: GUAVATÁ | XK41: GUAVATÁ | XL41: GUAVATÁ | XM41: GUAVATÁ | XN41: GUAVATÁ | XO41: YOTOCO
A42: PA-65 | G42: DON MATÍAS | H42: DON MATÍAS | I42: DON MATÍAS | J42: DON MATÍAS | K42: DON MATÍAS | L42: DON MATÍAS | M42: DON MATÍAS | N42: DON MATÍAS | O42: DON MATÍAS | P42: DON MATÍAS | X42: SOPLAVIENTO | Y42: SOPLAVIENTO | Z42: SOPLAVIENTO | AA42: SOPLAVIENTO | AB42: SOPLAVIENTO | AC42: SOPLAVIENTO | AD42: GUAYATÁ | AE42: GUAYATÁ | AF42: GUAYATÁ | AG42: GUAYATÁ | AH42: GUAYATÁ | AI42: GUAYATÁ | AO42: TOTORÓ | AP42: TOTORÓ | AQ42: TOTORÓ | AR42: TOTORÓ | BC42: GUADUAS | BD42: GUADUAS | BE42: GUADUAS | BF42: GUADUAS | BG42: GUADUAS | BH42: GUADUAS | BT42: GUADUAS | CK42: OLAYA HERRERA | CL42: OLAYA HERRERA | CM42: OLAYA HERRERA | CN42: OLAYA HERRERA | CW42: GÜEPSA | CX42: GÜEPSA | CY42: GÜEPSA | CZ42: GÜEPSA | DA42: GÜEPSA | DB42: GÜEPSA | DC42: GÜEPSA | DD42: GÜEPSA | DE42: GÜEPSA | DF42: GÜEPSA | DG42: GÜEPSA | DI42: SANTA ISABEL | DJ42: SANTA ISABEL | DK42: SANTA ISABEL | DL42: YUMBO | DM42: YUMBO | DN42: YUMBO | DO42: YUMBO | DP42: YUMBO | DQ42: YUMBO | DR42: YUMBO | DS42: YUMBO | WP42: DON MATÍAS | WQ42: DON MATÍAS | WR42: SOPLAVIENTO | WS42: GUAYATÁ | WU42: GUADUAS | WV42: GUADUAS | XC42: GUADUAS | XJ42: GÜEPSA | XK42: GÜEPSA | XL42: GÜEPSA | XM42: GÜEPSA | XN42: GÜEPSA | XO42: YUMBO
A43: PA-71 | G43: EBÉJICO | H43: EBÉJICO | I43: EBÉJICO | J43: EBÉJICO | K43: EBÉJICO | L43: EBÉJICO | M43: EBÉJICO | N43: EBÉJICO | O43: EBÉJICO | P43: EBÉJICO | X43: TALAIGUA NUEVO | Y43: TALAIGUA NUEVO | Z43: TALAIGUA NUEVO | AA43: TALAIGUA NUEVO | AB43: TALAIGUA NUEVO | AC43: TALAIGUA NUEVO | AD43: GÜICÁN | AE43: GÜICÁN | AF43: GÜICÁN | AG43: GÜICÁN | AH43: GÜICÁN | AI43: GÜICÁN | AO43: VILLA RICA | AP43: VILLA RICA | AQ43: VILLA RICA | AR43: VILLA RICA | BC43: GUASCA | BD43: GUASCA | BE43: GUASCA | BF43: GUASCA | BG43: GUASCA | BH43: GUASCA | BT43: GUASCA | CK43: OSPINA | CL43: OSPINA | CM43: OSPINA | CN43: OSPINA | CW43: HATO | CX43: HATO | CY43: HATO | CZ43: HATO | DA43: HATO | DB43: HATO | DC43: HATO | DD43: HATO | DE43: HATO | DF43: HATO | DG43: HATO | DI43: VALLE DE SAN JUAN | DJ43: VALLE DE SAN JUAN | DK43: VALLE DE SAN JUAN | DL43: ZARZAL | DM43: ZARZAL | DN43: ZARZAL | DO43: ZARZAL | DP43: ZARZAL | DQ43: ZARZAL | DR43: ZARZAL | DS43: ZARZAL | WP43: EBÉJICO | WQ43: EBÉJICO | WR43: TALAIGUA NUEVO | WS43: GÜICÁN | WU43: GUASCA | WV43: GUASCA | XC43: GUASCA | XJ43: HATO | XK43: HATO | XL43: HATO | XM43: HATO | XN43: HATO | XO43: ZARZAL
A44: PA-72 | G44: EL BAGRE | H44: EL BAGRE | I44: EL BAGRE | J44: EL BAGRE | K44: EL BAGRE | L44: EL BAGRE | M44: EL BAGRE | N44: EL BAGRE | O44: EL BAGRE | P44: EL BAGRE | X44: TIQUISIO | Y44: TIQUISIO | Z44: TIQUISIO | AA44: TIQUISIO | AB44: TIQUISIO | AC44: TIQUISIO | AD44: IZA | AE44: IZA | AF44: IZA | AG44: IZA | AH44: IZA | AI44: IZA | BC44: GUATAQUÍ | BD44: GUATAQUÍ | BE44: GUATAQUÍ | BF44: GUATAQUÍ | BG44: GUATAQUÍ | BH44: GUATAQUÍ | BT44: GUATAQUÍ | CK44: PASTO | CL44: PASTO | CM44: PASTO | CN44: PASTO | CW44: JESÚS MARÍA | CX44: JESÚS MARÍA | CY44: JESÚS MARÍA | CZ44: JESÚS MARÍA | DA44: JESÚS MARÍA | DB44: JESÚS MARÍA | DC44: JESÚS MARÍA | DD44: JESÚS MARÍA | DE44: JESÚS MARÍA | DF44: JESÚS MARÍA | DG44: JESÚS MARÍA | DI44: VENADILLO | DJ44: VENADILLO | DK44: VENADILLO | WP44: EL BAGRE | WQ44: EL BAGRE | WR44: TIQUISIO | WS44: IZA | WU44: GUATAQUÍ | WV44: GUATAQUÍ | XC44: GUATAQUÍ | XJ44: JESÚS MARÍA | XK44: JESÚS MARÍA | XL44: JESÚS MARÍA | XM44: JESÚS MARÍA | XN44: JESÚS MARÍA
A45: PA-74 | G45: ENTRERRIOS | H45: ENTRERRIOS | I45: ENTRERRIOS | J45: ENTRERRIOS | K45: ENTRERRIOS | L45: ENTRERRIOS | M45: ENTRERRIOS | N45: ENTRERRIOS | O45: ENTRERRIOS | P45: ENTRERRIOS | X45: TURBACO | Y45: TURBACO | Z45: TURBACO | AA45: TURBACO | AB45: TURBACO | AC45: TURBACO | AD45: JENESANO | AE45: JENESANO | AF45: JENESANO | AG45: JENESANO | AH45: JENESANO | AI45: JENESANO | BC45: GUATAVITA | BD45: GUATAVITA | BE45: GUATAVITA | BF45: GUATAVITA | BG45: GUATAVITA | BH45: GUATAVITA | BT45: GUATAVITA | CK45: POLICARPA | CL45: POLICARPA | CM45: POLICARPA | CN45: POLICARPA | CW45: JORDÁN | CX45: JORDÁN | CY45: JORDÁN | CZ45: JORDÁN | DA45: JORDÁN | DB45: JORDÁN | DC45: JORDÁN | DD45: JORDÁN | DE45: JORDÁN | DF45: JORDÁN | DG45: JORDÁN | DI45: VILLAHERMOSA | DJ45: VILLAHERMOSA | DK45: VILLAHERMOSA | WP45: ENTRERRIOS | WQ45: ENTRERRIOS | WR45: TURBACO | WS45: JENESANO | WU45: GUATAVITA | WV45: GUATAVITA | XC45: GUATAVITA | XJ45: JORDÁN | XK45: JORDÁN | XL45: JORDÁN | XM45: JORDÁN | XN45: JORDÁN
A46: PA-77 | G46: ENVIGADO | H46: ENVIGADO | I46: ENVIGADO | J46: ENVIGADO | K46: ENVIGADO | L46: ENVIGADO | M46: ENVIGADO | N46: ENVIGADO | O46: ENVIGADO | P46: ENVIGADO | X46: TURBANA | Y46: TURBANA | Z46: TURBANA | AA46: TURBANA | AB46: TURBANA | AC46: TURBANA | AD46: JERICÓ | AE46: JERICÓ | AF46: JERICÓ | AG46: JERICÓ | AH46: JERICÓ | AI46: JERICÓ | BC46: GUAYABAL DE SÍQUIMA | BD46: GUAYABAL DE SÍQUIMA | BE46: GUAYABAL DE SÍQUIMA | BF46: GUAYABAL DE SÍQUIMA | BG46: GUAYABAL DE SÍQUIMA | BH46: GUAYABAL DE SÍQUIMA | BT46: GUAYABAL DE SÍQUIMA | CK46: POTOSI | CL46: POTOSI | CM46: POTOSI | CN46: POTOSI | CW46: LA BELLEZA | CX46: LA BELLEZA | CY46: LA BELLEZA | CZ46: LA BELLEZA | DA46: LA BELLEZA | DB46: LA BELLEZA | DC46: LA BELLEZA | DD46: LA BELLEZA | DE46: LA BELLEZA | DF46: LA BELLEZA | DG46: LA BELLEZA | DI46: VILLARRICA | DJ46: VILLARRICA | DK46: VILLARRICA | WP46: ENVIGADO | WQ46: ENVIGADO | WR46: TURBANA | WS46: JERICÓ | WU46: GUAYABAL DE SÍQUIMA | WV46: GUAYABAL DE SÍQUIMA | XC46: GUAYABAL DE SÍQUIMA | XJ46: LA BELLEZA | XK46: LA BELLEZA | XL46: LA BELLEZA | XM46: LA BELLEZA | XN46: LA BELLEZA
A47: PA-80 | G47: FREDONIA | H47: FREDONIA | I47: FREDONIA | J47: FREDONIA | K47: FREDONIA | L47: FREDONIA | M47: FREDONIA | N47: FREDONIA | O47: FREDONIA | P47: FREDONIA | X47: VILLANUEVA | Y47: VILLANUEVA | Z47: VILLANUEVA | AA47: VILLANUEVA | AB47: VILLANUEVA | AC47: VILLANUEVA | AD47: LA CAPILLA | AE47: LA CAPILLA | AF47: LA CAPILLA | AG47: LA CAPILLA | AH47: LA CAPILLA | AI47: LA CAPILLA | BC47: GUAYABETAL | BD47: GUAYABETAL | BE47: GUAYABETAL | BF47: GUAYABETAL | BG47: GUAYABETAL | BH47: GUAYABETAL | BT47: GUAYABETAL | CK47: PROVIDENCIA | CL47: PROVIDENCIA | CM47: PROVIDENCIA | CN47: PROVIDENCIA | CW47: LA PAZ | CX47: LA PAZ | CY47: LA PAZ | CZ47: LA PAZ | DA47: LA PAZ | DB47: LA PAZ | DC47: LA PAZ | DD47: LA PAZ | DE47: LA PAZ | DF47: LA PAZ | DG47: LA PAZ | WP47: FREDONIA | WQ47: FREDONIA | WR47: VILLANUEVA | WS47: LA CAPILLA | WU47: GUAYABETAL | WV47: GUAYABETAL | XC47: GUAYABETAL | XJ47: LA PAZ | XK47: LA PAZ | XL47: LA PAZ | XM47: LA PAZ | XN47: LA PAZ
A48: PA-84 | G48: FRONTINO | H48: FRONTINO | I48: FRONTINO | J48: FRONTINO | K48: FRONTINO | L48: FRONTINO | M48: FRONTINO | N48: FRONTINO | O48: FRONTINO | P48: FRONTINO | X48: ZAMBRANO | Y48: ZAMBRANO | Z48: ZAMBRANO | AA48: ZAMBRANO | AB48: ZAMBRANO | AC48: ZAMBRANO | AD48: LA UVITA | AE48: LA UVITA | AF48: LA UVITA | AG48: LA UVITA | AH48: LA UVITA | AI48: LA UVITA | BC48: GUTIÉRREZ | BD48: GUTIÉRREZ | BE48: GUTIÉRREZ | BF48: GUTIÉRREZ | BG48: GUTIÉRREZ | BH48: GUTIÉRREZ | BT48: GUTIÉRREZ | CK48: PUERRES | CL48: PUERRES | CM48: PUERRES | CN48: PUERRES | CW48: LANDÁZURI | CX48: LANDÁZURI | CY48: LANDÁZURI | CZ48: LANDÁZURI | DA48: LANDÁZURI | DB48: LANDÁZURI | DC48: LANDÁZURI | DD48: LANDÁZURI | DE48: LANDÁZURI | DF48: LANDÁZURI | DG48: LANDÁZURI | WP48: FRONTINO | WQ48: FRONTINO | WR48: ZAMBRANO | WS48: LA UVITA | WU48: GUTIÉRREZ | WV48: GUTIÉRREZ | XC48: GUTIÉRREZ | XJ48: LANDÁZURI | XK48: LANDÁZURI | XL48: LANDÁZURI | XM48: LANDÁZURI | XN48: LANDÁZURI
A49: PA-66 | G49: GIRALDO | H49: GIRALDO | I49: GIRALDO | J49: GIRALDO | K49: GIRALDO | L49: GIRALDO | M49: GIRALDO | N49: GIRALDO | O49: GIRALDO | P49: GIRALDO | AD49: LA VICTORIA | AE49: LA VICTORIA | AF49: LA VICTORIA | AG49: LA VICTORIA | AH49: LA VICTORIA | AI49: LA VICTORIA | BC49: JERUSALÉN | BD49: JERUSALÉN | BE49: JERUSALÉN | BF49: JERUSALÉN | BG49: JERUSALÉN | BH49: JERUSALÉN | BT49: JERUSALÉN | CK49: PUPIALES | CL49: PUPIALES | CM49: PUPIALES | CN49: PUPIALES | CW49: LEBRIJA | CX49: LEBRIJA | CY49: LEBRIJA | CZ49: LEBRIJA | DA49: LEBRIJA | DB49: LEBRIJA | DC49: LEBRIJA | DD49: LEBRIJA | DE49: LEBRIJA | DF49: LEBRIJA | DG49: LEBRIJA | WP49: GIRALDO | WQ49: GIRALDO | WS49: LA VICTORIA | WU49: JERUSALÉN | WV49: JERUSALÉN | XC49: JERUSALÉN | XJ49: LEBRIJA | XK49: LEBRIJA | XL49: LEBRIJA | XM49: LEBRIJA | XN49: LEBRIJA
A50: PA-88 | G50: GIRARDOTA | H50: GIRARDOTA | I50: GIRARDOTA | J50: GIRARDOTA | K50: GIRARDOTA | L50: GIRARDOTA | M50: GIRARDOTA | N50: GIRARDOTA | O50: GIRARDOTA | P50: GIRARDOTA | AD50: LABRANZAGRANDE | AE50: LABRANZAGRANDE | AF50: LABRANZAGRANDE | AG50: LABRANZAGRANDE | AH50: LABRANZAGRANDE | AI50: LABRANZAGRANDE | BC50: JUNÍN | BD50: JUNÍN | BE50: JUNÍN | BF50: JUNÍN | BG50: JUNÍN | BH50: JUNÍN | BT50: JUNÍN | CK50: RICAURTE | CL50: RICAURTE | CM50: RICAURTE | CN50: RICAURTE | CW50: LOS SANTOS | CX50: LOS SANTOS | CY50: LOS SANTOS | CZ50: LOS SANTOS | DA50: LOS SANTOS | DB50: LOS SANTOS | DC50: LOS SANTOS | DD50: LOS SANTOS | DE50: LOS SANTOS | DF50: LOS SANTOS | DG50: LOS SANTOS | WP50: GIRARDOTA | WQ50: GIRARDOTA | WS50: LABRANZAGRANDE | WU50: JUNÍN | WV50: JUNÍN | XC50: JUNÍN | XJ50: LOS SANTOS | XK50: LOS SANTOS | XL50: LOS SANTOS | XM50: LOS SANTOS | XN50: LOS SANTOS
A51: PA-89 | G51: GÓMEZ PLATA | H51: GÓMEZ PLATA | I51: GÓMEZ PLATA | J51: GÓMEZ PLATA | K51: GÓMEZ PLATA | L51: GÓMEZ PLATA | M51: GÓMEZ PLATA | N51: GÓMEZ PLATA | O51: GÓMEZ PLATA | P51: GÓMEZ PLATA | AD51: MACANAL | AE51: MACANAL | AF51: MACANAL | AG51: MACANAL | AH51: MACANAL | AI51: MACANAL | BC51: LA CALERA | BD51: LA CALERA | BE51: LA CALERA | BF51: LA CALERA | BG51: LA CALERA | BH51: LA CALERA | BT51: LA CALERA | CK51: ROBERTO PAYAN | CL51: ROBERTO PAYAN | CM51: ROBERTO PAYAN | CN51: ROBERTO PAYAN | CW51: MACARAVITA | CX51: MACARAVITA | CY51: MACARAVITA | CZ51: MACARAVITA | DA51: MACARAVITA | DB51: MACARAVITA | DC51: MACARAVITA | DD51: MACARAVITA | DE51: MACARAVITA | DF51: MACARAVITA | DG51: MACARAVITA | WP51: GÓMEZ PLATA | WQ51: GÓMEZ PLATA | WS51: MACANAL | WU51: LA CALERA | WV51: LA CALERA | XC51: LA CALERA | XJ51: MACARAVITA | XK51: MACARAVITA | XL51: MACARAVITA | XM51: MACARAVITA | XN51: MACARAVITA
A52: PA-75 | G52: GRANADA | H52: GRANADA | I52: GRANADA | J52: GRANADA | K52: GRANADA | L52: GRANADA | M52: GRANADA | N52: GRANADA | O52: GRANADA | P52: GRANADA | AD52: MARIPÍ | AE52: MARIPÍ | AF52: MARIPÍ | AG52: MARIPÍ | AH52: MARIPÍ | AI52: MARIPÍ | BC52: LA MESA | BD52: LA MESA | BE52: LA MESA | BF52: LA MESA | BG52: LA MESA | BH52: LA MESA | BT52: LA MESA | CK52: SAMANIEGO | CL52: SAMANIEGO | CM52: SAMANIEGO | CN52: SAMANIEGO | CW52: MÁLAGA | CX52: MÁLAGA | CY52: MÁLAGA | CZ52: MÁLAGA | DA52: MÁLAGA | DB52: MÁLAGA | DC52: MÁLAGA | DD52: MÁLAGA | DE52: MÁLAGA | DF52: MÁLAGA | DG52: MÁLAGA | WP52: GRANADA | WQ52: GRANADA | WS52: MARIPÍ | WU52: LA MESA | WV52: LA MESA | XC52: LA MESA | XJ52: MÁLAGA | XK52: MÁLAGA | XL52: MÁLAGA | XM52: MÁLAGA | XN52: MÁLAGA
A53: PA-76 | G53: GUADALUPE | H53: GUADALUPE | I53: GUADALUPE | J53: GUADALUPE | K53: GUADALUPE | L53: GUADALUPE | M53: GUADALUPE | N53: GUADALUPE | O53: GUADALUPE | P53: GUADALUPE | AD53: MIRAFLORES | AE53: MIRAFLORES | AF53: MIRAFLORES | AG53: MIRAFLORES | AH53: MIRAFLORES | AI53: MIRAFLORES | BC53: LA PALMA | BD53: LA PALMA | BE53: LA PALMA | BF53: LA PALMA | BG53: LA PALMA | BH53: LA PALMA | BT53: LA PALMA | CK53: SAN BERNARDO | CL53: SAN BERNARDO | CM53: SAN BERNARDO | CN53: SAN BERNARDO | CW53: MATANZA | CX53: MATANZA | CY53: MATANZA | CZ53: MATANZA | DA53: MATANZA | DB53: MATANZA | DC53: MATANZA | DD53: MATANZA | DE53: MATANZA | DF53: MATANZA | DG53: MATANZA | WP53: GUADALUPE | WQ53: GUADALUPE | WS53: MIRAFLORES | WU53: LA PALMA | WV53: LA PALMA | XC53: LA PALMA | XJ53: MATANZA | XK53: MATANZA | XL53: MATANZA | XM53: MATANZA | XN53: MATANZA
A54: PA-79 | G54: GUARNE | H54: GUARNE | I54: GUARNE | J54: GUARNE | K54: GUARNE | L54: GUARNE | M54: GUARNE | N54: GUARNE | O54: GUARNE | P54: GUARNE | AD54: MONGUA | AE54: MONGUA | AF54: MONGUA | AG54: MONGUA | AH54: MONGUA | AI54: MONGUA | BC54: LA PEÑA | BD54: LA PEÑA | BE54: LA PEÑA | BF54: LA PEÑA | BG54: LA PEÑA | BH54: LA PEÑA | BT54: LA PEÑA | CK54: SAN LORENZO | CL54: SAN LORENZO | CM54: SAN LORENZO | CN54: SAN LORENZO | CW54: MOGOTES | CX54: MOGOTES | CY54: MOGOTES | CZ54: MOGOTES | DA54: MOGOTES | DB54: MOGOTES | DC54: MOGOTES | DD54: MOGOTES | DE54: MOGOTES | DF54: MOGOTES | DG54: MOGOTES | WP54: GUARNE | WQ54: GUARNE | WS54: MONGUA | WU54: LA PEÑA | WV54: LA PEÑA | XC54: LA PEÑA | XJ54: MOGOTES | XK54: MOGOTES | XL54: MOGOTES | XM54: MOGOTES | XN54: MOGOTES
A55: PA-90 | G55: GUATAPÉ | H55: GUATAPÉ | I55: GUATAPÉ | J55: GUATAPÉ | K55: GUATAPÉ | L55: GUATAPÉ | M55: GUATAPÉ | N55: GUATAPÉ | O55: GUATAPÉ | P55: GUATAPÉ | AD55: MONGUI | AE55: MONGUI | AF55: MONGUI | AG55: MONGUI | AH55: MONGUI | AI55: MONGUI | BC55: LA VEGA | BD55: LA VEGA | BE55: LA VEGA | BF55: LA VEGA | BG55: LA VEGA | BH55: LA VEGA | BT55: LA VEGA | CK55: SAN PABLO | CL55: SAN PABLO | CM55: SAN PABLO | CN55: SAN PABLO | CW55: MOLAGAVITA | CX55: MOLAGAVITA | CY55: MOLAGAVITA | CZ55: MOLAGAVITA | DA55: MOLAGAVITA | DB55: MOLAGAVITA | DC55: MOLAGAVITA | DD55: MOLAGAVITA | DE55: MOLAGAVITA | DF55: MOLAGAVITA | DG55: MOLAGAVITA | WP55: GUATAPÉ | WQ55: GUATAPÉ | WS55: MONGUI | WU55: LA VEGA | WV55: LA VEGA | XC55: LA VEGA | XJ55: MOLAGAVITA | XK55: MOLAGAVITA | XL55: MOLAGAVITA | XM55: MOLAGAVITA | XN55: MOLAGAVITA
A56: PA-29 | G56: HELICONIA | H56: HELICONIA | I56: HELICONIA | J56: HELICONIA | K56: HELICONIA | L56: HELICONIA | M56: HELICONIA | N56: HELICONIA | O56: HELICONIA | P56: HELICONIA | AD56: MONIQUIRÁ | AE56: MONIQUIRÁ | AF56: MONIQUIRÁ | AG56: MONIQUIRÁ | AH56: MONIQUIRÁ | AI56: MONIQUIRÁ | BC56: LENGUAZAQUE | BD56: LENGUAZAQUE | BE56: LENGUAZAQUE | BF56: LENGUAZAQUE | BG56: LENGUAZAQUE | BH56: LENGUAZAQUE | BT56: LENGUAZAQUE | CK56: SAN PEDRO DE CARTAGO (CARTAGO) | CL56: SAN PEDRO DE CARTAGO (CARTAGO) | CM56: SAN PEDRO DE CARTAGO (CARTAGO) | CN56: SAN PEDRO DE CARTAGO (CARTAGO) | CW56: OCAMONTE | CX56: OCAMONTE | CY56: OCAMONTE | CZ56: OCAMONTE | DA56: OCAMONTE | DB56: OCAMONTE | DC56: OCAMONTE | DD56: OCAMONTE | DE56: OCAMONTE | DF56: OCAMONTE | DG56: OCAMONTE | WP56: HELICONIA | WQ56: HELICONIA | WS56: MONIQUIRÁ | WU56: LENGUAZAQUE | WV56: LENGUAZAQUE | XC56: LENGUAZAQUE | XJ56: OCAMONTE | XK56: OCAMONTE | XL56: OCAMONTE | XM56: OCAMONTE | XN56: OCAMONTE
A57: PA-36 | G57: HISPANIA | H57: HISPANIA | I57: HISPANIA | J57: HISPANIA | K57: HISPANIA | L57: HISPANIA | M57: HISPANIA | N57: HISPANIA | O57: HISPANIA | P57: HISPANIA | AD57: MOTAVITA | AE57: MOTAVITA | AF57: MOTAVITA | AG57: MOTAVITA | AH57: MOTAVITA | AI57: MOTAVITA | BC57: MACHETA | BD57: MACHETA | BE57: MACHETA | BF57: MACHETA | BG57: MACHETA | BH57: MACHETA | BT57: MACHETA | CK57: SANDONÁ | CL57: SANDONÁ | CM57: SANDONÁ | CN57: SANDONÁ | CW57: OIBA | CX57: OIBA | CY57: OIBA | CZ57: OIBA | DA57: OIBA | DB57: OIBA | DC57: OIBA | DD57: OIBA | DE57: OIBA | DF57: OIBA | DG57: OIBA | WP57: HISPANIA | WQ57: HISPANIA | WS57: MOTAVITA | WU57: MACHETA | WV57: MACHETA | XC57: MACHETA | XJ57: OIBA | XK57: OIBA | XL57: OIBA | XM57: OIBA | XN57: OIBA
A58: PA-39 | G58: ITAGÜÍ | H58: ITAGÜÍ | I58: ITAGÜÍ | J58: ITAGÜÍ | K58: ITAGÜÍ | L58: ITAGÜÍ | M58: ITAGÜÍ | N58: ITAGÜÍ | O58: ITAGÜÍ | P58: ITAGÜÍ | AD58: MUZO | AE58: MUZO | AF58: MUZO | AG58: MUZO | AH58: MUZO | AI58: MUZO | BC58: MADRID | BD58: MADRID | BE58: MADRID | BF58: MADRID | BG58: MADRID | BH58: MADRID | BT58: MADRID | CK58: SANTACRUZ | CL58: SANTACRUZ | CM58: SANTACRUZ | CN58: SANTACRUZ | CW58: ONZAGA | CX58: ONZAGA | CY58: ONZAGA | CZ58: ONZAGA | DA58: ONZAGA | DB58: ONZAGA | DC58: ONZAGA | DD58: ONZAGA | DE58: ONZAGA | DF58: ONZAGA | DG58: ONZAGA | WP58: ITAGÜÍ | WQ58: ITAGÜÍ | WS58: MUZO | WU58: MADRID | WV58: MADRID | XC58: MADRID | XJ58: ONZAGA | XK58: ONZAGA | XL58: ONZAGA | XM58: ONZAGA | XN58: ONZAGA
A59: PA-40 | G59: ITUANGO | H59: ITUANGO | I59: ITUANGO | J59: ITUANGO | K59: ITUANGO | L59: ITUANGO | M59: ITUANGO | N59: ITUANGO | O59: ITUANGO | P59: ITUANGO | AD59: NOBSA | AE59: NOBSA | AF59: NOBSA | AG59: NOBSA | AH59: NOBSA | AI59: NOBSA | BC59: MANTA | BD59: MANTA | BE59: MANTA | BF59: MANTA | BG59: MANTA | BH59: MANTA | BT59: MANTA | CK59: SAPUYES | CL59: SAPUYES | CM59: SAPUYES | CN59: SAPUYES | CW59: PALMAR | CX59: PALMAR | CY59: PALMAR | CZ59: PALMAR | DA59: PALMAR | DB59: PALMAR | DC59: PALMAR | DD59: PALMAR | DE59: PALMAR | DF59: PALMAR | DG59: PALMAR | WP59: ITUANGO | WQ59: ITUANGO | WS59: NOBSA | WU59: MANTA | WV59: MANTA | XC59: MANTA | XJ59: PALMAR | XK59: PALMAR | XL59: PALMAR | XM59: PALMAR | XN59: PALMAR
A60: PA-61 | G60: JARDÍN | H60: JARDÍN | I60: JARDÍN | J60: JARDÍN | K60: JARDÍN | L60: JARDÍN | M60: JARDÍN | N60: JARDÍN | O60: JARDÍN | P60: JARDÍN | AD60: NUEVO COLÓN | AE60: NUEVO COLÓN | AF60: NUEVO COLÓN | AG60: NUEVO COLÓN | AH60: NUEVO COLÓN | AI60: NUEVO COLÓN | BC60: MEDINA | BD60: MEDINA | BE60: MEDINA | BF60: MEDINA | BG60: MEDINA | BH60: MEDINA | BT60: MEDINA | CK60: TAMINANGO | CL60: TAMINANGO | CM60: TAMINANGO | CN60: TAMINANGO | CW60: PALMAS DEL SOCORRO | CX60: PALMAS DEL SOCORRO | CY60: PALMAS DEL SOCORRO | CZ60: PALMAS DEL SOCORRO | DA60: PALMAS DEL SOCORRO | DB60: PALMAS DEL SOCORRO | DC60: PALMAS DEL SOCORRO | DD60: PALMAS DEL SOCORRO | DE60: PALMAS DEL SOCORRO | DF60: PALMAS DEL SOCORRO | DG60: PALMAS DEL SOCORRO | WP60: JARDÍN | WQ60: JARDÍN | WS60: NUEVO COLÓN | WU60: MEDINA | WV60: MEDINA | XC60: MEDINA | XJ60: PALMAS DEL SOCORRO | XK60: PALMAS DEL SOCORRO | XL60: PALMAS DEL SOCORRO | XM60: PALMAS DEL SOCORRO | XN60: PALMAS DEL SOCORRO
A61: PA-78 | G61: JERICÓ | H61: JERICÓ | I61: JERICÓ | J61: JERICÓ | K61: JERICÓ | L61: JERICÓ | M61: JERICÓ | N61: JERICÓ | O61: JERICÓ | P61: JERICÓ | AD61: OICATÁ | AE61: OICATÁ | AF61: OICATÁ | AG61: OICATÁ | AH61: OICATÁ | AI61: OICATÁ | BC61: MOSQUERA | BD61: MOSQUERA | BE61: MOSQUERA | BF61: MOSQUERA | BG61: MOSQUERA | BH61: MOSQUERA | BT61: MOSQUERA | CK61: TANGUA | CL61: TANGUA | CM61: TANGUA | CN61: TANGUA | CW61: PÁRAMO | CX61: PÁRAMO | CY61: PÁRAMO | CZ61: PÁRAMO | DA61: PÁRAMO | DB61: PÁRAMO | DC61: PÁRAMO | DD61: PÁRAMO | DE61: PÁRAMO | DF61: PÁRAMO | DG61: PÁRAMO | WP61: JERICÓ | WQ61: JERICÓ | WS61: OICATÁ | WU61: MOSQUERA | WV61: MOSQUERA | XC61: MOSQUERA | XJ61: PÁRAMO | XK61: PÁRAMO | XL61: PÁRAMO | XM61: PÁRAMO | XN61: PÁRAMO
A62: PA-68 | G62: LA CEJA | H62: LA CEJA | I62: LA CEJA | J62: LA CEJA | K62: LA CEJA | L62: LA CEJA | M62: LA CEJA | N62: LA CEJA | O62: LA CEJA | P62: LA CEJA | AD62: OTANCHE | AE62: OTANCHE | AF62: OTANCHE | AG62: OTANCHE | AH62: OTANCHE | AI62: OTANCHE | BC62: NARIÑO | BD62: NARIÑO | BE62: NARIÑO | BF62: NARIÑO | BG62: NARIÑO | BH62: NARIÑO | BT62: NARIÑO | CK62: TUMACO | CL62: TUMACO | CM62: TUMACO | CN62: TUMACO | CW62: PIEDECUESTA | CX62: PIEDECUESTA | CY62: PIEDECUESTA | CZ62: PIEDECUESTA | DA62: PIEDECUESTA | DB62: PIEDECUESTA | DC62: PIEDECUESTA | DD62: PIEDECUESTA | DE62: PIEDECUESTA | DF62: PIEDECUESTA | DG62: PIEDECUESTA | WP62: LA CEJA | WQ62: LA CEJA | WS62: OTANCHE | WU62: NARIÑO | WV62: NARIÑO | XC62: NARIÑO | XJ62: PIEDECUESTA | XK62: PIEDECUESTA | XL62: PIEDECUESTA | XM62: PIEDECUESTA | XN62: PIEDECUESTA
A63: PA-81 | G63: LA ESTRELLA | H63: LA ESTRELLA | I63: LA ESTRELLA | J63: LA ESTRELLA | K63: LA ESTRELLA | L63: LA ESTRELLA | M63: LA ESTRELLA | N63: LA ESTRELLA | O63: LA ESTRELLA | P63: LA ESTRELLA | AD63: PACHAVITA | AE63: PACHAVITA | AF63: PACHAVITA | AG63: PACHAVITA | AH63: PACHAVITA | AI63: PACHAVITA | BC63: NEMOCÓN | BD63: NEMOCÓN | BE63: NEMOCÓN | BF63: NEMOCÓN | BG63: NEMOCÓN | BH63: NEMOCÓN | BT63: NEMOCÓN | CK63: TÚQUERRES | CL63: TÚQUERRES | CM63: TÚQUERRES | CN63: TÚQUERRES | CW63: PINCHOTE | CX63: PINCHOTE | CY63: PINCHOTE | CZ63: PINCHOTE | DA63: PINCHOTE | DB63: PINCHOTE | DC63: PINCHOTE | DD63: PINCHOTE | DE63: PINCHOTE | DF63: PINCHOTE | DG63: PINCHOTE | WP63: LA ESTRELLA | WQ63: LA ESTRELLA | WS63: PACHAVITA | WU63: NEMOCÓN | WV63: NEMOCÓN | XC63: NEMOCÓN | XJ63: PINCHOTE | XK63: PINCHOTE | XL63: PINCHOTE | XM63: PINCHOTE | XN63: PINCHOTE
A64: PA-83 | G64: LA PINTADA | H64: LA PINTADA | I64: LA PINTADA | J64: LA PINTADA | K64: LA PINTADA | L64: LA PINTADA | M64: LA PINTADA | N64: LA PINTADA | O64: LA PINTADA | P64: LA PINTADA | AD64: PÁEZ | AE64: PÁEZ | AF64: PÁEZ | AG64: PÁEZ | AH64: PÁEZ | AI64: PÁEZ | BC64: NILO | BD64: NILO | BE64: NILO | BF64: NILO | BG64: NILO | BH64: NILO | BT64: NILO | CK64: YACUANQUER | CL64: YACUANQUER | CM64: YACUANQUER | CN64: YACUANQUER | CW64: PUENTE NACIONAL | CX64: PUENTE NACIONAL | CY64: PUENTE NACIONAL | CZ64: PUENTE NACIONAL | DA64: PUENTE NACIONAL | DB64: PUENTE NACIONAL | DC64: PUENTE NACIONAL | DD64: PUENTE NACIONAL | DE64: PUENTE NACIONAL | DF64: PUENTE NACIONAL | DG64: PUENTE NACIONAL | WP64: LA PINTADA | WQ64: LA PINTADA | WS64: PÁEZ | WU64: NILO | WV64: NILO | XC64: NILO | XJ64: PUENTE NACIONAL | XK64: PUENTE NACIONAL | XL64: PUENTE NACIONAL | XM64: PUENTE NACIONAL | XN64: PUENTE NACIONAL
A65: PA-35 | G65: LA UNIÓN | H65: LA UNIÓN | I65: LA UNIÓN | J65: LA UNIÓN | K65: LA UNIÓN | L65: LA UNIÓN | M65: LA UNIÓN | N65: LA UNIÓN | O65: LA UNIÓN | P65: LA UNIÓN | AD65: PAIPA | AE65: PAIPA | AF65: PAIPA | AG65: PAIPA | AH65: PAIPA | AI65: PAIPA | BC65: NIMAIMA | BD65: NIMAIMA | BE65: NIMAIMA | BF65: NIMAIMA | BG65: NIMAIMA | BH65: NIMAIMA | BT65: NIMAIMA | CW65: PUERTO PARRA | CX65: PUERTO PARRA | CY65: PUERTO PARRA | CZ65: PUERTO PARRA | DA65: PUERTO PARRA | DB65: PUERTO PARRA | DC65: PUERTO PARRA | DD65: PUERTO PARRA | DE65: PUERTO PARRA | DF65: PUERTO PARRA | DG65: PUERTO PARRA | WP65: LA UNIÓN | WQ65: LA UNIÓN | WS65: PAIPA | WU65: NIMAIMA | WV65: NIMAIMA | XC65: NIMAIMA | XJ65: PUERTO PARRA | XK65: PUERTO PARRA | XL65: PUERTO PARRA | XM65: PUERTO PARRA | XN65: PUERTO PARRA
A66: PA-67 | G66: LIBORINA | H66: LIBORINA | I66: LIBORINA | J66: LIBORINA | K66: LIBORINA | L66: LIBORINA | M66: LIBORINA | N66: LIBORINA | O66: LIBORINA | P66: LIBORINA | AD66: PAJARITO | AE66: PAJARITO | AF66: PAJARITO | AG66: PAJARITO | AH66: PAJARITO | AI66: PAJARITO | BC66: NOCAIMA | BD66: NOCAIMA | BE66: NOCAIMA | BF66: NOCAIMA | BG66: NOCAIMA | BH66: NOCAIMA | BT66: NOCAIMA | CW66: PUERTO WILCHES | CX66: PUERTO WILCHES | CY66: PUERTO WILCHES | CZ66: PUERTO WILCHES | DA66: PUERTO WILCHES | DB66: PUERTO WILCHES | DC66: PUERTO WILCHES | DD66: PUERTO WILCHES | DE66: PUERTO WILCHES | DF66: PUERTO WILCHES | DG66: PUERTO WILCHES | WP66: LIBORINA | WQ66: LIBORINA | WS66: PAJARITO | WU66: NOCAIMA | WV66: NOCAIMA | XC66: NOCAIMA | XJ66: PUERTO WILCHES | XK66: PUERTO WILCHES | XL66: PUERTO WILCHES | XM66: PUERTO WILCHES | XN66: PUERTO WILCHES
A67: PA-69 | G67: MACEO | H67: MACEO | I67: MACEO | J67: MACEO | K67: MACEO | L67: MACEO | M67: MACEO | N67: MACEO | O67: MACEO | P67: MACEO | AD67: PANQUEBA | AE67: PANQUEBA | AF67: PANQUEBA | AG67: PANQUEBA | AH67: PANQUEBA | AI67: PANQUEBA | BC67: PACHO | BD67: PACHO | BE67: PACHO | BF67: PACHO | BG67: PACHO | BH67: PACHO | BT67: PACHO | CW67: RIONEGRO | CX67: RIONEGRO | CY67: RIONEGRO | CZ67: RIONEGRO | DA67: RIONEGRO | DB67: RIONEGRO | DC67: RIONEGRO | DD67: RIONEGRO | DE67: RIONEGRO | DF67: RIONEGRO | DG67: RIONEGRO | WP67: MACEO | WQ67: MACEO | WS67: PANQUEBA | WU67: PACHO | WV67: PACHO | XC67: PACHO | XJ67: RIONEGRO | XK67: RIONEGRO | XL67: RIONEGRO | XM67: RIONEGRO | XN67: RIONEGRO
A68: PA-82 | G68: MARINILLA | H68: MARINILLA | I68: MARINILLA | J68: MARINILLA | K68: MARINILLA | L68: MARINILLA | M68: MARINILLA | N68: MARINILLA | O68: MARINILLA | P68: MARINILLA | AD68: PAUNA | AE68: PAUNA | AF68: PAUNA | AG68: PAUNA | AH68: PAUNA | AI68: PAUNA | BC68: PAIME | BD68: PAIME | BE68: PAIME | BF68: PAIME | BG68: PAIME | BH68: PAIME | BT68: PAIME | CW68: SABANA DE TORRES | CX68: SABANA DE TORRES | CY68: SABANA DE TORRES | CZ68: SABANA DE TORRES | DA68: SABANA DE TORRES | DB68: SABANA DE TORRES | DC68: SABANA DE TORRES | DD68: SABANA DE TORRES | DE68: SABANA DE TORRES | DF68: SABANA DE TORRES | DG68: SABANA DE TORRES | WP68: MARINILLA | WQ68: MARINILLA | WS68: PAUNA | WU68: PAIME | WV68: PAIME | XC68: PAIME | XJ68: SABANA DE TORRES | XK68: SABANA DE TORRES | XL68: SABANA DE TORRES | XM68: SABANA DE TORRES | XN68: SABANA DE TORRES
A69: PA-85 | G69: MEDELLÍN | H69: MEDELLÍN | I69: MEDELLÍN | J69: MEDELLÍN | K69: MEDELLÍN | L69: MEDELLÍN | M69: MEDELLÍN | N69: MEDELLÍN | O69: MEDELLÍN | P69: MEDELLÍN | AD69: PAYA | AE69: PAYA | AF69: PAYA | AG69: PAYA | AH69: PAYA | AI69: PAYA | BC69: PANDI | BD69: PANDI | BE69: PANDI | BF69: PANDI | BG69: PANDI | BH69: PANDI | BT69: PANDI | CW69: SAN ANDRÉS | CX69: SAN ANDRÉS | CY69: SAN ANDRÉS | CZ69: SAN ANDRÉS | DA69: SAN ANDRÉS | DB69: SAN ANDRÉS | DC69: SAN ANDRÉS | DD69: SAN ANDRÉS | DE69: SAN ANDRÉS | DF69: SAN ANDRÉS | DG69: SAN ANDRÉS | WP69: MEDELLÍN | WQ69: MEDELLÍN | WS69: PAYA | WU69: PANDI | WV69: PANDI | XC69: PANDI | XJ69: SAN ANDRÉS | XK69: SAN ANDRÉS | XL69: SAN ANDRÉS | XM69: SAN ANDRÉS | XN69: SAN ANDRÉS
A70: PA-7 | G70: MONTEBELLO | H70: MONTEBELLO | I70: MONTEBELLO | J70: MONTEBELLO | K70: MONTEBELLO | L70: MONTEBELLO | M70: MONTEBELLO | N70: MONTEBELLO | O70: MONTEBELLO | P70: MONTEBELLO | AD70: PAZ DE RÍO | AE70: PAZ DE RÍO | AF70: PAZ DE RÍO | AG70: PAZ DE RÍO | AH70: PAZ DE RÍO | AI70: PAZ DE RÍO | BC70: PARATEBUENO | BD70: PARATEBUENO | BE70: PARATEBUENO | BF70: PARATEBUENO | BG70: PARATEBUENO | BH70: PARATEBUENO | BT70: PARATEBUENO | CW70: SAN BENITO | CX70: SAN BENITO | CY70: SAN BENITO | CZ70: SAN BENITO | DA70: SAN BENITO | DB70: SAN BENITO | DC70: SAN BENITO | DD70: SAN BENITO | DE70: SAN BENITO | DF70: SAN BENITO | DG70: SAN BENITO | WP70: MONTEBELLO | WQ70: MONTEBELLO | WS70: PAZ DE RÍO | WU70: PARATEBUENO | WV70: PARATEBUENO | XC70: PARATEBUENO | XJ70: SAN BENITO | XK70: SAN BENITO | XL70: SAN BENITO | XM70: SAN BENITO | XN70: SAN BENITO
A71: PA-8 | G71: MURINDÓ | H71: MURINDÓ | I71: MURINDÓ | J71: MURINDÓ | K71: MURINDÓ | L71: MURINDÓ | M71: MURINDÓ | N71: MURINDÓ | O71: MURINDÓ | P71: MURINDÓ | AD71: PESCA | AE71: PESCA | AF71: PESCA | AG71: PESCA | AH71: PESCA | AI71: PESCA | BC71: PASCA | BD71: PASCA | BE71: PASCA | BF71: PASCA | BG71: PASCA | BH71: PASCA | BT71: PASCA | CW71: SAN GIL | CX71: SAN GIL | CY71: SAN GIL | CZ71: SAN GIL | DA71: SAN GIL | DB71: SAN GIL | DC71: SAN GIL | DD71: SAN GIL | DE71: SAN GIL | DF71: SAN GIL | DG71: SAN GIL | WP71: MURINDÓ | WQ71: MURINDÓ | WS71: PESCA | WU71: PASCA | WV71: PASCA | XC71: PASCA | XJ71: SAN GIL | XK71: SAN GIL | XL71: SAN GIL | XM71: SAN GIL | XN71: SAN GIL
A72: PA-50 | G72: MUTATÁ | H72: MUTATÁ | I72: MUTATÁ | J72: MUTATÁ | K72: MUTATÁ | L72: MUTATÁ | M72: MUTATÁ | N72: MUTATÁ | O72: MUTATÁ | P72: MUTATÁ | AD72: PISBA | AE72: PISBA | AF72: PISBA | AG72: PISBA | AH72: PISBA | AI72: PISBA | BC72: PUERTO SALGAR | BD72: PUERTO SALGAR | BE72: PUERTO SALGAR | BF72: PUERTO SALGAR | BG72: PUERTO SALGAR | BH72: PUERTO SALGAR | BT72: PUERTO SALGAR | CW72: SAN JOAQUÍN | CX72: SAN JOAQUÍN | CY72: SAN JOAQUÍN | CZ72: SAN JOAQUÍN | DA72: SAN JOAQUÍN | DB72: SAN JOAQUÍN | DC72: SAN JOAQUÍN | DD72: SAN JOAQUÍN | DE72: SAN JOAQUÍN | DF72: SAN JOAQUÍN | DG72: SAN JOAQUÍN | WP72: MUTATÁ | WQ72: MUTATÁ | WS72: PISBA | WU72: PUERTO SALGAR | WV72: PUERTO SALGAR | XC72: PUERTO SALGAR | XJ72: SAN JOAQUÍN | XK72: SAN JOAQUÍN | XL72: SAN JOAQUÍN | XM72: SAN JOAQUÍN | XN72: SAN JOAQUÍN
A73: PA-93 | G73: NARIÑO | H73: NARIÑO | I73: NARIÑO | J73: NARIÑO | K73: NARIÑO | L73: NARIÑO | M73: NARIÑO | N73: NARIÑO | O73: NARIÑO | P73: NARIÑO | AD73: PUERTO BOYACÁ | AE73: PUERTO BOYACÁ | AF73: PUERTO BOYACÁ | AG73: PUERTO BOYACÁ | AH73: PUERTO BOYACÁ | AI73: PUERTO BOYACÁ | BC73: PULÍ | BD73: PULÍ | BE73: PULÍ | BF73: PULÍ | BG73: PULÍ | BH73: PULÍ | BT73: PULÍ | CW73: SAN JOSÉ DE MIRANDA | CX73: SAN JOSÉ DE MIRANDA | CY73: SAN JOSÉ DE MIRANDA | CZ73: SAN JOSÉ DE MIRANDA | DA73: SAN JOSÉ DE MIRANDA | DB73: SAN JOSÉ DE MIRANDA | DC73: SAN JOSÉ DE MIRANDA | DD73: SAN JOSÉ DE MIRANDA | DE73: SAN JOSÉ DE MIRANDA | DF73: SAN JOSÉ DE MIRANDA | DG73: SAN JOSÉ DE MIRANDA | WP73: NARIÑO | WQ73: NARIÑO | WS73: PUERTO BOYACÁ | WU73: PULÍ | WV73: PULÍ | XC73: PULÍ | XJ73: SAN JOSÉ DE MIRANDA | XK73: SAN JOSÉ DE MIRANDA | XL73: SAN JOSÉ DE MIRANDA | XM73: SAN JOSÉ DE MIRANDA | XN73: SAN JOSÉ DE MIRANDA
A74: PA-94 | G74: NECHÍ | H74: NECHÍ | I74: NECHÍ | J74: NECHÍ | K74: NECHÍ | L74: NECHÍ | M74: NECHÍ | N74: NECHÍ | O74: NECHÍ | P74: NECHÍ | AD74: QUÍPAMA | AE74: QUÍPAMA | AF74: QUÍPAMA | AG74: QUÍPAMA | AH74: QUÍPAMA | AI74: QUÍPAMA | BC74: QUEBRADANEGRA | BD74: QUEBRADANEGRA | BE74: QUEBRADANEGRA | BF74: QUEBRADANEGRA | BG74: QUEBRADANEGRA | BH74: QUEBRADANEGRA | BT74: QUEBRADANEGRA | CW74: SAN MIGUEL | CX74: SAN MIGUEL | CY74: SAN MIGUEL | CZ74: SAN MIGUEL | DA74: SAN MIGUEL | DB74: SAN MIGUEL | DC74: SAN MIGUEL | DD74: SAN MIGUEL | DE74: SAN MIGUEL | DF74: SAN MIGUEL | DG74: SAN MIGUEL | WP74: NECHÍ | WQ74: NECHÍ | WS74: QUÍPAMA | WU74: QUEBRADANEGRA | WV74: QUEBRADANEGRA | XC74: QUEBRADANEGRA | XJ74: SAN MIGUEL | XK74: SAN MIGUEL | XL74: SAN MIGUEL | XM74: SAN MIGUEL | XN74: SAN MIGUEL
A75: PA-87 | G75: NECOCLÍ | H75: NECOCLÍ | I75: NECOCLÍ | J75: NECOCLÍ | K75: NECOCLÍ | L75: NECOCLÍ | M75: NECOCLÍ | N75: NECOCLÍ | O75: NECOCLÍ | P75: NECOCLÍ | AD75: RAMIRIQUÍ | AE75: RAMIRIQUÍ | AF75: RAMIRIQUÍ | AG75: RAMIRIQUÍ | AH75: RAMIRIQUÍ | AI75: RAMIRIQUÍ | BC75: QUETAME | BD75: QUETAME | BE75: QUETAME | BF75: QUETAME | BG75: QUETAME | BH75: QUETAME | BT75: QUETAME | CW75: SAN VICENTE DE CHUCURÍ | CX75: SAN VICENTE DE CHUCURÍ | CY75: SAN VICENTE DE CHUCURÍ | CZ75: SAN VICENTE DE CHUCURÍ | DA75: SAN VICENTE DE CHUCURÍ | DB75: SAN VICENTE DE CHUCURÍ | DC75: SAN VICENTE DE CHUCURÍ | DD75: SAN VICENTE DE CHUCURÍ | DE75: SAN VICENTE DE CHUCURÍ | DF75: SAN VICENTE DE CHUCURÍ | DG75: SAN VICENTE DE CHUCURÍ | WP75: NECOCLÍ | WQ75: NECOCLÍ | WS75: RAMIRIQUÍ | WU75: QUETAME | WV75: QUETAME | XC75: QUETAME | XJ75: SAN VICENTE DE CHUCURÍ | XK75: SAN VICENTE DE CHUCURÍ | XL75: SAN VICENTE DE CHUCURÍ | XM75: SAN VICENTE DE CHUCURÍ | XN75: SAN VICENTE DE CHUCURÍ
A76: PA-9 | G76: OLAYA | H76: OLAYA | I76: OLAYA | J76: OLAYA | K76: OLAYA | L76: OLAYA | M76: OLAYA | N76: OLAYA | O76: OLAYA | P76: OLAYA | AD76: RÁQUIRA | AE76: RÁQUIRA | AF76: RÁQUIRA | AG76: RÁQUIRA | AH76: RÁQUIRA | AI76: RÁQUIRA | BC76: QUIPILE | BD76: QUIPILE | BE76: QUIPILE | BF76: QUIPILE | BG76: QUIPILE | BH76: QUIPILE | BT76: QUIPILE | CW76: SANTA BÁRBARA | CX76: SANTA BÁRBARA | CY76: SANTA BÁRBARA | CZ76: SANTA BÁRBARA | DA76: SANTA BÁRBARA | DB76: SANTA BÁRBARA | DC76: SANTA BÁRBARA | DD76: SANTA BÁRBARA | DE76: SANTA BÁRBARA | DF76: SANTA BÁRBARA | DG76: SANTA BÁRBARA | WP76: OLAYA | WQ76: OLAYA | WS76: RÁQUIRA | WU76: QUIPILE | WV76: QUIPILE | XC76: QUIPILE | XJ76: SANTA BÁRBARA | XK76: SANTA BÁRBARA | XL76: SANTA BÁRBARA | XM76: SANTA BÁRBARA | XN76: SANTA BÁRBARA
A77: PA-11 | G77: PEÑOL | H77: PEÑOL | I77: PEÑOL | J77: PEÑOL | K77: PEÑOL | L77: PEÑOL | M77: PEÑOL | N77: PEÑOL | O77: PEÑOL | P77: PEÑOL | AD77: RONDÓN | AE77: RONDÓN | AF77: RONDÓN | AG77: RONDÓN | AH77: RONDÓN | AI77: RONDÓN | BC77: RICAURTE | BD77: RICAURTE | BE77: RICAURTE | BF77: RICAURTE | BG77: RICAURTE | BH77: RICAURTE | BT77: RICAURTE | CW77: SANTA HELENA DEL OPÓN | CX77: SANTA HELENA DEL OPÓN | CY77: SANTA HELENA DEL OPÓN | CZ77: SANTA HELENA DEL OPÓN | DA77: SANTA HELENA DEL OPÓN | DB77: SANTA HELENA DEL OPÓN | DC77: SANTA HELENA DEL OPÓN | DD77: SANTA HELENA DEL OPÓN | DE77: SANTA HELENA DEL OPÓN | DF77: SANTA HELENA DEL OPÓN | DG77: SANTA HELENA DEL OPÓN | WP77: PEÑOL | WQ77: PEÑOL | WS77: RONDÓN | WU77: RICAURTE | WV77: RICAURTE | XC77: RICAURTE | XJ77: SANTA HELENA DEL OPÓN | XK77: SANTA HELENA DEL OPÓN | XL77: SANTA HELENA DEL OPÓN | XM77: SANTA HELENA DEL OPÓN | XN77: SANTA HELENA DEL OPÓN
A78: PA-19 | G78: PEQUE | H78: PEQUE | I78: PEQUE | J78: PEQUE | K78: PEQUE | L78: PEQUE | M78: PEQUE | N78: PEQUE | O78: PEQUE | P78: PEQUE | AD78: SABOYÁ | AE78: SABOYÁ | AF78: SABOYÁ | AG78: SABOYÁ | AH78: SABOYÁ | AI78: SABOYÁ | BC78: SAN ANTONIO DEL TEQUENDAMA | BD78: SAN ANTONIO DEL TEQUENDAMA | BE78: SAN ANTONIO DEL TEQUENDAMA | BF78: SAN ANTONIO DEL TEQUENDAMA | BG78: SAN ANTONIO DEL TEQUENDAMA | BH78: SAN ANTONIO DEL TEQUENDAMA | BT78: SAN ANTONIO DEL TEQUENDAMA | CW78: SIMACOTA | CX78: SIMACOTA | CY78: SIMACOTA | CZ78: SIMACOTA | DA78: SIMACOTA | DB78: SIMACOTA | DC78: SIMACOTA | DD78: SIMACOTA | DE78: SIMACOTA | DF78: SIMACOTA | DG78: SIMACOTA | WP78: PEQUE | WQ78: PEQUE | WS78: SABOYÁ | WU78: SAN ANTONIO DEL TEQUENDAMA | WV78: SAN ANTONIO DEL TEQUENDAMA | XC78: SAN ANTONIO DEL TEQUENDAMA | XJ78: SIMACOTA | XK78: SIMACOTA | XL78: SIMACOTA | XM78: SIMACOTA | XN78: SIMACOTA
A79: PA-37 | G79: PUEBLORRICO | H79: PUEBLORRICO | I79: PUEBLORRICO | J79: PUEBLORRICO | K79: PUEBLORRICO | L79: PUEBLORRICO | M79: PUEBLORRICO | N79: PUEBLORRICO | O79: PUEBLORRICO | P79: PUEBLORRICO | AD79: SÁCHICA | AE79: SÁCHICA | AF79: SÁCHICA | AG79: SÁCHICA | AH79: SÁCHICA | AI79: SÁCHICA | BC79: SAN BERNARDO | BD79: SAN BERNARDO | BE79: SAN BERNARDO | BF79: SAN BERNARDO | BG79: SAN BERNARDO | BH79: SAN BERNARDO | BT79: SAN BERNARDO | CW79: SOCORRO | CX79: SOCORRO | CY79: SOCORRO | CZ79: SOCORRO | DA79: SOCORRO | DB79: SOCORRO | DC79: SOCORRO | DD79: SOCORRO | DE79: SOCORRO | DF79: SOCORRO | DG79: SOCORRO | WP79: PUEBLORRICO | WQ79: PUEBLORRICO | WS79: SÁCHICA | WU79: SAN BERNARDO | WV79: SAN BERNARDO | XC79: SAN BERNARDO | XJ79: SOCORRO | XK79: SOCORRO | XL79: SOCORRO | XM79: SOCORRO | XN79: SOCORRO
A80: PA-41 | G80: PUERTO BERRÍO | H80: PUERTO BERRÍO | I80: PUERTO BERRÍO | J80: PUERTO BERRÍO | K80: PUERTO BERRÍO | L80: PUERTO BERRÍO | M80: PUERTO BERRÍO | N80: PUERTO BERRÍO | O80: PUERTO BERRÍO | P80: PUERTO BERRÍO | AD80: SAMACÁ | AE80: SAMACÁ | AF80: SAMACÁ | AG80: SAMACÁ | AH80: SAMACÁ | AI80: SAMACÁ | BC80: SAN CAYETANO | BD80: SAN CAYETANO | BE80: SAN CAYETANO | BF80: SAN CAYETANO | BG80: SAN CAYETANO | BH80: SAN CAYETANO | BT80: SAN CAYETANO | CW80: SUAITA | CX80: SUAITA | CY80: SUAITA | CZ80: SUAITA | DA80: SUAITA | DB80: SUAITA | DC80: SUAITA | DD80: SUAITA | DE80: SUAITA | DF80: SUAITA | DG80: SUAITA | WP80: PUERTO BERRÍO | WQ80: PUERTO BERRÍO | WS80: SAMACÁ | WU80: SAN CAYETANO | WV80: SAN CAYETANO | XC80: SAN CAYETANO | XJ80: SUAITA | XK80: SUAITA | XL80: SUAITA | XM80: SUAITA | XN80: SUAITA
A81: PA-42 | G81: PUERTO NARE | H81: PUERTO NARE | I81: PUERTO NARE | J81: PUERTO NARE | K81: PUERTO NARE | L81: PUERTO NARE | M81: PUERTO NARE | N81: PUERTO NARE | O81: PUERTO NARE | P81: PUERTO NARE | AD81: SAN EDUARDO | AE81: SAN EDUARDO | AF81: SAN EDUARDO | AG81: SAN EDUARDO | AH81: SAN EDUARDO | AI81: SAN EDUARDO | BC81: SAN FRANCISCO | BD81: SAN FRANCISCO | BE81: SAN FRANCISCO | BF81: SAN FRANCISCO | BG81: SAN FRANCISCO | BH81: SAN FRANCISCO | BT81: SAN FRANCISCO | CW81: SUCRE | CX81: SUCRE | CY81: SUCRE | CZ81: SUCRE | DA81: SUCRE | DB81: SUCRE | DC81: SUCRE | DD81: SUCRE | DE81: SUCRE | DF81: SUCRE | DG81: SUCRE | WP81: PUERTO NARE | WQ81: PUERTO NARE | WS81: SAN EDUARDO | WU81: SAN FRANCISCO | WV81: SAN FRANCISCO | XC81: SAN FRANCISCO | XJ81: SUCRE | XK81: SUCRE | XL81: SUCRE | XM81: SUCRE | XN81: SUCRE
A82: PA-43 | G82: PUERTO TRIUNFO | H82: PUERTO TRIUNFO | I82: PUERTO TRIUNFO | J82: PUERTO TRIUNFO | K82: PUERTO TRIUNFO | L82: PUERTO TRIUNFO | M82: PUERTO TRIUNFO | N82: PUERTO TRIUNFO | O82: PUERTO TRIUNFO | P82: PUERTO TRIUNFO | AD82: SAN JOSÉ DE PARE | AE82: SAN JOSÉ DE PARE | AF82: SAN JOSÉ DE PARE | AG82: SAN JOSÉ DE PARE | AH82: SAN JOSÉ DE PARE | AI82: SAN JOSÉ DE PARE | BC82: SAN JUAN DE RÍO SECO | BD82: SAN JUAN DE RÍO SECO | BE82: SAN JUAN DE RÍO SECO | BF82: SAN JUAN DE RÍO SECO | BG82: SAN JUAN DE RÍO SECO | BH82: SAN JUAN DE RÍO SECO | BT82: SAN JUAN DE RÍO SECO | CW82: SURATÁ | CX82: SURATÁ | CY82: SURATÁ | CZ82: SURATÁ | DA82: SURATÁ | DB82: SURATÁ | DC82: SURATÁ | DD82: SURATÁ | DE82: SURATÁ | DF82: SURATÁ | DG82: SURATÁ | WP82: PUERTO TRIUNFO | WQ82: PUERTO TRIUNFO | WS82: SAN JOSÉ DE PARE | WU82: SAN JUAN DE RÍO SECO | WV82: SAN JUAN DE RÍO SECO | XC82: SAN JUAN DE RÍO SECO | XJ82: SURATÁ | XK82: SURATÁ | XL82: SURATÁ | XM82: SURATÁ | XN82: SURATÁ
A83: PA-44 | G83: REMEDIOS | H83: REMEDIOS | I83: REMEDIOS | J83: REMEDIOS | K83: REMEDIOS | L83: REMEDIOS | M83: REMEDIOS | N83: REMEDIOS | O83: REMEDIOS | P83: REMEDIOS | AD83: SAN LUIS DE GACENO | AE83: SAN LUIS DE GACENO | AF83: SAN LUIS DE GACENO | AG83: SAN LUIS DE GACENO | AH83: SAN LUIS DE GACENO | AI83: SAN LUIS DE GACENO | BC83: SASAIMA | BD83: SASAIMA | BE83: SASAIMA | BF83: SASAIMA | BG83: SASAIMA | BH83: SASAIMA | BT83: SASAIMA | CW83: TONA | CX83: TONA | CY83: TONA | CZ83: TONA | DA83: TONA | DB83: TONA | DC83: TONA | DD83: TONA | DE83: TONA | DF83: TONA | DG83: TONA | WP83: REMEDIOS | WQ83: REMEDIOS | WS83: SAN LUIS DE GACENO | WU83: SASAIMA | WV83: SASAIMA | XC83: SASAIMA | XJ83: TONA | XK83: TONA | XL83: TONA | XM83: TONA | XN83: TONA
A84: PA-63 | G84: RETIRO | H84: RETIRO | I84: RETIRO | J84: RETIRO | K84: RETIRO | L84: RETIRO | M84: RETIRO | N84: RETIRO | O84: RETIRO | P84: RETIRO | AD84: SAN MATEO | AE84: SAN MATEO | AF84: SAN MATEO | AG84: SAN MATEO | AH84: SAN MATEO | AI84: SAN MATEO | BC84: SESQUILÉ | BD84: SESQUILÉ | BE84: SESQUILÉ | BF84: SESQUILÉ | BG84: SESQUILÉ | BH84: SESQUILÉ | BT84: SESQUILÉ | CW84: VALLE DE SAN JOSÉ | CX84: VALLE DE SAN JOSÉ | CY84: VALLE DE SAN JOSÉ | CZ84: VALLE DE SAN JOSÉ | DA84: VALLE DE SAN JOSÉ | DB84: VALLE DE SAN JOSÉ | DC84: VALLE DE SAN JOSÉ | DD84: VALLE DE SAN JOSÉ | DE84: VALLE DE SAN JOSÉ | DF84: VALLE DE SAN JOSÉ | DG84: VALLE DE SAN JOSÉ | WP84: RETIRO | WQ84: RETIRO | WS84: SAN MATEO | WU84: SESQUILÉ | WV84: SESQUILÉ | XC84: SESQUILÉ | XJ84: VALLE DE SAN JOSÉ | XK84: VALLE DE SAN JOSÉ | XL84: VALLE DE SAN JOSÉ | XM84: VALLE DE SAN JOSÉ | XN84: VALLE DE SAN JOSÉ
A85: PA-64 | G85: RIONEGRO | H85: RIONEGRO | I85: RIONEGRO | J85: RIONEGRO | K85: RIONEGRO | L85: RIONEGRO | M85: RIONEGRO | N85: RIONEGRO | O85: RIONEGRO | P85: RIONEGRO | AD85: SAN MIGUEL DE SEMA | AE85: SAN MIGUEL DE SEMA | AF85: SAN MIGUEL DE SEMA | AG85: SAN MIGUEL DE SEMA | AH85: SAN MIGUEL DE SEMA | AI85: SAN MIGUEL DE SEMA | BC85: SIBATÉ | BD85: SIBATÉ | BE85: SIBATÉ | BF85: SIBATÉ | BG85: SIBATÉ | BH85: SIBATÉ | BT85: SIBATÉ | CW85: VÉLEZ | CX85: VÉLEZ | CY85: VÉLEZ | CZ85: VÉLEZ | DA85: VÉLEZ | DB85: VÉLEZ | DC85: VÉLEZ | DD85: VÉLEZ | DE85: VÉLEZ | DF85: VÉLEZ | DG85: VÉLEZ | WP85: RIONEGRO | WQ85: RIONEGRO | WS85: SAN MIGUEL DE SEMA | WU85: SIBATÉ | WV85: SIBATÉ | XC85: SIBATÉ | XJ85: VÉLEZ | XK85: VÉLEZ | XL85: VÉLEZ | XM85: VÉLEZ | XN85: VÉLEZ
A86: PA-73 | G86: SABANALARGA | H86: SABANALARGA | I86: SABANALARGA | J86: SABANALARGA | K86: SABANALARGA | L86: SABANALARGA | M86: SABANALARGA | N86: SABANALARGA | O86: SABANALARGA | P86: SABANALARGA | AD86: SAN PABLO DE BORBUR | AE86: SAN PABLO DE BORBUR | AF86: SAN PABLO DE BORBUR | AG86: SAN PABLO DE BORBUR | AH86: SAN PABLO DE BORBUR | AI86: SAN PABLO DE BORBUR | BC86: SILVANIA | BD86: SILVANIA | BE86: SILVANIA | BF86: SILVANIA | BG86: SILVANIA | BH86: SILVANIA | BT86: SILVANIA | CW86: VETAS | CX86: VETAS | CY86: VETAS | CZ86: VETAS | DA86: VETAS | DB86: VETAS | DC86: VETAS | DD86: VETAS | DE86: VETAS | DF86: VETAS | DG86: VETAS | WP86: SABANALARGA | WQ86: SABANALARGA | WS86: SAN PABLO DE BORBUR | WU86: SILVANIA | WV86: SILVANIA | XC86: SILVANIA | XJ86: VETAS | XK86: VETAS | XL86: VETAS | XM86: VETAS | XN86: VETAS
A87: PA-86 | G87: SABANETA | H87: SABANETA | I87: SABANETA | J87: SABANETA | K87: SABANETA | L87: SABANETA | M87: SABANETA | N87: SABANETA | O87: SABANETA | P87: SABANETA | AD87: SANTA MARÍA | AE87: SANTA MARÍA | AF87: SANTA MARÍA | AG87: SANTA MARÍA | AH87: SANTA MARÍA | AI87: SANTA MARÍA | BC87: SIMIJACA | BD87: SIMIJACA | BE87: SIMIJACA | BF87: SIMIJACA | BG87: SIMIJACA | BH87: SIMIJACA | BT87: SIMIJACA | CW87: VILLANUEVA | CX87: VILLANUEVA | CY87: VILLANUEVA | CZ87: VILLANUEVA | DA87: VILLANUEVA | DB87: VILLANUEVA | DC87: VILLANUEVA | DD87: VILLANUEVA | DE87: VILLANUEVA | DF87: VILLANUEVA | DG87: VILLANUEVA | WP87: SABANETA | WQ87: SABANETA | WS87: SANTA MARÍA | WU87: SIMIJACA | WV87: SIMIJACA | XC87: SIMIJACA | XJ87: VILLANUEVA | XK87: VILLANUEVA | XL87: VILLANUEVA | XM87: VILLANUEVA | XN87: VILLANUEVA
A88: PA-27 | G88: SALGAR | H88: SALGAR | I88: SALGAR | J88: SALGAR | K88: SALGAR | L88: SALGAR | M88: SALGAR | N88: SALGAR | O88: SALGAR | P88: SALGAR | AD88: SANTA ROSA DE VITERBO | AE88: SANTA ROSA DE VITERBO | AF88: SANTA ROSA DE VITERBO | AG88: SANTA ROSA DE VITERBO | AH88: SANTA ROSA DE VITERBO | AI88: SANTA ROSA DE VITERBO | BC88: SOACHA | BD88: SOACHA | BE88: SOACHA | BF88: SOACHA | BG88: SOACHA | BH88: SOACHA | BT88: SOACHA | CW88: ZAPATOCA | CX88: ZAPATOCA | CY88: ZAPATOCA | CZ88: ZAPATOCA | DA88: ZAPATOCA | DB88: ZAPATOCA | DC88: ZAPATOCA | DD88: ZAPATOCA | DE88: ZAPATOCA | DF88: ZAPATOCA | DG88: ZAPATOCA | WP88: SALGAR | WQ88: SALGAR | WS88: SANTA ROSA DE VITERBO | WU88: SOACHA | WV88: SOACHA | XC88: SOACHA | XJ88: ZAPATOCA | XK88: ZAPATOCA | XL88: ZAPATOCA | XM88: ZAPATOCA | XN88: ZAPATOCA
A89: PA-32 | G89: SAN ANDRÉS | H89: SAN ANDRÉS | I89: SAN ANDRÉS | J89: SAN ANDRÉS | K89: SAN ANDRÉS | L89: SAN ANDRÉS | M89: SAN ANDRÉS | N89: SAN ANDRÉS | O89: SAN ANDRÉS | P89: SAN ANDRÉS | AD89: SANTA SOFÍA | AE89: SANTA SOFÍA | AF89: SANTA SOFÍA | AG89: SANTA SOFÍA | AH89: SANTA SOFÍA | AI89: SANTA SOFÍA | BC89: SOPÓ | BD89: SOPÓ | BE89: SOPÓ | BF89: SOPÓ | BG89: SOPÓ | BH89: SOPÓ | BT89: SOPÓ | WP89: SAN ANDRÉS | WQ89: SAN ANDRÉS | WS89: SANTA SOFÍA | WU89: SOPÓ | WV89: SOPÓ | XC89: SOPÓ
A90: PA-91 | G90: SAN CARLOS | H90: SAN CARLOS | I90: SAN CARLOS | J90: SAN CARLOS | K90: SAN CARLOS | L90: SAN CARLOS | M90: SAN CARLOS | N90: SAN CARLOS | O90: SAN CARLOS | P90: SAN CARLOS | AD90: SANTANA | AE90: SANTANA | AF90: SANTANA | AG90: SANTANA | AH90: SANTANA | AI90: SANTANA | BC90: SUBACHOQUE | BD90: SUBACHOQUE | BE90: SUBACHOQUE | BF90: SUBACHOQUE | BG90: SUBACHOQUE | BH90: SUBACHOQUE | BT90: SUBACHOQUE | WP90: SAN CARLOS | WQ90: SAN CARLOS | WS90: SANTANA | WU90: SUBACHOQUE | WV90: SUBACHOQUE | XC90: SUBACHOQUE
A91: PA-92 | G91: SAN FRANCISCO | H91: SAN FRANCISCO | I91: SAN FRANCISCO | J91: SAN FRANCISCO | K91: SAN FRANCISCO | L91: SAN FRANCISCO | M91: SAN FRANCISCO | N91: SAN FRANCISCO | O91: SAN FRANCISCO | P91: SAN FRANCISCO | AD91: SATIVANORTE | AE91: SATIVANORTE | AF91: SATIVANORTE | AG91: SATIVANORTE | AH91: SATIVANORTE | AI91: SATIVANORTE | BC91: SUESCA | BD91: SUESCA | BE91: SUESCA | BF91: SUESCA | BG91: SUESCA | BH91: SUESCA | BT91: SUESCA | WP91: SAN FRANCISCO | WQ91: SAN FRANCISCO | WS91: SATIVANORTE | WU91: SUESCA | WV91: SUESCA | XC91: SUESCA
A92: PA-12 | G92: SAN JERÓNIMO | H92: SAN JERÓNIMO | I92: SAN JERÓNIMO | J92: SAN JERÓNIMO | K92: SAN JERÓNIMO | L92: SAN JERÓNIMO | M92: SAN JERÓNIMO | N92: SAN JERÓNIMO | O92: SAN JERÓNIMO | P92: SAN JERÓNIMO | AD92: SATIVASUR | AE92: SATIVASUR | AF92: SATIVASUR | AG92: SATIVASUR | AH92: SATIVASUR | AI92: SATIVASUR | BC92: SUPATÁ | BD92: SUPATÁ | BE92: SUPATÁ | BF92: SUPATÁ | BG92: SUPATÁ | BH92: SUPATÁ | BT92: SUPATÁ | WP92: SAN JERÓNIMO | WQ92: SAN JERÓNIMO | WS92: SATIVASUR | WU92: SUPATÁ | WV92: SUPATÁ | XC92: SUPATÁ
A93: PA-56 | G93: SAN JOSÉ DE LA MONTAÑA | H93: SAN JOSÉ DE LA MONTAÑA | I93: SAN JOSÉ DE LA MONTAÑA | J93: SAN JOSÉ DE LA MONTAÑA | K93: SAN JOSÉ DE LA MONTAÑA | L93: SAN JOSÉ DE LA MONTAÑA | M93: SAN JOSÉ DE LA MONTAÑA | N93: SAN JOSÉ DE LA MONTAÑA | O93: SAN JOSÉ DE LA MONTAÑA | P93: SAN JOSÉ DE LA MONTAÑA | AD93: SIACHOQUE | AE93: SIACHOQUE | AF93: SIACHOQUE | AG93: SIACHOQUE | AH93: SIACHOQUE | AI93: SIACHOQUE | BC93: SUSA | BD93: SUSA | BE93: SUSA | BF93: SUSA | BG93: SUSA | BH93: SUSA | BT93: SUSA | WP93: SAN JOSÉ DE LA MONTAÑA | WQ93: SAN JOSÉ DE LA MONTAÑA | WS93: SIACHOQUE | WU93: SUSA | WV93: SUSA | XC93: SUSA
G94: SAN JUAN DE URABÁ | H94: SAN JUAN DE URABÁ | I94: SAN JUAN DE URABÁ | J94: SAN JUAN DE URABÁ | K94: SAN JUAN DE URABÁ | L94: SAN JUAN DE URABÁ | M94: SAN JUAN DE URABÁ | N94: SAN JUAN DE URABÁ | O94: SAN JUAN DE URABÁ | P94: SAN JUAN DE URABÁ | AD94: SOATÁ | AE94: SOATÁ | AF94: SOATÁ | AG94: SOATÁ | AH94: SOATÁ | AI94: SOATÁ | BC94: SUTATAUSA | BD94: SUTATAUSA | BE94: SUTATAUSA | BF94: SUTATAUSA | BG94: SUTATAUSA | BH94: SUTATAUSA | BT94: SUTATAUSA | WP94: SAN JUAN DE URABÁ | WQ94: SAN JUAN DE URABÁ | WS94: SOATÁ | WU94: SUTATAUSA | WV94: SUTATAUSA | XC94: SUTATAUSA
G95: SAN LUIS | H95: SAN LUIS | I95: SAN LUIS | J95: SAN LUIS | K95: SAN LUIS | L95: SAN LUIS | M95: SAN LUIS | N95: SAN LUIS | O95: SAN LUIS | P95: SAN LUIS | AD95: SOCHA | AE95: SOCHA | AF95: SOCHA | AG95: SOCHA | AH95: SOCHA | AI95: SOCHA | BC95: TABIO | BD95: TABIO | BE95: TABIO | BF95: TABIO | BG95: TABIO | BH95: TABIO | BT95: TABIO | WP95: SAN LUIS | WQ95: SAN LUIS | WS95: SOCHA | WU95: TABIO | WV95: TABIO | XC95: TABIO
G96: SAN PEDRO | H96: SAN PEDRO | I96: SAN PEDRO | J96: SAN PEDRO | K96: SAN PEDRO | L96: SAN PEDRO | M96: SAN PEDRO | N96: SAN PEDRO | O96: SAN PEDRO | P96: SAN PEDRO | AD96: SOCOTÁ | AE96: SOCOTÁ | AF96: SOCOTÁ | AG96: SOCOTÁ | AH96: SOCOTÁ | AI96: SOCOTÁ | BC96: TAUSA | BD96: TAUSA | BE96: TAUSA | BF96: TAUSA | BG96: TAUSA | BH96: TAUSA | BT96: TAUSA | WP96: SAN PEDRO | WQ96: SAN PEDRO | WS96: SOCOTÁ | WU96: TAUSA | WV96: TAUSA | XC96: TAUSA
G97: SAN PEDRO DE URABÁ | H97: SAN PEDRO DE URABÁ | I97: SAN PEDRO DE URABÁ | J97: SAN PEDRO DE URABÁ | K97: SAN PEDRO DE URABÁ | L97: SAN PEDRO DE URABÁ | M97: SAN PEDRO DE URABÁ | N97: SAN PEDRO DE URABÁ | O97: SAN PEDRO DE URABÁ | P97: SAN PEDRO DE URABÁ | AD97: SOGAMOSO | AE97: SOGAMOSO | AF97: SOGAMOSO | AG97: SOGAMOSO | AH97: SOGAMOSO | AI97: SOGAMOSO | BC97: TENA | BD97: TENA | BE97: TENA | BF97: TENA | BG97: TENA | BH97: TENA | BT97: TENA | WP97: SAN PEDRO DE URABÁ | WQ97: SAN PEDRO DE URABÁ | WS97: SOGAMOSO | WU97: TENA | WV97: TENA | XC97: TENA
G98: SAN RAFAEL | H98: SAN RAFAEL | I98: SAN RAFAEL | J98: SAN RAFAEL | K98: SAN RAFAEL | L98: SAN RAFAEL | M98: SAN RAFAEL | N98: SAN RAFAEL | O98: SAN RAFAEL | P98: SAN RAFAEL | AD98: SOMONDOCO | AE98: SOMONDOCO | AF98: SOMONDOCO | AG98: SOMONDOCO | AH98: SOMONDOCO | AI98: SOMONDOCO | BC98: TENJO | BD98: TENJO | BE98: TENJO | BF98: TENJO | BG98: TENJO | BH98: TENJO | BT98: TENJO | WP98: SAN RAFAEL | WQ98: SAN RAFAEL | WS98: SOMONDOCO | WU98: TENJO | WV98: TENJO | XC98: TENJO
G99: SAN ROQUE | H99: SAN ROQUE | I99: SAN ROQUE | J99: SAN ROQUE | K99: SAN ROQUE | L99: SAN ROQUE | M99: SAN ROQUE | N99: SAN ROQUE | O99: SAN ROQUE | P99: SAN ROQUE | AD99: SORA | AE99: SORA | AF99: SORA | AG99: SORA | AH99: SORA | AI99: SORA | BC99: TIBACUY | BD99: TIBACUY | BE99: TIBACUY | BF99: TIBACUY | BG99: TIBACUY | BH99: TIBACUY | BT99: TIBACUY | WP99: SAN ROQUE | WQ99: SAN ROQUE | WS99: SORA | WU99: TIBACUY | WV99: TIBACUY | XC99: TIBACUY
G100: SAN VICENTE | H100: SAN VICENTE | I100: SAN VICENTE | J100: SAN VICENTE | K100: SAN VICENTE | L100: SAN VICENTE | M100: SAN VICENTE | N100: SAN VICENTE | O100: SAN VICENTE | P100: SAN VICENTE | AD100: SORACÁ | AE100: SORACÁ | AF100: SORACÁ | AG100: SORACÁ | AH100: SORACÁ | AI100: SORACÁ | BC100: TIBIRITA | BD100: TIBIRITA | BE100: TIBIRITA | BF100: TIBIRITA | BG100: TIBIRITA | BH100: TIBIRITA | BT100: TIBIRITA | WP100: SAN VICENTE | WQ100: SAN VICENTE | WS100: SORACÁ | WU100: TIBIRITA | WV100: TIBIRITA | XC100: TIBIRITA
